{"text_format":"1","workbook":"xlsx","n_sheets":49,"sheets":["LDC Info","Index","COS Flowchart","List of Key References","App.2-A_Requested_Approvals","App.2-AA_Capital Projects","App.2-AB_Capital Expenditures","App.2-AC_Customer Engagement","App.2-B_Acctg Instructions","App.2-BA_Fixed Asset Cont","Appendix 2-BB Service Life  ","App.2-CA_OldCGAAPDepExp_Yr1","App.2-CB_NewCGAAP_DepExp_Yr1","App.2-CC_DepExp_Yr2","App.2-CD_DepExp_Yr3","App.2-CE_DepExp_Yr4","App.2-CF_DepExp_Yr5","App.2-CG_DepExp_Yr6","App.2-CH_DepExp","App.2-D_Overhead","App.2-EA_Account 1575 (2015)","App.2-EB_Account 1576 (2012)","App.2-EC_Account 1576 (2013)","App.2-FA Proposed REG Invest.","App.2-FB Calc of REG Improvemnt","App.2-FC Calc of REG Expansion","App.2-G SQI","App.2-H_Other_Oper_Rev","App_2-I LF_CDM","App.2-IA_Load_Forecast_Instrct","App.2-IB_Load_Forecast_Analysis","App.2-JA_OM&A_Summary_Analys","App.2-JB_OM&A_Cost _Drivers","App.2-JC_OMA Programs","App.2-K_Employee Costs","App.2-KA_P_OPEBs","App.2-L_OM&A_per_Cust_FTE","App.2-L_OM&A_per_Cust_FTEE_exp","App.2-M_Regulatory_Costs","App.2-N_Corp_Cost_Allocation","App.2-OA Capital Structure","App.2-OB_Debt Instruments","App.2-Q_Cost of Serv. Emb. Dx","App.2-R_Loss Factors","App.2-S_Stranded Meters","App.2-Y_MIFRS Summary Impacts","Sheet19","App.2-YA_IFRS Transition Costs","Sheet1"],"not_rendered":{"charts":0,"images":4,"macros":1,"external_links":10,"defined_names":633,"comments":4,"pivot_tables":0},"unopened":[],"bounds":{"document_bytes":16777216,"sheet_cells":100000,"rows_first":2000,"rows_last":500,"rows_between":2000,"halvings":0,"cell_chars":16384,"cell_head_chars":4096},"cells_cut":0,"cells_raw":0,"read":"whole","date_system":"1900"}

{"sheet":"LDC Info","index":0,"n_rows":77,"n_cols":27,"rows_kept":77,"cut":false,"hidden":false,"merged":[[45,0,45,3],[50,2,50,11],[54,2,54,12],[52,2,52,13],[27,4,27,6],[30,4,30,6],[29,0,30,3],[42,0,43,3],[38,0,39,3],[39,4,39,6],[32,0,33,3],[33,4,33,6],[35,0,36,3],[17,4,17,10],[13,4,13,10],[15,4,15,8],[19,4,19,8],[25,4,25,6],[23,4,23,6]]}
[]
[]
[null,null,null,null,null,null,null,null,null,null,null,null,null,null,null,null,null,null,null,null,null,null,null,null,null,1,"Algoma Power Inc."]
[null,null,null,null,null,null,null,null,null,null,null,null,null,null,null,null,null,null,null,null,null,null,null,null,null,2,"Atikokan Hydro Inc."]
[null,null,null,null,null,null,null,null,null,null,null,null,null,null,null,null,null,null,null,null,null,null,null,null,null,3,"Attawapiskat Power Corporation"]
[null,null,null,null,null,null,null,null,null,null,null,null,null,null,null,null,null,null,null,null,null,null,null,null,null,4,"Bluewater Power Distribution Corporation"]
[null,null,null,null,null,null,null,null,null,null,null,null,null,null,null,null,null,null,null,null,null,null,null,null,null,5,"Brantford Power Inc."]
[null,null,null,null,null,null,null,null,null,null,null,null,null,null,null,null,null,null,null,null,null,null,null,null,null,6,"Burlington Hydro Inc."]
[null,null,null,null,null,null,null,null,null,null,null,null,null,null,null,null,null,null,null,null,null,null,null,null,null,7,"Canadian Niagara Power Inc."]
[null,null,null,null,null,null,null,null,null,null,null,null,null,null,null,null,null,null,null,null,null,null,null,null,null,8,"Centre Wellington Hydro Ltd."]
[null,null,null,null,null,null,null,null,null,null,null,null,null,null,null,null,null,null,null,null,null,null,null,null,null,9,"Chapleau Public Utilities Corporation"]
[null,null,null,null,null,null,null,null,null,null,null,null,null,null,null,null,null,null,null,null,null,null,null,null,null,10,"COLLUS PowerStream Corp."]
[null,null,null,null,null,null,null,null,null,null,null,null,null,null,null,null,null,null,null,null,null,null,null,null,null,11,"Cooperative Hydro Embrun Inc."]
[null,null,null,"Utility Name   ","Centre Wellington Hydro Ltd.",null,null,null,null,null,null,null,null,null,null,null,null,null,null,null,null,null,null,null,null,12,"E.L.K. Energy Inc."]
[null,null,null,null,null,null,null,null,null,null,null,null,null,null,null,null,null,null,null,null,null,null,null,null,null,13,"Energy + Inc."]
[null,null,null,"Assigned EB Number","EB-2017-0032",null,null,null,null,null,null,null,null,null,null,null,null,null,null,null,null,null,null,null,null,14,"Enersource Hydro Mississauga Inc."]
[null,null,null,null,null,null,null,null,null,null,null,null,null,null,null,null,null,null,null,null,null,null,null,null,null,15,"Entegrus Powerlines Inc."]
[null,null,null,"Name of Contact and Title","Florence Thiessen, Vice President Finance & Regulatory",null,null,null,null,null,null,null,null,null,null,null,null,null,null,null,null,null,null,null,null,16,"ENWIN Utilities Ltd."]
[null,null,null,null,null,null,null,null,null,null,null,null,null,null,null,null,null,null,null,null,null,null,null,null,null,17,"Erie Thames Powerlines Corporation"]
[null,null,null,"Phone Number   ","519 843-2900 Ext. 225",null,null,null,null,null,null,null,null,null,null,null,null,null,null,null,null,null,null,null,null,18,"Espanola Regional Hydro Distribution Corporation"]
[null,null,null,null,null,null,null,null,null,null,null,null,null,null,null,null,null,null,null,null,null,null,null,null,null,19,"Essex Powerlines Corporation"]
[null,null,null,"Email Address   ","thiessen@cwhydro.ca",null,null,null,null,null,null,null,null,null,null,null,null,null,null,null,null,null,null,null,null,20,"Festival Hydro Inc."]
[null,null,null,null,null,null,null,null,null,null,null,null,null,null,null,null,null,null,null,null,null,null,null,null,null,21,"Fort Albany Power Corporation"]
[null,null,null,"Test Year",2018,null,null,null,null,null,null,null,null,null,null,null,null,null,null,null,null,null,null,null,null,22,"Fort Frances Power Corporation"]
[null,null,null,null,null,null,null,null,null,null,null,null,null,null,null,null,null,null,null,null,null,null,null,null,null,23,"Greater Sudbury Hydro Inc."]
[null,null,null,"Bridge Year",{"$f":"IF(ISBLANK(E24), \"\", E24-1)","v":2017},null,null,null,null,null,null,null,null,null,null,null,null,null,null,null,null,null,null,null,null,24,"Grimsby Power Inc."]
[null,null,null,null,null,null,null,null,null,null,null,null,null,null,null,null,null,null,null,null,null,null,null,null,null,25,"Guelph Hydro Electric Systems Inc."]
[null,null,null,"Last Rebasing Year",2013,null,null,null,null,null,null,null,null,null,null,null,null,null,null,null,null,null,null,null,null,26,"Haldimand County Hydro Inc."]
[null,null,null,null,null,null,null,null,null,null,null,null,null,null,null,null,null,null,null,null,null,null,null,null,null,27,"Halton Hills Hydro Inc."]
["Identify the accounting standard used for the test year",null,null,null,null,null,null,null,null,null,null,null,null,null,null,null,null,null,null,null,null,null,null,null,null,28,"Hearst Power Distribution Company Limited"]
[null,null,null,null,"MIFRS",null,null,null,null,null,null,null,null,null,null,null,null,null,null,null,null,null,null,null,null,29,"Horizon Utilities Corporation"]
[null,null,null,null,null,null,null,null,null,null,null,null,null,null,null,null,null,null,null,null,null,null,null,null,null,30,"Hydro 2000 Inc."]
["Did you update your depreciation and capitalization policies and reflect the changes in policies in a prior rebasing application?",null,null,null,null,null,null,null,null,null,null,null,null,null,null,null,null,null,null,null,null,null,null,null,null,31,"Hydro Hawkesbury Inc."]
[null,null,null,null,"Yes",null,null,null,null,null,null,null,null,null,null,null,null,null,null,null,null,null,null,null,null,32,"Hydro One Brampton Networks Inc."]
[null,null,null,null,null,null,null,null,null,null,null,null,null,null,null,null,null,null,null,null,null,null,null,null,null,33,"Hydro One Networks Inc."]
["When did you update your actual depreciation and capitalization policies?",null,null,null,null,null,null,null,null,null,null,null,null,null,null,null,null,null,null,null,null,null,null,null,null,34,"Hydro One Networks Inc. - Norfolk"]
[null,null,null,null,"2001-01-01",2013,null,null,null,null,null,null,null,null,null,null,null,null,null,null,null,null,null,null,null,35,"Hydro One Remote Communities Inc."]
[null,null,null,null,null,null,null,null,null,null,null,null,null,null,null,null,null,null,null,null,null,null,null,null,null,36,"Hydro Ottawa Limited"]
["Identify the year the applicant adopted IFRS for financial reporting purposes",null,null,null,null,null,null,null,null,null,null,null,null,null,null,null,null,null,null,null,null,null,null,null,null,37,"Innpower Corporation"]
[null,null,null,null,2015,null,null,null,null,null,null,null,null,null,null,null,null,null,null,null,null,null,null,null,null,38,"Kashechewan Power Corporation"]
[null,null,null,null,null,null,null,null,null,null,null,null,null,null,null,null,null,null,null,null,null,null,null,null,null,39,"Kenora Hydro Electric Corporation Ltd."]
[null,null,null,null,null,null,null,null,null,null,null,null,null,null,null,null,null,null,null,null,null,null,null,null,null,40,"Kingston Hydro Corporation"]
["Are you applying for cost recovery for the test and/or future year(s) for Green Energy initiatives?",null,null,null,null,null,null,null,null,null,null,null,null,null,null,null,null,null,null,null,null,null,null,null,null,41,"Kitchener-Wilmot Hydro Inc."]
[null,null,null,null,"No",null,null,null,null,null,null,null,null,null,null,null,null,null,null,null,null,null,null,null,null,42,"Lakefront Utilities Inc."]
[null,null,null,null,null,null,null,null,null,null,null,null,null,null,null,null,null,null,null,null,null,null,null,null,null,43,"Lakeland Power Distribution Ltd."]
[{"$f":"\"Is \" & E14 & \" an embedded distributor?\"","v":"Is Centre Wellington Hydro Ltd. an embedded distributor?"},null,null,null,"Yes",null,null,null,null,null,null,null,null,null,null,null,null,null,null,null,null,null,null,null,null,44,"London Hydro Inc."]
[null,null,null,null,null,null,null,null,null,null,null,null,null,null,null,null,null,null,null,null,null,null,null,null,null,45,"Midland Power Utility Corporation"]
[null,null,null,null,null,null,null,null,null,null,null,null,null,null,null,null,null,null,null,null,null,null,null,null,null,46,"Milton Hydro Distribution Inc."]
[null,"Notes",null,null,null,null,null,null,null,null,null,null,null,null,null,null,null,null,null,null,null,null,null,null,null,47,"Newmarket-Tay Power Distribution Ltd."]
[null,null,null,null,null,null,null,null,null,null,null,null,null,null,null,null,null,null,null,null,null,null,null,null,null,48,"Niagara Peninsula Energy Inc."]
[null,null,"Pale green cells represent input cells.",null,null,null,null,null,null,null,null,null,null,null,null,null,null,null,null,null,null,null,null,null,null,49,"Niagara-on-the-Lake Hydro Inc."]
[null,null,null,null,null,null,null,null,null,null,null,null,null,null,null,null,null,null,null,null,null,null,null,null,null,50,"North Bay Hydro Distribution Limited"]
[null,null,"Pale blue cells represent drop-down lists.  The applicant should select the appropriate item from the drop-down list.",null,null,null,null,null,null,null,null,null,null,null,null,null,null,null,null,null,null,null,null,null,null,51,"Northern Ontario Wires Inc."]
[null,null,null,null,null,null,null,null,null,null,null,null,null,null,null,null,null,null,null,null,null,null,null,null,null,52,"Oakville Hydro Electricity Distribution Inc."]
[null,null,"White cells contain fixed values, automatically generated values or formulae. ",null,null,null,null,null,null,null,null,null,null,{"$f":"IF(LEN($G55)>1, (SUMPRODUCT(--($C$78:$C$1000=$C55),--($A$78:$A$1000=$D55), --($B$78:$B$1000=$B55&\"_TOTAL\"), $L$78:$L$1000)), \"\")","v":""},{"$f":"IF(LEN($G55)>1, (SUMPRODUCT(--($C$78:$C$1000=$C55),--($A$78:$A$1000=$D55), --($B$78:$B$1000=$B55&\"_TOTAL\"), $M$78:$M$1000)), \"\")","v":""},null,null,null,null,null,null,null,null,null,null,53,"Orangeville Hydro Limited"]
[null,null,null,null,null,null,null,null,null,null,null,null,null,{"$f":"IF(LEN($G56)>1, (SUMPRODUCT(--($C$78:$C$1000=$C56),--($A$78:$A$1000=$D56), --($B$78:$B$1000=$B56&\"_TOTAL\"), $L$78:$L$1000)), \"\")","v":""},{"$f":"IF(LEN($G56)>1, (SUMPRODUCT(--($C$78:$C$1000=$C56),--($A$78:$A$1000=$D56), --($B$78:$B$1000=$B56&\"_TOTAL\"), $M$78:$M$1000)), \"\")","v":""},null,null,null,null,null,null,null,null,null,null,54,"Orillia Power Distribution Corporation"]
[null,null,null,null,null,null,null,null,null,null,null,null,null,"","",null,null,null,null,null,null,null,null,null,null,55,"Oshawa PUC Networks Inc."]
[null,null,null,null,null,null,null,null,null,null,null,null,null,"","",null,null,null,null,null,null,null,null,null,null,56,"Ottawa River Power Corporation"]
[null,null,null,null,null,null,null,null,null,null,null,null,null,"","",null,null,null,null,null,null,null,null,null,null,57,"Peterborough Distribution Inc."]
[null,null,null,null,null,null,null,null,null,null,null,null,null,"","",null,null,null,null,null,null,null,null,null,null,58,"PowerStream Inc."]
[null,null,null,null,null,null,null,null,null,null,null,null,null,"","",null,null,null,null,null,null,null,null,null,null,59,"PUC Distribution Inc."]
[null,null,null,null,null,null,null,null,null,null,null,null,null,"","",null,null,null,null,null,null,null,null,null,null,60,"Renfrew Hydro Inc."]
[null,null,null,null,null,null,null,null,null,null,null,null,null,"","",null,null,null,null,null,null,null,null,null,null,61,"Rideau St. Lawrence Distribution Inc."]
[null,null,null,null,null,null,null,null,null,null,null,null,null,"","",null,null,null,null,null,null,null,null,null,null,62,"Sioux Lookout Hydro Inc."]
[null,null,null,null,null,null,null,null,null,null,null,null,null,"","",null,null,null,null,null,null,null,null,null,null,63,"St. Thomas Energy Inc."]
[null,null,null,null,null,null,null,null,null,null,null,null,null,"","",null,null,null,null,null,null,null,null,null,null,64,"Thunder Bay Hydro Electricity Distribution Inc."]
[null,null,null,null,null,null,null,null,null,null,null,null,null,"","",null,null,null,null,null,null,null,null,null,null,65,"Tillsonburg Hydro Inc."]
[null,null,null,null,null,null,null,null,null,null,null,null,null,"","",null,null,null,null,null,null,null,null,null,null,66,"Toronto Hydro-Electric System Limited"]
[null,null,null,null,null,null,null,null,null,null,null,null,null,"","",null,null,null,null,null,null,null,null,null,null,67,"Veridian Connections Inc."]
[null,null,null,null,null,null,null,null,null,null,null,null,null,"","",null,null,null,null,null,null,null,null,null,null,68,"Wasaga Distribution Inc."]
[null,null,null,null,null,null,null,null,null,null,null,null,null,"","",null,null,null,null,null,null,null,null,null,null,69,"Waterloo North Hydro Inc."]
[null,null,null,null,null,null,null,null,null,null,null,null,null,"","",null,null,null,null,null,null,null,null,null,null,70,"Welland Hydro-Electric System Corp."]
[null,null,null,null,null,null,null,null,null,null,null,null,null,"","",null,null,null,null,null,null,null,null,null,null,71,"Wellington North Power Inc."]
[null,null,null,null,null,null,null,null,null,null,null,null,null,"","",null,null,null,null,null,null,null,null,null,null,72,"West Coast Huron Energy Inc."]
[null,null,null,null,null,null,null,null,null,null,null,null,null,null,null,null,null,null,null,null,null,null,null,null,null,73,"Westario Power Inc."]
[null,null,null,null,null,null,null,null,null,null,null,null,null,null,null,null,null,null,null,null,null,null,null,null,null,74,"Whitby Hydro Electric Corporation"]
[null,null,null,null,null,null,null,null,null,null,null,null,null,null,null,null,null,null,null,null,null,null,null,null,null,75,"Woodstock Hydro Services Inc."]

{"sheet":"Index","index":1,"n_rows":42,"n_cols":6,"rows_kept":42,"cut":false,"hidden":false,"merged":[[41,1,41,5]]}
[]
[]
[]
[]
[]
[]
[]
[]
[]
[]
[]
[]
[]
[]
[1,"LDC Information Sheet",null,null,27,"App.2-G: Service Reliability Indicators"]
[2,"Index",null,null,28,"App.2-H: Other Operating Revenue"]
[3,"Cost of Service Application Flowchart",null,null,29,"App.2-I: Load Forecast CDM Adjustment Workform"]
[4,"List of Key References",null,null,30,"App.2-IA: Load Forecast Data Instructions"]
[5,"App.2-A: List of Requested Approvals",null,null,31,"App.2-IB:  Actual and Forecast Load and Customer Data"]
[6,"App.2-AA: Capital Projects Table",null,null,32,"App.2-JA: OM&A Summary Analysis"]
[7,"App.2-AB: Capital Expenditures",null,null,33,"App.2-JB: Recoverable OM&A Cost Driver Table"]
[8,"App. 2-AC: Customer Engagement Worksheet",null,null,34,"App.2-JC: OM&A Programs Table"]
[9,"App.2-B: General Accounting Instructions",null,null,35,"App.2-K: Employee Costs"]
[10,"App.2-BA: Fixed Asset Continuity Schedule",null,null,36,"App.2-KA: OPEBs (Other Post-Employment Benefits) Costs"]
[11,"Appendix 2-BB: Service Life Comparison",null,null,37,"App.2-L: Recoverable OM&A Cost per Customer and per FTE"]
[12,"App.2-CA: Year 1 Depreciation and Amortization Expense (Old CGAAP)",null,null,38,"App.2-M: Regulatory Costs Schedule"]
[13,"App.2-CB: Year 1 Depreciation and Amortization Expense (New CGAAP)",null,null,39,"App.2-N: Shared Services and Corporate Cost Allocation"]
[14,"App.2-CC: Year 2 Depreciation and Amortization Expense (New CGAAP)",null,null,40,"App.2-OA: Capital Structure and Cost of Capital"]
[15,"App.2-CD: Year 3 Depreciation and Amortization Expense (New CGAAP or MIFRS)",null,null,41,"App.2-OB: Debt Instruments"]
[16,"App.2-CE: Year 4 Depreciation and Amortization Expense (MIFRS)",null,null,42,"App.2-Q: Cost of Serving Embedded Distributor(s)"]
[17,"App.2-CF: Year 5 Depreciation and Amortization Expense (MIFRS)",null,null,43,"App.2-R: Loss Factors"]
[18,"App.2-CG: Year 6 Depreciation and Amortization Expense (Old CGAAP)",null,null,44,"App.2-S: Stranded Meter Treatment"]
[19,"App.2-CH: Depreciation and Amortization Expense (MIFRS)",null,null,45,"App.2-Y: Transition to MIFRS Summary Impact"]
[20,"App.2-D: Overhead Expenses",null,null,46,"App.2-YA: One-Time Incremental IFRS Transition Costs"]
[21,"App.2-EA: Account 1575 PP&E Deferral Account (2015 IFRS Adopters)"]
[22,"App.2-EB: Account 1576 - Accounting Changes Under CGAAP (2012 Changes)"]
[23,"App.2-EC: Account 1576 - Accounting Changes Under CGAAP (2013 Changes)"]
[24,"App.2-FA: Renewable Generation Connection Investment Summary"]
[25,"App.2-FB: Calculation of Renewable Generation Connection Direct Benefits/Provincial Amount: Renewable Enabling Improvement Investments"]
[26,"App.2-FC: Calculation of Renewable Generation Connection Direct Benefits/Provincial Amount: Renewable Expansion Investments"]
[]
["Note:","Appendices for the Tariff of Rates and Charges at Current and Proposed Rates, and for the Bill Impacts are now in a separate spreadsheet model. These appendices were formerly 2-Z and 2-W."]

{"sheet":"COS Flowchart","index":2,"n_rows":6,"n_cols":2,"rows_kept":6,"cut":false,"hidden":false,"merged":[[5,1,5,6],[2,1,2,6],[3,1,3,6]]}
[]
[]
[]
[null,"Cost of Service Rate Application Schematic"]
[]
[null,"The Cost of Service Rate Application Schematic is a flowchart that is included as a guide for the components of an application. The schematic demonstrates how demand and costs interrelate to derive the revenue requirement and how the revenue requirement is allocated between classes and through fixed/variable splits to derive rates that will be compensatory for the annual revenue requirement, based on the the forecasted demand.  There is no form to be filled out; therefore, this Schedule is not required to be filed."]

{"sheet":"List of Key References","index":3,"n_rows":5,"n_cols":2,"rows_kept":5,"cut":false,"hidden":false,"merged":[[2,1,2,11],[4,0,4,11]]}
[]
[]
[null,"List of Key References"]
[]
["A list of key references for understanding the Filing Requirements has been embedded in the document below. To access the list of references and associated hyperlinks double-click the icon below."]

{"sheet":"App.2-A_Requested_Approvals","index":4,"n_rows":48,"n_cols":8,"rows_kept":48,"cut":false,"hidden":false,"merged":[[43,5,43,7],[45,5,45,7],[47,5,47,7],[49,5,49,7],[8,1,8,7],[33,5,33,7],[35,5,35,7],[37,5,37,7],[39,5,39,7],[9,1,9,7],[41,5,41,7],[11,1,11,7],[29,5,29,7],[23,5,23,7],[25,5,25,7],[27,5,27,7],[31,5,31,7],[21,5,21,7],[13,1,13,7],[15,1,15,7],[17,1,17,7],[19,5,19,7]]}
[null,null,null,null,null,null,"File Number:",{"$f":"EBNUMBER","v":"EB-2017-0032"}]
[null,null,null,null,null,null,"Exhibit:"]
[null,null,null,null,null,null,"Tab:"]
[null,null,null,null,null,null,"Schedule:"]
[null,null,null,null,null,null,"Page:"]
[]
[null,null,null,null,null,null,"Date:"]
[]
[null,"Appendix 2-A"]
[null,"List of Requested Approvals"]
[]
[null,"The distributor must fill out the following sheet with the complete list of specific approvals requested and relevant section(s) of the legislation must be provided. All approvals, including accounting orders (deferral and variance accounts) new rate classes, revised specific service charges or retail service charges which the applicant is seeking, must be separately identified, as well being clearly documented in the appropriate sections of the application."]
[]
[null,"Additional requests may be added by copying and pasting blank input rows, as needed."]
[]
[null,"If additional requests arise, or requested approvals are removed, during the processing of the application, the distributor should update this list."]
[]
[null,{"$f":"CONCATENATE('LDC Info'!E14,\" is seeking the following approvals in this application:\")","v":"Centre Wellington Hydro Ltd. is seeking the following approvals in this application:"}]
[]
[null,1,null,null,null,"Approval to charge distribution rates effective January 1, 2018 to recover a service revenue requirement of $3,707,317 which includes a revenue deficiency of $465,817 as detailed in Exhibit 6.  The schedule of proposed rates is set out in Exhibit 8."]
[]
[null,2,null,null,null,"Approval of the Distribution System Plan as outlined in Exhibit 2 Section 2.5.2"]
[]
[null,3,null,null,null,"Approval of a revised Microfit monthly service charge as outlined in Exhibit 3 and 8.  "]
[]
[null,4,null,null,null,"Approval to adjust the Retail Transmission Rates – Network and Connection as detailed in Exhibit 8.  "]
[]
[null,5,null,null,null," Approval of the proposed loss factors as detailed in Exhibit 8."]
[]
[null,6,null,null,null,"Approval to continue to charge Wholesale Market and Rural Rate Protection Charges approved in the Board Decision and Order in the matter of CWH 2017 Distribution Rates (EB-2016-0062)."]
[]
[null,7,null,null,null,"Approval to continue the Specific Service Charges, Retail Service Charges, and Transformer Allowance approved in the Board Decision and Order in the matter of CWH’s 2017 Distribution Rates (EB-2016-0062)."]
[]
[null,8,null,null,null,"Approval of the rate riders for a one year disposition of the Group 1 and Group 2 and Other Deferral and Variance Accounts as detailed in Exhibit 9."]
[]
[null,9,null,null,null,"Approval of the transition plan into fully fixed rates for residential customers as outlined in Exhibit 8."]
[]
[null,10]
[]
[null,11]
[]
[null,12]
[]
[null,13]
[]
[null,14]
[]
[null,15]

{"sheet":"App.2-AA_Capital Projects","index":5,"n_rows":110,"n_cols":9,"rows_kept":110,"cut":false,"hidden":false,"merged":[[112,0,113,9],[108,0,108,8],[110,0,110,8],[109,0,109,8],[8,0,8,7],[9,0,9,7]]}
["Amended Oct 28, 2017 - added 2013 Board Approved",null,null,null,null,null,null,"File Number:",{"$f":"EBNUMBER","v":"EB-2017-0032"}]
[null,null,null,null,null,null,null,"Exhibit:"]
[null,null,null,null,null,null,null,"Tab:"]
[null,null,null,null,null,null,null,"Schedule:"]
[null,null,null,null,null,null,null,"Page:"]
[]
[null,null,null,null,null,null,null,"Date:"]
[]
["Appendix 2-AA"]
["Capital Projects Table"]
[]
[]
["Projects","2013 Board Approved",2013,2014,2015,2016,"2017 Bridge Year","2018 Test Year"]
["Reporting Basis",null,"MIFRS","MIFRS","MIFRS","MIFRS","MIFRS","MIFRS"]
["System Access"]
["New Services",10500,24212.1,23553.41,27248.6,47340.88,26100,30600]
["New Meter install",null,null,null,11040.75]
["Fergus Library",225000,96402.19,null,145536.9]
["Geo Solar",null,-172.1]
["Elora Sewage plant",95600,101041.96]
["St George Hospital realign",null,null,25026.76]
["Water Street Widening",null,null,null,null,287507.57]
["Wellington Place Hospital Service",139900,null,null,null,null,244100]
["Easements",4000]
["Capital Contributions"]
["Water St Customers paying for underground service conversion",null,null,null,null,-18230.73]
["New Services",-40900,-123726.86,-8643.9599999999991,-9096.25,-27041.91]
["Hospital Realignment",null,null,-10111.469999999999]
[]
["Sub-Total",{"$f":"SUM(B16:B29)","v":434100},{"$f":"SUM(C16:C29)","v":97757.290000000023},{"$f":"SUM(D16:D29)","v":29824.739999999998},174730,289575.81000000006,270200,30600]
["System Renewal"]
["Annual Pole Replacement",null,39679.21,20659.07,2862.92,51617.89,89300,94500]
["Transformers",null,66685.13,4330.38,12207.83,78568.67,80000,80000]
["Rodan Meter Platform",null,null,null,null,null,18000]
["Argyll St",null,57736.68]
["Tower St Bridge",null,78726.070000000007]
["Beatty Line",178800,150358.72,24828.799999999999]
["GS>50 stock",null,1458.6]
["MS 1",1145000,1238505.27]
["MS 1 River crossing",null,162337.69]
["Condo",null,43352.21]
["Irvine Reconstruction",null,30031.26]
["Tower St ",null,16050.59]
["Union to Highland",null,72997.279999999999,60996.35]
["Perth St: Prince's to Wellington",null,35783.29,79838.240000000005]
["Replace #6 Copper wire & insulators",15600]
["MS 1Elora",null,null,1925636.4,9877.7699999999986]
["Chalmers",null,null,65408.21,35045.519999999997]
["Elora mS1",null,null,98873.1,32714.04]
["Gartshore M3",null,null,null,121676.86]
["MS3 Fergus",null,null,null,807551.19000000006]
["Tower St Concrete Poles",null,null,null,null,18068.599999999999]
["Braeside UG",null,null,null,null,47628.639999999999]
["Melville Poles",null,null,null,34919.53]
["Poletran replacement",null,null,null,null,215179.65]
["Gartshore Stn",null,null,null,43498.28]
["Mill St",null,null,null,12635.59]
["MS 2 Waterloo",null,null,null,null,491599.7]
["MS 4 Gzowski",null,null,null,null,691579.69]
["Station 4 Riser Pole",null,null,null,null,59773.19]
["CWEI Pole, Transformers",null,null,null,null,null,35000]
["Hill St Conversion",null,null,null,null,null,49300]
["Hill St Re-routing",null,null,null,null,null,25000]
["Hill St",null,null,null,null,null,49900]
["44kV Tie Re Route",null,null,null,null,null,140200]
["Brock St Conversion",null,null,null,null,null,22700]
["St Patrick: Gartshore to Herrick",null,null,null,null,null,null,85600]
["St Patrick: Gowrie to Herrick",null,null,null,null,null,null,103800]
["St George: Herrick to Gartshore",null,null,null,null,null,null,103800]
[]
["Sub-Total",{"$f":"SUM(B32:B70)","v":1339400},1993702,2280570.5499999998,1112989.5300000003,1654016.0299999998,509400,467700]
["System Service"]
["Meters",18400,null,6928.9299999999994,1915.5,22513.16,17400,41400]
["Zehrs Wholesale meter"]
["Meter Transfer Smart meters",null,1191255.27]
["Meter New install Res and GS'50",null,13984.88]
["St David St Bridge UG Addition",null,null,null,null,null,null,40500]
["Station Fans - Elora #2, Fergus #4",null,null,null,null,null,null,44800]
[]
["Contrib Capital for meters",null,-826.13,-1981.82,-2138.87,-1167.3200000000002,0,0]
["Contrib Capital for CTs PTs",null,null,-1663.26,-2390.0300000000002,-2055.2399999999998]
[]
["Sub-Total",{"$f":"SUM(B73:B82)","v":18400},{"$f":"SUM(C73:C82)","v":1204414.02},3283.8499999999995,-2613.4,19290.599999999999,17400,126700]
["General Plant "]
["Capital Conts Pd Hydro One",null,null,4602.5]
["Computer Software",50000,171607.43,{"$f":"43154.43-16791.36","v":26363.07},68020.08,0,null,50000]
["Building and Fixtures",null,null,null,null,73701,22000]
["Building and Fixtures - Cold Storage",null,null,null,null,null,55000]
["Office Furniture",5000,4295,1227.45,3294.59,null,18300,30000]
["Computer Hardware",28500,64467.199999999997,4801.6499999999996,71184.039999999994,55095.83,62500,19000]
["Transportation Equipment",null,15150,37625.72,421051.52,33498.31,400000,130000]
["Stores Equipment",null,null,null,null,null,5000]
["Tools, Shop and Garage Equip",1000,7491.42,9895.65,2357.4499999999998,5599,8800,14800]
["Measurement & Testing Equip",null,null,null,null,null,null,4500]
["Power Operated Equipment",null,null,null,6261.97,2020.37]
["Communication Equipment",null,4815,null,13100]
["Misc Equipment",null,null,null,null,null,9000,2000]
["System Supervisory Equipment"]
[]
[]
["Sub-Total",{"$f":"SUM(B85:B100)","v":84500},267826.05,84516.04,585269.64999999991,169914.51,580600,250300]
["Miscellaneous"]
["Total",{"$f":"SUMPRODUCT(--($A15:$A102=\"Sub-Total\"), B$15:B$102)+B102","v":1876400},3563699.36,2398195.1800000002,1870375.7800000003,2132796.9500000002,1377600,875300]
["Less Renewable Generation Facility Assets and Other Non-Rate-Regulated Utility Assets (input as negative)",null,0,0,0,0,0,0]
["Total",null,{"$f":"C103+C104","v":3563699.36},2398195.1800000002,1870375.7800000003,2132796.9500000002,1377600,875300]
[]
["Notes:"]
[]
["1   Please provide a breakdown of the major components of each capital project undertaken in each year.  Please ensure that all projects below the materiality threshold are included in the miscellaneous line.  Add more projects as required."]
["2   The applicant should group projects appropriately and avoid presentations that result in classification of significant components of the capital budget in the miscellaneous category."]

{"sheet":"App.2-AB_Capital Expenditures","index":6,"n_rows":36,"n_cols":23,"rows_kept":36,"cut":false,"hidden":false,"merged":[[24,0,24,20],[32,0,33,20],[35,0,36,20],[34,0,34,20],[27,0,27,20],[28,0,28,20],[29,0,30,20],[31,0,31,20],[25,0,25,7],[15,16,15,20],[12,0,15,0],[12,1,12,15],[15,1,15,2],[15,4,15,5],[15,7,15,8],[15,10,15,11],[15,13,15,14],[12,16,12,20],[13,1,13,3],[13,4,13,6],[13,18,14,18],[13,19,14,19],[13,20,14,20],[8,0,8,20],[9,0,9,20],[13,7,13,9],[13,10,13,12],[13,13,13,15],[13,16,14,16],[13,17,14,17]]}
[null,null,null,null,null,null,null,null,null,null,null,null,null,null,null,null,null,null,"File Number:",null,{"$f":"EBNUMBER","v":"EB-2017-0032"}]
[null,null,null,null,null,null,null,null,null,null,null,null,null,null,null,null,null,null,"Exhibit:"]
[null,null,null,null,null,null,null,null,null,null,null,null,null,null,null,null,null,null,"Tab:"]
["AMENDED JUNE 14, 2017",null,null,null,null,null,null,null,null,null,null,null,null,null,null,null,null,null,"Schedule:"]
["Amended on October 28 to remove smart meters in 2013 (2-SEC-7)",null,null,null,null,null,null,null,null,null,null,null,null,null,null,null,null,null,"Page:"]
[]
[null,null,null,null,null,null,null,null,null,null,null,null,null,null,null,null,null,null,"Date:"]
[]
["Appendix 2-AB"]
["Table 2 - Capital Expenditure Summary from Chapter 5 Consolidated\nDistribution System Plan Filing Requirements"]
[]
["First year of Forecast Period:",{"$f":"TestYear","v":2018}]
["CATEGORY","Historical Period (previous plan1 & actual)",null,null,null,null,null,null,null,null,null,null,null,null,null,null,"Forecast Period (planned)"]
[null,{"$f":"+E14-1","v":2013},null,null,{"$f":"+H14-1","v":2014},null,null,{"$f":"+K14-1","v":2015},null,null,{"$f":"+N14-1","v":2016},null,null,{"$f":"+Q14-1","v":2017},null,null,{"$f":"+B12","v":2018},{"$f":"+Q14+1","v":2019},{"$f":"R14+1","v":2020},{"$f":"S14+1","v":2021},{"$f":"T14+1","v":2022}]
[null,"Plan","Actual","Var","Plan","Actual","Var","Plan","Actual","Var","Plan","Actual","Var","Plan","Actual2","Var"]
[null,"$ '000",null,"%","$ '000",null,"%","$ '000",null,"%","$ '000",null,"%","$ '000",null,"%","$ '000"]
["System Access",null,98,{"$f":"IF(ISERROR((C17-B17)/B17),\"--\",(C17-B17)/B17)","v":"--"},null,30,{"$f":"IF(ISERROR((F17-E17)/E17),\"--\",(F17-E17)/E17)","v":"--"},null,175,{"$f":"IF(ISERROR((I17-H17)/H17),\"--\",(I17-H17)/H17)","v":"--"},null,290,{"$f":"IF(ISERROR((L17-K17)/K17),\"--\",(L17-K17)/K17)","v":"--"},270,null,{"$f":"IF(ISERROR((O17-N17)/N17),\"--\",(O17-N17)/N17)","v":-1},31,25,25,26,26]
["System Renewal",null,1994,"--",null,2281,"--",null,1113,"--",null,1654,"--",187,null,-1,468,503,527,539,1228]
["System Service",null,{"$f":"1204-('App.2-AA_Capital Projects'!C75/1000)","v":12.74472999999989},"--",null,3,"--",null,-2,"--",null,19,"--",17,null,-1,127,65,29,29,29]
["General Plant",null,{"$f":"268-('App.2-AA_Capital Projects'!C86/1000)","v":96.392570000000006},"--",null,85,"--",null,585,"--",null,170,"--",581,null,-1,250,157,393,126,142]
["TOTAL EXPENDITURE",1876,{"$f":"SUM(C17:C20)","v":2201.1372999999999},0.1733141257995735,2347,2399,2.2155943757988922E-2,2035,1871,-8.0589680589680593E-2,2051,2133,3.9980497318381276E-2,1055,0,-1,876,750,974,720,{"$f":"SUM(U17:U20)","v":1425}]
["System O&M",1018,1081,6.1886051080550099E-2,1037,1066,2.7965284474445518E-2,1015,1110,9.3596059113300489E-2,1074,1180,9.8696461824953452E-2,1198,null,{"$f":"IF(ISERROR((O22-N22)/N22),\"--\",(O22-N22)/N22)","v":-1},1249,1280,1312,1345,1379]
[]
["Notes to the Table:"]
["1. Historical “previous plan” data is not required unless a plan has previously been filed. However, use the last Board-approved, at least on a Total (Capital) Expenditure basis for the last cost of service rebasing year, and the applicant should include their planned budget in each subsequent historical year up to and including the Bridge Year."]
["2. Indicate the number of months of 'actual' data included in the last year of the Historical Period (normally a 'bridge' year):",null,null,null,null,null,null,null,null,0]
[]
["Explanatory Notes on Variances (complete only if applicable)",null,null,null,null,null,null,null,null,null,null,null,null,null,null,null,null,null,null,null,null,null,"."]
["Notes on shifts in forecast vs. historical budgets by category"]
[]
[]
["Notes on year over year Plan vs. Actual variances for Total Expenditures"]
["CWH did not have a DSP in its 2013 CoS filing therefore only total plan numbers have been provided.  The capital budget spending for 2013 was projected to be $1,876,400, and the actual capital expenditures for that year was a total of $3,563,699 or a difference of $1,687,299. The overspending compared to the plan of 2013 was primarily due to the transfer of capital costs associated with the Smart Meter deployment from account 1555-Smart Meter Capital and Recovery Offset variance account into capital in 2013.  The amount transferred from account 1555 was split between two categories in the above table.  The System Service project in table above for the 2013 actual column is solely the transfer for the meters ($1,204k) and there was $172k of the $268k in the General Plant category for computer software attributed to smart meters.  "]
[]
["Notes on Plan vs. Actual variance trends for individual expenditure categories"]
["CWH in the historic years completed extensive work on their distribution stations.  Details regarding these can be seen within the DSP provided in this application within Exhibit 2.  The stations have all been restored or rebuilt and therefore there is a drop in the trend within \"System Renewal\" starting in 2017."]

{"sheet":"App.2-AC_Customer Engagement","index":7,"n_rows":22,"n_cols":3,"rows_kept":22,"cut":false,"hidden":false,"merged":[[9,0,9,2],[8,0,8,2]]}
[null,"File Number:",{"$f":"EBNUMBER","v":"EB-2017-0032"}]
[null,"Exhibit:"]
[null,"Tab:"]
[null,"Schedule:"]
[null,"Page:"]
[]
[null,"Date:"]
[]
["Appendix 2-AC"]
["Customer Engagement Activities Summary"]
[]
["Provide a list of customer engagement activities","Provide a list of customer needs and preferences identified through each engagement activity","Actions taken to respond to identified needs and preferences.  If no action was taken, explain why."]
["Paperless Billing","Through survey, phone calls and emails, and front desk discussions customers have shown interest in registering for paperless billing and simplify their billing experience.","Paperless billing is available to all customers. Customers are required to register for an online Customer Connect account and paperless billing to receive emails when their bill is ready. These emails have a short breakdown of the amount owning and date required. This allows customers to conveniently pay their bill, or if they require further details, they are able to log into their online account and download their complete monthly bill. "]
["Billing Inserts","Through calls to our call centre and emails, customers have expressed the desire to be provided with information and details regarding programs and offerings from CWH, IESO and the OEB. Additionally, customers would like to be informed of any other changes that may affect their energy usage or billing.","Billing inserts are continuously created and delivered along with bills to share important information with customers. Inserts are also available at the reception area for customers to take with them after visiting the office. "]
["Radio Advertisements","Customers have shown through survey and emails that they are interested in getting information about various programs that are offered.","Radio advertisements are aired when pertinent information in regards to specific CWH events or program offerings are being delivered. "]
["CDM, including save on energy programs and use of a roving energy manager.","Through the most recent customer satisfaction survey customers place a high priority (level 3) on education about energy conservation.","Marketing save on energy programs through CWH’s online website and newspaper adds. Support staff through roving energy manager to over assistance to customers. "]
["Christmas Lights and spring flowers.","CWH works with the Township on festive projects throughout the year, installs Christmas decorations and lights on downtown street light poles and trees at the Municipal office.","CWH crews install Christmas decorations and lights on downtown St light poles and trees at the Municipal office, and in the spring hang flower baskets on decorative poles and assist with pot placements. "]
["In-Office Customer Engagement","CWH’s office is open to all walk in customers and contractors. ","Concerns or just general enquires are answered immediately by appropriate staff. "]
["Children programs","CWH is involved with the community and enjoys working with groups that organize programs for children. ","Safe communities day - Wellington County; CWH attends the annual safety day for children in Marden along with local fire departments, emergency services, and numerous other delegates. CWH staff also attends local fundraisers such as a local group that raises funds for playground equipment called Vic Terrace Mighty Machines Show. "]
[]
[]
["Note:  Use \"ALT-ENTER\" to go to the next line within a cell"]

{"sheet":"App.2-B_Acctg Instructions","index":8,"n_rows":73,"n_cols":7,"rows_kept":73,"cut":false,"hidden":false,"merged":[[63,0,64,12],[72,0,72,12],[0,0,0,10],[1,0,1,10],[5,0,5,10],[31,0,33,10],[31,11,33,18],[39,0,41,10],[39,11,41,18],[25,0,27,10],[10,0,16,0],[8,4,8,5],[18,0,18,9],[19,0,19,8],[48,1,50,12],[52,1,53,12],[20,0,20,8],[51,1,51,12],[58,1,58,12],[59,1,59,12],[62,1,62,11],[75,0,75,10],[75,11,75,18],[76,0,76,10],[76,11,76,18],[85,0,85,10],[85,11,85,18],[86,0,86,10],[86,11,86,18],[87,0,87,10],[77,11,77,18],[77,0,77,10],[78,11,78,18],[79,0,79,10],[79,11,79,18],[80,0,80,10],[80,11,80,18],[81,0,81,10],[81,11,81,18],[87,11,87,18],[82,0,82,10],[82,11,82,18],[83,0,83,10],[83,11,83,18],[84,0,84,10],[91,0,91,10],[91,11,91,18],[93,0,93,10],[84,11,84,18],[92,0,92,10],[92,11,92,18],[90,0,90,10],[90,11,90,18],[88,0,88,10],[88,11,88,18],[89,0,89,10],[89,11,89,18],[95,11,95,18],[96,0,96,10],[96,11,96,18],[97,0,97,10],[97,11,97,18],[93,11,93,18],[94,0,94,10],[94,11,94,18],[102,11,102,18],[128,0,128,10],[128,11,128,18],[125,0,125,10],[125,11,125,18],[126,0,126,10],[126,11,126,18],[127,0,127,10],[127,11,127,18],[122,0,122,10],[122,11,122,18],[123,0,123,10],[123,11,123,18],[124,0,124,10],[124,11,124,18],[120,0,120,10],[120,11,120,18],[121,0,121,10],[121,11,121,18],[116,0,116,10],[116,11,116,18],[117,0,117,10],[117,11,117,18],[118,0,118,10],[118,11,118,18],[115,0,115,10],[115,11,115,18],[110,0,110,10],[110,11,110,18],[111,0,111,10],[111,11,111,18],[112,0,112,10],[112,11,112,18],[119,0,119,10],[119,11,119,18],[113,0,113,10],[113,11,113,18],[114,0,114,10],[114,11,114,18],[107,0,107,10],[107,11,107,18],[108,0,108,10],[108,11,108,18],[109,0,109,10],[109,11,109,18],[104,0,104,10],[104,11,104,18],[105,0,105,10],[105,11,105,18],[106,0,106,10],[106,11,106,18],[103,0,103,10],[103,11,103,18],[98,0,98,10],[98,11,98,18],[99,0,99,10],[99,11,99,18],[100,0,100,10],[100,11,100,18],[101,0,101,10],[101,11,101,18],[102,0,102,10]]}
["General Instructions to MIFRS Appendices"]
["Types of Schedules to File"]
[]
["The purpose of this tab is to provide general instructions.  The specific instructions to each appendix are listed in footnotes of each appendix."]
[]
["The typical applicant is expected to have made capitalization and depreciation policy changes under CGAAP as permitted by the Board on January 1, 2012 or mandated by the Board by January 1, 2013, and adopted IFRS for reporting purposes on January 1, 2015 (transition date January 1, 2014).  Some distributors filing for 2017 rates have rebased with these accounting changes reflected in a prior rebasing application.  If that is the case, information relating to pre-accounting policy changes is not generally required.  The information to be provided by applicants will depend on when the accounting policy changes were made and when they last rebased.  In general, applicants should provide the following information in the appendices: "]
[]
[]
[null,null,null,null,"Reflecting Accounting Policy Changes in Current Application",null,"Reflected Accounting Policy Changes in Prior Application3"]
[null,null,null,null,"Accounting Policy Changes in 2012 and Adopted IFRS in 2015","Accounting Policy Changes in 2013 and Adopted IFRS in 2015","Adopted IFRS in 2015"]
["Information to be filed in 2017 CoS Application",2017,"Test",null,"MIFRS","MIFRS","MIFRS"]
[null,2016,"Bridge",null,"MIFRS","MIFRS","MIFRS"]
[null,2015,"Historical",null,"MIFRS","MIFRS","MIFRS"]
[null,2014,"Historical",null," MIFRS and Revised CGAAP1"," MIFRS and Revised CGAAP1"," MIFRS and Revised CGAAP1"]
[null,2013,"Historical",null,"Revised CGAAP","CGAAP and Revised CGAAP2","Rebased under Revised CGAAP"]
[null,2012,"Historical",null,"CGAAP and Revised CGAAP2","CGAAP","Rebased under Revised CGAAP"]
[null,"Prior","Historicals",null,"Rebased under CGAAP","Rebased under CGAAP","N/A"]
[]
["1)  For the transition year (2014), the applicant may file two appendices, one under Revised CGAAP and one under MIFRS, depending on the materiality of impacts.  See the specific instructions under each appendix below for further details."]
["2) For applicants that are reflecting accounting policy changes for the first time in a rebasing application, the applicant must file two appendices in the year that the applicant implemented changes to its capitalization and depreciation policies (2012 or 2013), one before and one after the policy changes."]
["3) Applicants should provide CGGAP and Revised CGAAP schedules (i.e. as indicated in the first two columns of the above table) to support balances in Account 1576 if the account has yet to be disposed of."]
[]
["Appendix 2-BA - Fixed Asset Schedule "]
[]
["Applicants are to provide Appendix 2-BA in accordance with the years and corresponding accounting standards noted in the above table to provide a year over year continuity in fixed assets."]
["For the transition year (2014), the applicant should file two appendices, one under Revised CGAAP and one under MIFRS if the change between Revised CGAAP and MIFRS is material.  If the change from the accounting standards is not material, the applicant may choose to only provide one appendix under MIFRS.  However, the applicant must also indicate the fixed asset net book value balance under Revised CGAAP, the total dollar value of the change and explain why it is not material."]
[]
[]
[]
["Regulatory Gross Assets of Property, Plant and Equipment"]
[]
["For an applicant that adopted IFRS on January 1, 2015 for financial reporting purposes, the applicant must establish the continuity of historic cost by using the December 31, 2013 regulatory gross assets of property, plant and equipment as the opening January 1, 2014 regulatory gross assets.  The applicant must provide schedules (including Appendix 2-BA, Fixed Asset Continuity Schedule) which must identify the following details to substantiate the continuity of historic cost for regulatory purposes: "]
[]
[]
["·         December 31, 2013 regulatory gross assets of property, plant and equipment, by asset class; and"]
["·         January 1, 2014 regulatory gross assets of property, plant and equipment, by asset class."]
[]
["Accumulated Depreciation"]
[]
["For an applicant that adopted IFRS on January 1, 2015 for financial reporting purposes, the applicant must establish the continuity of historic cost by using the December 31, 2013 regulatory accumulated depreciation as the opening January 1, 2014 regulatory accumulated depreciation.  The applicant must provide schedules (including Appendix 2-BA, Fixed Asset Continuity Schedule) which must identify the following details to substantiate the continuity of historic cost for regulatory purposes: "]
[]
[]
["·         December 31, 2013 regulatory accumulated depreciation, by asset class; and"]
["·         January 1, 2014 regulatory accumulated depreciation, by asset class."]
[]
["Appendix 2-Cx - Depreciation and Amortization "]
[]
["Applicants are to provide Appendix 2-Cx in accordance with the years and corresponding accounting standards listed in the above table.  "]
["·       ","If an applicant is reflecting changes to its depreciation policies for the first time in a rebasing application, the applicant should complete Appendix 2-CA to 2-CG (changes made in 2012) or Appendix 2-CA to 2-CF (changes made in 2013).   In this set of appendices, the applicant will need to indicate the year it made the accounting policy changes.  The applicant must provide data starting from the year it made changes to its capitalization and depreciation policies."]
[]
[]
[null,"*Depreciation accounting policy changes were mandated by the Board by January 1, 2013. In general, no further changes to an applicant's depreciation policy (i.e.  assets' service lives) are expected after the Board mandated changes by January 1, 2013.  The set of Appendix 2-CA to 2-CG assumes this to be the case.  If the applicant has made any changes to its depreciation policy subsequent to the Board mandated changes,  applicants must identify the change, explain the nature of the change, the reason for the change, quantify the impact of the change, and quantify the depreciation expense before and after the change."]
["·       "," If an applicant changed depreciation policies and reflected these changes in a prior rebasing application, the applicant should complete Appendix 2-CH. The applicant must provide data starting from the earlier of 1) all historical years back to its last rebasing; or 2) at least three years of historical actuals, in addition to Bridge Year and Test Year forecasts."]
[]
[]
["Appendix 2-E - Account 1575, IFRS-CGAAP Transitional PP&E Amounts (2-EA), Account 1576, Accounting Changes Under CGAAP (2-EB, 2-EC)"]
[]
["1) For an applicant that has a balance in Account 1576 to dispose:"]
["·       ","If an applicant changed capitalization and depreciation policies effective January 1, 2012, the applicant must complete Appendix 2-EB "]
["·       ","If an applicant changed capitalization and depreciation policies effective January 1, 2013, the applicant must complete Appendix 2-EC"]
[]
["2) For an applicant that has a balance in Account 1575 to dispose:"]
["·       ","The applicant must complete 2-EA"]
[" If the applicant did not make any further PP&E accounting policy changes beyond the capitalization and depreciation policy changes as mandated by the Board by January 1, 2013 (i.e. no further changes made on transition to IFRS), the applicant must indicate this and does not need to complete Appendix 2-EA."]
[]
[]
[]
[]
["Please refer to section 2.12.4 and 2.12.5 of the Filing Requirements for further details."]
[]
["Appendix 2-Y - Summary of Impacts to Revenue Requirement from Transition to MIFRS"]
[]
["An applicant must provide a summary of the dollar impacts of MIFRS to each component of the revenue requirement (e.g. rate base, operating costs, etc.), including the overall impact on the proposed revenue requirement.  Accordingly,  the applicant must identify financial differences and resulting revenue requirement impacts arising from the adoption of  MIFRS as compared to CGAAP.  If the applicant is reflecting the changes in capitalization and depreciation policies for the first time in a rebasing application, then a comparison between MIFRS and CGAAP before the change in accounting policies should be completed.  If the applicant changed capitalization and depreciation policies and  reflected these changes in a prior rebasing application, then a comparison between MIFRS and CGAAP after the change in accounting policies should be completed.  "]

{"sheet":"App.2-BA_Fixed Asset Cont","index":9,"n_rows":83,"n_cols":13,"rows_kept":83,"cut":false,"hidden":false,"merged":[[1,0,1,4],[86,1,87,12],[82,1,84,12],[73,1,74,12],[76,1,76,12],[8,0,8,12],[9,0,9,12],[14,3,14,6],[60,2,60,8],[61,2,61,8],[70,1,71,12]]}
[null,null,null,null,null,null,null,null,null,null,null,"File Number:",{"$f":"EBNUMBER","v":"EB-2017-0032"}]
["Please refer to separate Excel file entitled \"Fixed Asset Continuity Schedule.\" ",null,null,null,null,null,null,null,null,null,null,"Exhibit:"]
[null,null,null,null,null,null,null,null,null,null,null,"Tab:"]
[null,null,null,null,null,null,null,null,null,null,null,"Schedule:"]
[null,null,null,null,null,null,null,null,null,null,null,"Page:"]
[]
[null,null,null,null,null,null,null,null,null,null,null,"Date:"]
[]
["Appendix 2-BA"]
["Fixed Asset Continuity Schedule 1 "]
[]
[null,null,null,null,"Accounting Standard","MIFRS"]
[null,null,null,null,"Year "]
[]
[null,null,null,"Cost",null,null,null,null,null,"Accumulated Depreciation"]
["CCA Class 2","OEB Account 3","Description 3","Opening Balance","Additions 4","Disposals 6","Closing Balance",null,"Opening Balance","Additions","Disposals 6","Closing Balance","Net Book Value"]
[12,1611,"Computer Software (Formally known as Account 1925)",null,null,null,{"$f":"D17+E17+F17","v":0},null,null,null,null,{"$f":"I17+J17+K17","v":0},{"$f":"G17+L17","v":0}]
["CEC",1612,"Land Rights (Formally known as Account 1906)",null,null,null,{"$f":"D18+E18+F18","v":0},null,null,null,null,{"$f":"I18+J18+K18","v":0},{"$f":"G18+L18","v":0}]
["N/A",1805,"Land",null,null,null,{"$f":"D19+E19+F19","v":0},null,null,null,null,{"$f":"I19+J19+K19","v":0},{"$f":"G19+L19","v":0}]
[47,1808,"Buildings",null,null,null,{"$f":"D20+E20+F20","v":0},null,null,null,null,{"$f":"I20+J20+K20","v":0},{"$f":"G20+L20","v":0}]
[13,1810,"Leasehold Improvements",null,null,null,0,null,null,null,null,0,0]
[47,1815,"Transformer Station Equipment >50 kV",null,null,null,0,null,null,null,null,0,0]
[47,1820,"Distribution Station Equipment <50 kV",null,null,null,0,null,null,null,null,0,0]
[47,1825,"Storage Battery Equipment",null,null,null,0,null,null,null,null,0,0]
[47,1830,"Poles, Towers & Fixtures",null,null,null,0,null,null,null,null,0,0]
[47,1835,"Overhead Conductors & Devices",null,null,null,0,null,null,null,null,0,0]
[47,1840,"Underground Conduit",null,null,null,0,null,null,null,null,0,0]
[47,1845,"Underground Conductors & Devices",null,null,null,0,null,null,null,null,0,0]
[47,1850,"Line Transformers",null,null,null,0,null,null,null,null,0,0]
[47,1855,"Services (Overhead & Underground)",null,null,null,0,null,null,null,null,0,0]
[47,1860,"Meters",null,null,null,0,null,null,null,null,0,0]
[47,1860,"Meters (Smart Meters)",null,null,null,0,null,null,null,null,0,0]
["N/A",1905,"Land",null,null,null,0,null,null,null,null,0,0]
[47,1908,"Buildings & Fixtures",null,null,null,0,null,null,null,null,0,0]
[13,1910,"Leasehold Improvements",null,null,null,0,null,null,null,null,0,0]
[8,1915,"Office Furniture & Equipment (10 years)",null,null,null,0,null,null,null,null,0,0]
[8,1915,"Office Furniture & Equipment (5 years)",null,null,null,0,null,null,null,null,0,0]
[10,1920,"Computer Equipment - Hardware",null,null,null,0,null,null,null,null,0,0]
[45,1920,"Computer Equip.-Hardware(Post Mar. 22/04)",null,null,null,0,null,null,null,null,0,0]
[45.1,1920,"Computer Equip.-Hardware(Post Mar. 19/07)",null,null,null,0,null,null,null,null,0,0]
[10,1930,"Transportation Equipment",null,null,null,0,null,null,null,null,0,0]
[8,1935,"Stores Equipment",null,null,null,0,null,null,null,null,0,0]
[8,1940,"Tools, Shop & Garage Equipment",null,null,null,0,null,null,null,null,0,0]
[8,1945,"Measurement & Testing Equipment",null,null,null,0,null,null,null,null,0,0]
[8,1950,"Power Operated Equipment",null,null,null,0,null,null,null,null,0,0]
[8,1955,"Communications Equipment",null,null,null,0,null,null,null,null,0,0]
[8,1955,"Communication Equipment (Smart Meters)",null,null,null,0,null,null,null,null,0,0]
[8,1960,"Miscellaneous Equipment ",null,null,null,0,null,null,null,null,0,0]
[47,1970,"Load Management Controls Customer Premises",null,null,null,0,null,null,null,null,0,0]
[47,1975,"Load Management Controls Utility Premises",null,null,null,0,null,null,null,null,0,0]
[47,1980,"System Supervisor Equipment",null,null,null,0,null,null,null,null,0,0]
[47,1985,"Miscellaneous Fixed Assets",null,null,null,0,null,null,null,null,0,0]
[47,1990,"Other Tangible Property",null,null,null,0,null,null,null,null,0,0]
[47,1995,"Contributions & Grants",null,null,null,0,null,null,null,null,0,0]
[47,2440,"Deferred Revenue5"]
[null,null,null,null,null,null,0,null,null,null,null,0,0]
[null,null,"Sub-Total",{"$f":"SUM(D17:D56)","v":0},{"$f":"SUM(E17:E56)","v":0},{"$f":"SUM(F17:F56)","v":0},{"$f":"SUM(G17:G56)","v":0},null,{"$f":"SUM(I17:I56)","v":0},{"$f":"SUM(J17:J56)","v":0},{"$f":"SUM(K17:K56)","v":0},{"$f":"SUM(L17:L56)","v":0},{"$f":"SUM(M17:M56)","v":0}]
[null,null,"Less Socialized Renewable Energy Generation Investments (input as negative)",null,null,null,{"$f":"D58+E58+F58","v":0},null,null,null,null,{"$f":"I58+J58+K58","v":0},{"$f":"G58+L58","v":0}]
[null,null,"Less Other Non Rate-Regulated Utility Assets (input as negative)",null,null,null,0,null,null,null,null,{"$f":"I59+J59+K59","v":0},0]
[null,null,"Total PP&E",{"$f":"SUM(D57:D59)","v":0},{"$f":"SUM(E57:E59)","v":0},{"$f":"SUM(F57:F59)","v":0},{"$f":"SUM(G57:G59)","v":0},null,{"$f":"SUM(I57:I59)","v":0},{"$f":"SUM(J57:J59)","v":0},{"$f":"SUM(K57:K59)","v":0},{"$f":"SUM(L57:L59)","v":0},{"$f":"SUM(M57:M59)","v":0}]
[null,null,"Depreciation Expense adj. from gain or loss on the retirement of assets (pool of like assets), if applicable6"]
[null,null,"Total",null,null,null,null,null,null,{"$f":"J60+J61","v":0}]
[]
[null,null,null,null,null,null,null,null,"Less: Fully Allocated Depreciation"]
[10,null,"Transportation",null,null,null,null,null,"Transportation"]
[8,null,"Stores Equipment",null,null,null,null,null,"Stores Equipment"]
[null,null,null,null,null,null,null,null,"Net Depreciation",null,{"$f":"J62-K65-K66","v":0}]
[]
["Notes:"]
[]
[1,"Tables in the format outlined above covering all fixed asset accounts should be submitted for the Test Year, Bridge Year and all relevant historical years.  At a minimum , the applicant must provide data for the earlier of: 1) all historical years back to its last rebasing; or 2) at least three years of historical actuals, in addition to Bridge Year and Test Year forecasts."]
[]
[]
[2,"The \"CCA Class\" for fixed assets should agree with the CCA Class used for tax purposes in Tax Returns. Fixed Assets sub-components may be used where the underlying asset components are classified under multiple CCA Classes for tax purposes. If an applicant uses any different classes from those shown in the table, an explanation should be provided. (also see note 3)."]
[]
[]
[3,"The table may need to be customized for a utility's asset categories or for any new asset accounts announced or authorized by the Board."]
[]
[4,"The additions in column (E) must not include construction work in progress (CWIP)."]
[]
[5,"Effective on the date of IFRS adoption, customer contributions will no longer be recorded in Account 1995 Contributions & Grants, but will be recorded in Account 2440, Deferred Revenues.  "]
[]
[6,"The applicant must ensure that all asset disposals have been clearly identified in the Chapter 2 Appendices for all historic, bridge and test years.  Where a distributor for general financial reporting purposes under IFRS has accounted for the amount of gain or loss on the retirement of assets in a pool of like assets as a charge or credit to income, for reporting and rate application filings, the distributor shall reclassify such gains and losses as depreciation expense, and disclose the amount separately."]

{"sheet":"Appendix 2-BB Service Life  ","index":10,"n_rows":107,"n_cols":17,"rows_kept":107,"cut":false,"hidden":false,"merged":[[100,2,100,4],[100,6,100,7],[103,0,103,7],[97,2,97,4],[97,6,97,7],[98,2,98,4],[98,6,98,7],[99,2,99,4],[99,6,99,7],[94,2,94,4],[94,6,94,7],[95,2,95,4],[95,6,95,7],[96,2,96,4],[96,6,96,7],[92,1,93,1],[92,2,93,2],[92,3,92,4],[92,6,92,7],[93,3,93,4],[93,6,93,7],[88,1,91,1],[88,2,91,2],[88,3,88,4],[88,6,88,7],[89,3,89,4],[89,6,89,7],[90,3,90,4],[90,6,90,7],[91,3,91,4],[91,6,91,7],[86,1,87,1],[86,2,87,2],[86,3,86,4],[86,6,86,7],[87,3,87,4],[87,6,87,7],[82,1,85,1],[82,2,85,2],[82,3,82,4],[82,6,82,7],[83,3,83,4],[83,6,83,7],[84,3,84,4],[84,6,84,7],[85,3,85,4],[85,6,85,7],[80,2,80,4],[80,6,80,7],[81,2,81,4],[81,5,81,7],[74,13,74,14],[74,15,74,16],[75,2,75,4],[76,2,76,4],[76,6,76,7],[74,10,75,10],[74,11,74,12],[77,6,77,7],[78,3,78,4],[72,0,72,7],[74,2,74,4],[74,5,75,7],[74,9,75,9],[78,6,78,7],[79,3,79,4],[79,6,79,7],[69,2,69,4],[60,2,60,4],[61,2,61,4],[62,1,63,1],[62,2,63,2],[62,3,62,4],[63,3,63,4],[77,1,79,1],[77,2,79,2],[77,3,77,4],[59,2,59,4],[49,2,49,4],[50,0,68,0],[50,2,50,4],[51,2,51,4],[52,2,52,4],[53,2,53,4],[54,2,54,4],[55,2,55,4],[64,2,64,4],[65,2,65,4],[66,2,66,4],[67,2,67,4],[68,2,68,4],[33,0,49,0],[33,1,35,1],[33,2,35,2],[33,3,33,4],[34,3,34,4],[43,2,43,4],[44,2,44,4],[45,2,45,4],[46,2,46,4],[47,2,47,4],[48,2,48,4],[56,2,56,4],[57,1,58,1],[57,2,58,2],[57,3,57,4],[58,3,58,4],[38,1,40,1],[38,2,40,2],[38,3,38,4],[39,3,39,4],[40,3,40,4],[41,1,42,1],[41,3,41,4],[42,3,42,4],[35,3,35,4],[36,2,36,4],[37,2,37,4],[16,0,32,0],[16,1,18,1],[16,2,18,2],[16,3,16,4],[17,3,18,3],[25,2,25,4],[26,2,26,4],[27,2,27,4],[28,2,28,4],[29,2,29,4],[30,2,30,4],[19,1,21,1],[19,2,21,2],[19,3,19,4],[20,3,21,3],[22,1,24,1],[22,2,24,2],[22,3,22,4],[23,3,24,3],[32,2,32,4],[0,15,0,16],[1,15,1,16],[2,15,2,16],[3,15,3,16],[4,15,4,16],[6,15,6,16],[14,11,14,12],[14,13,14,14],[31,2,31,4],[14,2,14,4],[14,5,14,7],[14,9,15,9],[14,10,15,10],[8,0,8,16],[9,0,9,16],[10,0,10,16],[14,15,14,16],[15,2,15,4],[1,0,1,10]]}
[null,null,null,null,null,null,null,null,null,null,null,null,null,"File Number:",null,0]
["Please refer to separate Excel file entitled \"Fixed Asset Continuity Schedule.\" ",null,null,null,null,null,null,null,null,null,null,null,null,"Exhibit:"]
[null,null,null,null,null,null,null,null,null,null,null,null,null,"Tab:"]
[null,null,null,null,null,null,null,null,null,null,null,null,null,"Schedule:"]
[null,null,null,null,null,null,null,null,null,null,null,null,null,"Page:"]
[]
[null,null,null,null,null,null,null,null,null,null,null,null,null,"Date:"]
[]
["Appendix 2-BB"]
["Service Life Comparison"]
["Table F-1 from Kinetrics Report1"]
[]
[]
[]
[null,null,"Asset Details",null,null,"Useful Life",null,null,null,"USoA Account Number","USoA Account Description","Current",null,"Proposed",null,"Outside Range of Min, Max TUL?"]
["Parent*","#","Category| Component | Type",null,null,"MIN UL","TUL","MAX UL",null,null,null,"Years","Rate","Years","Rate","Below Min TUL","Above Max TUL"]
["OH",1,"Fully Dressed Wood Poles","Overall",null,35,45,75,null,null,null,null,{"$f":"IF(ISERROR(1/L17), \"\", 1/L17)","v":""},null,{"$f":"IF(ISERROR(1/N17), \"\", 1/N17)","v":""},{"$f":"IF(ISBLANK(N17),\"\",IF(N17<F17,\"Yes\",\"No\"))","v":""},{"$f":"IF(ISBLANK(N17),\"\",IF(N17>H17,\"Yes\",\"No\"))","v":""}]
[null,null,null,"Cross Arm","Wood",20,40,55,null,null,null,null,{"$f":"IF(ISERROR(1/L18), \"\", 1/L18)","v":""},null,{"$f":"IF(ISERROR(1/N18), \"\", 1/N18)","v":""},{"$f":"IF(ISBLANK(N18),\"\",IF(N18<F18,\"Yes\",\"No\"))","v":""},{"$f":"IF(ISBLANK(N18),\"\",IF(N18>H18,\"Yes\",\"No\"))","v":""}]
[null,null,null,null,"Steel",30,70,95,null,null,null,null,"",null,"","",""]
[null,2,"Fully Dressed Concrete Poles","Overall",null,50,60,80,null,null,null,null,"",null,"","",""]
[null,null,null,"Cross Arm","Wood",20,40,55,null,null,null,null,"",null,"","",""]
[null,null,null,null,"Steel",30,70,95,null,null,null,null,"",null,"","",""]
[null,3,"Fully Dressed Steel Poles","Overall",null,60,60,80,null,null,null,null,"",null,"","",""]
[null,null,null,"Cross Arm","Wood",20,40,55,null,null,null,null,"",null,"","",""]
[null,null,null,null,"Steel",30,70,95,null,null,null,null,"",null,"","",""]
[null,4,"OH Line Switch",null,null,30,45,55,null,null,null,null,"",null,"","",""]
[null,5,"OH Line Switch Motor",null,null,15,25,25,null,null,null,null,"",null,"","",""]
[null,6,"OH Line Switch RTU",null,null,15,20,20,null,null,null,null,"",null,"","",""]
[null,7,"OH Integral Switches",null,null,35,45,60,null,null,null,null,"",null,"","",""]
[null,8,"OH Conductors",null,null,50,60,75,null,null,null,null,"",null,"","",""]
[null,9,"OH Transformers & Voltage Regulators",null,null,30,40,60,null,null,null,null,"",null,"","",""]
[null,10,"OH Shunt Capacitor Banks",null,null,25,30,40,null,null,null,null,"",null,"","",""]
[null,11,"Reclosers",null,null,25,40,55,null,null,null,null,"",null,"","",""]
["TS & MS",12,"Power Transformers","Overall",null,30,45,60,null,null,null,null,"",null,"","",""]
[null,null,null,"Bushing",null,10,20,30,null,null,null,null,"",null,"","",""]
[null,null,null,"Tap Changer",null,20,30,60,null,null,null,null,"",null,"","",""]
[null,13,"Station Service Transformer",null,null,30,45,55,null,null,null,null,"",null,"","",""]
[null,14,"Station Grounding Transformer",null,null,30,40,40,null,null,null,null,"",null,"","",""]
[null,15,"Station DC System","Overall",null,10,20,30,null,null,null,null,"",null,"","",""]
[null,null,null,"Battery Bank",null,10,15,15,null,null,null,null,"",null,"","",""]
[null,null,null,"Charger",null,20,20,30,null,null,null,null,"",null,"","",""]
[null,16,"Station Metal Clad Switchgear","Overall",null,30,40,60,null,null,null,null,"",null,"","",""]
[null,null,null,"Removable Breaker",null,25,40,60,null,null,null,null,"",null,"","",""]
[null,17,"Station Independent Breakers",null,null,35,45,65,null,null,null,null,"",null,"","",""]
[null,18,"Station Switch",null,null,30,50,60,null,null,null,null,"",null,"","",""]
[null,19,"Electromechanical Relays",null,null,25,35,50,null,null,null,null,"",null,"","",""]
[null,20,"Solid State Relays",null,null,10,30,45,null,null,null,null,"",null,"","",""]
[null,21,"Digital & Numeric Relays",null,null,15,20,20,null,null,null,null,"",null,"","",""]
[null,22,"Rigid Busbars",null,null,30,55,60,null,null,null,null,"",null,"","",""]
[null,23,"Steel Structure",null,null,35,50,90,null,null,null,null,"",null,"","",""]
["UG",24,"Primary Paper Insulated Lead Covered (PILC) Cables",null,null,60,65,75,null,null,null,null,"",null,"","",""]
[null,25,"Primary Ethylene-Propylene Rubber (EPR) Cables",null,null,20,25,25,null,null,null,null,"",null,"","",""]
[null,26,"Primary Non-Tree Retardant (TR) Cross Linked \nPolyethylene (XLPE) Cables Direct Buried",null,null,20,25,30,null,null,null,null,"",null,"","",""]
[null,27,"Primary Non-TR XLPE Cables in Duct",null,null,20,25,30,null,null,null,null,"",null,"","",""]
[null,30,"Secondary PILC Cables",null,null,70,75,80,null,null,null,null,"",null,"","",""]
[null,31,"Secondary Cables Direct Buried",null,null,25,35,40,null,null,null,null,"",null,"","",""]
[null,32,"Secondary Cables in Duct",null,null,35,40,60,null,null,null,null,"",null,"","",""]
[null,33,"Network Tranformers","Overall",null,20,35,50,null,null,null,null,"",null,"","",""]
[null,null,null,"Protector",null,20,35,40,null,null,null,null,"",null,"","",""]
[null,34,"Pad-Mounted Transformers",null,null,25,40,45,null,null,null,null,"",null,"","",""]
[null,35,"Submersible/Vault Transformers",null,null,25,35,45,null,null,null,null,"",null,"","",""]
[null,36,"UG Foundation",null,null,35,55,70,null,null,null,null,"",null,"","",""]
[null,37,"UG Vaults","Overall",null,40,60,80,null,null,null,null,"",null,"","",""]
[null,null,null,"Roof",null,20,30,45,null,null,null,null,"",null,"","",""]
[null,38,"UG Vault Switches",null,null,20,35,50,null,null,null,null,"",null,"","",""]
[null,39,"Pad-Mounted Switchgear",null,null,20,30,45,null,null,null,null,"",null,"","",""]
[null,40,"Ducts",null,null,30,50,85,null,null,null,null,"",null,"","",""]
[null,41,"Concrete Encased Duct Banks",null,null,35,55,80,null,null,null,null,"",null,"","",""]
[null,42,"Cable Chambers",null,null,50,60,80,null,null,null,null,"",null,"","",""]
["S",43,"Remote SCADA",null,null,15,20,30,null,null,null,null,"",null,"","",""]
[]
[]
["Table F-2 from Kinetrics Report1"]
[]
[null,null,"Asset Details",null,null,"Useful Life Range",null,null,null,"USoA Account Number","USoA Account Description","Current",null,"Proposed",null,"Outside Range of Min, Max TUL?"]
[null,"#","Category| Component | Type",null,null,null,null,null,null,null,null,"Years","Rate","Years","Rate","Below Min Range","Above Max Range"]
[null,1,"Office Equipment",null,null,5,15,null,null,null,null,null,{"$f":"IF(ISERROR(1/L77), \"\", 1/L77)","v":""},null,{"$f":"IF(ISERROR(1/N77), \"\", 1/N77)","v":""},{"$f":"IF(ISBLANK(N77),\"\",IF(N77<F77,\"Yes\",\"No\"))","v":""},{"$f":"IF(ISBLANK(N77),\"\",IF(N77>G77,\"Yes\",\"No\"))","v":""}]
[null,2,"Vehicles","Trucks & Buckets",null,5,15,null,null,null,null,null,{"$f":"IF(ISERROR(1/L78), \"\", 1/L78)","v":""},null,{"$f":"IF(ISERROR(1/N78), \"\", 1/N78)","v":""},{"$f":"IF(ISBLANK(N78),\"\",IF(N78<F78,\"Yes\",\"No\"))","v":""},{"$f":"IF(ISBLANK(N78),\"\",IF(N78>G78,\"Yes\",\"No\"))","v":""}]
[null,null,null,"Trailers",null,5,20,null,null,null,null,null,"",null,"","",""]
[null,null,null,"Vans",null,5,10,null,null,null,null,null,"",null,"","",""]
[null,3,"Administrative Buildings",null,null,50,75,null,null,null,null,null,"",null,"","",""]
[null,4,"Leasehold Improvements",null,null,"Lease dependent",null,null,null,null,null,null,"",null,""]
[null,5,"Station Buildings","Station Buildings",null,50,75,null,null,null,null,null,"",null,"","",""]
[null,null,null,"Parking",null,25,30,null,null,null,null,null,"",null,"","",""]
[null,null,null,"Fence",null,25,60,null,null,null,null,null,"",null,"","",""]
[null,null,null,"Roof",null,20,30,null,null,null,null,null,"",null,"","",""]
[null,6,"Computer Equipment","Hardware",null,3,5,null,null,null,null,null,"",null,"","",""]
[null,null,null,"Software",null,2,5,null,null,null,null,null,"",null,"","",""]
[null,7,"Equipment","Power Operated",null,5,10,null,null,null,null,null,"",null,"","",""]
[null,null,null,"Stores",null,5,10,null,null,null,null,null,"",null,"","",""]
[null,null,null,"Tools, Shop, Garage Equipment",null,5,10,null,null,null,null,null,"",null,"","",""]
[null,null,null,"Measurement & Testing Equipment",null,5,10,null,null,null,null,null,"",null,"","",""]
[null,8,"Communication","Towers",null,60,70,null,null,null,null,null,"",null,"","",""]
[null,null,null,"Wireless",null,2,10,null,null,null,null,null,"",null,"","",""]
[null,9,"Residential Energy Meters",null,null,25,35,null,null,null,null,null,"",null,"","",""]
[null,10,"Industrial/Commercial Energy Meters",null,null,25,35,null,null,null,null,null,"",null,"","",""]
[null,11,"Wholesale Energy Meters",null,null,15,30,null,null,null,null,null,"",null,"","",""]
[null,12,"Current & Potential Transformer (CT & PT)",null,null,35,50,null,null,null,null,null,"",null,"","",""]
[null,13,"Smart Meters",null,null,5,15,null,null,null,null,null,"",null,"","",""]
[null,14,"Repeaters - Smart Metering",null,null,10,15,null,null,null,null,null,"",null,"","",""]
[null,15,"Data Collectors - Smart Metering",null,null,15,20,null,null,null,null,null,"",null,"","",""]
[]
[]
["* TS & MS = Transformer and Municipal Stations UG = Underground Systems S = Monitoring and Control Systems"]
[]
["Note 1:","Tables F-1 and F-2 above are to be used as a reference in order to complete columns J, K, L and N."]
[null,"See pages 17-19 of Kinetrics Report"]

{"sheet":"App.2-CA_OldCGAAPDepExp_Yr1","index":11,"n_rows":65,"n_cols":12,"rows_kept":65,"cut":false,"hidden":false,"merged":[[13,2,13,9],[61,1,61,11],[62,1,63,9],[64,1,65,11],[8,0,8,11],[9,0,9,11],[17,0,18,0],[17,1,18,1],[17,10,18,10],[10,1,10,10],[12,0,12,1],[13,0,13,1],[14,0,14,1],[14,2,14,9]]}
[null,null,null,null,null,null,null,null,null,null,"File Number:",{"$f":"EBNUMBER","v":"EB-2017-0032"}]
["Please refer to separate Excel file entitled \"Fixed Asset Continuity Schedule.\" ",null,null,null,null,null,null,null,null,null,"Exhibit:"]
[null,null,null,null,null,null,null,null,null,null,"Tab:"]
[null,null,null,null,null,null,null,null,null,null,"Schedule:"]
[null,null,null,null,null,null,null,null,null,null,"Page:"]
[]
[null,null,null,null,null,null,null,null,null,null,"Date:"]
[]
["Appendix 2-CA"]
["Depreciation and Amortization Expense"]
[null,"Former CGAAP (Year 1)"]
[]
["Select the set of appendices that apply",null,null,null,null,null,null,null,null,null,"Year Reflected in Schedule Below","Accounting Standard"]
["2012 Set of Appendices (2-CA to 2-CG)",null,"Assumes the applicant made capitalization and depreciation expense accounting policy changes under CGAAP effective January 1, 2012 and has adopted IFRS for financial reporting purposes effective January 1, 2015.  Assumes that the applicant is reflecting these changes in a rebasing application for the first time.",null,null,null,null,null,null,null,2012,"Former CGAAP"]
["2013 Set of Appendices (2-CA to 2-CF)",null,"Assumes the applicant made capitalization and depreciation expense accounting policy changes under CGAAP effective January 1, 2013 and has adopted IFRS for financial reporting purposes effective January 1, 2015.  Assumes that the applicant is reflecting these changes in a rebasing application for the first time.",null,null,null,null,null,null,null,2013,"Former CGAAP"]
[]
[]
["Account","Description","Opening Regulatory Gross PP&E as at Jan. 1","Less Fully Depreciated","Net for Depreciation","Additions","Total for Depreciation 1","Years","Depreciation Rate","Current Year Depreciation Expense","Depreciation Expense per Appendix 2-BA Fixed Assets, Column J \n (l)","Variance 2"]
[null,null,"(a)","(b)","(c)","(d)","(e) = (c) + ½ x (d) ","(f)","(g) = 1 / (f)","(h) = (e) / (f)",null,"(m) = (h) - (l)"]
[1611,"Computer Software (Formally known as Account 1925)",null,null,{"$f":"C20-D20","v":0},null,{"$f":"E20+0.5*F20","v":0},null,{"$f":"IF(H20=0,0,1/H20)","v":0},{"$f":"IF(H20=0,0,G20/H20)","v":0},null,{"$f":"IF(ISERROR(+J20-K20), 0, +J20-K20)","v":0}]
[1612,"Land Rights (Formally known as Account 1906)",null,null,{"$f":"C21-D21","v":0},null,{"$f":"E21+0.5*F21","v":0},null,0,0,null,0]
[1805,"Land",null,null,0,null,0,null,0,0,null,0]
[1808,"Buildings",null,null,0,null,0,null,0,0,null,0]
[1810,"Leasehold Improvements",null,null,0,null,0,null,0,0,null,0]
[1815,"Transformer Station Equipment >50 kV",null,null,0,null,0,null,0,0,null,0]
[1820,"Distribution Station Equipment <50 kV",null,null,0,null,0,null,0,0,null,0]
[1825,"Storage Battery Equipment",null,null,0,null,0,null,0,0,null,0]
[1830,"Poles, Towers & Fixtures",null,null,0,null,0,null,0,0,null,0]
[1835,"Overhead Conductors & Devices",null,null,0,null,0,null,0,0,null,0]
[1840,"Underground Conduit",null,null,0,null,0,null,0,0,null,0]
[1845,"Underground Conductors & Devices",null,null,0,null,0,null,0,0,null,0]
[1850,"Line Transformers",null,null,0,null,0,null,0,0,null,0]
[1855,"Services (Overhead & Underground)",null,null,0,null,0,null,0,0,null,0]
[1860,"Meters",null,null,0,null,0,null,0,0,null,0]
[1860,"Meters (Smart Meters)",null,null,0,null,0,null,0,0,null,0]
[1905,"Land",null,null,0,null,0,null,0,0,null,0]
[1908,"Buildings & Fixtures",null,null,0,null,0,null,0,0,null,0]
[1910,"Leasehold Improvements",null,null,0,null,0,null,0,0,null,0]
[1915,"Office Furniture & Equipment (10 years)",null,null,0,null,0,null,0,0,null,0]
[1915,"Office Furniture & Equipment (5 years)",null,null,0,null,0,null,0,0,null,0]
[1920,"Computer Equipment - Hardware",null,null,0,null,0,null,0,0,null,0]
[1920,"Computer Equip.-Hardware(Post Mar. 22/04)",null,null,0,null,0,null,0,0,null,0]
[1920,"Computer Equip.-Hardware(Post Mar. 19/07)",null,null,0,null,0,null,0,0,null,0]
[1930,"Transportation Equipment",null,null,0,null,0,null,0,0,null,0]
[1935,"Stores Equipment",null,null,0,null,0,null,0,0,null,0]
[1940,"Tools, Shop & Garage Equipment",null,null,0,null,0,null,0,0,null,0]
[1945,"Measurement & Testing Equipment",null,null,0,null,0,null,0,0,null,0]
[1950,"Power Operated Equipment",null,null,0,null,0,null,0,0,null,0]
[1955,"Communications Equipment",null,null,0,null,0,null,0,0,null,0]
[1955,"Communication Equipment (Smart Meters)",null,null,0,null,0,null,0,0,null,0]
[1960,"Miscellaneous Equipment ",null,null,0,null,0,null,0,0,null,0]
[1970,"Load Management Controls Customer Premises",null,null,0,null,0,null,0,0,null,0]
[1975,"Load Management Controls Utility Premises",null,null,0,null,0,null,0,0,null,0]
[1980,"System Supervisor Equipment",null,null,0,null,0,null,0,0,null,0]
[1985,"Miscellaneous Fixed Assets",null,null,0,null,0,null,0,0,null,0]
[1990,"Other Tangible Property",null,null,0,null,0,null,0,0,null,0]
[1995,"Contributions & Grants",null,null,0,null,0,null,0,0,null,0]
[null,"Total",{"$f":"SUM(C20:C57)","v":0},{"$f":"SUM(D20:D57)","v":0},{"$f":"SUM(E20:E57)","v":0},{"$f":"SUM(F20:F57)","v":0},{"$f":"SUM(G20:G57)","v":0},null,null,{"$f":"SUM(J20:J57)","v":0},{"$f":"SUM(K20:K57)","v":0},{"$f":"SUM(L20:L57)","v":0}]
[]
["Notes:"]
[]
[1,"Board policy of the \"half-year\" rule - the applicant must ensure that additions in the year attract a half-year depreciation expense in the first year.  Deviations from this standard practice must be supported in the application."]
[2,"The applicant must provide an explanation of material variances."]
[]
["General","Applicants must provide a breakdown of depreciation and amortization expense in the above format for all relevant accounts.  Asset Retirement Obligations (AROs), depreciation and accretion expense should be disclosed separately consistent with the Notes of historical Audited Financial Statements."]

{"sheet":"App.2-CB_NewCGAAP_DepExp_Yr1","index":12,"n_rows":69,"n_cols":15,"rows_kept":69,"cut":false,"hidden":false,"merged":[[12,11,12,12],[13,0,13,1],[13,2,13,10],[13,11,13,12],[14,0,14,1],[14,2,14,10],[14,11,14,12],[1,1,1,10],[68,1,69,14],[61,1,61,14],[62,1,62,14],[63,1,63,14],[64,1,64,14],[65,1,65,14],[66,1,66,14],[8,0,8,14],[9,0,9,14],[17,0,18,0],[17,1,18,1],[17,10,18,10],[17,13,18,13],[10,0,10,14],[12,0,12,1]]}
[null,null,null,null,null,null,null,null,null,null,null,null,null,"File Number:",{"$f":"EBNUMBER","v":"EB-2017-0032"}]
[null,"Please refer to separate Excel file entitled \"Fixed Asset Continuity Schedule.\" ",null,null,null,null,null,null,null,null,null,null,null,"Exhibit:"]
[null,null,null,null,null,null,null,null,null,null,null,null,null,"Tab:"]
[null,null,null,null,null,null,null,null,null,null,null,null,null,"Schedule:"]
[null,null,null,null,null,null,null,null,null,null,null,null,null,"Page:"]
[]
[null,null,null,null,null,null,null,null,null,null,null,null,null,"Date:"]
[]
["Appendix 2-CB"]
["Depreciation and Amortization Expense"]
["Revised CGAAP (Year 1)"]
[]
["Select the set of appendices that apply",null,null,null,null,null,null,null,null,null,null,"Year Reflected in Schedule Below",null,"Accounting Standard"]
["2012 Set of Appendices (2-CA to 2-CG)",null,"Assumes the applicant made capitalization and depreciation expense accounting policy changes under CGAAP effective January 1, 2012 and has adopted IFRS for financial reporting purposes effective January 1, 2015.  Assumes that the applicant is reflecting these changes in a rebasing application for the first time.",null,null,null,null,null,null,null,null,2012,null,"Revised CGAAP"]
["2013 Set of Appendices (2-CA to 2-CF)",null,"Assumes the applicant made capitalization and depreciation expense accounting policy changes under CGAAP effective January 1, 2013 and has adopted IFRS for financial reporting purposes effective January 1, 2015.  Assumes that the applicant is reflecting these changes in a rebasing application for the first time.",null,null,null,null,null,null,null,null,2013,null,"Revised CGAAP"]
[]
[]
["Account","Description","Opening NBV as at Jan 15","Additions","Average Remaining Life of Opening NBV 4","Years (new additions only) 3","Depreciation Rate on New Additions","Depreciation Expense on Opening NBV","Depreciation Expense on Additions 1","Current Year Depreciation Expense ","Depreciation Expense per Appendix 2-BA Fixed Assets, Column J \n (l)","Variance 2","Depreciation Expense on Current Full Year Additions","Less Depreciation Expense on Assets Fully Depreciated During the Year\n(o)","Current Full Year Depreciation 6"]
[null,null,"(a)","(d)","(i)","(f)","(g) = 1 / (f)","(j) = (a) / (i)","(h)=((d)*0.5)/(f) ","(k) = (j) + (h)",null,"(m) = (k) - (l)","(n) = (d)/(f) ",null,"(p) = (j) + (n) - (o)"]
[1611,"Computer Software (Formally known as Account 1925)",null,null,null,null,{"$f":"IF(F20=0,0,1/F20)","v":0},{"$f":"IF(E20=0,0,+C20/E20)","v":0},{"$f":"IF(F20=0,0,+(D20*0.5)/F20)","v":0},{"$f":"IF(ISERROR(+H20+I20), 0, +H20+I20)","v":0},null,{"$f":"IF(ISERROR(+J20-K20), 0, +J20-K20)","v":0},{"$f":"IF(F20=0,0,+(D20)/F20)","v":0},null,{"$f":"IF(ISERROR(+M20+H20-N20), 0, +M20+H20-N20)","v":0}]
[1612,"Land Rights (Formally known as Account 1906)",null,null,null,null,0,0,0,0,null,0,0,null,{"$f":"IF(ISERROR(+M21+H21-N21), 0, +M21+H21-N21)","v":0}]
[1805,"Land",null,null,null,null,0,0,0,0,null,0,0,null,0]
[1808,"Buildings",null,null,null,null,0,0,0,0,null,0,0,null,0]
[1810,"Leasehold Improvements",null,null,null,null,0,0,0,0,null,0,0,null,0]
[1815,"Transformer Station Equipment >50 kV",null,null,null,null,0,0,0,0,null,0,0,null,0]
[1820,"Distribution Station Equipment <50 kV",null,null,null,null,0,0,0,0,null,0,0,null,0]
[1825,"Storage Battery Equipment",null,null,null,null,0,0,0,0,null,0,0,null,0]
[1830,"Poles, Towers & Fixtures",null,null,null,null,0,0,0,0,null,0,0,null,0]
[1835,"Overhead Conductors & Devices",null,null,null,null,0,0,0,0,null,0,0,null,0]
[1840,"Underground Conduit",null,null,null,null,0,0,0,0,null,0,0,null,0]
[1845,"Underground Conductors & Devices",null,null,null,null,0,0,0,0,null,0,0,null,0]
[1850,"Line Transformers",null,null,null,null,0,0,0,0,null,0,0,null,0]
[1855,"Services (Overhead & Underground)",null,null,null,null,0,0,0,0,null,0,0,null,0]
[1860,"Meters",null,null,null,null,0,0,0,0,null,0,0,null,0]
[1860,"Meters (Smart Meters)",null,null,null,null,0,0,0,0,null,0,0,null,0]
[1905,"Land",null,null,null,null,0,0,0,0,null,0,0,null,0]
[1908,"Buildings & Fixtures",null,null,null,null,0,0,0,0,null,0,0,null,0]
[1910,"Leasehold Improvements",null,null,null,null,0,0,0,0,null,0,0,null,0]
[1915,"Office Furniture & Equipment (10 years)",null,null,null,null,0,0,0,0,null,0,0,null,0]
[1915,"Office Furniture & Equipment (5 years)",null,null,null,null,0,0,0,0,null,0,0,null,0]
[1920,"Computer Equipment - Hardware",null,null,null,null,0,0,0,0,null,0,0,null,0]
[1920,"Computer Equip.-Hardware(Post Mar. 22/04)",null,null,null,null,0,0,0,0,null,0,0,null,0]
[1920,"Computer Equip.-Hardware(Post Mar. 19/07)",null,null,null,null,0,0,0,0,null,0,0,null,0]
[1930,"Transportation Equipment",null,null,null,null,0,0,0,0,null,0,0,null,0]
[1935,"Stores Equipment",null,null,null,null,0,0,0,0,null,0,0,null,0]
[1940,"Tools, Shop & Garage Equipment",null,null,null,null,0,0,0,0,null,0,0,null,0]
[1945,"Measurement & Testing Equipment",null,null,null,null,0,0,0,0,null,0,0,null,0]
[1950,"Power Operated Equipment",null,null,null,null,0,0,0,0,null,0,0,null,0]
[1955,"Communications Equipment",null,null,null,null,0,0,0,0,null,0,0,null,0]
[1955,"Communication Equipment (Smart Meters)",null,null,null,null,0,0,0,0,null,0,0,null,0]
[1960,"Miscellaneous Equipment ",null,null,null,null,0,0,0,0,null,0,0,null,0]
[1970,"Load Management Controls Customer Premises",null,null,null,null,0,0,0,0,null,0,0,null,0]
[1975,"Load Management Controls Utility Premises",null,null,null,null,0,0,0,0,null,0,0,null,0]
[1980,"System Supervisor Equipment",null,null,null,null,0,0,0,0,null,0,0,null,0]
[1985,"Miscellaneous Fixed Assets",null,null,null,null,0,0,0,0,null,0,0,null,0]
[1990,"Other Tangible Property",null,null,null,null,0,0,0,0,null,0,0,null,0]
[1995,"Contributions & Grants",null,null,null,null,0,0,0,0,null,0,0,null,0]
[null,"Total",{"$f":"SUM(C20:C57)","v":0},{"$f":"SUM(D20:D57)","v":0},null,null,null,{"$f":"SUM(H20:H57)","v":0},0,0,0,0,0,0,0]
[]
["Notes:"]
[]
[1,"Board policy of the \"half-year\" rule - the applicant must ensure that additions in the year attract a half-year depreciation expense in the first year.  Deviations from this standard practice must be supported in the application."]
[2,"The applicant must provide an explanation of material variances in evidence."]
[3,"The applicant should ensure that the years for new additions of assets are the asset useful lives determined by management in accordance with the Board's regulatory accounting policies.   The capitalization and depreciation expense accounting changes should be implemented consistent with the Board’s regulatory accounting policies as set out for modified IFRS as contained in the Report of the Board, Transition to International Financial Reporting Standards, EB-2008-0408, the Kinectrics Report, and the Revised 2012 Accounting Procedures Handbook for Electricity Distributors (“APH”)."]
[4,"A recalculation should be performed to determine the average remaining life of opening balance of assets (i.e. excluding current year's additions) under the change in policies under CGAAP.  For example, Asset A had a useful life of 20 years under CGAAP without the change in policies.  On January 1 of the year of policy changes, Asset A was 3 years depreciated. As a result, Asset A would have a remaining service life of 17 years (20 years less 3 years) as at January 1 of the year of policy changes.  Due to making the change in policies under CGAAP, management re-assessed the asset useful lives and concluded that the revised useful life of Asset A is now 30 years. Therefore, the average remaining useful life of the opening balance of Asset A is determined to be 27 years (30 years less 3 years) under the revised CGAAP as at January 1 of the year of policy changes."]
[5," NBV must exclude assets still on the books but which have been fully amortized or depreciated."]
[6,"This column refers to the calculated full year depreciation but excludes the depreciation expense on assets fully depreciated during the year.  This column is used for the purpose of calculating depreciation expense in the following year on the next worksheet."]
[]
["General:","Applicants must provide a breakdown of depreciation and amortization expense in the above format for all relevant accounts.  Asset Retirement Obligations (AROs), depreciation and accretion expense should be disclosed separately consistent with the Notes of historical Audited Financial Statements."]

{"sheet":"App.2-CC_DepExp_Yr2","index":13,"n_rows":65,"n_cols":11,"rows_kept":65,"cut":false,"hidden":false,"merged":[[62,1,62,10],[1,0,1,7],[64,1,65,10],[8,0,8,10],[9,0,9,10],[10,0,10,10],[17,0,18,0],[17,1,18,1],[17,6,18,6],[17,9,18,9],[12,0,12,1],[13,0,13,1],[14,0,14,1],[14,2,14,8],[13,2,13,8],[60,1,60,10],[61,1,61,10]]}
[null,null,null,null,null,null,null,null,null,"File Number:",{"$f":"EBNUMBER","v":"EB-2017-0032"}]
["Please refer to separate Excel file entitled \"Fixed Asset Continuity Schedule.\" ",null,null,null,null,null,null,null,null,"Exhibit:"]
[null,null,null,null,null,null,null,null,null,"Tab:"]
[null,null,null,null,null,null,null,null,null,"Schedule:"]
[null,null,null,null,null,null,null,null,null,"Page:"]
[]
[null,null,null,null,null,null,null,null,null,"Date:"]
[]
["Appendix 2-CC"]
["Depreciation and Amortization Expense"]
["Revised CGAAP (Year 2)"]
[]
["Select the set of appendices that apply",null,null,null,null,null,null,null,null,"Year Reflected in Schedule Below","Accounting Standard"]
["2012 Set of Appendices (2-CA to 2-CG)",null,"Assumes the applicant made capitalization and depreciation expense accounting policy changes under CGAAP effective January 1, 2012 and has adopted IFRS for financial reporting purposes effective January 1, 2015.  Assumes that the applicant is reflecting these changes in a rebasing application for the first time.",null,null,null,null,null,null,2013,"Revised CGAAP"]
["2013 Set of Appendices (2-CA to 2-CF)",null,"Assumes the applicant made capitalization and depreciation expense accounting policy changes under CGAAP effective January 1, 2013 and has adopted IFRS for financial reporting purposes effective January 1, 2015.  Assumes that the applicant is reflecting these changes in a rebasing application for the first time.",null,null,null,null,null,null,2014,"Revised CGAAP"]
[]
[]
["Account","Description","Additions","Years (new additions only)","Depreciation Rate on New Additions","Current Year Depreciation Expense 1"," Depreciation Expense per Apppendix 2-BA Fixed Assets, Column J\n (l)","Variance 2","Depreciation Expense on Current Full Year Additions","Less Depreciation Expense on Assets Fully Depreciated During the Year\n(o)","Current Full Year Depreciation 3"]
[null,null,"(d)","(f)","(g) = 1 / (f)","(h)= Prior Full Year Deprecation + ((d)*0.5)/(f) ",null,"(m) = (h) - (l)","(n)=((d))/(f) ",null,"(p) = Prior Full Year Depreciation  + (n) - (o)"]
[1611,"Computer Software (Formally known as Account 1925)",null,null,{"$f":"IF(D20=0,0,1/D20)","v":0},{"$f":"IF(D20=0,+'App.2-CB_NewCGAAP_DepExp_Yr1'!O20,+'App.2-CB_NewCGAAP_DepExp_Yr1'!O20+((C20*0.5)/D20))","v":0},null,{"$f":"IF(ISERROR(+F20-G20), 0, +F20-G20)","v":0},{"$f":"IF(D20=0,0,+(C20)/D20)","v":0},null,{"$f":"IF(ISERROR(+I20+'App.2-CB_NewCGAAP_DepExp_Yr1'!O20-J20), 0, +I20+'App.2-CB_NewCGAAP_DepExp_Yr1'!O20-J20)","v":0}]
[1612,"Land Rights (Formally known as Account 1906)",null,null,0,{"$f":"IF(D21=0,+'App.2-CB_NewCGAAP_DepExp_Yr1'!O21,+'App.2-CB_NewCGAAP_DepExp_Yr1'!O21+((C21*0.5)/D21))","v":0},null,0,0,null,{"$f":"IF(ISERROR(+I21+'App.2-CB_NewCGAAP_DepExp_Yr1'!O21-J21), 0, +I21+'App.2-CB_NewCGAAP_DepExp_Yr1'!O21-J21)","v":0}]
[1805,"Land",null,null,0,{"$f":"IF(D22=0,+'App.2-CB_NewCGAAP_DepExp_Yr1'!O22,+'App.2-CB_NewCGAAP_DepExp_Yr1'!O22+((C22*0.5)/D22))","v":0},null,0,0,null,{"$f":"IF(ISERROR(+I22+'App.2-CB_NewCGAAP_DepExp_Yr1'!O22-J22), 0, +I22+'App.2-CB_NewCGAAP_DepExp_Yr1'!O22-J22)","v":0}]
[1808,"Buildings",null,null,0,{"$f":"IF(D23=0,+'App.2-CB_NewCGAAP_DepExp_Yr1'!O23,+'App.2-CB_NewCGAAP_DepExp_Yr1'!O23+((C23*0.5)/D23))","v":0},null,0,0,null,{"$f":"IF(ISERROR(+I23+'App.2-CB_NewCGAAP_DepExp_Yr1'!O23-J23), 0, +I23+'App.2-CB_NewCGAAP_DepExp_Yr1'!O23-J23)","v":0}]
[1810,"Leasehold Improvements",null,null,0,{"$f":"IF(D24=0,+'App.2-CB_NewCGAAP_DepExp_Yr1'!O24,+'App.2-CB_NewCGAAP_DepExp_Yr1'!O24+((C24*0.5)/D24))","v":0},null,0,0,null,{"$f":"IF(ISERROR(+I24+'App.2-CB_NewCGAAP_DepExp_Yr1'!O24-J24), 0, +I24+'App.2-CB_NewCGAAP_DepExp_Yr1'!O24-J24)","v":0}]
[1815,"Transformer Station Equipment >50 kV",null,null,0,{"$f":"IF(D25=0,+'App.2-CB_NewCGAAP_DepExp_Yr1'!O25,+'App.2-CB_NewCGAAP_DepExp_Yr1'!O25+((C25*0.5)/D25))","v":0},null,0,0,null,{"$f":"IF(ISERROR(+I25+'App.2-CB_NewCGAAP_DepExp_Yr1'!O25-J25), 0, +I25+'App.2-CB_NewCGAAP_DepExp_Yr1'!O25-J25)","v":0}]
[1820,"Distribution Station Equipment <50 kV",null,null,0,{"$f":"IF(D26=0,+'App.2-CB_NewCGAAP_DepExp_Yr1'!O26,+'App.2-CB_NewCGAAP_DepExp_Yr1'!O26+((C26*0.5)/D26))","v":0},null,0,0,null,{"$f":"IF(ISERROR(+I26+'App.2-CB_NewCGAAP_DepExp_Yr1'!O26-J26), 0, +I26+'App.2-CB_NewCGAAP_DepExp_Yr1'!O26-J26)","v":0}]
[1825,"Storage Battery Equipment",null,null,0,{"$f":"IF(D27=0,+'App.2-CB_NewCGAAP_DepExp_Yr1'!O27,+'App.2-CB_NewCGAAP_DepExp_Yr1'!O27+((C27*0.5)/D27))","v":0},null,0,0,null,{"$f":"IF(ISERROR(+I27+'App.2-CB_NewCGAAP_DepExp_Yr1'!O27-J27), 0, +I27+'App.2-CB_NewCGAAP_DepExp_Yr1'!O27-J27)","v":0}]
[1830,"Poles, Towers & Fixtures",null,null,0,{"$f":"IF(D28=0,+'App.2-CB_NewCGAAP_DepExp_Yr1'!O28,+'App.2-CB_NewCGAAP_DepExp_Yr1'!O28+((C28*0.5)/D28))","v":0},null,0,0,null,{"$f":"IF(ISERROR(+I28+'App.2-CB_NewCGAAP_DepExp_Yr1'!O28-J28), 0, +I28+'App.2-CB_NewCGAAP_DepExp_Yr1'!O28-J28)","v":0}]
[1835,"Overhead Conductors & Devices",null,null,0,{"$f":"IF(D29=0,+'App.2-CB_NewCGAAP_DepExp_Yr1'!O29,+'App.2-CB_NewCGAAP_DepExp_Yr1'!O29+((C29*0.5)/D29))","v":0},null,0,0,null,{"$f":"IF(ISERROR(+I29+'App.2-CB_NewCGAAP_DepExp_Yr1'!O29-J29), 0, +I29+'App.2-CB_NewCGAAP_DepExp_Yr1'!O29-J29)","v":0}]
[1840,"Underground Conduit",null,null,0,{"$f":"IF(D30=0,+'App.2-CB_NewCGAAP_DepExp_Yr1'!O30,+'App.2-CB_NewCGAAP_DepExp_Yr1'!O30+((C30*0.5)/D30))","v":0},null,0,0,null,{"$f":"IF(ISERROR(+I30+'App.2-CB_NewCGAAP_DepExp_Yr1'!O30-J30), 0, +I30+'App.2-CB_NewCGAAP_DepExp_Yr1'!O30-J30)","v":0}]
[1845,"Underground Conductors & Devices",null,null,0,{"$f":"IF(D31=0,+'App.2-CB_NewCGAAP_DepExp_Yr1'!O31,+'App.2-CB_NewCGAAP_DepExp_Yr1'!O31+((C31*0.5)/D31))","v":0},null,0,0,null,{"$f":"IF(ISERROR(+I31+'App.2-CB_NewCGAAP_DepExp_Yr1'!O31-J31), 0, +I31+'App.2-CB_NewCGAAP_DepExp_Yr1'!O31-J31)","v":0}]
[1850,"Line Transformers",null,null,0,{"$f":"IF(D32=0,+'App.2-CB_NewCGAAP_DepExp_Yr1'!O32,+'App.2-CB_NewCGAAP_DepExp_Yr1'!O32+((C32*0.5)/D32))","v":0},null,0,0,null,{"$f":"IF(ISERROR(+I32+'App.2-CB_NewCGAAP_DepExp_Yr1'!O32-J32), 0, +I32+'App.2-CB_NewCGAAP_DepExp_Yr1'!O32-J32)","v":0}]
[1855,"Services (Overhead & Underground)",null,null,0,{"$f":"IF(D33=0,+'App.2-CB_NewCGAAP_DepExp_Yr1'!O33,+'App.2-CB_NewCGAAP_DepExp_Yr1'!O33+((C33*0.5)/D33))","v":0},null,0,0,null,{"$f":"IF(ISERROR(+I33+'App.2-CB_NewCGAAP_DepExp_Yr1'!O33-J33), 0, +I33+'App.2-CB_NewCGAAP_DepExp_Yr1'!O33-J33)","v":0}]
[1860,"Meters",null,null,0,{"$f":"IF(D34=0,+'App.2-CB_NewCGAAP_DepExp_Yr1'!O34,+'App.2-CB_NewCGAAP_DepExp_Yr1'!O34+((C34*0.5)/D34))","v":0},null,0,0,null,{"$f":"IF(ISERROR(+I34+'App.2-CB_NewCGAAP_DepExp_Yr1'!O34-J34), 0, +I34+'App.2-CB_NewCGAAP_DepExp_Yr1'!O34-J34)","v":0}]
[1860,"Meters (Smart Meters)",null,null,0,{"$f":"IF(D35=0,+'App.2-CB_NewCGAAP_DepExp_Yr1'!O35,+'App.2-CB_NewCGAAP_DepExp_Yr1'!O35+((C35*0.5)/D35))","v":0},null,0,0,null,{"$f":"IF(ISERROR(+I35+'App.2-CB_NewCGAAP_DepExp_Yr1'!O35-J35), 0, +I35+'App.2-CB_NewCGAAP_DepExp_Yr1'!O35-J35)","v":0}]
[1905,"Land",null,null,0,{"$f":"IF(D36=0,+'App.2-CB_NewCGAAP_DepExp_Yr1'!O36,+'App.2-CB_NewCGAAP_DepExp_Yr1'!O36+((C36*0.5)/D36))","v":0},null,0,0,null,{"$f":"IF(ISERROR(+I36+'App.2-CB_NewCGAAP_DepExp_Yr1'!O36-J36), 0, +I36+'App.2-CB_NewCGAAP_DepExp_Yr1'!O36-J36)","v":0}]
[1908,"Buildings & Fixtures",null,null,0,{"$f":"IF(D37=0,+'App.2-CB_NewCGAAP_DepExp_Yr1'!O37,+'App.2-CB_NewCGAAP_DepExp_Yr1'!O37+((C37*0.5)/D37))","v":0},null,0,0,null,{"$f":"IF(ISERROR(+I37+'App.2-CB_NewCGAAP_DepExp_Yr1'!O37-J37), 0, +I37+'App.2-CB_NewCGAAP_DepExp_Yr1'!O37-J37)","v":0}]
[1910,"Leasehold Improvements",null,null,0,{"$f":"IF(D38=0,+'App.2-CB_NewCGAAP_DepExp_Yr1'!O38,+'App.2-CB_NewCGAAP_DepExp_Yr1'!O38+((C38*0.5)/D38))","v":0},null,0,0,null,{"$f":"IF(ISERROR(+I38+'App.2-CB_NewCGAAP_DepExp_Yr1'!O38-J38), 0, +I38+'App.2-CB_NewCGAAP_DepExp_Yr1'!O38-J38)","v":0}]
[1915,"Office Furniture & Equipment (10 years)",null,null,0,{"$f":"IF(D39=0,+'App.2-CB_NewCGAAP_DepExp_Yr1'!O39,+'App.2-CB_NewCGAAP_DepExp_Yr1'!O39+((C39*0.5)/D39))","v":0},null,0,0,null,{"$f":"IF(ISERROR(+I39+'App.2-CB_NewCGAAP_DepExp_Yr1'!O39-J39), 0, +I39+'App.2-CB_NewCGAAP_DepExp_Yr1'!O39-J39)","v":0}]
[1915,"Office Furniture & Equipment (5 years)",null,null,0,{"$f":"IF(D40=0,+'App.2-CB_NewCGAAP_DepExp_Yr1'!O40,+'App.2-CB_NewCGAAP_DepExp_Yr1'!O40+((C40*0.5)/D40))","v":0},null,0,0,null,{"$f":"IF(ISERROR(+I40+'App.2-CB_NewCGAAP_DepExp_Yr1'!O40-J40), 0, +I40+'App.2-CB_NewCGAAP_DepExp_Yr1'!O40-J40)","v":0}]
[1920,"Computer Equipment - Hardware",null,null,0,{"$f":"IF(D41=0,+'App.2-CB_NewCGAAP_DepExp_Yr1'!O41,+'App.2-CB_NewCGAAP_DepExp_Yr1'!O41+((C41*0.5)/D41))","v":0},null,0,0,null,{"$f":"IF(ISERROR(+I41+'App.2-CB_NewCGAAP_DepExp_Yr1'!O41-J41), 0, +I41+'App.2-CB_NewCGAAP_DepExp_Yr1'!O41-J41)","v":0}]
[1920,"Computer Equip.-Hardware(Post Mar. 22/04)",null,null,0,{"$f":"IF(D42=0,+'App.2-CB_NewCGAAP_DepExp_Yr1'!O42,+'App.2-CB_NewCGAAP_DepExp_Yr1'!O42+((C42*0.5)/D42))","v":0},null,0,0,null,{"$f":"IF(ISERROR(+I42+'App.2-CB_NewCGAAP_DepExp_Yr1'!O42-J42), 0, +I42+'App.2-CB_NewCGAAP_DepExp_Yr1'!O42-J42)","v":0}]
[1920,"Computer Equip.-Hardware(Post Mar. 19/07)",null,null,0,{"$f":"IF(D43=0,+'App.2-CB_NewCGAAP_DepExp_Yr1'!O43,+'App.2-CB_NewCGAAP_DepExp_Yr1'!O43+((C43*0.5)/D43))","v":0},null,0,0,null,{"$f":"IF(ISERROR(+I43+'App.2-CB_NewCGAAP_DepExp_Yr1'!O43-J43), 0, +I43+'App.2-CB_NewCGAAP_DepExp_Yr1'!O43-J43)","v":0}]
[1930,"Transportation Equipment",null,null,0,{"$f":"IF(D44=0,+'App.2-CB_NewCGAAP_DepExp_Yr1'!O44,+'App.2-CB_NewCGAAP_DepExp_Yr1'!O44+((C44*0.5)/D44))","v":0},null,0,0,null,{"$f":"IF(ISERROR(+I44+'App.2-CB_NewCGAAP_DepExp_Yr1'!O44-J44), 0, +I44+'App.2-CB_NewCGAAP_DepExp_Yr1'!O44-J44)","v":0}]
[1935,"Stores Equipment",null,null,0,{"$f":"IF(D45=0,+'App.2-CB_NewCGAAP_DepExp_Yr1'!O45,+'App.2-CB_NewCGAAP_DepExp_Yr1'!O45+((C45*0.5)/D45))","v":0},null,0,0,null,{"$f":"IF(ISERROR(+I45+'App.2-CB_NewCGAAP_DepExp_Yr1'!O45-J45), 0, +I45+'App.2-CB_NewCGAAP_DepExp_Yr1'!O45-J45)","v":0}]
[1940,"Tools, Shop & Garage Equipment",null,null,0,{"$f":"IF(D46=0,+'App.2-CB_NewCGAAP_DepExp_Yr1'!O46,+'App.2-CB_NewCGAAP_DepExp_Yr1'!O46+((C46*0.5)/D46))","v":0},null,0,0,null,{"$f":"IF(ISERROR(+I46+'App.2-CB_NewCGAAP_DepExp_Yr1'!O46-J46), 0, +I46+'App.2-CB_NewCGAAP_DepExp_Yr1'!O46-J46)","v":0}]
[1945,"Measurement & Testing Equipment",null,null,0,{"$f":"IF(D47=0,+'App.2-CB_NewCGAAP_DepExp_Yr1'!O47,+'App.2-CB_NewCGAAP_DepExp_Yr1'!O47+((C47*0.5)/D47))","v":0},null,0,0,null,{"$f":"IF(ISERROR(+I47+'App.2-CB_NewCGAAP_DepExp_Yr1'!O47-J47), 0, +I47+'App.2-CB_NewCGAAP_DepExp_Yr1'!O47-J47)","v":0}]
[1950,"Power Operated Equipment",null,null,0,{"$f":"IF(D48=0,+'App.2-CB_NewCGAAP_DepExp_Yr1'!O48,+'App.2-CB_NewCGAAP_DepExp_Yr1'!O48+((C48*0.5)/D48))","v":0},null,0,0,null,{"$f":"IF(ISERROR(+I48+'App.2-CB_NewCGAAP_DepExp_Yr1'!O48-J48), 0, +I48+'App.2-CB_NewCGAAP_DepExp_Yr1'!O48-J48)","v":0}]
[1955,"Communications Equipment",null,null,0,{"$f":"IF(D49=0,+'App.2-CB_NewCGAAP_DepExp_Yr1'!O49,+'App.2-CB_NewCGAAP_DepExp_Yr1'!O49+((C49*0.5)/D49))","v":0},null,0,0,null,{"$f":"IF(ISERROR(+I49+'App.2-CB_NewCGAAP_DepExp_Yr1'!O49-J49), 0, +I49+'App.2-CB_NewCGAAP_DepExp_Yr1'!O49-J49)","v":0}]
[1955,"Communication Equipment (Smart Meters)",null,null,0,{"$f":"IF(D50=0,+'App.2-CB_NewCGAAP_DepExp_Yr1'!O50,+'App.2-CB_NewCGAAP_DepExp_Yr1'!O50+((C50*0.5)/D50))","v":0},null,0,0,null,{"$f":"IF(ISERROR(+I50+'App.2-CB_NewCGAAP_DepExp_Yr1'!O50-J50), 0, +I50+'App.2-CB_NewCGAAP_DepExp_Yr1'!O50-J50)","v":0}]
[1960,"Miscellaneous Equipment ",null,null,0,{"$f":"IF(D51=0,+'App.2-CB_NewCGAAP_DepExp_Yr1'!O51,+'App.2-CB_NewCGAAP_DepExp_Yr1'!O51+((C51*0.5)/D51))","v":0},null,0,0,null,{"$f":"IF(ISERROR(+I51+'App.2-CB_NewCGAAP_DepExp_Yr1'!O51-J51), 0, +I51+'App.2-CB_NewCGAAP_DepExp_Yr1'!O51-J51)","v":0}]
[1970,"Load Management Controls Customer Premises",null,null,0,{"$f":"IF(D52=0,+'App.2-CB_NewCGAAP_DepExp_Yr1'!O52,+'App.2-CB_NewCGAAP_DepExp_Yr1'!O52+((C52*0.5)/D52))","v":0},null,0,0,null,{"$f":"IF(ISERROR(+I52+'App.2-CB_NewCGAAP_DepExp_Yr1'!O52-J52), 0, +I52+'App.2-CB_NewCGAAP_DepExp_Yr1'!O52-J52)","v":0}]
[1975,"Load Management Controls Utility Premises",null,null,0,{"$f":"IF(D53=0,+'App.2-CB_NewCGAAP_DepExp_Yr1'!O53,+'App.2-CB_NewCGAAP_DepExp_Yr1'!O53+((C53*0.5)/D53))","v":0},null,0,0,null,{"$f":"IF(ISERROR(+I53+'App.2-CB_NewCGAAP_DepExp_Yr1'!O53-J53), 0, +I53+'App.2-CB_NewCGAAP_DepExp_Yr1'!O53-J53)","v":0}]
[1980,"System Supervisor Equipment",null,null,0,{"$f":"IF(D54=0,+'App.2-CB_NewCGAAP_DepExp_Yr1'!O54,+'App.2-CB_NewCGAAP_DepExp_Yr1'!O54+((C54*0.5)/D54))","v":0},null,0,0,null,{"$f":"IF(ISERROR(+I54+'App.2-CB_NewCGAAP_DepExp_Yr1'!O54-J54), 0, +I54+'App.2-CB_NewCGAAP_DepExp_Yr1'!O54-J54)","v":0}]
[1985,"Miscellaneous Fixed Assets",null,null,0,{"$f":"IF(D55=0,+'App.2-CB_NewCGAAP_DepExp_Yr1'!O55,+'App.2-CB_NewCGAAP_DepExp_Yr1'!O55+((C55*0.5)/D55))","v":0},null,0,0,null,{"$f":"IF(ISERROR(+I55+'App.2-CB_NewCGAAP_DepExp_Yr1'!O55-J55), 0, +I55+'App.2-CB_NewCGAAP_DepExp_Yr1'!O55-J55)","v":0}]
[1990,"Other Tangible Property",null,null,0,{"$f":"IF(D56=0,+'App.2-CB_NewCGAAP_DepExp_Yr1'!O56,+'App.2-CB_NewCGAAP_DepExp_Yr1'!O56+((C56*0.5)/D56))","v":0},null,0,0,null,{"$f":"IF(ISERROR(+I56+'App.2-CB_NewCGAAP_DepExp_Yr1'!O56-J56), 0, +I56+'App.2-CB_NewCGAAP_DepExp_Yr1'!O56-J56)","v":0}]
[1995,"Contributions & Grants",null,null,0,{"$f":"IF(D57=0,+'App.2-CB_NewCGAAP_DepExp_Yr1'!O57,+'App.2-CB_NewCGAAP_DepExp_Yr1'!O57+((C57*0.5)/D57))","v":0},null,0,0,null,{"$f":"IF(ISERROR(+I57+'App.2-CB_NewCGAAP_DepExp_Yr1'!O57-J57), 0, +I57+'App.2-CB_NewCGAAP_DepExp_Yr1'!O57-J57)","v":0}]
[null,"Total",{"$f":"SUM(C20:C57)","v":0},null,null,{"$f":"SUM(F20:F57)","v":0},0,0,0,0,0]
[]
["Notes:"]
[1,"Board policy of the \"half-year\" rule - the applicant must ensure that additions in the year attract a half-year depreciation expense in the first year.  Deviations from this standard practice must be supported in the application."]
[2,"The applicant must provide an explanation of material variances in evidence."]
[3,"This column refers to the calculated full year depreciation but excludes the depreciation expense on assets fully depreciated during the year.  This column is used for the purpose of calculating depreciation expense in the following year on the next worksheet."]
[]
["General:","Applicants must provide a breakdown of depreciation and amortization expense in the above format for all relevant accounts.  Asset Retirement Obligations (AROs), depreciation and accretion expense should be disclosed separately consistent with the Notes of historical Audited Financial Statements."]

{"sheet":"App.2-CD_DepExp_Yr3","index":14,"n_rows":67,"n_cols":11,"rows_kept":67,"cut":false,"hidden":false,"merged":[[8,0,8,10],[9,0,9,10],[10,0,10,10],[17,0,18,0],[17,1,18,1],[17,6,18,6],[17,9,18,9],[12,0,12,1],[13,0,13,1],[14,0,14,1],[13,2,13,8],[14,2,14,8],[62,1,62,10],[63,1,63,10],[64,1,64,10],[66,1,67,10],[58,1,58,4]]}
[null,null,null,null,null,null,null,null,null,"File Number:",{"$f":"EBNUMBER","v":"EB-2017-0032"}]
["Please refer to separate Excel file entitled \"Fixed Asset Continuity Schedule.\" ",null,null,null,null,null,null,null,null,"Exhibit:"]
[null,null,null,null,null,null,null,null,null,"Tab:"]
[null,null,null,null,null,null,null,null,null,"Schedule:"]
[null,null,null,null,null,null,null,null,null,"Page:"]
[]
[null,null,null,null,null,null,null,null,null,"Date:"]
[]
["Appendix 2-CD"]
["Depreciation and Amortization Expense"]
["Revised CGAAP or MIFRS (Year 3)"]
[]
["Select the set of appendices that apply",null,null,null,null,null,null,null,null,"Year Reflected in Schedule Below","Accounting Standard"]
["2012 Set of Appendices (2-CA to 2-CG)",null,"Assumes the applicant made capitalization and depreciation expense accounting policy changes under CGAAP effective January 1, 2012 and has adopted IFRS for financial reporting purposes effective January 1, 2015.  Assumes that the applicant is reflecting these changes in a rebasing application for the first time.",null,null,null,null,null,null,2014,"Revised CGAAP"]
["2013 Set of Appendices (2-CA to 2-CF)",null,"Assumes the applicant made capitalization and depreciation expense accounting policy changes under CGAAP effective January 1, 2013 and has adopted IFRS for financial reporting purposes effective January 1, 2015.  Assumes that the applicant is reflecting these changes in a rebasing application for the first time.",null,null,null,null,null,null,2015,"MIFRS"]
[]
[]
["Account","Description","Additions","Years (new additions only)","Depreciation Rate on New Additions","Current Year Depreciation Expense1","Depreciation Expense per Apppendix 2-BA Fixed Assets, Column J\n (l)","Variance 2","Depreciation Expense on Current Full Year Additions","Less Depreciation Expense on Assets Fully Depreciated During the Year\n(o)","Current Full Year Depreciation 3"]
[null,null,"(d)","(f)","(g) = 1 / (f)","(h) = Prior Full Year Deprecation + ((d)*0.5)/(f) ",null,"(m) = (h) - (l)","(n)=((d))/(f) ",null,"(p) = Prior Full Year Depreciation  + (n) - (o)"]
[1611,"Computer Software (Formally known as Account 1925)",null,null,{"$f":"IF(D20=0,0,1/D20)","v":0},{"$f":"IF(D20=0,+'App.2-CC_DepExp_Yr2'!K20,+'App.2-CC_DepExp_Yr2'!K20+((C20*0.5)/D20))","v":0},null,{"$f":"IF(ISERROR(+F20-G20), 0, +F20-G20)","v":0},{"$f":"IF(D20=0,0,+(C20)/D20)","v":0},null,{"$f":"IF(ISERROR(+I20+'App.2-CC_DepExp_Yr2'!K20-J20), 0, +I20+'App.2-CC_DepExp_Yr2'!K20-J20)","v":0}]
[1612,"Land Rights (Formally known as Account 1906)",null,null,0,{"$f":"IF(D21=0,+'App.2-CC_DepExp_Yr2'!K21,+'App.2-CC_DepExp_Yr2'!K21+((C21*0.5)/D21))","v":0},null,0,{"$f":"IF(D21=0,0,+(C21)/D21)","v":0},null,{"$f":"IF(ISERROR(+I21+'App.2-CC_DepExp_Yr2'!K21-J21), 0, +I21+'App.2-CC_DepExp_Yr2'!K21-J21)","v":0}]
[1805,"Land",null,null,0,{"$f":"IF(D22=0,+'App.2-CC_DepExp_Yr2'!K22,+'App.2-CC_DepExp_Yr2'!K22+((C22*0.5)/D22))","v":0},null,0,0,null,{"$f":"IF(ISERROR(+I22+'App.2-CC_DepExp_Yr2'!K22-J22), 0, +I22+'App.2-CC_DepExp_Yr2'!K22-J22)","v":0}]
[1808,"Buildings",null,null,0,{"$f":"IF(D23=0,+'App.2-CC_DepExp_Yr2'!K23,+'App.2-CC_DepExp_Yr2'!K23+((C23*0.5)/D23))","v":0},null,0,0,null,{"$f":"IF(ISERROR(+I23+'App.2-CC_DepExp_Yr2'!K23-J23), 0, +I23+'App.2-CC_DepExp_Yr2'!K23-J23)","v":0}]
[1810,"Leasehold Improvements",null,null,0,{"$f":"IF(D24=0,+'App.2-CC_DepExp_Yr2'!K24,+'App.2-CC_DepExp_Yr2'!K24+((C24*0.5)/D24))","v":0},null,0,0,null,{"$f":"IF(ISERROR(+I24+'App.2-CC_DepExp_Yr2'!K24-J24), 0, +I24+'App.2-CC_DepExp_Yr2'!K24-J24)","v":0}]
[1815,"Transformer Station Equipment >50 kV",null,null,0,{"$f":"IF(D25=0,+'App.2-CC_DepExp_Yr2'!K25,+'App.2-CC_DepExp_Yr2'!K25+((C25*0.5)/D25))","v":0},null,0,0,null,{"$f":"IF(ISERROR(+I25+'App.2-CC_DepExp_Yr2'!K25-J25), 0, +I25+'App.2-CC_DepExp_Yr2'!K25-J25)","v":0}]
[1820,"Distribution Station Equipment <50 kV",null,null,0,{"$f":"IF(D26=0,+'App.2-CC_DepExp_Yr2'!K26,+'App.2-CC_DepExp_Yr2'!K26+((C26*0.5)/D26))","v":0},null,0,0,null,{"$f":"IF(ISERROR(+I26+'App.2-CC_DepExp_Yr2'!K26-J26), 0, +I26+'App.2-CC_DepExp_Yr2'!K26-J26)","v":0}]
[1825,"Storage Battery Equipment",null,null,0,{"$f":"IF(D27=0,+'App.2-CC_DepExp_Yr2'!K27,+'App.2-CC_DepExp_Yr2'!K27+((C27*0.5)/D27))","v":0},null,0,0,null,{"$f":"IF(ISERROR(+I27+'App.2-CC_DepExp_Yr2'!K27-J27), 0, +I27+'App.2-CC_DepExp_Yr2'!K27-J27)","v":0}]
[1830,"Poles, Towers & Fixtures",null,null,0,{"$f":"IF(D28=0,+'App.2-CC_DepExp_Yr2'!K28,+'App.2-CC_DepExp_Yr2'!K28+((C28*0.5)/D28))","v":0},null,0,0,null,{"$f":"IF(ISERROR(+I28+'App.2-CC_DepExp_Yr2'!K28-J28), 0, +I28+'App.2-CC_DepExp_Yr2'!K28-J28)","v":0}]
[1835,"Overhead Conductors & Devices",null,null,0,{"$f":"IF(D29=0,+'App.2-CC_DepExp_Yr2'!K29,+'App.2-CC_DepExp_Yr2'!K29+((C29*0.5)/D29))","v":0},null,0,0,null,{"$f":"IF(ISERROR(+I29+'App.2-CC_DepExp_Yr2'!K29-J29), 0, +I29+'App.2-CC_DepExp_Yr2'!K29-J29)","v":0}]
[1840,"Underground Conduit",null,null,0,{"$f":"IF(D30=0,+'App.2-CC_DepExp_Yr2'!K30,+'App.2-CC_DepExp_Yr2'!K30+((C30*0.5)/D30))","v":0},null,0,0,null,{"$f":"IF(ISERROR(+I30+'App.2-CC_DepExp_Yr2'!K30-J30), 0, +I30+'App.2-CC_DepExp_Yr2'!K30-J30)","v":0}]
[1845,"Underground Conductors & Devices",null,null,0,{"$f":"IF(D31=0,+'App.2-CC_DepExp_Yr2'!K31,+'App.2-CC_DepExp_Yr2'!K31+((C31*0.5)/D31))","v":0},null,0,0,null,{"$f":"IF(ISERROR(+I31+'App.2-CC_DepExp_Yr2'!K31-J31), 0, +I31+'App.2-CC_DepExp_Yr2'!K31-J31)","v":0}]
[1850,"Line Transformers",null,null,0,{"$f":"IF(D32=0,+'App.2-CC_DepExp_Yr2'!K32,+'App.2-CC_DepExp_Yr2'!K32+((C32*0.5)/D32))","v":0},null,0,0,null,{"$f":"IF(ISERROR(+I32+'App.2-CC_DepExp_Yr2'!K32-J32), 0, +I32+'App.2-CC_DepExp_Yr2'!K32-J32)","v":0}]
[1855,"Services (Overhead & Underground)",null,null,0,{"$f":"IF(D33=0,+'App.2-CC_DepExp_Yr2'!K33,+'App.2-CC_DepExp_Yr2'!K33+((C33*0.5)/D33))","v":0},null,0,0,null,{"$f":"IF(ISERROR(+I33+'App.2-CC_DepExp_Yr2'!K33-J33), 0, +I33+'App.2-CC_DepExp_Yr2'!K33-J33)","v":0}]
[1860,"Meters",null,null,0,{"$f":"IF(D34=0,+'App.2-CC_DepExp_Yr2'!K34,+'App.2-CC_DepExp_Yr2'!K34+((C34*0.5)/D34))","v":0},null,0,0,null,{"$f":"IF(ISERROR(+I34+'App.2-CC_DepExp_Yr2'!K34-J34), 0, +I34+'App.2-CC_DepExp_Yr2'!K34-J34)","v":0}]
[1860,"Meters (Smart Meters)",null,null,0,{"$f":"IF(D35=0,+'App.2-CC_DepExp_Yr2'!K35,+'App.2-CC_DepExp_Yr2'!K35+((C35*0.5)/D35))","v":0},null,0,0,null,{"$f":"IF(ISERROR(+I35+'App.2-CC_DepExp_Yr2'!K35-J35), 0, +I35+'App.2-CC_DepExp_Yr2'!K35-J35)","v":0}]
[1905,"Land",null,null,0,{"$f":"IF(D36=0,+'App.2-CC_DepExp_Yr2'!K36,+'App.2-CC_DepExp_Yr2'!K36+((C36*0.5)/D36))","v":0},null,0,0,null,{"$f":"IF(ISERROR(+I36+'App.2-CC_DepExp_Yr2'!K36-J36), 0, +I36+'App.2-CC_DepExp_Yr2'!K36-J36)","v":0}]
[1908,"Buildings & Fixtures",null,null,0,{"$f":"IF(D37=0,+'App.2-CC_DepExp_Yr2'!K37,+'App.2-CC_DepExp_Yr2'!K37+((C37*0.5)/D37))","v":0},null,0,0,null,{"$f":"IF(ISERROR(+I37+'App.2-CC_DepExp_Yr2'!K37-J37), 0, +I37+'App.2-CC_DepExp_Yr2'!K37-J37)","v":0}]
[1910,"Leasehold Improvements",null,null,0,{"$f":"IF(D38=0,+'App.2-CC_DepExp_Yr2'!K38,+'App.2-CC_DepExp_Yr2'!K38+((C38*0.5)/D38))","v":0},null,0,0,null,{"$f":"IF(ISERROR(+I38+'App.2-CC_DepExp_Yr2'!K38-J38), 0, +I38+'App.2-CC_DepExp_Yr2'!K38-J38)","v":0}]
[1915,"Office Furniture & Equipment (10 years)",null,null,0,{"$f":"IF(D39=0,+'App.2-CC_DepExp_Yr2'!K39,+'App.2-CC_DepExp_Yr2'!K39+((C39*0.5)/D39))","v":0},null,0,0,null,{"$f":"IF(ISERROR(+I39+'App.2-CC_DepExp_Yr2'!K39-J39), 0, +I39+'App.2-CC_DepExp_Yr2'!K39-J39)","v":0}]
[1915,"Office Furniture & Equipment (5 years)",null,null,0,{"$f":"IF(D40=0,+'App.2-CC_DepExp_Yr2'!K40,+'App.2-CC_DepExp_Yr2'!K40+((C40*0.5)/D40))","v":0},null,0,0,null,{"$f":"IF(ISERROR(+I40+'App.2-CC_DepExp_Yr2'!K40-J40), 0, +I40+'App.2-CC_DepExp_Yr2'!K40-J40)","v":0}]
[1920,"Computer Equipment - Hardware",null,null,0,{"$f":"IF(D41=0,+'App.2-CC_DepExp_Yr2'!K41,+'App.2-CC_DepExp_Yr2'!K41+((C41*0.5)/D41))","v":0},null,0,0,null,{"$f":"IF(ISERROR(+I41+'App.2-CC_DepExp_Yr2'!K41-J41), 0, +I41+'App.2-CC_DepExp_Yr2'!K41-J41)","v":0}]
[1920,"Computer Equip.-Hardware(Post Mar. 22/04)",null,null,0,{"$f":"IF(D42=0,+'App.2-CC_DepExp_Yr2'!K42,+'App.2-CC_DepExp_Yr2'!K42+((C42*0.5)/D42))","v":0},null,0,0,null,{"$f":"IF(ISERROR(+I42+'App.2-CC_DepExp_Yr2'!K42-J42), 0, +I42+'App.2-CC_DepExp_Yr2'!K42-J42)","v":0}]
[1920,"Computer Equip.-Hardware(Post Mar. 19/07)",null,null,0,{"$f":"IF(D43=0,+'App.2-CC_DepExp_Yr2'!K43,+'App.2-CC_DepExp_Yr2'!K43+((C43*0.5)/D43))","v":0},null,0,0,null,{"$f":"IF(ISERROR(+I43+'App.2-CC_DepExp_Yr2'!K43-J43), 0, +I43+'App.2-CC_DepExp_Yr2'!K43-J43)","v":0}]
[1930,"Transportation Equipment",null,null,0,{"$f":"IF(D44=0,+'App.2-CC_DepExp_Yr2'!K44,+'App.2-CC_DepExp_Yr2'!K44+((C44*0.5)/D44))","v":0},null,0,0,null,{"$f":"IF(ISERROR(+I44+'App.2-CC_DepExp_Yr2'!K44-J44), 0, +I44+'App.2-CC_DepExp_Yr2'!K44-J44)","v":0}]
[1935,"Stores Equipment",null,null,0,{"$f":"IF(D45=0,+'App.2-CC_DepExp_Yr2'!K45,+'App.2-CC_DepExp_Yr2'!K45+((C45*0.5)/D45))","v":0},null,0,0,null,{"$f":"IF(ISERROR(+I45+'App.2-CC_DepExp_Yr2'!K45-J45), 0, +I45+'App.2-CC_DepExp_Yr2'!K45-J45)","v":0}]
[1940,"Tools, Shop & Garage Equipment",null,null,0,{"$f":"IF(D46=0,+'App.2-CC_DepExp_Yr2'!K46,+'App.2-CC_DepExp_Yr2'!K46+((C46*0.5)/D46))","v":0},null,0,0,null,{"$f":"IF(ISERROR(+I46+'App.2-CC_DepExp_Yr2'!K46-J46), 0, +I46+'App.2-CC_DepExp_Yr2'!K46-J46)","v":0}]
[1945,"Measurement & Testing Equipment",null,null,0,{"$f":"IF(D47=0,+'App.2-CC_DepExp_Yr2'!K47,+'App.2-CC_DepExp_Yr2'!K47+((C47*0.5)/D47))","v":0},null,0,0,null,{"$f":"IF(ISERROR(+I47+'App.2-CC_DepExp_Yr2'!K47-J47), 0, +I47+'App.2-CC_DepExp_Yr2'!K47-J47)","v":0}]
[1950,"Power Operated Equipment",null,null,0,{"$f":"IF(D48=0,+'App.2-CC_DepExp_Yr2'!K48,+'App.2-CC_DepExp_Yr2'!K48+((C48*0.5)/D48))","v":0},null,0,0,null,{"$f":"IF(ISERROR(+I48+'App.2-CC_DepExp_Yr2'!K48-J48), 0, +I48+'App.2-CC_DepExp_Yr2'!K48-J48)","v":0}]
[1955,"Communications Equipment",null,null,0,{"$f":"IF(D49=0,+'App.2-CC_DepExp_Yr2'!K49,+'App.2-CC_DepExp_Yr2'!K49+((C49*0.5)/D49))","v":0},null,0,0,null,{"$f":"IF(ISERROR(+I49+'App.2-CC_DepExp_Yr2'!K49-J49), 0, +I49+'App.2-CC_DepExp_Yr2'!K49-J49)","v":0}]
[1955,"Communication Equipment (Smart Meters)",null,null,0,{"$f":"IF(D50=0,+'App.2-CC_DepExp_Yr2'!K50,+'App.2-CC_DepExp_Yr2'!K50+((C50*0.5)/D50))","v":0},null,0,0,null,{"$f":"IF(ISERROR(+I50+'App.2-CC_DepExp_Yr2'!K50-J50), 0, +I50+'App.2-CC_DepExp_Yr2'!K50-J50)","v":0}]
[1960,"Miscellaneous Equipment ",null,null,0,{"$f":"IF(D51=0,+'App.2-CC_DepExp_Yr2'!K51,+'App.2-CC_DepExp_Yr2'!K51+((C51*0.5)/D51))","v":0},null,0,0,null,{"$f":"IF(ISERROR(+I51+'App.2-CC_DepExp_Yr2'!K51-J51), 0, +I51+'App.2-CC_DepExp_Yr2'!K51-J51)","v":0}]
[1970,"Load Management Controls Customer Premises",null,null,0,{"$f":"IF(D52=0,+'App.2-CC_DepExp_Yr2'!K52,+'App.2-CC_DepExp_Yr2'!K52+((C52*0.5)/D52))","v":0},null,0,0,null,{"$f":"IF(ISERROR(+I52+'App.2-CC_DepExp_Yr2'!K52-J52), 0, +I52+'App.2-CC_DepExp_Yr2'!K52-J52)","v":0}]
[1975,"Load Management Controls Utility Premises",null,null,0,{"$f":"IF(D53=0,+'App.2-CC_DepExp_Yr2'!K53,+'App.2-CC_DepExp_Yr2'!K53+((C53*0.5)/D53))","v":0},null,0,0,null,{"$f":"IF(ISERROR(+I53+'App.2-CC_DepExp_Yr2'!K53-J53), 0, +I53+'App.2-CC_DepExp_Yr2'!K53-J53)","v":0}]
[1980,"System Supervisor Equipment",null,null,0,{"$f":"IF(D54=0,+'App.2-CC_DepExp_Yr2'!K54,+'App.2-CC_DepExp_Yr2'!K54+((C54*0.5)/D54))","v":0},null,0,0,null,{"$f":"IF(ISERROR(+I54+'App.2-CC_DepExp_Yr2'!K54-J54), 0, +I54+'App.2-CC_DepExp_Yr2'!K54-J54)","v":0}]
[1985,"Miscellaneous Fixed Assets",null,null,0,{"$f":"IF(D55=0,+'App.2-CC_DepExp_Yr2'!K55,+'App.2-CC_DepExp_Yr2'!K55+((C55*0.5)/D55))","v":0},null,0,0,null,{"$f":"IF(ISERROR(+I55+'App.2-CC_DepExp_Yr2'!K55-J55), 0, +I55+'App.2-CC_DepExp_Yr2'!K55-J55)","v":0}]
[1990,"Other Tangible Property",null,null,0,{"$f":"IF(D56=0,+'App.2-CC_DepExp_Yr2'!K56,+'App.2-CC_DepExp_Yr2'!K56+((C56*0.5)/D56))","v":0},null,0,0,null,{"$f":"IF(ISERROR(+I56+'App.2-CC_DepExp_Yr2'!K56-J56), 0, +I56+'App.2-CC_DepExp_Yr2'!K56-J56)","v":0}]
[1995,"Contributions & Grants",null,null,{"$f":"IF(D57=0,0,1/D57)","v":0},{"$f":"IF(D57=0,+'App.2-CC_DepExp_Yr2'!K57,+'App.2-CC_DepExp_Yr2'!K57+((C57*0.5)/D57))","v":0},null,0,0,null,{"$f":"IF(ISERROR(+I57+'App.2-CC_DepExp_Yr2'!K57-J57), 0, +I57+'App.2-CC_DepExp_Yr2'!K57-J57)","v":0}]
[null,"Total",{"$f":"SUM(C20:C57)","v":0},null,null,{"$f":"SUM(F20:F57)","v":0},0,0,0,0,0]
[null,"Depreciation exp. adj. from gain or loss on the retirement of assets (pool of like assets) (under MIFRS) "]
[null,"Total Depreciation Expense",null,null,null,{"$f":"+F59+F58","v":0}]
[]
["Notes:"]
[1,"Board policy of the \"half-year\" rule - the applicant must ensure that additions in the year attract a half-year depreciation expense in the first year.  Deviations from this standard practice must be supported in the application."]
[2,"The applicant must provide an explanation of material variances in evidence."]
[3,"This column refers to the calculated full year depreciation but excludes the depreciation expense on assets fully depreciated during the year.  This column is used for the purpose of calculating depreciation expense in the following year on the next worksheet."]
[]
["General:","Applicants must provide a breakdown of depreciation and amortization expense in the above format for all relevant accounts.  Asset Retirement Obligations (AROs), depreciation and accretion expense should be disclosed separately consistent with the Notes of historical Audited Financial Statements."]

{"sheet":"App.2-CE_DepExp_Yr4","index":15,"n_rows":66,"n_cols":11,"rows_kept":66,"cut":false,"hidden":false,"merged":[[8,0,8,8],[9,0,9,8],[17,1,18,1],[17,6,18,6],[59,1,59,4],[10,0,10,7],[12,0,12,1],[13,0,13,1],[13,2,13,8],[14,0,14,1],[14,2,14,8],[17,9,18,9],[67,1,68,7],[61,1,61,7],[62,1,62,8],[64,1,64,8],[65,1,66,7],[63,1,63,10]]}
[null,null,null,null,null,null,null,null,null,"File Number:",{"$f":"EBNUMBER","v":"EB-2017-0032"}]
["Please refer to separate Excel file entitled \"Fixed Asset Continuity Schedule.\" ",null,null,null,null,null,null,null,null,"Exhibit:"]
[null,null,null,null,null,null,null,null,null,"Tab:"]
[null,null,null,null,null,null,null,null,null,"Schedule:"]
[null,null,null,null,null,null,null,null,null,"Page:"]
[]
[null,null,null,null,null,null,null,null,null,"Date:"]
[]
["Appendix 2-CE"]
["Depreciation and Amortization Expense"]
["MIFRS (Year 4)"]
[]
["Select the set of appendices that apply",null,null,null,null,null,null,null,null,"Year Reflected in Schedule Below","Accounting Standard"]
["2012 Set of Appendices (2-CA to 2-CG)",null,"Assumes the applicant made capitalization and depreciation expense accounting policy changes under CGAAP effective January 1, 2012 and has adopted IFRS for financial reporting purposes effective January 1, 2015.  Assumes that the applicant is reflecting these changes in a rebasing application for the first time.",null,null,null,null,null,null,2015,"MIFRS"]
["2013 Set of Appendices (2-CA to 2-CF)",null,"Assumes the applicant made capitalization and depreciation expense accounting policy changes under CGAAP effective January 1, 2013 and has adopted IFRS for financial reporting purposes effective January 1, 2015.  Assumes that the applicant is reflecting these changes in a rebasing application for the first time.",null,null,null,null,null,null,2016,"MIFRS"]
[]
[]
["Account","Description","Additions","Years (new additions only)","Depreciation Rate on New Additions","Current Year Depreciation Expense1","Depreciation Expense per Appendix 2-BA Fixed Assets, Column J\n (l)","Variance 2","Depreciation Expense on Current Full Year Additions","Less Depreciation Expense on Assets Fully Depreciated During the Year\n(o)","Current Full Year Depreciation 3"]
[null,null,"(d)","(f)","(g) = 1 / (f)","(h)=Prior Full Year Depreciation + ((d)*0.5)/(f) ",null,"(m) = (h) - (l)","(n)=((d))/(f) ",null,"(p) = Prior Full Year Depreciation  + (n) - (o)"]
[1611,"Computer Software (Formally known as Account 1925)",null,null,{"$f":"IF(D20=0,0,1/D20)","v":0},{"$f":"IF(D20=0,'App.2-CD_DepExp_Yr3'!K20,+'App.2-CD_DepExp_Yr3'!K20+((C20*0.5)/D20))","v":0},null,{"$f":"IF(ISERROR(+F20-G20), 0, +F20-G20)","v":0},{"$f":"IF(D20=0,0,+(C20)/D20)","v":0},null,{"$f":"IF(ISERROR(+I20+'App.2-CD_DepExp_Yr3'!K20-J20), 0, +I20+'App.2-CD_DepExp_Yr3'!K20-J20)","v":0}]
[1612,"Land Rights (Formally known as Account 1906)",null,null,0,{"$f":"IF(D21=0,'App.2-CD_DepExp_Yr3'!K21,+'App.2-CD_DepExp_Yr3'!K21+((C21*0.5)/D21))","v":0},null,0,{"$f":"IF(D21=0,0,+(C21)/D21)","v":0},null,{"$f":"IF(ISERROR(+I21+'App.2-CD_DepExp_Yr3'!K21-J21), 0, +I21+'App.2-CD_DepExp_Yr3'!K21-J21)","v":0}]
[1805,"Land",null,null,0,{"$f":"IF(D22=0,'App.2-CD_DepExp_Yr3'!K22,+'App.2-CD_DepExp_Yr3'!K22+((C22*0.5)/D22))","v":0},null,0,0,null,{"$f":"IF(ISERROR(+I22+'App.2-CD_DepExp_Yr3'!K22-J22), 0, +I22+'App.2-CD_DepExp_Yr3'!K22-J22)","v":0}]
[1808,"Buildings",null,null,0,{"$f":"IF(D23=0,'App.2-CD_DepExp_Yr3'!K23,+'App.2-CD_DepExp_Yr3'!K23+((C23*0.5)/D23))","v":0},null,0,0,null,{"$f":"IF(ISERROR(+I23+'App.2-CD_DepExp_Yr3'!K23-J23), 0, +I23+'App.2-CD_DepExp_Yr3'!K23-J23)","v":0}]
[1810,"Leasehold Improvements",null,null,0,{"$f":"IF(D24=0,'App.2-CD_DepExp_Yr3'!K24,+'App.2-CD_DepExp_Yr3'!K24+((C24*0.5)/D24))","v":0},null,0,0,null,{"$f":"IF(ISERROR(+I24+'App.2-CD_DepExp_Yr3'!K24-J24), 0, +I24+'App.2-CD_DepExp_Yr3'!K24-J24)","v":0}]
[1815,"Transformer Station Equipment >50 kV",null,null,0,{"$f":"IF(D25=0,'App.2-CD_DepExp_Yr3'!K25,+'App.2-CD_DepExp_Yr3'!K25+((C25*0.5)/D25))","v":0},null,0,0,null,{"$f":"IF(ISERROR(+I25+'App.2-CD_DepExp_Yr3'!K25-J25), 0, +I25+'App.2-CD_DepExp_Yr3'!K25-J25)","v":0}]
[1820,"Distribution Station Equipment <50 kV",null,null,0,{"$f":"IF(D26=0,'App.2-CD_DepExp_Yr3'!K26,+'App.2-CD_DepExp_Yr3'!K26+((C26*0.5)/D26))","v":0},null,0,0,null,{"$f":"IF(ISERROR(+I26+'App.2-CD_DepExp_Yr3'!K26-J26), 0, +I26+'App.2-CD_DepExp_Yr3'!K26-J26)","v":0}]
[1825,"Storage Battery Equipment",null,null,0,{"$f":"IF(D27=0,'App.2-CD_DepExp_Yr3'!K27,+'App.2-CD_DepExp_Yr3'!K27+((C27*0.5)/D27))","v":0},null,0,0,null,{"$f":"IF(ISERROR(+I27+'App.2-CD_DepExp_Yr3'!K27-J27), 0, +I27+'App.2-CD_DepExp_Yr3'!K27-J27)","v":0}]
[1830,"Poles, Towers & Fixtures",null,null,0,{"$f":"IF(D28=0,'App.2-CD_DepExp_Yr3'!K28,+'App.2-CD_DepExp_Yr3'!K28+((C28*0.5)/D28))","v":0},null,0,0,null,{"$f":"IF(ISERROR(+I28+'App.2-CD_DepExp_Yr3'!K28-J28), 0, +I28+'App.2-CD_DepExp_Yr3'!K28-J28)","v":0}]
[1835,"Overhead Conductors & Devices",null,null,0,{"$f":"IF(D29=0,'App.2-CD_DepExp_Yr3'!K29,+'App.2-CD_DepExp_Yr3'!K29+((C29*0.5)/D29))","v":0},null,0,0,null,{"$f":"IF(ISERROR(+I29+'App.2-CD_DepExp_Yr3'!K29-J29), 0, +I29+'App.2-CD_DepExp_Yr3'!K29-J29)","v":0}]
[1840,"Underground Conduit",null,null,0,{"$f":"IF(D30=0,'App.2-CD_DepExp_Yr3'!K30,+'App.2-CD_DepExp_Yr3'!K30+((C30*0.5)/D30))","v":0},null,0,0,null,{"$f":"IF(ISERROR(+I30+'App.2-CD_DepExp_Yr3'!K30-J30), 0, +I30+'App.2-CD_DepExp_Yr3'!K30-J30)","v":0}]
[1845,"Underground Conductors & Devices",null,null,0,{"$f":"IF(D31=0,'App.2-CD_DepExp_Yr3'!K31,+'App.2-CD_DepExp_Yr3'!K31+((C31*0.5)/D31))","v":0},null,0,0,null,{"$f":"IF(ISERROR(+I31+'App.2-CD_DepExp_Yr3'!K31-J31), 0, +I31+'App.2-CD_DepExp_Yr3'!K31-J31)","v":0}]
[1850,"Line Transformers",null,null,0,{"$f":"IF(D32=0,'App.2-CD_DepExp_Yr3'!K32,+'App.2-CD_DepExp_Yr3'!K32+((C32*0.5)/D32))","v":0},null,0,0,null,{"$f":"IF(ISERROR(+I32+'App.2-CD_DepExp_Yr3'!K32-J32), 0, +I32+'App.2-CD_DepExp_Yr3'!K32-J32)","v":0}]
[1855,"Services (Overhead & Underground)",null,null,0,{"$f":"IF(D33=0,'App.2-CD_DepExp_Yr3'!K33,+'App.2-CD_DepExp_Yr3'!K33+((C33*0.5)/D33))","v":0},null,0,0,null,{"$f":"IF(ISERROR(+I33+'App.2-CD_DepExp_Yr3'!K33-J33), 0, +I33+'App.2-CD_DepExp_Yr3'!K33-J33)","v":0}]
[1860,"Meters",null,null,0,{"$f":"IF(D34=0,'App.2-CD_DepExp_Yr3'!K34,+'App.2-CD_DepExp_Yr3'!K34+((C34*0.5)/D34))","v":0},null,0,0,null,{"$f":"IF(ISERROR(+I34+'App.2-CD_DepExp_Yr3'!K34-J34), 0, +I34+'App.2-CD_DepExp_Yr3'!K34-J34)","v":0}]
[1860,"Meters (Smart Meters)",null,null,0,{"$f":"IF(D35=0,'App.2-CD_DepExp_Yr3'!K35,+'App.2-CD_DepExp_Yr3'!K35+((C35*0.5)/D35))","v":0},null,0,0,null,{"$f":"IF(ISERROR(+I35+'App.2-CD_DepExp_Yr3'!K35-J35), 0, +I35+'App.2-CD_DepExp_Yr3'!K35-J35)","v":0}]
[1905,"Land",null,null,0,{"$f":"IF(D36=0,'App.2-CD_DepExp_Yr3'!K36,+'App.2-CD_DepExp_Yr3'!K36+((C36*0.5)/D36))","v":0},null,0,0,null,{"$f":"IF(ISERROR(+I36+'App.2-CD_DepExp_Yr3'!K36-J36), 0, +I36+'App.2-CD_DepExp_Yr3'!K36-J36)","v":0}]
[1908,"Buildings & Fixtures",null,null,0,{"$f":"IF(D37=0,'App.2-CD_DepExp_Yr3'!K37,+'App.2-CD_DepExp_Yr3'!K37+((C37*0.5)/D37))","v":0},null,0,0,null,{"$f":"IF(ISERROR(+I37+'App.2-CD_DepExp_Yr3'!K37-J37), 0, +I37+'App.2-CD_DepExp_Yr3'!K37-J37)","v":0}]
[1910,"Leasehold Improvements",null,null,0,{"$f":"IF(D38=0,'App.2-CD_DepExp_Yr3'!K38,+'App.2-CD_DepExp_Yr3'!K38+((C38*0.5)/D38))","v":0},null,0,0,null,{"$f":"IF(ISERROR(+I38+'App.2-CD_DepExp_Yr3'!K38-J38), 0, +I38+'App.2-CD_DepExp_Yr3'!K38-J38)","v":0}]
[1915,"Office Furniture & Equipment (10 years)",null,null,0,{"$f":"IF(D39=0,'App.2-CD_DepExp_Yr3'!K39,+'App.2-CD_DepExp_Yr3'!K39+((C39*0.5)/D39))","v":0},null,0,0,null,{"$f":"IF(ISERROR(+I39+'App.2-CD_DepExp_Yr3'!K39-J39), 0, +I39+'App.2-CD_DepExp_Yr3'!K39-J39)","v":0}]
[1915,"Office Furniture & Equipment (5 years)",null,null,0,{"$f":"IF(D40=0,'App.2-CD_DepExp_Yr3'!K40,+'App.2-CD_DepExp_Yr3'!K40+((C40*0.5)/D40))","v":0},null,0,0,null,{"$f":"IF(ISERROR(+I40+'App.2-CD_DepExp_Yr3'!K40-J40), 0, +I40+'App.2-CD_DepExp_Yr3'!K40-J40)","v":0}]
[1920,"Computer Equipment - Hardware",null,null,0,{"$f":"IF(D41=0,'App.2-CD_DepExp_Yr3'!K41,+'App.2-CD_DepExp_Yr3'!K41+((C41*0.5)/D41))","v":0},null,0,0,null,{"$f":"IF(ISERROR(+I41+'App.2-CD_DepExp_Yr3'!K41-J41), 0, +I41+'App.2-CD_DepExp_Yr3'!K41-J41)","v":0}]
[1920,"Computer Equip.-Hardware(Post Mar. 22/04)",null,null,0,{"$f":"IF(D42=0,'App.2-CD_DepExp_Yr3'!K42,+'App.2-CD_DepExp_Yr3'!K42+((C42*0.5)/D42))","v":0},null,0,0,null,{"$f":"IF(ISERROR(+I42+'App.2-CD_DepExp_Yr3'!K42-J42), 0, +I42+'App.2-CD_DepExp_Yr3'!K42-J42)","v":0}]
[1920,"Computer Equip.-Hardware(Post Mar. 19/07)",null,null,0,{"$f":"IF(D43=0,'App.2-CD_DepExp_Yr3'!K43,+'App.2-CD_DepExp_Yr3'!K43+((C43*0.5)/D43))","v":0},null,0,0,null,{"$f":"IF(ISERROR(+I43+'App.2-CD_DepExp_Yr3'!K43-J43), 0, +I43+'App.2-CD_DepExp_Yr3'!K43-J43)","v":0}]
[1930,"Transportation Equipment",null,null,0,{"$f":"IF(D44=0,'App.2-CD_DepExp_Yr3'!K44,+'App.2-CD_DepExp_Yr3'!K44+((C44*0.5)/D44))","v":0},null,0,0,null,{"$f":"IF(ISERROR(+I44+'App.2-CD_DepExp_Yr3'!K44-J44), 0, +I44+'App.2-CD_DepExp_Yr3'!K44-J44)","v":0}]
[1935,"Stores Equipment",null,null,0,{"$f":"IF(D45=0,'App.2-CD_DepExp_Yr3'!K45,+'App.2-CD_DepExp_Yr3'!K45+((C45*0.5)/D45))","v":0},null,0,0,null,{"$f":"IF(ISERROR(+I45+'App.2-CD_DepExp_Yr3'!K45-J45), 0, +I45+'App.2-CD_DepExp_Yr3'!K45-J45)","v":0}]
[1940,"Tools, Shop & Garage Equipment",null,null,0,{"$f":"IF(D46=0,'App.2-CD_DepExp_Yr3'!K46,+'App.2-CD_DepExp_Yr3'!K46+((C46*0.5)/D46))","v":0},null,0,0,null,{"$f":"IF(ISERROR(+I46+'App.2-CD_DepExp_Yr3'!K46-J46), 0, +I46+'App.2-CD_DepExp_Yr3'!K46-J46)","v":0}]
[1945,"Measurement & Testing Equipment",null,null,0,{"$f":"IF(D47=0,'App.2-CD_DepExp_Yr3'!K47,+'App.2-CD_DepExp_Yr3'!K47+((C47*0.5)/D47))","v":0},null,0,0,null,{"$f":"IF(ISERROR(+I47+'App.2-CD_DepExp_Yr3'!K47-J47), 0, +I47+'App.2-CD_DepExp_Yr3'!K47-J47)","v":0}]
[1950,"Power Operated Equipment",null,null,0,{"$f":"IF(D48=0,'App.2-CD_DepExp_Yr3'!K48,+'App.2-CD_DepExp_Yr3'!K48+((C48*0.5)/D48))","v":0},null,0,0,null,{"$f":"IF(ISERROR(+I48+'App.2-CD_DepExp_Yr3'!K48-J48), 0, +I48+'App.2-CD_DepExp_Yr3'!K48-J48)","v":0}]
[1955,"Communications Equipment",null,null,0,{"$f":"IF(D49=0,'App.2-CD_DepExp_Yr3'!K49,+'App.2-CD_DepExp_Yr3'!K49+((C49*0.5)/D49))","v":0},null,0,0,null,{"$f":"IF(ISERROR(+I49+'App.2-CD_DepExp_Yr3'!K49-J49), 0, +I49+'App.2-CD_DepExp_Yr3'!K49-J49)","v":0}]
[1955,"Communication Equipment (Smart Meters)",null,null,0,{"$f":"IF(D50=0,'App.2-CD_DepExp_Yr3'!K50,+'App.2-CD_DepExp_Yr3'!K50+((C50*0.5)/D50))","v":0},null,0,0,null,{"$f":"IF(ISERROR(+I50+'App.2-CD_DepExp_Yr3'!K50-J50), 0, +I50+'App.2-CD_DepExp_Yr3'!K50-J50)","v":0}]
[1960,"Miscellaneous Equipment ",null,null,0,{"$f":"IF(D51=0,'App.2-CD_DepExp_Yr3'!K51,+'App.2-CD_DepExp_Yr3'!K51+((C51*0.5)/D51))","v":0},null,0,0,null,{"$f":"IF(ISERROR(+I51+'App.2-CD_DepExp_Yr3'!K51-J51), 0, +I51+'App.2-CD_DepExp_Yr3'!K51-J51)","v":0}]
[1970,"Load Management Controls Customer Premises",null,null,0,{"$f":"IF(D52=0,'App.2-CD_DepExp_Yr3'!K52,+'App.2-CD_DepExp_Yr3'!K52+((C52*0.5)/D52))","v":0},null,0,0,null,{"$f":"IF(ISERROR(+I52+'App.2-CD_DepExp_Yr3'!K52-J52), 0, +I52+'App.2-CD_DepExp_Yr3'!K52-J52)","v":0}]
[1975,"Load Management Controls Utility Premises",null,null,0,{"$f":"IF(D53=0,'App.2-CD_DepExp_Yr3'!K53,+'App.2-CD_DepExp_Yr3'!K53+((C53*0.5)/D53))","v":0},null,0,0,null,{"$f":"IF(ISERROR(+I53+'App.2-CD_DepExp_Yr3'!K53-J53), 0, +I53+'App.2-CD_DepExp_Yr3'!K53-J53)","v":0}]
[1980,"System Supervisor Equipment",null,null,0,{"$f":"IF(D54=0,'App.2-CD_DepExp_Yr3'!K54,+'App.2-CD_DepExp_Yr3'!K54+((C54*0.5)/D54))","v":0},null,0,0,null,{"$f":"IF(ISERROR(+I54+'App.2-CD_DepExp_Yr3'!K54-J54), 0, +I54+'App.2-CD_DepExp_Yr3'!K54-J54)","v":0}]
[1985,"Miscellaneous Fixed Assets",null,null,0,{"$f":"IF(D55=0,'App.2-CD_DepExp_Yr3'!K55,+'App.2-CD_DepExp_Yr3'!K55+((C55*0.5)/D55))","v":0},null,0,0,null,{"$f":"IF(ISERROR(+I55+'App.2-CD_DepExp_Yr3'!K55-J55), 0, +I55+'App.2-CD_DepExp_Yr3'!K55-J55)","v":0}]
[1990,"Other Tangible Property",null,null,0,{"$f":"IF(D56=0,'App.2-CD_DepExp_Yr3'!K56,+'App.2-CD_DepExp_Yr3'!K56+((C56*0.5)/D56))","v":0},null,0,0,null,{"$f":"IF(ISERROR(+I56+'App.2-CD_DepExp_Yr3'!K56-J56), 0, +I56+'App.2-CD_DepExp_Yr3'!K56-J56)","v":0}]
[1995,"Contributions & Grants",null,null,0,{"$f":"IF(D57=0,'App.2-CD_DepExp_Yr3'!K57,+'App.2-CD_DepExp_Yr3'!K57+((C57*0.5)/D57))","v":0},null,0,0,null,{"$f":"IF(ISERROR(+I57+'App.2-CD_DepExp_Yr3'!K57-J57), 0, +I57+'App.2-CD_DepExp_Yr3'!K57-J57)","v":0}]
[null,"Total",{"$f":"SUM(C20:C57)","v":0},null,null,{"$f":"SUM(F20:F57)","v":0},0,0,0,0,0]
[null,"Depreciation exp. adj. from gain or loss on the retirement of assets (pool of like assets)"]
[null,"Total Depreciation Expense ",null,null,null,{"$f":"SUM(F58:F59)","v":0}]
["Notes:"]
[1,"Board policy of the \"half-year\" rule - the applicant must ensure that additions in the year attract a half-year depreciation expense in the first year.  Deviations from this standard practice must be supported in the application."]
[2,"The applicant must provide an explanation of material variances in evidence."]
[3,"This column refers to the calculated full year depreciation but excludes the depreciation expense on assets fully depreciated during the year.  This column is used for the purpose of calculating depreciation expense in the following year on the next worksheet."]
[]
["General:","Applicants must provide a breakdown of depreciation and amortization expense in the above format for all relevant accounts.  Asset Retirement Obligations (AROs), depreciation and accretion expense should be disclosed separately consistent with the Notes of historical Audited Financial Statements."]

{"sheet":"App.2-CF_DepExp_Yr5","index":16,"n_rows":66,"n_cols":11,"rows_kept":66,"cut":false,"hidden":false,"merged":[[61,1,61,7],[62,1,62,8],[64,1,64,8],[65,1,66,7],[67,1,68,7],[63,1,63,10],[17,9,18,9],[59,1,59,4],[8,0,8,8],[9,0,9,8],[10,0,10,7],[17,1,18,1],[17,6,18,6],[12,0,12,1],[13,0,13,1],[13,2,13,8],[14,0,14,1],[14,2,14,8]]}
[null,null,null,null,null,null,null,null,null,"File Number:",{"$f":"EBNUMBER","v":"EB-2017-0032"}]
["Please refer to separate Excel file entitled \"Fixed Asset Continuity Schedule.\" ",null,null,null,null,null,null,null,null,"Exhibit:"]
[null,null,null,null,null,null,null,null,null,"Tab:"]
[null,null,null,null,null,null,null,null,null,"Schedule:"]
[null,null,null,null,null,null,null,null,null,"Page:"]
[]
[null,null,null,null,null,null,null,null,null,"Date:"]
[]
["Appendix 2-CF"]
["Depreciation and Amortization Expense"]
["MIFRS (Year 5)"]
[]
["Select the set of appendices that apply",null,null,null,null,null,null,null,null,"Year Reflected in Schedule Below","Accounting Standard"]
["2012 Set of Appendices (2-CA to 2-CG)",null,"Assumes the applicant made capitalization and depreciation expense accounting policy changes under CGAAP effective January 1, 2012 and has adopted IFRS for financial reporting purposes effective January 1, 2015.  Assumes that the applicant is reflecting these changes in a rebasing application for the first time.",null,null,null,null,null,null,2016,"MIFRS"]
["2013 Set of Appendices (2-CA to 2-CF)",null,"Assumes the applicant made capitalization and depreciation expense accounting policy changes under CGAAP effective January 1, 2013 and has adopted IFRS for financial reporting purposes effective January 1, 2015.  Assumes that the applicant is reflecting these changes in a rebasing application for the first time.",null,null,null,null,null,null,2017,"MIFRS"]
[]
[]
["Account","Description","Additions","Years (new additions only)","Depreciation Rate on New Additions","Current Depreciation Expense1"," Depreciation Expense per Appendix 2-BA Fixed Assets, Column J\n (l)","Variance 2","Depreciation Expense on Current Full Year Additions","Less Depreciation Expense on Assets Fully Depreciated During the Year\n(o)","Current Full Year Depreciation 3"]
[null,null,"(d)","(f)","(g) = 1 / (f)","(h)= Prior Full Year Depreciation + ((d)*0.5)/(f) ",null,"(m) = (h) - (l)","(n)=((d))/(f) ",null,"(p) = Prior Full Year Depreciation  + (n) - (o)"]
[1611,"Computer Software (Formally known as Account 1925)",null,null,{"$f":"IF(D20=0,0,1/D20)","v":0},{"$f":"IF(D20=0,'App.2-CE_DepExp_Yr4'!K20,+'App.2-CE_DepExp_Yr4'!K20+((C20*0.5)/D20))","v":0},null,{"$f":"IF(ISERROR(+F20-G20), 0, +F20-G20)","v":0},{"$f":"IF(D20=0,0,+(C20)/D20)","v":0},null,{"$f":"IF(ISERROR(+I20+'App.2-CE_DepExp_Yr4'!K20-J20), 0, +'App.2-CE_DepExp_Yr4'!K20-J20)","v":0}]
[1612,"Land Rights (Formally known as Account 1906)",null,null,0,{"$f":"IF(D21=0,'App.2-CE_DepExp_Yr4'!K21,+'App.2-CE_DepExp_Yr4'!K21+((C21*0.5)/D21))","v":0},null,0,{"$f":"IF(D21=0,0,+(C21)/D21)","v":0},null,{"$f":"IF(ISERROR(+I21+'App.2-CE_DepExp_Yr4'!K21-J21), 0, +'App.2-CE_DepExp_Yr4'!K21-J21)","v":0}]
[1805,"Land",null,null,0,{"$f":"IF(D22=0,'App.2-CE_DepExp_Yr4'!K22,+'App.2-CE_DepExp_Yr4'!K22+((C22*0.5)/D22))","v":0},null,0,0,null,{"$f":"IF(ISERROR(+I22+'App.2-CE_DepExp_Yr4'!K22-J22), 0, +'App.2-CE_DepExp_Yr4'!K22-J22)","v":0}]
[1808,"Buildings",null,null,0,{"$f":"IF(D23=0,'App.2-CE_DepExp_Yr4'!K23,+'App.2-CE_DepExp_Yr4'!K23+((C23*0.5)/D23))","v":0},null,0,0,null,{"$f":"IF(ISERROR(+I23+'App.2-CE_DepExp_Yr4'!K23-J23), 0, +'App.2-CE_DepExp_Yr4'!K23-J23)","v":0}]
[1810,"Leasehold Improvements",null,null,0,{"$f":"IF(D24=0,'App.2-CE_DepExp_Yr4'!K24,+'App.2-CE_DepExp_Yr4'!K24+((C24*0.5)/D24))","v":0},null,0,0,null,{"$f":"IF(ISERROR(+I24+'App.2-CE_DepExp_Yr4'!K24-J24), 0, +'App.2-CE_DepExp_Yr4'!K24-J24)","v":0}]
[1815,"Transformer Station Equipment >50 kV",null,null,0,{"$f":"IF(D25=0,'App.2-CE_DepExp_Yr4'!K25,+'App.2-CE_DepExp_Yr4'!K25+((C25*0.5)/D25))","v":0},null,0,0,null,{"$f":"IF(ISERROR(+I25+'App.2-CE_DepExp_Yr4'!K25-J25), 0, +'App.2-CE_DepExp_Yr4'!K25-J25)","v":0}]
[1820,"Distribution Station Equipment <50 kV",null,null,0,{"$f":"IF(D26=0,'App.2-CE_DepExp_Yr4'!K26,+'App.2-CE_DepExp_Yr4'!K26+((C26*0.5)/D26))","v":0},null,0,0,null,{"$f":"IF(ISERROR(+I26+'App.2-CE_DepExp_Yr4'!K26-J26), 0, +'App.2-CE_DepExp_Yr4'!K26-J26)","v":0}]
[1825,"Storage Battery Equipment",null,null,0,{"$f":"IF(D27=0,'App.2-CE_DepExp_Yr4'!K27,+'App.2-CE_DepExp_Yr4'!K27+((C27*0.5)/D27))","v":0},null,0,0,null,{"$f":"IF(ISERROR(+I27+'App.2-CE_DepExp_Yr4'!K27-J27), 0, +'App.2-CE_DepExp_Yr4'!K27-J27)","v":0}]
[1830,"Poles, Towers & Fixtures",null,null,0,{"$f":"IF(D28=0,'App.2-CE_DepExp_Yr4'!K28,+'App.2-CE_DepExp_Yr4'!K28+((C28*0.5)/D28))","v":0},null,0,0,null,{"$f":"IF(ISERROR(+I28+'App.2-CE_DepExp_Yr4'!K28-J28), 0, +'App.2-CE_DepExp_Yr4'!K28-J28)","v":0}]
[1835,"Overhead Conductors & Devices",null,null,0,{"$f":"IF(D29=0,'App.2-CE_DepExp_Yr4'!K29,+'App.2-CE_DepExp_Yr4'!K29+((C29*0.5)/D29))","v":0},null,0,0,null,{"$f":"IF(ISERROR(+I29+'App.2-CE_DepExp_Yr4'!K29-J29), 0, +'App.2-CE_DepExp_Yr4'!K29-J29)","v":0}]
[1840,"Underground Conduit",null,null,0,{"$f":"IF(D30=0,'App.2-CE_DepExp_Yr4'!K30,+'App.2-CE_DepExp_Yr4'!K30+((C30*0.5)/D30))","v":0},null,0,0,null,{"$f":"IF(ISERROR(+I30+'App.2-CE_DepExp_Yr4'!K30-J30), 0, +'App.2-CE_DepExp_Yr4'!K30-J30)","v":0}]
[1845,"Underground Conductors & Devices",null,null,0,{"$f":"IF(D31=0,'App.2-CE_DepExp_Yr4'!K31,+'App.2-CE_DepExp_Yr4'!K31+((C31*0.5)/D31))","v":0},null,0,0,null,{"$f":"IF(ISERROR(+I31+'App.2-CE_DepExp_Yr4'!K31-J31), 0, +'App.2-CE_DepExp_Yr4'!K31-J31)","v":0}]
[1850,"Line Transformers",null,null,0,{"$f":"IF(D32=0,'App.2-CE_DepExp_Yr4'!K32,+'App.2-CE_DepExp_Yr4'!K32+((C32*0.5)/D32))","v":0},null,0,0,null,{"$f":"IF(ISERROR(+I32+'App.2-CE_DepExp_Yr4'!K32-J32), 0, +'App.2-CE_DepExp_Yr4'!K32-J32)","v":0}]
[1855,"Services (Overhead & Underground)",null,null,0,{"$f":"IF(D33=0,'App.2-CE_DepExp_Yr4'!K33,+'App.2-CE_DepExp_Yr4'!K33+((C33*0.5)/D33))","v":0},null,0,0,null,{"$f":"IF(ISERROR(+I33+'App.2-CE_DepExp_Yr4'!K33-J33), 0, +'App.2-CE_DepExp_Yr4'!K33-J33)","v":0}]
[1860,"Meters",null,null,0,{"$f":"IF(D34=0,'App.2-CE_DepExp_Yr4'!K34,+'App.2-CE_DepExp_Yr4'!K34+((C34*0.5)/D34))","v":0},null,0,0,null,{"$f":"IF(ISERROR(+I34+'App.2-CE_DepExp_Yr4'!K34-J34), 0, +'App.2-CE_DepExp_Yr4'!K34-J34)","v":0}]
[1860,"Meters (Smart Meters)",null,null,0,{"$f":"IF(D35=0,'App.2-CE_DepExp_Yr4'!K35,+'App.2-CE_DepExp_Yr4'!K35+((C35*0.5)/D35))","v":0},null,0,0,null,{"$f":"IF(ISERROR(+I35+'App.2-CE_DepExp_Yr4'!K35-J35), 0, +'App.2-CE_DepExp_Yr4'!K35-J35)","v":0}]
[1905,"Land",null,null,0,{"$f":"IF(D36=0,'App.2-CE_DepExp_Yr4'!K36,+'App.2-CE_DepExp_Yr4'!K36+((C36*0.5)/D36))","v":0},null,0,0,null,{"$f":"IF(ISERROR(+I36+'App.2-CE_DepExp_Yr4'!K36-J36), 0, +'App.2-CE_DepExp_Yr4'!K36-J36)","v":0}]
[1908,"Buildings & Fixtures",null,null,0,{"$f":"IF(D37=0,'App.2-CE_DepExp_Yr4'!K37,+'App.2-CE_DepExp_Yr4'!K37+((C37*0.5)/D37))","v":0},null,0,0,null,{"$f":"IF(ISERROR(+I37+'App.2-CE_DepExp_Yr4'!K37-J37), 0, +'App.2-CE_DepExp_Yr4'!K37-J37)","v":0}]
[1910,"Leasehold Improvements",null,null,0,{"$f":"IF(D38=0,'App.2-CE_DepExp_Yr4'!K38,+'App.2-CE_DepExp_Yr4'!K38+((C38*0.5)/D38))","v":0},null,0,0,null,{"$f":"IF(ISERROR(+I38+'App.2-CE_DepExp_Yr4'!K38-J38), 0, +'App.2-CE_DepExp_Yr4'!K38-J38)","v":0}]
[1915,"Office Furniture & Equipment (10 years)",null,null,0,{"$f":"IF(D39=0,'App.2-CE_DepExp_Yr4'!K39,+'App.2-CE_DepExp_Yr4'!K39+((C39*0.5)/D39))","v":0},null,0,0,null,{"$f":"IF(ISERROR(+I39+'App.2-CE_DepExp_Yr4'!K39-J39), 0, +'App.2-CE_DepExp_Yr4'!K39-J39)","v":0}]
[1915,"Office Furniture & Equipment (5 years)",null,null,0,{"$f":"IF(D40=0,'App.2-CE_DepExp_Yr4'!K40,+'App.2-CE_DepExp_Yr4'!K40+((C40*0.5)/D40))","v":0},null,0,0,null,{"$f":"IF(ISERROR(+I40+'App.2-CE_DepExp_Yr4'!K40-J40), 0, +'App.2-CE_DepExp_Yr4'!K40-J40)","v":0}]
[1920,"Computer Equipment - Hardware",null,null,0,{"$f":"IF(D41=0,'App.2-CE_DepExp_Yr4'!K41,+'App.2-CE_DepExp_Yr4'!K41+((C41*0.5)/D41))","v":0},null,0,0,null,{"$f":"IF(ISERROR(+I41+'App.2-CE_DepExp_Yr4'!K41-J41), 0, +'App.2-CE_DepExp_Yr4'!K41-J41)","v":0}]
[1920,"Computer Equip.-Hardware(Post Mar. 22/04)",null,null,0,{"$f":"IF(D42=0,'App.2-CE_DepExp_Yr4'!K42,+'App.2-CE_DepExp_Yr4'!K42+((C42*0.5)/D42))","v":0},null,0,0,null,{"$f":"IF(ISERROR(+I42+'App.2-CE_DepExp_Yr4'!K42-J42), 0, +'App.2-CE_DepExp_Yr4'!K42-J42)","v":0}]
[1920,"Computer Equip.-Hardware(Post Mar. 19/07)",null,null,0,{"$f":"IF(D43=0,'App.2-CE_DepExp_Yr4'!K43,+'App.2-CE_DepExp_Yr4'!K43+((C43*0.5)/D43))","v":0},null,0,0,null,{"$f":"IF(ISERROR(+I43+'App.2-CE_DepExp_Yr4'!K43-J43), 0, +'App.2-CE_DepExp_Yr4'!K43-J43)","v":0}]
[1930,"Transportation Equipment",null,null,0,{"$f":"IF(D44=0,'App.2-CE_DepExp_Yr4'!K44,+'App.2-CE_DepExp_Yr4'!K44+((C44*0.5)/D44))","v":0},null,0,0,null,{"$f":"IF(ISERROR(+I44+'App.2-CE_DepExp_Yr4'!K44-J44), 0, +'App.2-CE_DepExp_Yr4'!K44-J44)","v":0}]
[1935,"Stores Equipment",null,null,0,{"$f":"IF(D45=0,'App.2-CE_DepExp_Yr4'!K45,+'App.2-CE_DepExp_Yr4'!K45+((C45*0.5)/D45))","v":0},null,0,0,null,{"$f":"IF(ISERROR(+I45+'App.2-CE_DepExp_Yr4'!K45-J45), 0, +'App.2-CE_DepExp_Yr4'!K45-J45)","v":0}]
[1940,"Tools, Shop & Garage Equipment",null,null,0,{"$f":"IF(D46=0,'App.2-CE_DepExp_Yr4'!K46,+'App.2-CE_DepExp_Yr4'!K46+((C46*0.5)/D46))","v":0},null,0,0,null,{"$f":"IF(ISERROR(+I46+'App.2-CE_DepExp_Yr4'!K46-J46), 0, +'App.2-CE_DepExp_Yr4'!K46-J46)","v":0}]
[1945,"Measurement & Testing Equipment",null,null,0,{"$f":"IF(D47=0,'App.2-CE_DepExp_Yr4'!K47,+'App.2-CE_DepExp_Yr4'!K47+((C47*0.5)/D47))","v":0},null,0,0,null,{"$f":"IF(ISERROR(+I47+'App.2-CE_DepExp_Yr4'!K47-J47), 0, +'App.2-CE_DepExp_Yr4'!K47-J47)","v":0}]
[1950,"Power Operated Equipment",null,null,0,{"$f":"IF(D48=0,'App.2-CE_DepExp_Yr4'!K48,+'App.2-CE_DepExp_Yr4'!K48+((C48*0.5)/D48))","v":0},null,0,0,null,{"$f":"IF(ISERROR(+I48+'App.2-CE_DepExp_Yr4'!K48-J48), 0, +'App.2-CE_DepExp_Yr4'!K48-J48)","v":0}]
[1955,"Communications Equipment",null,null,0,{"$f":"IF(D49=0,'App.2-CE_DepExp_Yr4'!K49,+'App.2-CE_DepExp_Yr4'!K49+((C49*0.5)/D49))","v":0},null,0,0,null,{"$f":"IF(ISERROR(+I49+'App.2-CE_DepExp_Yr4'!K49-J49), 0, +'App.2-CE_DepExp_Yr4'!K49-J49)","v":0}]
[1955,"Communication Equipment (Smart Meters)",null,null,0,{"$f":"IF(D50=0,'App.2-CE_DepExp_Yr4'!K50,+'App.2-CE_DepExp_Yr4'!K50+((C50*0.5)/D50))","v":0},null,0,0,null,{"$f":"IF(ISERROR(+I50+'App.2-CE_DepExp_Yr4'!K50-J50), 0, +'App.2-CE_DepExp_Yr4'!K50-J50)","v":0}]
[1960,"Miscellaneous Equipment ",null,null,0,{"$f":"IF(D51=0,'App.2-CE_DepExp_Yr4'!K51,+'App.2-CE_DepExp_Yr4'!K51+((C51*0.5)/D51))","v":0},null,0,0,null,{"$f":"IF(ISERROR(+I51+'App.2-CE_DepExp_Yr4'!K51-J51), 0, +'App.2-CE_DepExp_Yr4'!K51-J51)","v":0}]
[1970,"Load Management Controls Customer Premises",null,null,0,{"$f":"IF(D52=0,'App.2-CE_DepExp_Yr4'!K52,+'App.2-CE_DepExp_Yr4'!K52+((C52*0.5)/D52))","v":0},null,0,0,null,{"$f":"IF(ISERROR(+I52+'App.2-CE_DepExp_Yr4'!K52-J52), 0, +'App.2-CE_DepExp_Yr4'!K52-J52)","v":0}]
[1975,"Load Management Controls Utility Premises",null,null,0,{"$f":"IF(D53=0,'App.2-CE_DepExp_Yr4'!K53,+'App.2-CE_DepExp_Yr4'!K53+((C53*0.5)/D53))","v":0},null,0,0,null,{"$f":"IF(ISERROR(+I53+'App.2-CE_DepExp_Yr4'!K53-J53), 0, +'App.2-CE_DepExp_Yr4'!K53-J53)","v":0}]
[1980,"System Supervisor Equipment",null,null,0,{"$f":"IF(D54=0,'App.2-CE_DepExp_Yr4'!K54,+'App.2-CE_DepExp_Yr4'!K54+((C54*0.5)/D54))","v":0},null,0,0,null,{"$f":"IF(ISERROR(+I54+'App.2-CE_DepExp_Yr4'!K54-J54), 0, +'App.2-CE_DepExp_Yr4'!K54-J54)","v":0}]
[1985,"Miscellaneous Fixed Assets",null,null,0,{"$f":"IF(D55=0,'App.2-CE_DepExp_Yr4'!K55,+'App.2-CE_DepExp_Yr4'!K55+((C55*0.5)/D55))","v":0},null,0,0,null,{"$f":"IF(ISERROR(+I55+'App.2-CE_DepExp_Yr4'!K55-J55), 0, +'App.2-CE_DepExp_Yr4'!K55-J55)","v":0}]
[1990,"Other Tangible Property",null,null,0,{"$f":"IF(D56=0,'App.2-CE_DepExp_Yr4'!K56,+'App.2-CE_DepExp_Yr4'!K56+((C56*0.5)/D56))","v":0},null,0,0,null,{"$f":"IF(ISERROR(+I56+'App.2-CE_DepExp_Yr4'!K56-J56), 0, +'App.2-CE_DepExp_Yr4'!K56-J56)","v":0}]
[1995,"Contributions & Grants",null,null,0,{"$f":"IF(D57=0,'App.2-CE_DepExp_Yr4'!K57,+'App.2-CE_DepExp_Yr4'!K57+((C57*0.5)/D57))","v":0},null,0,0,null,{"$f":"IF(ISERROR(+I57+'App.2-CE_DepExp_Yr4'!K57-J57), 0, +'App.2-CE_DepExp_Yr4'!K57-J57)","v":0}]
[null,"Total",{"$f":"SUM(C20:C57)","v":0},null,null,{"$f":"SUM(F20:F57)","v":0},0,0,0,0,0]
[null,"Depreciation exp. adj. from gain or loss on the retirement of assets (pool of like assets)"]
[null,"Total Depreciation Expense ",null,null,null,{"$f":"SUM(F58:F59)","v":0}]
["Notes:"]
[1,"Board policy of the \"half-year\" rule - the applicant must ensure that additions in the year attract a half-year depreciation expense in the first year.  Deviations from this standard practice must be supported in the application."]
[2,"The applicant must provide an explanation of material variances in evidence."]
[3,"This column refers to the calculated full year depreciation but excludes the depreciation expense on assets fully depreciated during the year.  This column is used for the purpose of calculating depreciation expense in the following year on the next worksheet."]
[]
["General:","Applicants must provide a breakdown of depreciation and amortization expense in the above format for all relevant accounts.  Asset Retirement Obligations (AROs), depreciation and accretion expense should be disclosed separately consistent with the Notes of historical Audited Financial Statements."]

{"sheet":"App.2-CG_DepExp_Yr6","index":17,"n_rows":66,"n_cols":11,"rows_kept":66,"cut":false,"hidden":false,"merged":[[61,1,61,7],[62,1,62,8],[64,1,64,8],[65,1,66,7],[67,1,68,7],[14,2,14,8],[17,1,18,1],[17,6,18,6],[17,9,18,9],[59,1,59,4],[8,0,8,8],[9,0,9,8],[10,0,10,7],[12,0,12,1],[13,0,13,1],[13,2,13,8]]}
[null,null,null,null,null,null,null,null,null,"File Number:",{"$f":"EBNUMBER","v":"EB-2017-0032"}]
["Please refer to separate Excel file entitled \"Fixed Asset Continuity Schedule.\" ",null,null,null,null,null,null,null,null,"Exhibit:"]
[null,null,null,null,null,null,null,null,null,"Tab:"]
[null,null,null,null,null,null,null,null,null,"Schedule:"]
[null,null,null,null,null,null,null,null,null,"Page:"]
[]
[null,null,null,null,null,null,null,null,null,"Date:"]
[]
["Appendix 2-CG"]
["Depreciation and Amortization Expense"]
["MIFRS (Year 6)"]
[]
["Select the set of appendices that apply",null,null,null,null,null,null,null,null,"Year Reflected in Schedule Below","Accounting Standard"]
["2012 Set of Appendices (2-CA to 2-CG)",null,"Assumes the applicant made capitalization and depreciation expense accounting policy changes under CGAAP effective January 1, 2012 and has adopted IFRS for financial reporting purposes effective January 1, 2015.  Assumes that the applicant is reflecting these changes in a rebasing application for the first time.",null,null,null,null,null,null,2017,"MIFRS"]
["N/A","         2013 Set of Appendices","Not applicable as the test year depreciation is already calculated in Appendix 2-CF.  Note that this appendix is not to be used even though depreciation expense calculations will flow through from previous years to this appendix.",null,null,null,null,null,null,"N/A","N/A"]
[]
[]
["Account","Description","Additions","Years (new additions only)","Depreciation Rate on New Additions","Current Depreciation Expense1"," Depreciation Expense per Appendix 2-BA Fixed Assets, Column J\n (l)","Variance 2"]
[null,null,"(d)","(f)","(g) = 1 / (f)","(h)= Prior Full Year Depreciation + ((d)*0.5)/(f) ",null,"(m) = (h) - (l)"]
[1611,"Computer Software (Formally known as Account 1925)",null,null,{"$f":"IF(D20=0,0,1/D20)","v":0},{"$f":"IF(D20=0,'App.2-CF_DepExp_Yr5'!K20,+'App.2-CF_DepExp_Yr5'!K20+((C20*0.5)/D20))","v":0},null,{"$f":"IF(ISERROR(+F20-G20), 0, +F20-G20)","v":0}]
[1612,"Land Rights (Formally known as Account 1906)",null,null,0,{"$f":"IF(D21=0,'App.2-CF_DepExp_Yr5'!K21,+'App.2-CF_DepExp_Yr5'!K21+((C21*0.5)/D21))","v":0},null,0]
[1805,"Land",null,null,0,{"$f":"IF(D22=0,'App.2-CF_DepExp_Yr5'!K22,+'App.2-CF_DepExp_Yr5'!K22+((C22*0.5)/D22))","v":0},null,0]
[1808,"Buildings",null,null,0,{"$f":"IF(D23=0,'App.2-CF_DepExp_Yr5'!K23,+'App.2-CF_DepExp_Yr5'!K23+((C23*0.5)/D23))","v":0},null,0]
[1810,"Leasehold Improvements",null,null,0,{"$f":"IF(D24=0,'App.2-CF_DepExp_Yr5'!K24,+'App.2-CF_DepExp_Yr5'!K24+((C24*0.5)/D24))","v":0},null,0]
[1815,"Transformer Station Equipment >50 kV",null,null,0,{"$f":"IF(D25=0,'App.2-CF_DepExp_Yr5'!K25,+'App.2-CF_DepExp_Yr5'!K25+((C25*0.5)/D25))","v":0},null,0]
[1820,"Distribution Station Equipment <50 kV",null,null,0,{"$f":"IF(D26=0,'App.2-CF_DepExp_Yr5'!K26,+'App.2-CF_DepExp_Yr5'!K26+((C26*0.5)/D26))","v":0},null,0]
[1825,"Storage Battery Equipment",null,null,0,{"$f":"IF(D27=0,'App.2-CF_DepExp_Yr5'!K27,+'App.2-CF_DepExp_Yr5'!K27+((C27*0.5)/D27))","v":0},null,0]
[1830,"Poles, Towers & Fixtures",null,null,0,{"$f":"IF(D28=0,'App.2-CF_DepExp_Yr5'!K28,+'App.2-CF_DepExp_Yr5'!K28+((C28*0.5)/D28))","v":0},null,0]
[1835,"Overhead Conductors & Devices",null,null,0,{"$f":"IF(D29=0,'App.2-CF_DepExp_Yr5'!K29,+'App.2-CF_DepExp_Yr5'!K29+((C29*0.5)/D29))","v":0},null,0]
[1840,"Underground Conduit",null,null,0,{"$f":"IF(D30=0,'App.2-CF_DepExp_Yr5'!K30,+'App.2-CF_DepExp_Yr5'!K30+((C30*0.5)/D30))","v":0},null,0]
[1845,"Underground Conductors & Devices",null,null,0,{"$f":"IF(D31=0,'App.2-CF_DepExp_Yr5'!K31,+'App.2-CF_DepExp_Yr5'!K31+((C31*0.5)/D31))","v":0},null,0]
[1850,"Line Transformers",null,null,0,{"$f":"IF(D32=0,'App.2-CF_DepExp_Yr5'!K32,+'App.2-CF_DepExp_Yr5'!K32+((C32*0.5)/D32))","v":0},null,0]
[1855,"Services (Overhead & Underground)",null,null,0,{"$f":"IF(D33=0,'App.2-CF_DepExp_Yr5'!K33,+'App.2-CF_DepExp_Yr5'!K33+((C33*0.5)/D33))","v":0},null,0]
[1860,"Meters",null,null,0,{"$f":"IF(D34=0,'App.2-CF_DepExp_Yr5'!K34,+'App.2-CF_DepExp_Yr5'!K34+((C34*0.5)/D34))","v":0},null,0]
[1860,"Meters (Smart Meters)",null,null,0,{"$f":"IF(D35=0,'App.2-CF_DepExp_Yr5'!K35,+'App.2-CF_DepExp_Yr5'!K35+((C35*0.5)/D35))","v":0},null,0]
[1905,"Land",null,null,0,{"$f":"IF(D36=0,'App.2-CF_DepExp_Yr5'!K36,+'App.2-CF_DepExp_Yr5'!K36+((C36*0.5)/D36))","v":0},null,0]
[1908,"Buildings & Fixtures",null,null,0,{"$f":"IF(D37=0,'App.2-CF_DepExp_Yr5'!K37,+'App.2-CF_DepExp_Yr5'!K37+((C37*0.5)/D37))","v":0},null,0]
[1910,"Leasehold Improvements",null,null,0,{"$f":"IF(D38=0,'App.2-CF_DepExp_Yr5'!K38,+'App.2-CF_DepExp_Yr5'!K38+((C38*0.5)/D38))","v":0},null,0]
[1915,"Office Furniture & Equipment (10 years)",null,null,0,{"$f":"IF(D39=0,'App.2-CF_DepExp_Yr5'!K39,+'App.2-CF_DepExp_Yr5'!K39+((C39*0.5)/D39))","v":0},null,0]
[1915,"Office Furniture & Equipment (5 years)",null,null,0,{"$f":"IF(D40=0,'App.2-CF_DepExp_Yr5'!K40,+'App.2-CF_DepExp_Yr5'!K40+((C40*0.5)/D40))","v":0},null,0]
[1920,"Computer Equipment - Hardware",null,null,0,{"$f":"IF(D41=0,'App.2-CF_DepExp_Yr5'!K41,+'App.2-CF_DepExp_Yr5'!K41+((C41*0.5)/D41))","v":0},null,0]
[1920,"Computer Equip.-Hardware(Post Mar. 22/04)",null,null,0,{"$f":"IF(D42=0,'App.2-CF_DepExp_Yr5'!K42,+'App.2-CF_DepExp_Yr5'!K42+((C42*0.5)/D42))","v":0},null,0]
[1920,"Computer Equip.-Hardware(Post Mar. 19/07)",null,null,0,{"$f":"IF(D43=0,'App.2-CF_DepExp_Yr5'!K43,+'App.2-CF_DepExp_Yr5'!K43+((C43*0.5)/D43))","v":0},null,0]
[1930,"Transportation Equipment",null,null,0,{"$f":"IF(D44=0,'App.2-CF_DepExp_Yr5'!K44,+'App.2-CF_DepExp_Yr5'!K44+((C44*0.5)/D44))","v":0},null,0]
[1935,"Stores Equipment",null,null,0,{"$f":"IF(D45=0,'App.2-CF_DepExp_Yr5'!K45,+'App.2-CF_DepExp_Yr5'!K45+((C45*0.5)/D45))","v":0},null,0]
[1940,"Tools, Shop & Garage Equipment",null,null,0,{"$f":"IF(D46=0,'App.2-CF_DepExp_Yr5'!K46,+'App.2-CF_DepExp_Yr5'!K46+((C46*0.5)/D46))","v":0},null,0]
[1945,"Measurement & Testing Equipment",null,null,0,{"$f":"IF(D47=0,'App.2-CF_DepExp_Yr5'!K47,+'App.2-CF_DepExp_Yr5'!K47+((C47*0.5)/D47))","v":0},null,0]
[1950,"Power Operated Equipment",null,null,0,{"$f":"IF(D48=0,'App.2-CF_DepExp_Yr5'!K48,+'App.2-CF_DepExp_Yr5'!K48+((C48*0.5)/D48))","v":0},null,0]
[1955,"Communications Equipment",null,null,0,{"$f":"IF(D49=0,'App.2-CF_DepExp_Yr5'!K49,+'App.2-CF_DepExp_Yr5'!K49+((C49*0.5)/D49))","v":0},null,0]
[1955,"Communication Equipment (Smart Meters)",null,null,0,{"$f":"IF(D50=0,'App.2-CF_DepExp_Yr5'!K50,+'App.2-CF_DepExp_Yr5'!K50+((C50*0.5)/D50))","v":0},null,0]
[1960,"Miscellaneous Equipment ",null,null,0,{"$f":"IF(D51=0,'App.2-CF_DepExp_Yr5'!K51,+'App.2-CF_DepExp_Yr5'!K51+((C51*0.5)/D51))","v":0},null,0]
[1970,"Load Management Controls Customer Premises",null,null,0,{"$f":"IF(D52=0,'App.2-CF_DepExp_Yr5'!K52,+'App.2-CF_DepExp_Yr5'!K52+((C52*0.5)/D52))","v":0},null,0]
[1975,"Load Management Controls Utility Premises",null,null,0,{"$f":"IF(D53=0,'App.2-CF_DepExp_Yr5'!K53,+'App.2-CF_DepExp_Yr5'!K53+((C53*0.5)/D53))","v":0},null,0]
[1980,"System Supervisor Equipment",null,null,0,{"$f":"IF(D54=0,'App.2-CF_DepExp_Yr5'!K54,+'App.2-CF_DepExp_Yr5'!K54+((C54*0.5)/D54))","v":0},null,0]
[1985,"Miscellaneous Fixed Assets",null,null,0,{"$f":"IF(D55=0,'App.2-CF_DepExp_Yr5'!K55,+'App.2-CF_DepExp_Yr5'!K55+((C55*0.5)/D55))","v":0},null,0]
[1990,"Other Tangible Property",null,null,0,{"$f":"IF(D56=0,'App.2-CF_DepExp_Yr5'!K56,+'App.2-CF_DepExp_Yr5'!K56+((C56*0.5)/D56))","v":0},null,0]
[1995,"Contributions & Grants",null,null,0,{"$f":"IF(D57=0,'App.2-CF_DepExp_Yr5'!K57,+'App.2-CF_DepExp_Yr5'!K57+((C57*0.5)/D57))","v":0},null,0]
[null,"Total",{"$f":"SUM(C20:C57)","v":0},null,null,{"$f":"SUM(F20:F57)","v":0},{"$f":"SUM(G20:G57)","v":0},{"$f":"SUM(H20:H57)","v":0}]
[null,"Depreciation exp. adj. from gain or loss on the retirement of assets (pool of like assets)"]
[null,"Total Depreciation Expense ",null,null,null,{"$f":"SUM(F58:F59)","v":0}]
["Notes:"]
[1,"Board policy of the \"half-year\" rule - the applicant must ensure that additions in the year attract a half-year depreciation expense in the first year.  Deviations from this standard practice must be supported in the application."]
[2,"The applicant must provide an explanation of material variances in evidence."]
[]
[]
["General:","Applicants must provide a breakdown of depreciation and amortization expense in the above format for all relevant accounts.  Asset Retirement Obligations (AROs), depreciation and accretion expense should be disclosed separately consistent with the Notes of historical Audited Financial Statements."]

{"sheet":"App.2-CH_DepExp","index":18,"n_rows":69,"n_cols":12,"rows_kept":69,"cut":false,"hidden":false,"merged":[[63,1,64,12],[58,1,58,8],[65,1,65,11],[66,1,67,9],[68,1,69,11],[8,0,8,11],[9,0,9,11],[17,0,18,0],[17,1,18,1],[17,10,18,10],[10,0,10,11]]}
[null,null,null,null,null,null,null,null,null,null,"File Number:",{"$f":"EBNUMBER","v":"EB-2017-0032"}]
["Please refer to separate Excel file entitled \"Fixed Asset Continuity Schedule.\" ",null,null,null,null,null,null,null,null,null,"Exhibit:"]
[null,null,null,null,null,null,null,null,null,null,"Tab:"]
[null,null,null,null,null,null,null,null,null,null,"Schedule:"]
[null,null,null,null,null,null,null,null,null,null,"Page:"]
[]
[null,null,null,null,null,null,null,null,null,null,"Date:"]
[]
["Appendix 2-CH1"]
["Depreciation and Amortization Expense"]
["Revised CGAAP or MIFRS"]
[]
["Assumes the applicant changed capitalization and depreciation policies and reflected these changes in a prior rebasing application"]
[]
[null,null,null,"Accounting Standard"]
[null,null,null,"Year "]
[]
["Account","Description","Opening Regulatory Gross PP&E as at Jan. 1","Less Fully Depreciated","Net for Depreciation","Additions","Total for Depreciation 2","Years","Depreciation Rate","Current Year Depreciation Expense"," Depreciation Expense per Appendix 2-BA Fixed Assets, Column J\n (l)","Variance 3"]
[null,null,"(a)","(b)","(c)","(d)","(e) = (c) + ½ x (d) ","(f)","(g) = 1 / (f)","(h) = (e) / (f)",null,"(m) = (h) - (l)"]
[1611,"Computer Software (Formally known as Account 1925)",null,null,{"$f":"C20-D20","v":0},null,{"$f":"E20+0.5*F20","v":0},null,{"$f":"IF(H20=0,0,1/H20)","v":0},{"$f":"IF(H20=0,0,G20/H20)","v":0},null,{"$f":"IF(ISERROR(+J20-K20), 0, +J20-K20)","v":0}]
[1612,"Land Rights (Formally known as Account 1906)",null,null,{"$f":"C21-D21","v":0},null,{"$f":"E21+0.5*F21","v":0},null,0,0,null,0]
[1805,"Land",null,null,0,null,0,null,0,0,null,0]
[1808,"Buildings",null,null,0,null,0,null,0,0,null,0]
[1810,"Leasehold Improvements",null,null,0,null,0,null,0,0,null,0]
[1815,"Transformer Station Equipment >50 kV",null,null,0,null,0,null,0,0,null,0]
[1820,"Distribution Station Equipment <50 kV",null,null,0,null,0,null,0,0,null,0]
[1825,"Storage Battery Equipment",null,null,0,null,0,null,0,0,null,0]
[1830,"Poles, Towers & Fixtures",null,null,0,null,0,null,0,0,null,0]
[1835,"Overhead Conductors & Devices",null,null,0,null,0,null,0,0,null,0]
[1840,"Underground Conduit",null,null,0,null,0,null,0,0,null,0]
[1845,"Underground Conductors & Devices",null,null,0,null,0,null,0,0,null,0]
[1850,"Line Transformers",null,null,0,null,0,null,0,0,null,0]
[1855,"Services (Overhead & Underground)",null,null,0,null,0,null,0,0,null,0]
[1860,"Meters",null,null,0,null,0,null,0,0,null,0]
[1860,"Meters (Smart Meters)",null,null,0,null,0,null,0,0,null,0]
[1905,"Land",null,null,0,null,0,null,0,0,null,0]
[1908,"Buildings & Fixtures",null,null,0,null,0,null,0,0,null,0]
[1910,"Leasehold Improvements",null,null,0,null,0,null,0,0,null,0]
[1915,"Office Furniture & Equipment (10 years)",null,null,0,null,0,null,0,0,null,0]
[1915,"Office Furniture & Equipment (5 years)",null,null,0,null,0,null,0,0,null,0]
[1920,"Computer Equipment - Hardware",null,null,0,null,0,null,0,0,null,0]
[1920,"Computer Equip.-Hardware(Post Mar. 22/04)",null,null,0,null,0,null,0,0,null,0]
[1920,"Computer Equip.-Hardware(Post Mar. 19/07)",null,null,0,null,0,null,0,0,null,0]
[1930,"Transportation Equipment",null,null,0,null,0,null,0,0,null,0]
[1935,"Stores Equipment",null,null,0,null,0,null,0,0,null,0]
[1940,"Tools, Shop & Garage Equipment",null,null,0,null,0,null,0,0,null,0]
[1945,"Measurement & Testing Equipment",null,null,0,null,0,null,0,0,null,0]
[1950,"Power Operated Equipment",null,null,0,null,0,null,0,0,null,0]
[1955,"Communications Equipment",null,null,0,null,0,null,0,0,null,0]
[1955,"Communication Equipment (Smart Meters)",null,null,0,null,0,null,0,0,null,0]
[1960,"Miscellaneous Equipment ",null,null,0,null,0,null,0,0,null,0]
[1970,"Load Management Controls - Customer Premises",null,null,0,null,0,null,0,0,null,0]
[1975,"Load Management Controls Utility Premises",null,null,0,null,0,null,0,0,null,0]
[1980,"System Supervisor Equipment",null,null,0,null,0,null,0,0,null,0]
[1985,"Miscellaneous Fixed Assets",null,null,0,null,0,null,0,0,null,0]
[1990,"Other Tangible Property",null,null,0,null,0,null,0,0,null,0]
[1995,"Contributions & Grants",null,null,0,null,0,null,0,0,null,0]
[null,"Total",{"$f":"SUM(C20:C57)","v":0},{"$f":"SUM(D20:D57)","v":0},{"$f":"SUM(E20:E57)","v":0},{"$f":"SUM(F20:F57)","v":0},{"$f":"SUM(G20:G57)","v":0},null,null,{"$f":"SUM(J20:J57)","v":0},{"$f":"SUM(K20:K57)","v":0},{"$f":"SUM(L20:L57)","v":0}]
[null,"Depreciation exp. adj. from gain or loss on the retirement of assets (pool of like assets) (under MIFRS) "]
[null,"Total Depreciation Expense",null,null,null,null,null,null,null,{"$f":"SUM(J58:J59)","v":0}]
[]
["Notes:"]
[]
[1,"The appendix should be submitted for the Test Year, Bridge Year and all relevant historical years.  At a minimum , the applicant must provide data for the earlier of: 1) all historical years back to its last rebasing; or 2) at least three years of historical actuals, in addition to Bridge Year and Test Year forecasts."]
[]
[2,"Board policy of the \"half-year\" rule - the applicant must ensure that additions in the year attract a half-year depreciation expense in the first year.  Deviations from this standard practice must be supported in the application."]
[3,"The applicant must provide an explanation of material variances in evidence."]
[]
["General","Applicants must provide a breakdown of depreciation and amortization expense in the above format for all relevant accounts.  Asset Retirement Obligations (AROs), depreciation and accretion expense should be disclosed separately consistent with the Notes of historical Audited Financial Statements."]

{"sheet":"App.2-D_Overhead","index":19,"n_rows":49,"n_cols":8,"rows_kept":49,"cut":false,"hidden":false,"merged":[[1,0,1,4],[63,0,64,0],[52,0,53,0],[55,0,56,0],[58,0,61,0],[8,0,8,7],[9,0,9,7],[11,0,11,5],[28,0,28,5]]}
[null,null,null,null,null,"File Number:",{"$f":"EBNUMBER","v":"EB-2017-0032"}]
["Not Applicable ",null,null,null,null,"Exhibit:"]
[null,null,null,null,null,"Tab:"]
[null,null,null,null,null,"Schedule:"]
[null,null,null,null,null,"Page:"]
[]
[null,null,null,null,null,"Date:"]
[]
["Appendix 2-D"]
["Overhead Expense"]
[]
["Applicants are to provide a breakdown of OM&A before capitalization in the below table.  OM&A before capitalization may be broken down by cost center, program, drivers or another format best suited to focus on capitalized vs. uncapitalized OM&A."]
[]
[" OM&A Before Capitalization"]
[null,{"$f":"F15-4","v":2014},{"$f":"F15-3","v":2015},{"$f":"F15-2","v":2016},{"$f":"F15-1","v":2017},{"$f":"TestYear","v":2018}]
[null,"Historical Year","Historical Year","Historical Year","Bridge Year","Test Year"]
[]
[]
[]
[]
[]
[]
[]
[]
[]
[]
["Total OM&A Before Capitalization (B)",{"$f":"SUM(B17:B26)","v":0},{"$f":"SUM(C17:C26)","v":0},{"$f":"SUM(D17:D26)","v":0},{"$f":"SUM(E17:E26)","v":0},{"$f":"SUM(F17:F26)","v":0}]
[]
["Applicants are to provide a breakdown of capitalized OM&A in the below table.  Capitalized OM&A may be broken down using the categories listed in the table below if possible.  Otherwise, applicants are to provide its own break down of capitalized OM&A."]
[]
["Capitalized OM&A",null,null,null,null,null,"Directly","Explanation for Change in Overhead Capitalized"]
[null,{"$f":"F32-4","v":2014},{"$f":"F32-3","v":2015},{"$f":"F32-2","v":2016},{"$f":"F32-1","v":2017},{"$f":"TestYear","v":2018},"Attributable?"]
[null,"Historical Year","Historical Year","Historical Year","Bridge Year","Test Year","(Yes/No)"]
["employee benefits"]
["costs of site preparation"]
["initial delivery and handling costs"]
["costs of testing whether the asset is functioning properly"]
["professional fees"]
[]
["costs of opening a new facility"]
["costs of introducing a new product or service (including costs of advertising and promotional activities)"]
["costs of conducting business in a new location or with a new class of customer (including costs of staff training)"]
["administration and other general overhead costs"]
[]
["Insert description of additional item(s) and new rows if needed"]
[]
["Total Capitalized OM&A (A)",{"$f":"SUM(B34:B46)","v":0},{"$f":"SUM(C34:C46)","v":0},{"$f":"SUM(D34:D46)","v":0},{"$f":"SUM(E34:E46)","v":0},{"$f":"SUM(F34:F46)","v":0}]
[]
["% of Capitalized OM&A (=A/B)",{"$f":"IF(ISERROR(B47/B27),\"0%\",B47/B27)","v":"0%"},{"$f":"IF(ISERROR(C47/C27),\"0%\",C47/C27)","v":"0%"},{"$f":"IF(ISERROR(D47/D27),\"0%\",D47/D27)","v":"0%"},{"$f":"IF(ISERROR(E47/E27),\"0%\",E47/E27)","v":"0%"},{"$f":"IF(ISERROR(F47/F27),\"0%\",F47/F27)","v":"0%"}]

{"sheet":"App.2-EA_Account 1575 (2015)","index":20,"n_rows":47,"n_cols":9,"rows_kept":47,"cut":false,"hidden":false,"merged":[[1,0,1,4],[47,0,47,9],[52,0,53,8],[25,1,26,5],[31,1,31,5],[37,6,38,7],[37,8,38,8],[20,1,20,5],[8,0,8,8],[9,0,9,8],[10,0,10,8],[12,0,12,8],[14,0,14,8]]}
[null,null,null,null,null,null,null,"File Number:",{"$f":"EBNUMBER","v":"EB-2017-0032"}]
["Not Applicable ",null,null,null,null,null,null,"Exhibit:"]
[null,null,null,null,null,null,null,"Tab:"]
[null,null,null,null,null,null,null,"Schedule:"]
[null,null,null,null,null,null,null,"Page:"]
[]
[null,null,null,null,null,null,null,"Date:"]
[]
["Appendix 2-EA"]
["Account 1575 - IFRS-CGAAP Transitional PP&E Amounts"]
["2015 Adopters of IFRS for Financial Reporting Purposes"]
[]
["For applicants that adopted IFRS on January 1, 2015 for financial reporting purposes"]
[]
[]
[]
[null,{"$f":"RebaseYear &\" Rebasing Year\"","v":"2013 Rebasing Year"},{"$f":"TestYear-3","v":2015},{"$f":"TestYear-2","v":2016},{"$f":"CONCATENATE(TestYear-1,\" Bridge Year\")","v":"2017 Bridge Year"},{"$f":"CONCATENATE(TestYear,\" Rebasing Year\")","v":"2018 Rebasing Year"}]
["Reporting Basis","CGAAP","CGAAP","CGAAP","MIFRS","MIFRS"]
[null,"Forecast","Actual","Actual","Forecast","Forecast"]
[null,null,null,"$","$"]
["PP&E Values under CGAAP"]
["            Opening net PP&E - Note 1",null,null,{"$f":"+C25","v":0},{"$f":"+D25","v":0}]
["            Net Additions - Note 4"]
["            Net Depreciation (amounts should be negative) - Note 4"]
["            Closing net PP&E (1)",null,{"$f":"C22+C23+C24","v":0},{"$f":"SUM(D22:D24)","v":0},{"$f":"SUM(E22:E24)","v":0}]
[]
["PP&E Values under MIFRS (Starts from 2014, the transition year)"]
["            Opening net PP&E  - Note 1",null,null,{"$f":"+C31","v":0},{"$f":"+D31","v":0}]
["            Net Additions - Note 4"]
["            Net Depreciation (amounts should be negative) - Note 4"]
["            Closing net PP&E (2)",null,{"$f":"SUM(C28:C30)","v":0},{"$f":"SUM(D28:D30)","v":0},{"$f":"SUM(E28:E30)","v":0}]
[]
["Difference in Closing net PP&E, former CGAAP vs. revised CGAAP ",null,{"$f":"C25-C31","v":0},{"$f":"D25-D31","v":0},{"$f":"E25-E31","v":0}]
[]
[]
["Effect on Deferral and Variance Account Rate Riders"]
["Closing balance in Account 1576",null,null,null,null,{"$f":"IF(ISERROR(E33), 0, E33)","v":0},null,"WACC"]
["Return on Rate Base Associated with Account 1576 balance at WACC  - Note 2",null,null,null,null,{"$f":"E33*I37*I38","v":0},"# of years of rate rider disposition period"]
["     Amount included in Deferral and Variance Account Rate Rider Calculation",null,null,null,null,{"$f":"F37+F38","v":0}]
[]
["Notes:"]
["1  For an applicant that adopted IFRS on January 1, 2015, the PP&E values as of January 1, 2014 under both CGAAP and MIFRS should be the same. "]
["2 Return on rate base associated with deferred balance is calculated as:"]
["     the deferral account closing balance as of 2016 x WACC X # of years of rate rider disposition period"]
["     * Please note that the calculation should be adjusted once WACC is updated and finalized in the rate application."]
["3  The  PP&E deferral account is cleared by including the total balance in the deferral and variance account rate rider calculation."]
["4  Net additions are additions net of disposals; Net depreciation is additions to depreciation net of disposals."]

{"sheet":"App.2-EB_Account 1576 (2012)","index":21,"n_rows":48,"n_cols":11,"rows_kept":48,"cut":false,"hidden":false,"merged":[[1,0,1,4],[45,0,45,9],[41,0,41,11],[31,1,31,7],[25,1,26,7],[20,1,20,7],[37,8,38,9],[37,10,38,10],[8,0,8,10],[9,0,9,10],[10,0,10,10],[14,0,14,10],[12,0,13,10]]}
[null,null,null,null,null,null,null,null,null,"File Number:",{"$f":"EBNUMBER","v":"EB-2017-0032"}]
["Not Applicable ",null,null,null,null,null,null,null,null,"Exhibit:"]
[null,null,null,null,null,null,null,null,null,"Tab:"]
[null,null,null,null,null,null,null,null,null,"Schedule:"]
[null,null,null,null,null,null,null,null,null,"Page:"]
[]
[null,null,null,null,null,null,null,null,null,"Date:"]
[]
["Appendix 2-EB"]
["Account 1576 - Accounting Changes under CGAAP"]
["2012 Changes in Accounting Policies under CGAAP"]
[]
["For applicants with a balance in Account 1576 and made capitalization and depreciation expense accounting policy changes under CGAAP effective January 1, 2012 "]
[]
[]
[]
[null,"2011 Rebasing Year",2012,2013,2014,2015,2016,"2017 Rebasing Year"]
["Reporting Basis","CGAAP","CGAAP","CGAAP","CGAAP","MIFRS - Note 5","MIFRS","MIFRS"]
[null,"Forecast","Actual","Actual","Actual","Actual","Forecast","Forecast"]
[null,null,"$","$","$",null,"$"]
["PP&E Values under former CGAAP"]
["            Opening net PP&E - Note 1",null,null,{"$f":"+C25","v":0},{"$f":"+D25","v":0},{"$f":"+D25","v":0},{"$f":"+E25","v":0}]
["            Net Additions - Note 4"]
["            Net Depreciation (amounts should be negative) - Note 4"]
["            Closing net PP&E (1)",null,{"$f":"C22+C23+C24","v":0},{"$f":"D22+D23+D24","v":0},{"$f":"E22+E23+E24","v":0},{"$f":"F22+F23+F24","v":0},{"$f":"G22+G23+G24","v":0}]
[]
["PP&E Values under revised CGAAP (Starts from 2012)"]
["            Opening net PP&E  - Note 1",null,null,{"$f":"+C31","v":0},{"$f":"+D31","v":0},{"$f":"+D31","v":0},{"$f":"+E31","v":0}]
["            Net Additions - Note 4"]
["            Net Depreciation (amounts should be negative) - Note 4"]
["            Closing net PP&E (2)",null,{"$f":"SUM(C28:C30)","v":0},{"$f":"SUM(D28:D30)","v":0},{"$f":"SUM(E28:E30)","v":0},{"$f":"SUM(F28:F30)","v":0},{"$f":"SUM(G28:G30)","v":0}]
[]
["Difference in Closing net PP&E, former CGAAP vs. revised CGAAP ",null,{"$f":"C25-C31","v":0},{"$f":"D25-D31","v":0},{"$f":"E25-E31","v":0},{"$f":"F25-F31","v":0},{"$f":"G25-G31","v":0}]
[]
[]
["Effect on Deferral and Variance Account Rate Riders"]
["Closing balance in Account 1576",null,null,null,null,null,null,{"$f":"IF(ISERROR(G33), 0, G33)","v":0},null,"WACC"]
["Return on Rate Base Associated with Account 1576 balance at WACC  - Note 2",null,null,null,null,null,null,{"$f":"G33*K37*K38","v":0},"# of years of rate rider disposition period"]
["     Amount included in Deferral and Variance Account Rate Rider Calculation",null,null,null,null,null,null,{"$f":"H37+H38","v":0}]
[]
["Notes:"]
["1  For an applicant that made the capitalization and depreciation expense accounting policy changes on January 1, 2012, the PP&E values as of January 1, 2012 under both former CGAAP and revised CGAAP should be the same. "]
["2 Return on rate base associated with Account 1576 balance is calculated as:"]
["     the variance account ending balance as of 2016 x WACC X # of years of rate rider disposition period"]
["     * Please note that the calculation should be adjusted once WACC is updated and finalized in the rate application."]
["3  Account 1576 is cleared by including the total balance in the deferral and variance account rate rider calculation."]
["4  Net additions are additions net of disposals; Net depreciation is additions to depreciation net of disposals."]
["5 Differences due to the adoption of MIFRS are to be shown separately in Account 1575 in Appendix 2-EA as Accounts 1575 and 1576 cannot be used interchangably."]

{"sheet":"App.2-EC_Account 1576 (2013)","index":22,"n_rows":48,"n_cols":10,"rows_kept":48,"cut":false,"hidden":false,"merged":[[37,9,38,9],[41,0,41,10],[8,0,8,9],[9,0,9,9],[10,0,10,9],[12,0,12,9],[14,0,14,9],[1,0,1,4],[45,0,45,8],[20,1,20,6],[25,1,26,6],[31,1,31,6],[37,7,38,8]]}
[null,null,null,null,null,null,null,null,"File Number:",{"$f":"EBNUMBER","v":"EB-2017-0032"}]
["Not Applicable ",null,null,null,null,null,null,null,"Exhibit:"]
[null,null,null,null,null,null,null,null,"Tab:"]
[null,null,null,null,null,null,null,null,"Schedule:"]
[null,null,null,null,null,null,null,null,"Page:"]
[]
[null,null,null,null,null,null,null,null,"Date:"]
[]
["Appendix 2-EC"]
["Account 1576 - Accounting Changes under CGAAP"]
["2013 Changes in Accounting Policies under CGAAP"]
[]
["For applicants with a balance in Account 1576 and made capitalization and depreciation expense accounting policy changes under CGAAP effective January 1, 2013"]
[]
[]
[]
[null,"2012 Rebasing Year",2013,2014,2015,2016,"2017 Rebasing Year"]
["Reporting Basis","CGAAP","CGAAP","CGAAP","MIFRS - Note 5","MIFRS","MIFRS"]
[null,"Actual","Actual","Actual","Actual","Forecast","Forecast"]
[null,null,"$","$",null,"$"]
["PP&E Values under former CGAAP"]
["            Opening net PP&E - Note 1",null,null,{"$f":"+C25","v":0},{"$f":"+D25","v":0},{"$f":"+D25","v":0}]
["            Net Additions - Note 4"]
["            Net Depreciation (amounts should be negative) - Note 4"]
["            Closing net PP&E (1)",null,{"$f":"C22+C23+C24","v":0},{"$f":"D22+D23+D24","v":0},{"$f":"E22+E23+E24","v":0},{"$f":"F22+F23+F24","v":0}]
[]
["PP&E Values under revised CGAAP (Starts from 2012)"]
["            Opening net PP&E  - Note 1",null,null,{"$f":"+C31","v":0},{"$f":"+D31","v":0},{"$f":"+D31","v":0}]
["            Net Additions - Note 4"]
["            Net Depreciation (amounts should be negative) - Note 4"]
["            Closing net PP&E (2)",null,{"$f":"SUM(C28:C30)","v":0},{"$f":"SUM(D28:D30)","v":0},{"$f":"SUM(E28:E30)","v":0},{"$f":"SUM(F28:F30)","v":0}]
[]
["Difference in Closing net PP&E, former CGAAP vs. revised CGAAP ",null,{"$f":"C25-C31","v":0},{"$f":"D25-D31","v":0},{"$f":"E25-E31","v":0},{"$f":"F25-F31","v":0}]
[]
[]
["Effect on Deferral and Variance Account Rate Riders"]
["Closing balance in Account 1576",null,null,null,null,null,{"$f":"IF(ISERROR(F33), 0, F33)","v":0},null,"WACC"]
["Return on Rate Base Associated with Account 1576 balance at WACC  - Note 2",null,null,null,null,null,{"$f":"F33*J37*J38","v":0},"# of years of rate rider disposition period"]
["     Amount included in Deferral and Variance Account Rate Rider Calculation",null,null,null,null,null,{"$f":"G37+G38","v":0}]
[]
["Notes:"]
["1  For an applicant that made the capitalization and depreciation expense accounting policy changes on January 1, 2013, the PP&E values as of January 1, 2013 under both former CGAAP and revised CGAAP should be the same. "]
["2 Return on rate base associated with Account 1576 balance is calculated as:"]
["     the variance account ending balance as of 2016 x WACC X # of years of rate rider disposition period"]
["     * Please note that the calculation should be adjusted once WACC is updated and finalized in the rate application."]
["3  Account 1576 is cleared by including the total balance in the deferral and variance account rate rider calculation."]
["4  Net additions are additions net of disposals; Net depreciation is additions to depreciation net of disposals."]
["5 Differences due to the adoption of MIFRS are to be shown separately in Account 1575 in Appendix 2-EA as Accounts 1575 and 1576 cannot be used interchangably."]

{"sheet":"App.2-FA Proposed REG Invest.","index":23,"n_rows":101,"n_cols":11,"rows_kept":101,"cut":false,"hidden":false,"merged":[[8,0,8,10],[17,0,17,8],[16,0,16,9],[12,0,12,6],[13,0,13,5],[14,0,14,5],[11,0,11,6],[9,0,9,10]]}
[null,null,null,null,null,null,null,null,null,"File Number:",{"$f":"EBNUMBER","v":"EB-2017-0032"}]
["Not Applicable ",null,null,null,null,null,null,null,null,"Exhibit:"]
[null,null,null,null,null,null,null,null,null,"Tab:"]
[null,null,null,null,null,null,null,null,null,"Schedule:"]
[null,null,null,null,null,null,null,null,null,"Page:"]
[]
[null,null,null,null,null,null,null,null,null,"Date:"]
[]
["Appendix 2-FA"]
["Renewable Generation Connection Investment Summary (past investments or over the future rate setting period)"]
[]
["Enter the details of the Renewable Generation Connection projects as described in the appropriate section of the Filing Requirements."]
["All costs entered on this page will be transferred to the appropriate cells in the appendices that follow."]
["For Part A, Renewable Enabling Improvements (REI), these amounts will be transferred to Appendix 2 - FB"]
["For Part B, Expansions, these amounts will be transferred to Appendix 2 - FC"]
[]
["If there are more than five projects proposed to be in-service in a certain year, please amend the tables below and ensure that the formulae for the Total Amounts in any given rate year are updated."]
["Based on the current methodology and allocation, amounts allocated represent 6% for REI Connection Investments and 17% for Expansion Investments. (EB-2009-0349, 6-10-2010, p. 15, note 9)"]
[]
["There are two scenarios described below.  Separate sets of spreadsheets (2-FA, 2-FB, 2-FC) should be submited for each scenario as required."]
["Scenario 1:  Past Investments with No Recovery.  The distributor has made investments in the past (during the IRM Years), but has not received approval for these projects and therefore did not receive"]
["revenue from the IESO under Regulation 330/09 and did not receive ratepayer revenue for the direct benefit portion of the investment."]
["The WCA percentage, debt percentages, interest rates, kWh, tax rates, amortization period, CCA Class and percentage should correspond to the distributor's last Cost of Service approval. "]
["The Direct Benefit portion of the calculated Revenue Requirement for each year should be summed and can be applied for recovery from the distributor's ratepayers through a rate rider."]
["The Provincial Recovery portion of the calculated Revenue Requirement for each year should be summed and can be applied for recovery from the IESO through a separate order."]
[]
["Scenario 2:  Investments in the Test Year and Beyond.  Distributor plans to make investments in 2017 and/or beyond.  These investments should be added to 2-FA in the appropriate year."]
["The WCA percentage, debt percentages, interest rates, kWh, tax rates, amortization period, CCA Class and percentage should correspond to the distributor's current application. "]
[]
["Part A",null,null,null,null,null,"Test Year"]
["REI Investments (Direct Benefit at 6%)",null,{"$f":"D31-1","v":2014},{"$f":"E31-1","v":2015},{"$f":"F31-1","v":2016},{"$f":"G31-1","v":2017},{"$f":"TestYear","v":2018},{"$f":"G31+1","v":2019},{"$f":"H31+1","v":2020},{"$f":"I31+1","v":2021},{"$f":"J31+1","v":2022}]
["Project 1"]
["Name: REI Connection Project"]
["Capital Costs",null,0,0,0,0,0,0,0,0,0]
["OM&A (Start-Up)",null,0,0,0,0,0,0,0,0,0]
["OM&A (Ongoing)",null,0,0,0,0,0,0,0,0,0]
[]
["Project 2"]
["Name: REI Connection Project"]
["Capital Costs",null,0,0,0,0,0,0,0,0,0]
["OM&A (Start-Up)",null,0,0,0,0,0,0,0,0,0]
["OM&A (Ongoing)",null,0,0,0,0,0,0,0,0,0]
[]
["Project 3"]
["Name: REI Connection Project"]
["Capital Costs",null,0,0,0,0,0,0,0,0,0]
["OM&A (Start-Up)",null,0,0,0,0,0,0,0,0,0]
["OM&A (Ongoing)",null,0,0,0,0,0,0,0,0,0]
[]
["Project 4"]
["Name: REI Connection Project"]
["Capital Costs",null,0,0,0,0,0,0,0,0,0]
["OM&A (Start-Up)",null,0,0,0,0,0,0,0,0,0]
["OM&A (Ongoing)",null,0,0,0,0,0,0,0,0,0]
[]
["Project 5"]
["Name: REI Connection Project"]
["Capital Costs",null,0,0,0,0,0,0,0,0,0]
["OM&A (Start-Up)",null,0,0,0,0,0,0,0,0,0]
["OM&A (Ongoing)",null,0,0,0,0,0,0,0,0,0]
[]
["Total Capital Costs",null,{"$f":"SUM(C58,C52,C46,C40,C34)","v":0},0,0,0,{"$f":"SUM(G58,G52,G46,G40,G34)","v":0},{"$f":"SUM(H58,H52,H46,H40,H34)","v":0},0,0,0]
["Total OM&A (Start-Up)",null,0,0,0,0,{"$f":"SUM(G59,G53,G47,G41,G35)","v":0},0,0,0,0]
["Total OM&A (Ongoing)",null,0,0,0,0,{"$f":"SUM(G60,G54,G48,G42,G36)","v":0},0,0,0,0]
[]
[]
["Part B",null,null,null,null,null,"Test Year"]
["Expansion Investments (Direct Benefit at 17%)",null,{"$f":"D68-1","v":2014},{"$f":"E68-1","v":2015},{"$f":"F68-1","v":2016},{"$f":"G68-1","v":2017},{"$f":"TestYear","v":2018},{"$f":"G68+1","v":2019},{"$f":"H68+1","v":2020},{"$f":"I68+1","v":2021},{"$f":"J68+1","v":2022}]
["Project 1"]
["Name: Expansion Connection Project"]
["Capital Costs",null,0,0,0,0,0,0,0,0,0]
["OM&A (Start-Up)",null,0,0,0,0,0,0,0,0,0]
["OM&A (Ongoing)",null,0,0,0,0,0,0,0,0,0]
[]
["Project 2"]
["Name: Expansion Connection Project"]
["Capital Costs",null,0,0,0,0,0,0,0,0,0]
["OM&A (Start-Up)",null,0,0,0,0,0,0,0,0,0]
["OM&A (Ongoing)",null,0,0,0,0,0,0,0,0,0]
[]
["Project 3"]
["Name: Expansion Connection Project"]
["Capital Costs",null,0,0,0,0,0,0,0,0,0]
["OM&A (Start-Up)",null,0,0,0,0,0,0,0,0,0]
["OM&A (Ongoing)",null,0,0,0,0,0,0,0,0,0]
[]
["Project 4"]
["Name: Expansion Connection Project"]
["Capital Costs",null,0,0,0,0,0,0,0,0,0]
["OM&A (Start-Up)",null,0,0,0,0,0,0,0,0,0]
["OM&A (Ongoing)",null,0,0,0,0,0,0,0,0,0]
[]
["Project 5"]
["Name: Expansion Connection Project"]
["Capital Costs",null,0,0,0,0,0,0,0,0,0]
["OM&A (Start-Up)",null,0,0,0,0,0,0,0,0,0]
["OM&A (Ongoing)",null,0,0,0,0,0,0,0,0,0]
[]
["Total Capital Costs",null,{"$f":"SUM(C95,C89,C83,C77,C71)","v":0},0,0,0,{"$f":"SUM(G95,G89,G83,G77,G71)","v":0},{"$f":"SUM(H95,H89,H83,H77,H71)","v":0},0,0,0]
["Total OM&A (Start-Up)",null,0,0,0,0,{"$f":"SUM(G96,G90,G84,G78,G72)","v":0},0,0,0,0]
["Total OM&A (Ongoing)",null,0,0,0,0,{"$f":"SUM(G97,G91,G85,G79,G73)","v":0},0,0,0,0]

{"sheet":"App.2-FB Calc of REG Improvemnt","index":24,"n_rows":95,"n_cols":29,"rows_kept":95,"cut":false,"hidden":false,"merged":[[51,24,51,25],[51,27,51,28],[48,0,48,22],[49,0,49,1],[51,15,51,16],[51,18,51,19],[51,21,51,22],[51,12,51,13],[51,9,51,10],[51,6,51,7],[51,3,51,4],[46,0,46,22],[16,14,16,16],[16,17,16,19],[16,20,16,22],[16,23,16,25],[16,11,16,13],[16,8,16,10],[16,5,16,7],[16,2,16,4],[16,26,16,28],[8,0,8,17],[9,0,9,17],[11,0,11,17],[12,0,12,17],[14,0,14,17]]}
[null,null,null,null,null,null,null,null,null,null,null,null,null,"File Number:",{"$f":"EBNUMBER","v":"EB-2017-0032"}]
["Not Applicable ",null,null,null,null,null,null,null,null,null,null,null,null,"Exhibit:"]
[null,null,null,null,null,null,null,null,null,null,null,null,null,"Tab:"]
[null,null,null,null,null,null,null,null,null,null,null,null,null,"Schedule:"]
[null,null,null,null,null,null,null,null,null,null,null,null,null,"Page:"]
[]
[null,null,null,null,null,null,null,null,null,null,null,null,null,"Date:"]
[]
["Appendix 2-FB"]
["Calculation of Renewable Generation Connection Direct Benefits/Provincial Amount: Renewable Enabling Improvement Investments"]
[]
["This table will calculate the distributor/provincial shares of the investments entered in Part A of Appendix 2-FA."]
["Enter values in green shaded cells: WCA percentage, debt percentages, interest rates, kWh, tax rates, amortization period, CCA Class and percentage."]
["For historical investments, enter these variables for your last cost of service test year.  For 2017 and beyond, enter variables as in the application."]
["Rate Riders are not calculated for the Test Year as these assets and costs are already in the distributor's rate base/revenue requirement."]
[]
[null,null,{"$f":"F17-1","v":2014},null,null,{"$f":"I17-1","v":2015},null,null,{"$f":"L17-1","v":2016},null,null,{"$f":"BridgeYear","v":2017},null,null,{"$f":"CONCATENATE(TestYear,\" Test Year\")","v":"2018 Test Year"},null,null,{"$f":"TestYear+1","v":2019},null,null,{"$f":"R17+1","v":2020},2016,null,{"$f":"U17+1","v":2021},null,null,{"$f":"X17+1","v":2022}]
[null,null,null,"Direct Benefit","Provincial",null,"Direct Benefit","Provincial",null,"Direct Benefit","Provincial",null,"Direct Benefit","Provincial",null,"Direct Benefit","Provincial",null,"Direct Benefit","Provincial",null,"Direct Benefit","Provincial",null,"Direct Benefit","Provincial",null,"Direct Benefit","Provincial"]
[null,null,"Total",0.06,0.94,"Total",0.06,0.94,"Total",0.06,0.94,"Total",0.06,0.94,"Total",0.06,0.94,"Total",0.06,0.94,"Total",0.06,0.94,"Total",0.06,0.94,"Total",0.06,0.94]
["Net Fixed Assets (average)",null,{"$f":"D82","v":0},{"$f":"C20*D19","v":0},{"$f":"C20*E19","v":0},{"$f":"E82","v":0},{"$f":"F20*G19","v":0},{"$f":"F20*H19","v":0},{"$f":"F82","v":0},{"$f":"I20*J19","v":0},{"$f":"I20*K19","v":0},{"$f":"G82","v":0},{"$f":"L20*M19","v":0},{"$f":"L20*N19","v":0},{"$f":"H82","v":0},{"$f":"O20*P19","v":0},{"$f":"O20*Q19","v":0},{"$f":"I82","v":0},{"$f":"R20*S19","v":0},{"$f":"R20*T19","v":0},{"$f":"J82","v":0},{"$f":"U20*V19","v":0},{"$f":"U20*W19","v":0},{"$f":"K82","v":0},{"$f":"X20*Y19","v":0},{"$f":"X20*Z19","v":0},{"$f":"L82","v":0},{"$f":"AA20*AB19","v":0},{"$f":"AA20*AC19","v":0}]
["Incremental OM&A (on-going, N/A for Provincial Recovery)",null,{"$f":"'App.2-FA Proposed REG Invest.'!C64","v":0},{"$f":"C21","v":0},null,{"$f":"'App.2-FA Proposed REG Invest.'!D64","v":0},{"$f":"F21","v":0},null,{"$f":"'App.2-FA Proposed REG Invest.'!E64","v":0},{"$f":"I21","v":0},null,{"$f":"'App.2-FA Proposed REG Invest.'!F64","v":0},{"$f":"L21","v":0},null,{"$f":"'App.2-FA Proposed REG Invest.'!G64","v":0},{"$f":"O21","v":0},null,{"$f":"'App.2-FA Proposed REG Invest.'!H64","v":0},{"$f":"R21","v":0},null,{"$f":"'App.2-FA Proposed REG Invest.'!I64","v":0},{"$f":"U21","v":0},null,{"$f":"'App.2-FA Proposed REG Invest.'!J64","v":0},{"$f":"X21","v":0},null,{"$f":"'App.2-FA Proposed REG Invest.'!K64","v":0},{"$f":"AA21","v":0}]
["Incremental OM&A (start-up, applicable for Provincial Recovery)",null,{"$f":"'App.2-FA Proposed REG Invest.'!C63","v":0},{"$f":"C22*D19","v":0},{"$f":"C22*E19","v":0},{"$f":"'App.2-FA Proposed REG Invest.'!D63","v":0},{"$f":"F22*G19","v":0},{"$f":"F22*H19","v":0},{"$f":"'App.2-FA Proposed REG Invest.'!E63","v":0},{"$f":"I22*J19","v":0},{"$f":"I22*K19","v":0},{"$f":"'App.2-FA Proposed REG Invest.'!F63","v":0},{"$f":"L22*M19","v":0},{"$f":"L22*N19","v":0},{"$f":"'App.2-FA Proposed REG Invest.'!G63","v":0},{"$f":"O22*P19","v":0},{"$f":"O22*Q19","v":0},{"$f":"'App.2-FA Proposed REG Invest.'!H63","v":0},{"$f":"R22*S19","v":0},{"$f":"R22*T19","v":0},{"$f":"'App.2-FA Proposed REG Invest.'!I63","v":0},{"$f":"U22*V19","v":0},{"$f":"U22*W19","v":0},{"$f":"'App.2-FA Proposed REG Invest.'!J63","v":0},{"$f":"X22*Y19","v":0},{"$f":"X22*Z19","v":0},{"$f":"'App.2-FA Proposed REG Invest.'!K63","v":0},{"$f":"AA22*AB19","v":0},{"$f":"AA22*AC19","v":0}]
["WCA",null,null,{"$f":"(D21+D22)*$B$23","v":0},{"$f":"E22*$B$23","v":0},null,{"$f":"(G21+G22)*$B$23","v":0},{"$f":"H22*$B$23","v":0},null,{"$f":"(J21+J22)*$B$23","v":0},{"$f":"K22*$B$23","v":0},null,{"$f":"(M21+M22)*$B$23","v":0},{"$f":"N22*$B$23","v":0},null,{"$f":"(P21+P22)*$B$23","v":0},{"$f":"Q22*$B$23","v":0},null,{"$f":"(S21+S22)*$B$23","v":0},{"$f":"T22*$B$23","v":0},null,{"$f":"(V21+V22)*$B$23","v":0},{"$f":"W22*$B$23","v":0},null,{"$f":"(Y21+Y22)*$B$23","v":0},{"$f":"Z22*$B$23","v":0},null,{"$f":"(AB21+AB22)*$B$23","v":0},{"$f":"AC22*$B$23","v":0}]
["Rate Base",null,null,{"$f":"SUM(D20+D23)","v":0},{"$f":"SUM(E20+E23)","v":0},null,{"$f":"SUM(G20+G23)","v":0},{"$f":"SUM(H20+H23)","v":0},null,{"$f":"SUM(J20+J23)","v":0},{"$f":"SUM(K20+K23)","v":0},null,{"$f":"SUM(M20+M23)","v":0},{"$f":"SUM(N20+N23)","v":0},null,{"$f":"SUM(P20+P23)","v":0},{"$f":"SUM(Q20+Q23)","v":0},null,{"$f":"SUM(S20+S23)","v":0},{"$f":"SUM(T20+T23)","v":0},null,{"$f":"SUM(V20+V23)","v":0},{"$f":"SUM(W20+W23)","v":0},null,{"$f":"SUM(Y20+Y23)","v":0},{"$f":"SUM(Z20+Z23)","v":0},null,{"$f":"SUM(AB20+AB23)","v":0},{"$f":"SUM(AC20+AC23)","v":0}]
[]
[]
["Deemed ST Debt",null,null,{"$f":"D24*$B$27","v":0},{"$f":"E24*$B$27","v":0},null,{"$f":"G24*$B$27","v":0},{"$f":"H24*$B$27","v":0},null,{"$f":"J24*$B$27","v":0},{"$f":"K24*$B$27","v":0},null,{"$f":"M24*$B$27","v":0},{"$f":"N24*$B$27","v":0},null,{"$f":"P24*$B$27","v":0},{"$f":"Q24*$B$27","v":0},null,{"$f":"S24*$B$27","v":0},{"$f":"T24*$B$27","v":0},null,{"$f":"V24*$B$27","v":0},{"$f":"W24*$B$27","v":0},null,{"$f":"Y24*$B$27","v":0},{"$f":"Z24*$B$27","v":0},null,{"$f":"AB24*$B$27","v":0},{"$f":"AC24*$B$27","v":0}]
["Deemed LT Debt",null,null,{"$f":"D24*$B$28","v":0},{"$f":"E24*$B$28","v":0},null,{"$f":"G24*$B$28","v":0},{"$f":"H24*$B$28","v":0},null,{"$f":"J24*$B$28","v":0},{"$f":"K24*$B$28","v":0},null,{"$f":"M24*$B$28","v":0},{"$f":"N24*$B$28","v":0},null,{"$f":"P24*$B$28","v":0},{"$f":"Q24*$B$28","v":0},null,{"$f":"S24*$B$28","v":0},{"$f":"T24*$B$28","v":0},null,{"$f":"V24*$B$28","v":0},{"$f":"W24*$B$28","v":0},null,{"$f":"Y24*$B$28","v":0},{"$f":"Z24*$B$28","v":0},null,{"$f":"AB24*$B$28","v":0},{"$f":"AC24*$B$28","v":0}]
["Deemed Equity",null,null,{"$f":"D24*$B$29","v":0},{"$f":"E24*$B$29","v":0},null,{"$f":"G24*$B$29","v":0},{"$f":"H24*$B$29","v":0},null,{"$f":"J24*$B$29","v":0},{"$f":"K24*$B$29","v":0},null,{"$f":"M24*$B$29","v":0},{"$f":"N24*$B$29","v":0},null,{"$f":"P24*$B$29","v":0},{"$f":"Q24*$B$29","v":0},null,{"$f":"S24*$B$29","v":0},{"$f":"T24*$B$29","v":0},null,{"$f":"V24*$B$29","v":0},{"$f":"W24*$B$29","v":0},null,{"$f":"Y24*$B$29","v":0},{"$f":"Z24*$B$29","v":0},null,{"$f":"AB24*$B$29","v":0},{"$f":"AC24*$B$29","v":0}]
[]
["ST Interest",null,null,{"$f":"D27*$B31","v":0},0,null,{"$f":"G27*$B31","v":0},0,null,{"$f":"J27*$B31","v":0},0,null,{"$f":"M27*$B31","v":0},0,null,{"$f":"P27*$B31","v":0},0,null,{"$f":"S27*$B31","v":0},0,null,{"$f":"V27*$B31","v":0},0,null,{"$f":"Y27*$B31","v":0},0,null,{"$f":"AB27*$B31","v":0},0]
["LT Interest",null,null,0,0,null,0,0,null,0,0,null,0,0,null,0,0,null,0,0,null,0,0,null,0,0,null,0,0]
["ROE",null,null,0,0,null,0,0,null,0,0,null,0,0,null,0,0,null,0,0,null,0,0,null,0,0,null,0,0]
["Cost of Capital Total",null,null,{"$f":"SUM(D31:D33)","v":0},{"$f":"SUM(E31:E33)","v":0},null,{"$f":"SUM(G31:G33)","v":0},{"$f":"SUM(H31:H33)","v":0},null,{"$f":"SUM(J31:J33)","v":0},{"$f":"SUM(K31:K33)","v":0},null,{"$f":"SUM(M31:M33)","v":0},{"$f":"SUM(N31:N33)","v":0},null,{"$f":"SUM(P31:P33)","v":0},{"$f":"SUM(Q31:Q33)","v":0},null,{"$f":"SUM(S31:S33)","v":0},{"$f":"SUM(T31:T33)","v":0},null,{"$f":"SUM(V31:V33)","v":0},{"$f":"SUM(W31:W33)","v":0},null,{"$f":"SUM(Y31:Y33)","v":0},{"$f":"SUM(Z31:Z33)","v":0},null,{"$f":"SUM(AB31:AB33)","v":0},{"$f":"SUM(AC31:AC33)","v":0}]
[]
["OM&A",null,null,{"$f":"D21+D22","v":0},{"$f":"E22","v":0},null,{"$f":"G21+G22","v":0},{"$f":"H22","v":0},null,{"$f":"J21+J22","v":0},{"$f":"K22","v":0},null,{"$f":"M21+M22","v":0},{"$f":"N22","v":0},null,{"$f":"P21+P22","v":0},{"$f":"Q22","v":0},null,{"$f":"S21+S22","v":0},{"$f":"T22","v":0},null,{"$f":"V21+V22","v":0},{"$f":"W22","v":0},null,{"$f":"Y21+Y22","v":0},{"$f":"Z22","v":0},null,{"$f":"AB21+AB22","v":0},{"$f":"AC22","v":0}]
["Amortization",null,{"$f":"D77","v":0},{"$f":"C37*D$19","v":0},{"$f":"C37*E$19","v":0},{"$f":"E77","v":0},{"$f":"F37*G$19","v":0},{"$f":"F37*H$19","v":0},{"$f":"F77","v":0},{"$f":"I37*J$19","v":0},{"$f":"I37*K$19","v":0},{"$f":"G77","v":0},{"$f":"L37*M$19","v":0},{"$f":"L37*N$19","v":0},{"$f":"H77","v":0},{"$f":"O37*P$19","v":0},{"$f":"O37*Q$19","v":0},{"$f":"I76+I77","v":0},{"$f":"R37*S$19","v":0},{"$f":"R37*T$19","v":0},{"$f":"J76+J77","v":0},{"$f":"U37*V$19","v":0},{"$f":"U37*W$19","v":0},{"$f":"K76+K77","v":0},{"$f":"X37*Y$19","v":0},{"$f":"X37*Z$19","v":0},{"$f":"L76+L77","v":0},{"$f":"AA37*AB$19","v":0},{"$f":"AA37*AC$19","v":0}]
["Grossed-up PILs",null,null,{"$f":"D65","v":0},{"$f":"E65","v":0},null,{"$f":"G65","v":0},{"$f":"H65","v":0},null,{"$f":"J65","v":0},{"$f":"K65","v":0},null,{"$f":"M65","v":0},{"$f":"N65","v":0},null,{"$f":"P65","v":0},{"$f":"Q65","v":0},null,{"$f":"S65","v":0},{"$f":"T65","v":0},null,{"$f":"V65","v":0},{"$f":"W65","v":0},null,{"$f":"Y65","v":0},{"$f":"Z65","v":0},null,{"$f":"AB65","v":0},{"$f":"AC65","v":0}]
[]
["Revenue Requirement",null,null,{"$f":"SUM(D34:D38)","v":0},{"$f":"SUM(E34:E38)","v":0},null,{"$f":"SUM(G34:G38)","v":0},{"$f":"SUM(H34:H38)","v":0},null,{"$f":"SUM(J34:J38)","v":0},{"$f":"SUM(K34:K38)","v":0},null,{"$f":"SUM(M34:M38)","v":0},{"$f":"SUM(N34:N38)","v":0},null,{"$f":"SUM(P34:P38)","v":0},{"$f":"SUM(Q34:Q38)","v":0},null,{"$f":"SUM(S34:S38)","v":0},{"$f":"SUM(T34:T38)","v":0},null,{"$f":"SUM(V34:V38)","v":0},{"$f":"SUM(W34:W38)","v":0},null,{"$f":"SUM(Y34:Y38)","v":0},{"$f":"SUM(Z34:Z38)","v":0},null,{"$f":"SUM(AB34:AB38)","v":0},{"$f":"SUM(AC34:AC38)","v":0}]
[]
[]
["Provincial Rate Protection",null,null,null,{"$f":"E40","v":0},null,null,{"$f":"H40","v":0},null,null,{"$f":"K40","v":0},null,null,{"$f":"N40","v":0},null,null,{"$f":"Q40","v":0},null,null,{"$f":"T40","v":0},null,null,{"$f":"W40","v":0},null,null,{"$f":"Z40","v":0},null,null,{"$f":"AC40","v":0}]
[]
["Monthly Amount Paid by IESO",null,null,null,{"$f":"E43/12","v":0},null,null,{"$f":"H43/12","v":0},null,null,{"$f":"K43/12","v":0},null,null,{"$f":"N43/12","v":0},null,null,{"$f":"Q43/12","v":0},null,null,{"$f":"T43/12","v":0},null,null,{"$f":"W43/12","v":0},null,null,{"$f":"Z43/12","v":0},null,null,{"$f":"AC43/12","v":0}]
[]
["Note 1: The difference between the actual costs of approved eligible investments and revenue received from the IESO should be recorded in a variance account.  The Board may provide "]
["regulatory accounting guidance regarding a variance account either in an individual proceeding or on a generic basis."]
["Note 2: For the 2016 Test Year, Costs and Revenues of the Direct Benefit are to be included in the test year applicant Rate Base and Revenues.  "]
[]
["PILs Calculation"]
[null,null,null,{"$f":"C17","v":2014},null,null,{"$f":"F17","v":2015},null,null,{"$f":"I17","v":2016},null,null,{"$f":"L17","v":2017},null,null,{"$f":"O17","v":"2018 Test Year"},null,null,{"$f":"R17","v":2019},null,null,{"$f":"U17","v":2020},null,null,{"$f":"X17","v":2021},null,null,{"$f":"AA17","v":2022}]
["Income Tax",null,null,"Direct Benefit","Provincial",null,"Direct Benefit","Provincial",null,"Direct Benefit","Provincial",null,"Direct Benefit","Provincial",null,"Direct Benefit","Provincial",null,"Direct Benefit","Provincial",null,"Direct Benefit","Provincial",null,"Direct Benefit","Provincial",null,"Direct Benefit","Provincial"]
[null,null,null,null,null,null,null,null,null,null,null,null,null,null,null,null,null,null,null,null,null,null,null,"Total",null,null,"Total"]
["Net Income - ROE on Rate Base",null,null,{"$f":"D33","v":0},{"$f":"E33","v":0},null,{"$f":"G33","v":0},{"$f":"H33","v":0},null,{"$f":"J33","v":0},{"$f":"K33","v":0},null,{"$f":"M33","v":0},{"$f":"N33","v":0},null,{"$f":"P33","v":0},{"$f":"Q33","v":0},null,{"$f":"S33","v":0},{"$f":"T33","v":0},null,{"$f":"V33","v":0},{"$f":"W33","v":0},null,{"$f":"Y33","v":0},{"$f":"Z33","v":0},null,{"$f":"AB33","v":0},{"$f":"AC33","v":0}]
["Amortization (6% DB and 94% P)",null,null,{"$f":"D37","v":0},{"$f":"E37","v":0},null,{"$f":"G37","v":0},{"$f":"H37","v":0},null,{"$f":"J37","v":0},{"$f":"K37","v":0},null,{"$f":"M37","v":0},{"$f":"N37","v":0},null,{"$f":"P37","v":0},{"$f":"Q37","v":0},null,{"$f":"S37","v":0},{"$f":"T37","v":0},null,{"$f":"V37","v":0},{"$f":"W37","v":0},null,{"$f":"Y37","v":0},{"$f":"Z37","v":0},null,{"$f":"AB37","v":0},{"$f":"AC37","v":0}]
["CCA (6% DB and 94% P)",null,null,{"$f":"-D94*D$19","v":0},{"$f":"-D94*E$19","v":0},null,{"$f":"-E94*G19","v":0},{"$f":"-E94*H$19","v":0},null,{"$f":"-F94*J$19","v":0},{"$f":"-F94*K$19","v":0},null,{"$f":"-G94*M$19","v":0},{"$f":"-G94*N$19","v":0},null,{"$f":"-H94*P$19","v":0},{"$f":"-H94*Q$19","v":0},null,{"$f":"-I94*S$19","v":0},{"$f":"-I94*T$19","v":0},null,{"$f":"-J94*V$19","v":0},{"$f":"-J94*W$19","v":0},null,{"$f":"-K94*Y$19","v":0},{"$f":"-K94*Z$19","v":0},null,{"$f":"-L94*AB$19","v":0},{"$f":"-L94*AC$19","v":0}]
["Taxable income",null,null,{"$f":"SUM(D55:D57)","v":0},{"$f":"SUM(E55:E57)","v":0},null,{"$f":"SUM(G55:G57)","v":0},{"$f":"SUM(H55:H57)","v":0},null,{"$f":"SUM(J55:J57)","v":0},{"$f":"SUM(K55:K57)","v":0},null,{"$f":"SUM(M55:M57)","v":0},{"$f":"SUM(N55:N57)","v":0},null,{"$f":"SUM(P55:P57)","v":0},{"$f":"SUM(Q55:Q57)","v":0},null,{"$f":"SUM(S55:S57)","v":0},{"$f":"SUM(T55:T57)","v":0},null,{"$f":"SUM(V55:V57)","v":0},{"$f":"SUM(W55:W57)","v":0},null,{"$f":"SUM(Y55:Y57)","v":0},{"$f":"SUM(Z55:Z57)","v":0},null,{"$f":"SUM(AB55:AB57)","v":0},{"$f":"SUM(AC55:AC57)","v":0}]
[]
["Tax Rate  (to be entered)"]
[]
["Income Taxes Payable",null,null,{"$f":"D58*D60","v":0},{"$f":"E58*E60","v":0},null,{"$f":"G58*G60","v":0},{"$f":"H58*H60","v":0},null,{"$f":"J58*J60","v":0},{"$f":"K58*K60","v":0},null,{"$f":"M58*M60","v":0},{"$f":"N58*N60","v":0},null,{"$f":"P58*P60","v":0},{"$f":"Q58*Q60","v":0},null,{"$f":"S58*S60","v":0},{"$f":"T58*T60","v":0},null,{"$f":"V58*V60","v":0},{"$f":"W58*W60","v":0},null,{"$f":"Y58*Y60","v":0},{"$f":"Z58*Z60","v":0},null,{"$f":"AB58*AB60","v":0},{"$f":"AC58*AC60","v":0}]
["Gross Up"]
["Income Taxes Payable",null,null,{"$f":"D62/(1-D60)","v":0},{"$f":"E62/(1-E60)","v":0},null,{"$f":"G62/(1-G60)","v":0},{"$f":"H62/(1-H60)","v":0},null,{"$f":"J62/(1-J60)","v":0},{"$f":"K62/(1-K60)","v":0},null,{"$f":"M62/(1-M60)","v":0},{"$f":"N62/(1-N60)","v":0},null,{"$f":"P62/(1-P60)","v":0},{"$f":"Q62/(1-Q60)","v":0},null,{"$f":"S62/(1-S60)","v":0},{"$f":"T62/(1-T60)","v":0},null,{"$f":"V62/(1-V60)","v":0},{"$f":"W62/(1-W60)","v":0},null,{"$f":"Y62/(1-Y60)","v":0},{"$f":"Z62/(1-Z60)","v":0},null,{"$f":"AB62/(1-AB60)","v":0},{"$f":"AC62/(1-AC60)","v":0}]
["Grossed Up PILs",null,null,{"$f":"SUM(D64:D64)","v":0},{"$f":"SUM(E64:E64)","v":0},null,{"$f":"SUM(G64:G64)","v":0},{"$f":"SUM(H64:H64)","v":0},null,{"$f":"SUM(J64:J64)","v":0},{"$f":"SUM(K64:K64)","v":0},null,{"$f":"SUM(M64:M64)","v":0},{"$f":"SUM(N64:N64)","v":0},null,{"$f":"SUM(P64:P64)","v":0},{"$f":"SUM(Q64:Q64)","v":0},null,{"$f":"SUM(S64:S64)","v":0},{"$f":"SUM(T64:T64)","v":0},null,{"$f":"SUM(V64:V64)","v":0},{"$f":"SUM(W64:W64)","v":0},null,{"$f":"SUM(Y64:Y64)","v":0},{"$f":"SUM(Z64:Z64)","v":0},null,{"$f":"SUM(AB64:AB64)","v":0},{"$f":"SUM(AC64:AC64)","v":0}]
[]
[]
[null,null,null,{"$f":"E68-1","v":2014},{"$f":"F68-1","v":2015},{"$f":"G68-1","v":2016},{"$f":"H68-1","v":2017},{"$f":"TestYear","v":2018},{"$f":"H68+1","v":2019},{"$f":"I68+1","v":2020},{"$f":"J68+1","v":2021},{"$f":"K68+1","v":2022}]
["Net Fixed Assets"]
[null,"Enter applicable amortization in years:",25]
["Opening Gross Fixed Assets",null,null,null,{"$f":"D73","v":0},0,0,0,0,0,0,0]
["Gross Capital Additions",null,null,{"$f":"'App.2-FA Proposed REG Invest.'!C62","v":0},{"$f":"'App.2-FA Proposed REG Invest.'!D62","v":0},{"$f":"'App.2-FA Proposed REG Invest.'!E62","v":0},{"$f":"'App.2-FA Proposed REG Invest.'!F62","v":0},{"$f":"'App.2-FA Proposed REG Invest.'!G62","v":0},{"$f":"'App.2-FA Proposed REG Invest.'!H62","v":0},{"$f":"'App.2-FA Proposed REG Invest.'!I62","v":0},{"$f":"'App.2-FA Proposed REG Invest.'!J62","v":0},{"$f":"'App.2-FA Proposed REG Invest.'!K62","v":0}]
["Closing Gross Fixed Assets",null,null,{"$f":"SUM(D71:D72)","v":0},0,0,0,0,0,0,0,0]
[]
["Opening Accumulated Amortization",null,null,null,{"$f":"+D78","v":0},{"$f":"E78","v":0},0,0,0,0,0,0]
["Current Year Amortization (before additions)",null,null,{"$f":"IF(ISERROR(D71/$C$70), 0, D71/$C$70)","v":0},0,0,0,0,0,0,0,0]
["Additions (half year)",null,null,{"$f":"D72/$C$70/2","v":0},{"$f":"E72/$C$70/2","v":0},{"$f":"F72/$C$70/2","v":0},{"$f":"G72/$C$70/2","v":0},{"$f":"H72/$C$70/2","v":0},{"$f":"I72/C70/2","v":0},{"$f":"J72/C70/2","v":0},{"$f":"K72/C70/2","v":0},{"$f":"L72/C70/2","v":0}]
["Closing Accumulated Amortization",null,null,{"$f":"SUM(D75+D76+D77)","v":0},{"$f":"SUM(E75+E76+E77)","v":0},{"$f":"SUM(F75+F76+F77)","v":0},{"$f":"SUM(G75+G76+G77)","v":0},{"$f":"SUM(H75+H76+H77)","v":0},{"$f":"SUM(I75:I77)","v":0},{"$f":"SUM(J75:J77)","v":0},{"$f":"SUM(K75:K77)","v":0},{"$f":"SUM(L75:L77)","v":0}]
[]
["Opening Net Fixed Assets",null,null,{"$f":"D71-D75","v":0},{"$f":"E71-E75","v":0},{"$f":"F71-F75","v":0},{"$f":"G71-G75","v":0},{"$f":"H71-H75","v":0},{"$f":"H81","v":0},{"$f":"I81","v":0},{"$f":"J81","v":0},{"$f":"K81","v":0}]
["Closing Net Fixed Assets",null,null,{"$f":"D73-D78","v":0},0,0,0,0,0,0,0,0]
["Average Net Fixed Assets",null,null,{"$f":"SUM(D80:D81)/2","v":0},0,0,0,0,0,0,0,0]
[]
["UCC for PILs Calculation"]
[null,null,null,{"$f":"D68","v":2014},{"$f":"E68","v":2015},2016,2017,2018,2019,2020,2021,2022]
[]
["Opening UCC",null,null,null,{"$f":"D95","v":0},0,0,0,0,0,0,0]
["Capital Additions (from Appendix 2-FA)",null,null,{"$f":"D72","v":0},0,0,0,0,0,0,0,0]
["UCC Before Half Year Rule",null,null,{"$f":"SUM(D87:D88)","v":0},0,0,0,0,0,0,0,0]
["Half Year Rule (1/2 Additions - Disposals)",null,null,{"$f":"D88/2","v":0},0,0,0,0,0,0,0,0]
["Reduced UCC",null,null,{"$f":"D89-D90","v":0},0,0,0,0,0,0,0,0]
["CCA Rate Class (to be entered)",null,47,{"$f":"C92","v":47},{"$f":"D92","v":47},47,47,47,47,47,47,47]
["CCA Rate  (to be entered)",null,0.08,{"$f":"C93","v":0.08},0.08,0.08,0.08,0.08,0.08,0.08,0.08,0.08]
["CCA",null,null,{"$f":"D91*D93","v":0},0,0,0,0,0,0,0,0]
["Closing UCC",null,null,{"$f":"D89-D94","v":0},0,0,0,0,0,0,0,0]

{"sheet":"App.2-FC Calc of REG Expansion","index":25,"n_rows":95,"n_cols":30,"rows_kept":95,"cut":false,"hidden":false,"merged":[[17,18,17,20],[17,21,17,23],[17,24,17,26],[17,27,17,29],[52,22,52,23],[52,25,52,26],[52,28,52,29],[47,0,47,20],[49,0,49,21],[50,0,50,1],[52,4,52,5],[52,7,52,8],[52,10,52,11],[52,13,52,14],[52,16,52,17],[52,19,52,20],[17,3,17,5],[17,6,17,8],[17,9,17,11],[17,12,17,14],[17,15,17,17],[8,0,8,14],[9,0,9,14],[11,0,11,14],[12,0,12,14],[14,0,14,14]]}
[null,null,null,null,null,null,null,null,null,null,null,null,null,"File Number:",{"$f":"EBNUMBER","v":"EB-2017-0032"}]
["Not Applicable ",null,null,null,null,null,null,null,null,null,null,null,null,"Exhibit:"]
[null,null,null,null,null,null,null,null,null,null,null,null,null,"Tab:"]
[null,null,null,null,null,null,null,null,null,null,null,null,null,"Schedule:"]
[null,null,null,null,null,null,null,null,null,null,null,null,null,"Page:"]
[]
[null,null,null,null,null,null,null,null,null,null,null,null,null,"Date:"]
[]
["Appendix 2-FC"]
["Calculation of Renewable Generation Connection Direct Benefits/Provincial Amount: Renewable Expansion Investments"]
[]
["This table will calculate the distributor/provincial shares of the investments entered in Part B of Appendix 2-FA."]
["Enter values in green shaded cells: WCA percentage, debt percentages, interest rates, kWh, tax rates, amortization period, CCA Class and percentage."]
["For historical investments, enter these variables for your last cost of service test year.  For 2016 and beyond, enter variables as in the application."]
["Rate Riders are not calculated for the Test Year as these assets and costs are already in the distributor's rate base."]
[]
[]
[null,null,null,{"$f":"G18-1","v":2014},null,null,{"$f":"J18-1","v":2015},null,null,{"$f":"M18-1","v":2016},null,null,{"$f":"BridgeYear","v":2017},null,null,{"$f":"CONCATENATE(TestYear,\" Test Year\")","v":"2018 Test Year"},null,null,{"$f":"TestYear+1","v":2019},2016,null,{"$f":"S18+1","v":2020},null,null,{"$f":"V18+1","v":2021},null,null,{"$f":"Y18+1","v":2022}]
[null,null,null,null,"Direct Benefit","Provincial",null,"Direct Benefit","Provincial",null,"Direct Benefit","Provincial",null,"Direct Benefit","Provincial",null,"Direct Benefit","Provincial",null,"Direct Benefit","Provincial",null,"Direct Benefit","Provincial",null,"Direct Benefit","Provincial",null,"Direct Benefit","Provincial"]
[null,null,null,"Total",0.17,0.83,"Total",0.17,0.83,"Total",0.17,0.83,"Total",0.17,0.83,"Total",0.17,0.83,"Total",0.17,0.83,"Total",0.17,0.83,"Total",0.17,0.83,"Total",0.17,0.83]
["Net Fixed Assets (average)",null,null,{"$f":"D82","v":0},{"$f":"D21*E20","v":0},{"$f":"D21*F20","v":0},{"$f":"E82","v":0},{"$f":"G21*H20","v":0},{"$f":"G21*I20","v":0},{"$f":"F82","v":0},{"$f":"J21*K20","v":0},{"$f":"J21*L20","v":0},{"$f":"G82","v":0},{"$f":"M21*N20","v":0},{"$f":"M21*O20","v":0},{"$f":"H82","v":0},{"$f":"P21*Q20","v":0},{"$f":"P21*R20","v":0},{"$f":"I82","v":0},{"$f":"S21*T20","v":0},{"$f":"S21*U20","v":0},{"$f":"J82","v":0},{"$f":"V21*W20","v":0},{"$f":"V21*X20","v":0},{"$f":"K82","v":0},{"$f":"Y21*Z20","v":0},{"$f":"Y21*AA20","v":0},{"$f":"L82","v":0},{"$f":"AB21*AC20","v":0},{"$f":"AB21*AD20","v":0}]
["Incremental OM&A (on-going, N/A for Provincial Recovery)",null,null,{"$f":"'App.2-FA Proposed REG Invest.'!C101","v":0},{"$f":"D22","v":0},null,{"$f":"'App.2-FA Proposed REG Invest.'!D$101","v":0},{"$f":"G22","v":0},null,{"$f":"'App.2-FA Proposed REG Invest.'!E$101","v":0},{"$f":"J22","v":0},null,{"$f":"'App.2-FA Proposed REG Invest.'!F$101","v":0},{"$f":"M22","v":0},null,{"$f":"'App.2-FA Proposed REG Invest.'!G$101","v":0},{"$f":"P22","v":0},null,{"$f":"'App.2-FA Proposed REG Invest.'!H$101","v":0},{"$f":"S22","v":0},null,{"$f":"'App.2-FA Proposed REG Invest.'!I$101","v":0},{"$f":"V22","v":0},null,{"$f":"'App.2-FA Proposed REG Invest.'!J$101","v":0},{"$f":"Y22","v":0},null,{"$f":"'App.2-FA Proposed REG Invest.'!K$101","v":0},{"$f":"AB22","v":0}]
["Incremental OM&A (start-up, applicable for Provincial Recovery)",null,null,{"$f":"'App.2-FA Proposed REG Invest.'!C100","v":0},{"$f":"D23*E20","v":0},{"$f":"D23*F20","v":0},{"$f":"'App.2-FA Proposed REG Invest.'!D$100","v":0},{"$f":"G23*H20","v":0},{"$f":"G23*I20","v":0},{"$f":"'App.2-FA Proposed REG Invest.'!E$100","v":0},{"$f":"J23*K20","v":0},{"$f":"J23*L20","v":0},{"$f":"'App.2-FA Proposed REG Invest.'!F$100","v":0},{"$f":"M23*N20","v":0},{"$f":"M23*O20","v":0},{"$f":"'App.2-FA Proposed REG Invest.'!G$100","v":0},{"$f":"P23*Q20","v":0},{"$f":"P23*R20","v":0},{"$f":"'App.2-FA Proposed REG Invest.'!H$100","v":0},{"$f":"S23*T20","v":0},{"$f":"S23*U20","v":0},{"$f":"'App.2-FA Proposed REG Invest.'!I$100","v":0},{"$f":"V23*W20","v":0},{"$f":"V23*X20","v":0},{"$f":"'App.2-FA Proposed REG Invest.'!J$100","v":0},{"$f":"Y23*Z20","v":0},{"$f":"Y23*AA20","v":0},{"$f":"'App.2-FA Proposed REG Invest.'!K$100","v":0},{"$f":"AB23*AC20","v":0},{"$f":"AB23*AD20","v":0}]
["WCA",null,null,null,{"$f":"(E22+E23)*$B$24","v":0},{"$f":"F23*$B$24","v":0},null,{"$f":"(H22+H23)*$B$24","v":0},{"$f":"I23*$B$24","v":0},null,{"$f":"(K22+K23)*$B$24","v":0},{"$f":"L23*$B$24","v":0},null,{"$f":"(N22+N23)*$B$24","v":0},{"$f":"O23*$B$24","v":0},null,{"$f":"(Q22+Q23)*$B$24","v":0},{"$f":"R23*$B$24","v":0},null,{"$f":"(T22+T23)*$B$24","v":0},{"$f":"U23*$B$24","v":0},null,{"$f":"(W22+W23)*$B$24","v":0},{"$f":"X23*$B$24","v":0},null,{"$f":"(Z22+Z23)*$B$24","v":0},{"$f":"AA23*$B$24","v":0},null,{"$f":"(AC22+AC23)*$B$24","v":0},{"$f":"AD23*$B$24","v":0}]
["Rate Base",null,null,null,{"$f":"SUM(E21+E24)","v":0},{"$f":"SUM(F21+F24)","v":0},null,{"$f":"SUM(H21+H24)","v":0},{"$f":"SUM(I21+I24)","v":0},null,{"$f":"SUM(K21+K24)","v":0},{"$f":"SUM(L21+L24)","v":0},null,{"$f":"SUM(N21+N24)","v":0},{"$f":"SUM(O21+O24)","v":0},null,{"$f":"SUM(Q21+Q24)","v":0},{"$f":"SUM(R21+R24)","v":0},null,{"$f":"SUM(T21+T24)","v":0},{"$f":"SUM(U21+U24)","v":0},null,{"$f":"SUM(W21+W24)","v":0},{"$f":"SUM(X21+X24)","v":0},null,{"$f":"SUM(Z21+Z24)","v":0},{"$f":"SUM(AA21+AA24)","v":0},null,{"$f":"SUM(AC21+AC24)","v":0},{"$f":"SUM(AD21+AD24)","v":0}]
[]
[]
["Deemed ST Debt",null,null,null,{"$f":"E25*$B$28","v":0},{"$f":"F25*$B$28","v":0},null,{"$f":"H25*$B$28","v":0},{"$f":"I25*$B$28","v":0},null,{"$f":"K25*$B$28","v":0},{"$f":"L25*$B$28","v":0},null,{"$f":"N25*$B$28","v":0},{"$f":"O25*$B$28","v":0},null,{"$f":"Q25*$B$28","v":0},{"$f":"R25*$B$28","v":0},null,{"$f":"T25*$B$28","v":0},{"$f":"U25*$B$28","v":0},null,{"$f":"W25*$B$28","v":0},{"$f":"X25*$B$28","v":0},null,{"$f":"Z25*$B$28","v":0},{"$f":"AA25*$B$28","v":0},null,{"$f":"AC25*$B$28","v":0},{"$f":"AD25*$B$28","v":0}]
["Deemed LT Debt",null,null,null,{"$f":"E25*$B$29","v":0},{"$f":"F25*$B$29","v":0},null,{"$f":"H25*$B$29","v":0},{"$f":"I25*$B$29","v":0},null,{"$f":"K25*$B$29","v":0},{"$f":"L25*$B$29","v":0},null,{"$f":"N25*$B$29","v":0},{"$f":"O25*$B$29","v":0},null,{"$f":"Q25*$B$29","v":0},{"$f":"R25*$B$29","v":0},null,{"$f":"T25*$B$29","v":0},{"$f":"U25*$B$29","v":0},null,{"$f":"W25*$B$29","v":0},{"$f":"X25*$B$29","v":0},null,{"$f":"Z25*$B$29","v":0},{"$f":"AA25*$B$29","v":0},null,{"$f":"AC25*$B$29","v":0},{"$f":"AD25*$B$29","v":0}]
["Deemed Equity",null,null,null,{"$f":"E25*$B$30","v":0},{"$f":"F25*$B$30","v":0},null,{"$f":"H25*$B$30","v":0},{"$f":"I25*$B$30","v":0},null,{"$f":"K25*$B$30","v":0},{"$f":"L25*$B$30","v":0},null,{"$f":"N25*$B$30","v":0},{"$f":"O25*$B$30","v":0},null,{"$f":"Q25*$B$30","v":0},{"$f":"R25*$B$30","v":0},null,{"$f":"T25*$B$30","v":0},{"$f":"U25*$B$30","v":0},null,{"$f":"W25*$B$30","v":0},{"$f":"X25*$B$30","v":0},null,{"$f":"Z25*$B$30","v":0},{"$f":"AA25*$B$30","v":0},null,{"$f":"AC25*$B$30","v":0},{"$f":"AD25*$B$30","v":0}]
[]
["ST Interest",null,null,null,{"$f":"E28*$B$32","v":0},{"$f":"F28*$B$32","v":0},null,{"$f":"H28*$B$32","v":0},{"$f":"I28*$B$32","v":0},null,{"$f":"K28*$B$32","v":0},{"$f":"L28*$B$32","v":0},null,{"$f":"N28*$B$32","v":0},{"$f":"O28*$B$32","v":0},null,{"$f":"Q28*$B$32","v":0},{"$f":"R28*$B$32","v":0},null,{"$f":"T28*$B$32","v":0},{"$f":"U28*$B$32","v":0},null,{"$f":"W28*$B$32","v":0},{"$f":"X28*$B$32","v":0},null,{"$f":"Z28*$B$32","v":0},{"$f":"AA28*$B$32","v":0},null,{"$f":"AC28*$B$32","v":0},{"$f":"AD28*$B$32","v":0}]
["LT Interest",null,null,null,{"$f":"E29*$B$33","v":0},{"$f":"F29*$B$33","v":0},null,{"$f":"H29*$B$33","v":0},{"$f":"I29*$B$33","v":0},null,{"$f":"K29*$B$33","v":0},{"$f":"L29*$B$33","v":0},null,{"$f":"N29*$B$33","v":0},{"$f":"O29*$B$33","v":0},null,{"$f":"Q29*$B$33","v":0},{"$f":"R29*$B$33","v":0},null,{"$f":"T29*$B$33","v":0},{"$f":"U29*$B$33","v":0},null,{"$f":"W29*$B$33","v":0},{"$f":"X29*$B$33","v":0},null,{"$f":"Z29*$B$33","v":0},{"$f":"AA29*$B$33","v":0},null,{"$f":"AC29*$B$33","v":0},{"$f":"AD29*$B$33","v":0}]
["ROE",null,null,null,{"$f":"E30*$B$34","v":0},{"$f":"F30*$B$34","v":0},null,{"$f":"H30*$B$34","v":0},{"$f":"I30*$B$34","v":0},null,{"$f":"K30*$B$34","v":0},{"$f":"L30*$B$34","v":0},null,{"$f":"N30*$B$34","v":0},{"$f":"O30*$B$34","v":0},null,{"$f":"Q30*$B$34","v":0},{"$f":"R30*$B$34","v":0},null,{"$f":"T30*$B$34","v":0},{"$f":"U30*$B$34","v":0},null,{"$f":"W30*$B$34","v":0},{"$f":"X30*$B$34","v":0},null,{"$f":"Z30*$B$34","v":0},{"$f":"AA30*$B$34","v":0},null,{"$f":"AC30*$B$34","v":0},{"$f":"AD30*$B$34","v":0}]
["Cost of Capital Total",null,null,null,{"$f":"SUM(E32:E34)","v":0},{"$f":"SUM(F32:F34)","v":0},null,{"$f":"SUM(H32:H34)","v":0},{"$f":"SUM(I32:I34)","v":0},null,{"$f":"SUM(K32:K34)","v":0},{"$f":"SUM(L32:L34)","v":0},null,{"$f":"SUM(N32:N34)","v":0},{"$f":"SUM(O32:O34)","v":0},null,{"$f":"SUM(Q32:Q34)","v":0},{"$f":"SUM(R32:R34)","v":0},null,{"$f":"SUM(T32:T34)","v":0},{"$f":"SUM(U32:U34)","v":0},null,{"$f":"SUM(W32:W34)","v":0},{"$f":"SUM(X32:X34)","v":0},null,{"$f":"SUM(Z32:Z34)","v":0},{"$f":"SUM(AA32:AA34)","v":0},null,{"$f":"SUM(AC32:AC34)","v":0},{"$f":"SUM(AD32:AD34)","v":0}]
[]
["OM&A",null,null,null,{"$f":"E22+E23","v":0},{"$f":"F23","v":0},null,{"$f":"H22+H23","v":0},{"$f":"I23","v":0},null,{"$f":"K22+K23","v":0},{"$f":"L23","v":0},null,{"$f":"N22+N23","v":0},{"$f":"O23","v":0},null,{"$f":"Q22+Q23","v":0},{"$f":"R23","v":0},null,{"$f":"T22+T23","v":0},{"$f":"U23","v":0},null,{"$f":"W22+W23","v":0},{"$f":"X23","v":0},null,{"$f":"Z22+Z23","v":0},{"$f":"AA23","v":0},null,{"$f":"AC22+AC23","v":0},{"$f":"AD23","v":0}]
["Amortization",null,null,{"$f":"D78","v":0},{"$f":"D38*E$20","v":0},{"$f":"D38*F$20","v":0},{"$f":"E78","v":0},{"$f":"G38*H$20","v":0},{"$f":"G38*I$20","v":0},{"$f":"F78","v":0},{"$f":"J38*K$20","v":0},{"$f":"J38*L$20","v":0},{"$f":"G78","v":0},{"$f":"M38*N$20","v":0},{"$f":"M38*O$20","v":0},{"$f":"H76+H77","v":0},{"$f":"P38*Q$20","v":0},{"$f":"P38*R$20","v":0},{"$f":"I76+I77","v":0},{"$f":"S38*T$20","v":0},{"$f":"S38*U$20","v":0},{"$f":"J76+J77","v":0},{"$f":"V38*W$20","v":0},{"$f":"V38*X$20","v":0},{"$f":"K76+K77","v":0},{"$f":"Y38*Z$20","v":0},{"$f":"Y38*AA$20","v":0},{"$f":"L76+L77","v":0},{"$f":"AB38*AC$20","v":0},{"$f":"AB38*AD$20","v":0}]
["Grossed-up PILs",null,null,null,{"$f":"E66","v":0},{"$f":"F66","v":0},null,{"$f":"H66","v":0},{"$f":"I66","v":0},null,{"$f":"K66","v":0},{"$f":"L66","v":0},null,{"$f":"N66","v":0},{"$f":"O66","v":0},null,{"$f":"Q66","v":0},{"$f":"R66","v":0},null,{"$f":"T66","v":0},{"$f":"U66","v":0},null,{"$f":"W66","v":0},{"$f":"X66","v":0},null,{"$f":"Z66","v":0},{"$f":"AA66","v":0},null,{"$f":"AC66","v":0},{"$f":"AD66","v":0}]
[]
["Revenue Requirement",null,null,null,{"$f":"SUM(E35:E39)","v":0},{"$f":"SUM(F35:F39)","v":0},null,{"$f":"SUM(H35:H39)","v":0},{"$f":"SUM(I35:I39)","v":0},null,{"$f":"SUM(K35:K39)","v":0},{"$f":"SUM(L35:L39)","v":0},null,{"$f":"SUM(N35:N39)","v":0},{"$f":"SUM(O35:O39)","v":0},null,{"$f":"SUM(Q35:Q39)","v":0},{"$f":"SUM(R35:R39)","v":0},null,{"$f":"SUM(T35:T39)","v":0},{"$f":"SUM(U35:U39)","v":0},null,{"$f":"SUM(W35:W39)","v":0},{"$f":"SUM(X35:X39)","v":0},null,{"$f":"SUM(Z35:Z39)","v":0},{"$f":"SUM(AA35:AA39)","v":0},null,{"$f":"SUM(AC35:AC39)","v":0},{"$f":"SUM(AD35:AD39)","v":0}]
[]
[]
["Provincial Rate Protection",null,null,null,null,{"$f":"F41","v":0},null,null,{"$f":"I41","v":0},null,null,{"$f":"L41","v":0},null,null,{"$f":"O41","v":0},null,null,{"$f":"R41","v":0},null,null,{"$f":"U41","v":0},null,null,{"$f":"X41","v":0},null,null,{"$f":"AA41","v":0},null,null,{"$f":"AD41","v":0}]
[]
["Monthly Amount Paid by IESO",null,null,null,null,{"$f":"F44/12","v":0},null,null,{"$f":"I44/12","v":0},null,null,{"$f":"L44/12","v":0},null,null,{"$f":"O44/12","v":0},null,null,{"$f":"R44/12","v":0},null,null,{"$f":"U44/12","v":0},null,null,{"$f":"X44/12","v":0},null,null,{"$f":"AA44/12","v":0},null,null,{"$f":"AD44/12","v":0}]
[]
["Note 1: The difference between the actual costs of approved eligible investments and revenue received from the IESO should be recorded in a variance account.  The Board may provide "]
["regulatory accounting guidance regarding a variance account either in an individual proceeding or on a generic basis."]
["Note 2: For the 2016 Test Year, Costs and Revenues of the Direct Benefit are to be included in the test year applicant Rate Base and Revenues."]
[]
["PILs Calculation"]
[null,null,null,null,{"$f":"D18","v":2014},null,null,{"$f":"G18","v":2015},null,null,{"$f":"J18","v":2016},null,null,{"$f":"M18","v":2017},null,null,{"$f":"P18","v":"2018 Test Year"},null,null,{"$f":"S18","v":2019},null,null,{"$f":"V18","v":2020},null,null,{"$f":"Y18","v":2021},null,null,{"$f":"AB18","v":2022}]
["Income Tax",null,null,null,"Direct Benefit","Provincial",null,"Direct Benefit","Provincial",null,"Direct Benefit","Provincial",null,"Direct Benefit","Provincial",null,"Direct Benefit","Provincial",null,"Direct Benefit","Provincial",null,"Direct Benefit","Provincial",null,"Direct Benefit","Provincial",null,"Direct Benefit","Provincial"]
[null,null,null,null,null,null,null,null,null,null,null,null,null,null,null,null,null,null,null,null,null,"Total",null,null,"Total",null,null,"Total"]
["Net Income - ROE on Rate Base",null,null,null,{"$f":"E34","v":0},{"$f":"F34","v":0},null,{"$f":"H34","v":0},{"$f":"I34","v":0},null,{"$f":"K34","v":0},{"$f":"L34","v":0},null,{"$f":"N34","v":0},{"$f":"O34","v":0},null,{"$f":"Q34","v":0},{"$f":"R34","v":0},null,{"$f":"T34","v":0},{"$f":"U34","v":0},null,{"$f":"W34","v":0},{"$f":"X34","v":0},null,{"$f":"Z34","v":0},{"$f":"AA34","v":0},null,{"$f":"AC34","v":0},{"$f":"AD34","v":0}]
["Amortization (17% DB and 83% P)",null,null,null,{"$f":"E38","v":0},{"$f":"F38","v":0},null,{"$f":"H38","v":0},{"$f":"I38","v":0},null,{"$f":"K38","v":0},{"$f":"L38","v":0},null,{"$f":"N38","v":0},{"$f":"O38","v":0},null,{"$f":"Q38","v":0},{"$f":"R38","v":0},null,{"$f":"T38","v":0},{"$f":"U38","v":0},null,{"$f":"W38","v":0},{"$f":"X38","v":0},null,{"$f":"Z38","v":0},{"$f":"AA38","v":0},null,{"$f":"AC38","v":0},{"$f":"AD38","v":0}]
["CCA (17% DB and 83% P)",null,null,null,{"$f":"-D94*E$20","v":0},{"$f":"-D94*F$20","v":0},null,{"$f":"-E94*H$20","v":0},{"$f":"-E94*I$20","v":0},null,{"$f":"-F94*K$20","v":0},{"$f":"-F94*L$20","v":0},null,{"$f":"-G94*N$20","v":0},{"$f":"-G94*O$20","v":0},null,{"$f":"-H94*Q$20","v":0},{"$f":"-H94*R$20","v":0},null,{"$f":"-I94*T$20","v":0},{"$f":"-I94*U$20","v":0},null,{"$f":"-J94*W$20","v":0},{"$f":"-J94*X$20","v":0},null,{"$f":"-K94*Z$20","v":0},{"$f":"-K94*AA$20","v":0},null,{"$f":"-L94*AC$20","v":0},{"$f":"-L94*AD$20","v":0}]
["Taxable income",null,null,null,{"$f":"SUM(E56:E58)","v":0},{"$f":"SUM(F56:F58)","v":0},null,{"$f":"SUM(H56:H58)","v":0},{"$f":"SUM(I56:I58)","v":0},null,{"$f":"SUM(K56:K58)","v":0},{"$f":"SUM(L56:L58)","v":0},null,{"$f":"SUM(N56:N58)","v":0},{"$f":"SUM(O56:O58)","v":0},null,{"$f":"SUM(Q56:Q58)","v":0},{"$f":"SUM(R56:R58)","v":0},null,{"$f":"SUM(T56:T58)","v":0},{"$f":"SUM(U56:U58)","v":0},null,{"$f":"SUM(W56:W58)","v":0},{"$f":"SUM(X56:X58)","v":0},null,{"$f":"SUM(Z56:Z58)","v":0},{"$f":"SUM(AA56:AA58)","v":0},null,{"$f":"SUM(AC56:AC58)","v":0},{"$f":"SUM(AD56:AD58)","v":0}]
[]
["Tax Rate  (to be entered)"]
[]
["Income Taxes Payable",null,null,null,{"$f":"E59*E61","v":0},{"$f":"F59*F61","v":0},null,{"$f":"H59*H61","v":0},{"$f":"I59*I61","v":0},null,{"$f":"K59*K61","v":0},{"$f":"L59*L61","v":0},null,{"$f":"N59*N61","v":0},{"$f":"O59*O61","v":0},null,{"$f":"Q59*Q61","v":0},{"$f":"R59*R61","v":0},null,{"$f":"T59*T61","v":0},{"$f":"U59*U61","v":0},null,{"$f":"W59*W61","v":0},{"$f":"X59*X61","v":0},null,{"$f":"Z59*Z61","v":0},{"$f":"AA59*AA61","v":0},null,{"$f":"AC59*AC61","v":0},{"$f":"AD59*AD61","v":0}]
["Gross Up"]
["Income Taxes Payable",null,null,null,{"$f":"E63/(1-E61)","v":0},{"$f":"F63/(1-F61)","v":0},null,{"$f":"H63/(1-H61)","v":0},{"$f":"I63/(1-I61)","v":0},null,{"$f":"K63/(1-K61)","v":0},{"$f":"L63/(1-L61)","v":0},null,{"$f":"N63/(1-N61)","v":0},{"$f":"O63/(1-O61)","v":0},null,{"$f":"Q63/(1-Q61)","v":0},{"$f":"R63/(1-R61)","v":0},null,{"$f":"T63/(1-T61)","v":0},{"$f":"U63/(1-U61)","v":0},null,{"$f":"W63/(1-W61)","v":0},{"$f":"X63/(1-X61)","v":0},null,{"$f":"Z63/(1-Z61)","v":0},{"$f":"AA63/(1-AA61)","v":0},null,{"$f":"AC63/(1-AC61)","v":0},{"$f":"AD63/(1-AD61)","v":0}]
["Grossed Up PILs",null,null,null,{"$f":"SUM(E65:E65)","v":0},{"$f":"SUM(F65:F65)","v":0},null,{"$f":"SUM(H65:H65)","v":0},{"$f":"SUM(I65:I65)","v":0},null,{"$f":"SUM(K65:K65)","v":0},{"$f":"SUM(L65:L65)","v":0},null,{"$f":"SUM(N65:N65)","v":0},{"$f":"SUM(O65:O65)","v":0},null,{"$f":"SUM(Q65:Q65)","v":0},{"$f":"SUM(R65:R65)","v":0},null,{"$f":"SUM(T65:T65)","v":0},{"$f":"SUM(U65:U65)","v":0},null,{"$f":"SUM(W65:W65)","v":0},{"$f":"SUM(X65:X65)","v":0},null,{"$f":"SUM(Z65:Z65)","v":0},{"$f":"SUM(AA65:AA65)","v":0},null,{"$f":"SUM(AC65:AC65)","v":0},{"$f":"SUM(AD65:AD65)","v":0}]
[]
[]
["Net Fixed Assets",null,null,2011,2012,2013,2014,2015,2016,2017,2018,2019]
[null,"Enter applicable amortization in years:",25]
["Opening Gross Fixed Assets",null,null,null,{"$f":"D73","v":0},0,0,0,0,0,0,0]
["Gross Capital Additions",null,null,{"$f":"'App.2-FA Proposed REG Invest.'!C99","v":0},{"$f":"'App.2-FA Proposed REG Invest.'!D99","v":0},{"$f":"'App.2-FA Proposed REG Invest.'!E99","v":0},{"$f":"'App.2-FA Proposed REG Invest.'!F99","v":0},{"$f":"'App.2-FA Proposed REG Invest.'!G99","v":0},{"$f":"'App.2-FA Proposed REG Invest.'!H99","v":0},{"$f":"'App.2-FA Proposed REG Invest.'!I99","v":0},{"$f":"'App.2-FA Proposed REG Invest.'!J99","v":0},{"$f":"'App.2-FA Proposed REG Invest.'!K99","v":0}]
["Closing Gross Fixed Assets",null,null,{"$f":"SUM(D71:D72)","v":0},0,0,0,0,0,0,0,0]
[]
["Opening Accumulated Amortization",null,null,null,{"$f":"+D78","v":0},{"$f":"E78","v":0},0,0,0,0,0,0]
["Current Year Amortization (before additions)",null,null,null,{"$f":"IF(ISERROR(E71/$C$70), 0, E71/$C$70)","v":0},{"$f":"IF(ISERROR(F71/$C$70), 0, F71/$C$70)","v":0},{"$f":"IF(ISERROR(G71/$C$70), 0, G71/$C$70)","v":0},{"$f":"H71/$C$70","v":0},{"$f":"I71/$C$70","v":0},{"$f":"J71/$C$70","v":0},{"$f":"K71/$C$70","v":0},{"$f":"L71/$C$70","v":0}]
["Additions (half year)",null,null,{"$f":"D72/C70/2","v":0},{"$f":"E72/C70/2","v":0},{"$f":"F72/C70/2","v":0},{"$f":"G72/C70/2","v":0},{"$f":"H72/C70/2","v":0},{"$f":"I72/C70/2","v":0},{"$f":"J72/C70/2","v":0},{"$f":"K72/C70/2","v":0},{"$f":"L72/C70/2","v":0}]
["Closing Accumulated Amortization",null,null,{"$f":"SUM(D75+D77)","v":0},{"$f":"SUM(E75:E77)","v":0},0,0,0,0,0,0,0]
[]
["Opening Net Fixed Assets",null,null,{"$f":"D71-D75","v":0},{"$f":"E71-E75","v":0},{"$f":"F71-F75","v":0},{"$f":"G71-G75","v":0},{"$f":"G81","v":0},{"$f":"H81","v":0},{"$f":"I81","v":0},{"$f":"J81","v":0},{"$f":"K81","v":0}]
["Closing Net Fixed Assets",null,null,{"$f":"D73-D78","v":0},0,0,0,0,0,0,0,0]
["Average Net Fixed Assets",null,null,{"$f":"SUM(D80:D81)/2","v":0},0,0,0,0,0,0,0,0]
[]
["UCC for PILs Calculation"]
[null,null,null,2014,2014,2014,2014,2015,2016,2017,2018,2019]
[]
["Opening UCC",null,null,null,{"$f":"D95","v":0},0,0,0,0,0,0,0]
["Capital Additions (from Appendix 2-FA)",null,null,{"$f":"D72","v":0},0,0,0,0,0,0,0,0]
["UCC Before Half Year Rule",null,null,{"$f":"SUM(D87:D88)","v":0},0,0,0,0,0,0,0,0]
["Half Year Rule (1/2 Additions - Disposals)",null,null,{"$f":"D88/2","v":0},0,0,0,0,0,0,0,0]
["Reduced UCC",null,null,{"$f":"D89-D90","v":0},0,0,0,0,0,0,0,0]
["CCA Rate Class (to be entered)",null,47,{"$f":"$C$92","v":47},{"$f":"$C$92","v":47},47,47,47,47,47,47,47]
["CCA Rate  (to be entered)",null,0.08,{"$f":"$C$93","v":0.08},{"$f":"$C$93","v":0.08},0.08,0.08,0.08,0.08,0.08,0.08,0.08]
["CCA",null,null,{"$f":"D91*D$93","v":0},0,0,0,0,0,0,0,0]
["Closing UCC",null,null,{"$f":"D89-D94","v":0},0,0,0,0,0,0,0,0]

{"sheet":"App.2-G SQI","index":26,"n_rows":40,"n_cols":16,"rows_kept":40,"cut":false,"hidden":false,"merged":[[21,6,21,9],[14,0,15,0],[14,1,14,5],[14,6,14,10],[0,14,0,15],[1,14,1,15],[2,14,2,15],[3,14,3,15],[4,14,4,15],[28,0,28,3],[6,14,6,15],[14,11,14,15],[20,11,20,14],[21,11,21,14],[19,0,19,15],[8,0,8,15],[9,0,9,15],[10,0,10,15],[12,0,12,15],[20,1,20,4],[20,6,20,9],[23,0,23,10],[24,0,24,10],[26,0,26,10],[21,1,21,4],[34,4,34,5],[35,4,35,5],[36,4,36,5],[28,4,28,5],[29,4,29,5],[30,4,30,5],[31,4,31,5],[37,4,37,5],[38,4,38,5],[39,4,39,5],[29,0,29,3],[30,0,30,3],[31,0,31,3],[32,0,32,3],[33,0,33,3],[34,0,34,3],[35,0,35,3],[36,0,36,3],[37,0,37,3],[38,0,38,3],[39,0,39,3],[32,4,32,5],[33,4,33,5]]}
[null,null,null,null,null,null,null,null,null,null,null,null,"File Number:",null,{"$f":"EBNUMBER","v":"EB-2017-0032"}]
[null,null,null,null,null,null,null,null,null,null,null,null,"Exhibit:"]
[null,null,null,null,null,null,null,null,null,null,null,null,"Tab:"]
[null,null,null,null,null,null,null,null,null,null,null,null,"Schedule:"]
[null,null,null,null,null,null,null,null,null,null,null,null,"Page:"]
[]
[null,null,null,null,null,null,null,null,null,null,null,null,"Date:"]
[]
["Appendix 2-G"]
["Service Reliability and Quality Indicators"]
["2012 - 2016"]
[]
["Service Reliability"]
[]
["Index","Including outages caused by loss of supply",null,null,null,null,"Excluding outages caused by loss of supply",null,null,null,null,"Excluding Major Event Days"]
[null,{"$f":"TestYear-6","v":2012},{"$f":"TestYear-5","v":2013},{"$f":"TestYear-4","v":2014},{"$f":"TestYear-3","v":2015},{"$f":"TestYear-2","v":2016},{"$f":"B16","v":2012},2013,2014,2015,2016,2012,2013,2014,2015,2016]
["SAIDI ",3.76,10.97,0.2,0.14000000000000001,3.83,0.26,2.87,0.02,0.14000000000000001,0.1,0.26,2.87,0.02,0.14000000000000001,0.1]
["SAIFI",2.4300000000000002,2.39,0.76,0.06,1.69,0.74,0.89,0.08,0.06,0.11,0.74,0.89,0.08,0.06,0.11]
[]
["5 Year Historical Average"]
["SAIDI ",null,null,null,null,{"$f":"IF(ISERROR(AVERAGE(B17:F17)), \"\", AVERAGE(B17:F17))","v":3.78},null,null,null,null,{"$f":"IF(ISERROR(AVERAGE(G17:K17)), \"\", AVERAGE(G17:K17))","v":0.67800000000000005},null,null,null,null,{"$f":"IF(ISERROR(AVERAGE(L17:P17)), \"\", AVERAGE(L17:P17))","v":0.67800000000000005}]
["SAIFI",null,null,null,null,{"$f":"IF(ISERROR(AVERAGE(B18:F18)), \"\", AVERAGE(B18:F18))","v":1.466},null,null,null,null,{"$f":"IF(ISERROR(AVERAGE(G18:K18)), \"\", AVERAGE(G18:K18))","v":0.376},null,null,null,null,{"$f":"IF(ISERROR(AVERAGE(L18:P18)), \"\", AVERAGE(L18:P18))","v":0.376}]
[]
["SAIDI = System Average Interruption Duration Index"]
["SAIFI = System Average Interruption Frequency Index "]
[]
["Service Quality"]
[]
["Indicator",null,null,null,"OEB Minimum Standard",null,{"$f":"B16","v":2012},{"$f":"C16","v":2013},{"$f":"D16","v":2014},{"$f":"E16","v":2015},{"$f":"F16","v":2016}]
["Low Voltage Connections",null,null,null,0.9,null,1,1,0.96599999999999997,0.97899999999999998,0.99299999999999999]
["High Voltage Connections",null,null,null,0.9,null,"NA","NA","NA","NA","NA"]
["Telephone Accessibility",null,null,null,0.65,null,0.998,0.999,0.997,0.996,0.98599999999999999]
["Appointments Met",null,null,null,0.9,null,0.97599999999999998,0.99399999999999999,0.91700000000000004,0.97599999999999998,0.98899999999999999]
["Written Response to Enquires",null,null,null,0.8,null,1,1,0.996,1,1]
["Emergency Urban Response",null,null,null,0.8,null,0.97099999999999997,1,1,1,1]
["Emergency Rural Response",null,null,null,0.8,null,"NA","NA","NA","NA","NA"]
["Telephone Call Abandon Rate",null,null,null,0.1,null,"NA","NA","NA","NA","NA"]
["Appointment Scheduling",null,null,null,0.9,null,0.99099999999999999,0.96299999999999997,0.94599999999999995,0.98899999999999999,0.99]
["Rescheduling a Missed Appointment",null,null,null,1,null,1,1,1,1,1]
["Reconnection Performance Standard",null,null,null,0.85,null,1,1,1,1,0.97499999999999998]

{"sheet":"App.2-H_Other_Oper_Rev","index":27,"n_rows":73,"n_cols":9,"rows_kept":73,"cut":false,"hidden":false,"merged":[[49,0,49,2],[8,0,8,2],[9,0,9,2],[45,2,46,2],[42,0,42,1],[43,0,43,1],[44,0,44,1],[45,0,45,1],[78,1,78,2],[76,1,76,2],[77,1,77,2],[59,0,59,1],[52,0,53,2],[58,0,58,1],[67,0,67,1],[60,0,60,1],[61,0,61,1],[62,0,62,1],[66,0,66,1],[72,1,72,2]]}
[]
[]
[]
[]
[]
[]
[]
[]
["Appendix 2-H"]
["Other Operating Revenue"]
[]
[null,"Reporting Basis","NEWCGAAP","NEWCGAAP","NEWCGAAP","MIFRS","MIFRS","MIFRS","MIFRS"]
[null,null,2013,2014,2014,2015,2016,2017,2018]
[null,"USoA Description","Board Approved"]
[4235,"4235-Miscellaneous Service Revenues\n",-126100,-124915.42,-136713.48000000001,-152070.57999999999,-150907.35,-152300,-124600]
[4225,"4225-Late Payment Charges\n",-10800,-14560.62,-15668.29,-14251.86,-12908.31,-14300,-14300]
["4082","4082-Retail Services Revenues\n",-11800,-8343.6,-8274.1,-7396.72,-7172.09,-7900,-7900]
["4084","4084-Service Transaction Requests (STR) Revenues\n",-200,-77,-105.25,-60.88,-60.23,-100,-100]
["4086","4086-SSS Administration Revenue\n",-18400,-18547.07,-18919.740000000002,-19100.439999999999,-19327.240000000002,-19200,-19500]
["4205","4205-Interdepartmental Rents\n",0,0,0,0,0,0,0]
["4210","4210-Rent from Electric Property\n",-45500,-77599.69,-127902.96,-87437.8,-79841.88,-78200,-78200]
["4355","4355-Gain on Disposition of Utility and Other Property\n",0,-10063.15,-19115.599999999999,-10277,0,-22000,-2000]
["4360","4360-Loss on Disposition of Utility and Other Property\n",0,6534.29,46477.09,9918.75,47701.06,5500,5500]
["4375","4375-Revenues from Non-Utility Operations\n",-219600,-434125.09,-512311.15,-763889.42,-625842.22,-424600,-414300]
["4375","4375-Sub-account Generation Facility Revenues\n",0,0,0,0,0,0,0]
["4380","4380-Expenses of Non-Utility Operations\n",202700,369137.14,487880.6,661890.99,595618.91,411400,400000]
["4380","4380-Sub-account Generation Facility Expenses\n",0,null,0,0,0,0,0]
["4385","4385-Non-Utility Rental Income\n",0,-5607.5,0,0,0,0,0]
["4390","4390-Miscellaneous Non-Operating Income\n",-1300,null,-18479.34,-11723.1,-12050.32,-6000,-6000]
["4405","4405-Interest and Dividend Income\n",-39800,8612.66,-34695.950000000004,-33944.910000000003,-30160.9,-32000,-31000]
["4415","4415-Equity in Earnings of Subsidiary Companies\n",0,null,0,0,0,0,0]
[null,"Total",{"$f":"SUM(C15:C31)","v":-270800},{"$f":"SUM(D15:D31)","v":-309555.0500000001},-357828.17000000004,-428342.97000000009,-294950.57,-339700,-292400]
[]
[null,"Specific Service Charges",{"$f":"C15","v":-126100},-124915.42,-136713.48000000001,-152070.57999999999,-150907.35,-152300,-124600]
[null,"Late Payment Charges",-10800,-14560.62,-15668.29,-14251.86,-12908.31,-14300,-14300]
[null,"Other Distribution/Operating Revenues",{"$f":"SUM(C17:C21)","v":-75900},-104567.36,-155202.05000000002,-113995.84,-106401.44,-105400,-105700]
[null,"Other Income or Deductions",{"$f":"SUM(C22:C31)","v":-58000},-65511.649999999994,-50244.350000000064,-148024.69000000006,-24733.469999999885,-67700,-47800]
[null,"Total",{"$f":"SUM(C34:C37)","v":-270800},{"$f":"SUM(D34:D37)","v":-309555.05000000005},-357828.17000000016,-428342.97000000009,-294950.56999999983,-339700,-292400]
[]
[]
[]
["Description",null,"Account(s)"]
["Specific Service Charges:",null,4235]
["Late Payment Charges:",null,4225]
["Other Distribution Revenues:",null,"4080, 4082, 4084, 4090, 4205, 4210, 4215, 4220, 4240, 4245"]
["Other Income and Expenses:",null,"4305, 4310, 4315, 4320, 4325, 4330, 4335, 4340, 4345, 4350, 4355, 4360, 4365, 4370, 4375, 4380, 4385, 4390, 4395, 4398, 4405, 4415"]
[]
[]
["Note: Add all applicable accounts listed above to the table and include all relevant information."]
[]
["Account Breakdown Details"]
[]
["For each \"Other Operating Revenue\" and \"Other Income or Deductions\" Account, a detailed breakdown of the account components is required.  See the example below for Account 4405, Interest and Dividend Income."]
[]
[]
["Account 4405 - Interest and Dividend Income"]
[null,null,2013,2014,2015,2016,2017,2018]
[]
["Reporting Basis"]
["Short-term Investment Interest",null,0,0,0,0,0,0]
["Bank Deposit Interest",null,-26519.32,-29617.98,-27402.12,-23066.65,-25600,-24600]
["Miscellaneous Interest Revenue"]
["Dividend Income",null,-1204.2,-963.36,-1010.19,-1083.77,-1000,-1000]
["Carrying Charges on Regulatory Assets Accounts-Revenue",null,23518.37,-14062.13,-16176.26,-11205.47,-10300,-10300]
["Carrying Charges on Regulatory Assets Accounts-Expense(not included elsewhere)",null,12817.81,9954.2800000000007,10643.66,5194.99,4900,4900]
["Miscellaneous Interest Revenue",null,0,-6.76,0,0,0,0]
[]
["Total",null,{"$f":"SUM(C60:C67)","v":8612.659999999998},-34695.950000000004,-33944.910000000003,-30160.9,-32000,-31000]
[]
[]
["Notes:"]
[1,"List and specify any other interest revenue."]
[2,"In the transition year to IFRS, the applicant is to present information in both MIFRS and CGAAP.  For the typical applicant that adopted IFRS on January 1, 2015, 2014 must be presented in both a CGAAP and MIFRS basis."]

{"sheet":"App_2-I LF_CDM","index":28,"n_rows":96,"n_cols":14,"rows_kept":96,"cut":false,"hidden":false,"merged":[[95,0,95,7],[74,0,74,7],[76,0,76,7],[78,0,78,7],[80,0,80,7],[82,0,82,7],[24,0,24,7],[32,0,32,7],[61,0,61,1],[63,0,63,7],[84,0,84,7],[65,0,65,7],[67,0,67,5],[70,4,70,6],[72,0,72,7],[51,0,51,4],[54,0,54,1],[41,0,41,5],[43,0,43,7],[45,0,45,7],[47,0,47,7],[49,0,49,5],[19,0,19,7],[21,0,21,7],[22,0,22,7],[17,0,17,5],[8,0,8,7],[9,0,9,7],[11,0,11,7],[13,0,13,7],[15,0,15,7]]}
[{"$f":"+G69+1","v":2021},null,null,null,null,null,"File Number:",{"$f":"EBNUMBER","v":"EB-2017-0032"}]
[null,null,null,null,null,null,"Exhibit:"]
[null,null,null,null,null,null,"Tab:"]
[null,null,null,null,null,null,"Schedule:"]
[null,null,null,null,null,null,"Page:"]
[]
[null,null,null,null,null,null,"Date:"]
[]
["Appendix 2-I"]
["Load Forecast CDM Adjustment Work Form (2017)"]
[]
["Appendix 2-I was initially developed to help determine what would be the amount of CDM savings needed in each year to cumulatively achieve the four year 2011-2014 CDM target.  This then determined the amount of kWh (and with translation, kW of demand) savings that were converted into dollar balances for the LRAMVA, and also to determine the related adjustment to the load forecast to account for OPA-reported savings.  Beginning for the 2015 year, it has been adjusted because the persistence of 2011-2014 CDM programs will be an adjustment to the load forecast in addition to the estimated savings for the first year (2015) for the new 2015-2020 CDM plan."]
[]
["2017 is the third year of the six-year (2015-2020) Conservation First program. Final results for the 2011-14 program were issued in the fall of 2015, and the program in completed, although in some instances disposition of the amounts has been deferred. For the purposes of the 2015-2020 LRAMVA, and the impact of CDM on the load forecast, CDM programs in 2014 and earlier are implicit in the historical data on which the base load forecast is developed. Only impacts of 2015 to 2017 CDM programs need to be reflected in the manual load forecast adjustment and for the LRAMVA threshold amount in 2017 and carrying forward, although the half-year impact of 2015 CDM programs on the 2015 historical data is also assumed to be reflected in the base load forecast.  "]
[]
["The new six year (2015-2020) CDM program works similarly to the previous 2011-2014 CDM program, meaning that distributors will offer programs each year that, over the six years (from January 1, 2015 to December 31, 2020) will strive to cumulatively achieve savings meeting the new six year CDM target. In other words, distributors will be able to offer and execute programs on a basis so that cumulatively over the period, the measured impacts, including persistence, of the CDM programs will accumulate towards achieving each distributor's 2015-2020 CDM target."]
[]
["2015-2020 CDM Program - 2017, third year of the current CDM plan"]
[]
["For the first year of the new 2015-2020 CDM plan, it is assumed that each year's program will achieve an equal amount of new CDM savings.  The new targets for 2015-2020 do not take into account persistence beyond the first year, but the IESO will encourage distributors to promote and implement  CDM plans that will have longer term persistence of savings.  This results in each year's program being about 1/6 (18.67%) of the cumulative 2015-2020 CDM target for kWh savings.  A distributor may propose an alternative approach but would be expected to document in its application why it believes that its proposal is more reasonable.  In its proposal, the distributor should ensure that the sum of the results for each year's CDM program from 2015 to 2020 add up to its 2015-2020 CDM target as established by the IESO."]
[]
["6 Year (2015-2020) kWh Target:"]
[125000]
[null,2015,2016,2017,2018,2019,2020,"Total"]
["%"]
["2015 CDM Programs",{"$f":"B34/$H$40","v":4.7619047619047616E-2},{"$f":"C34/$H$40","v":4.7619047619047616E-2},4.7619047619047616E-2,4.7619047619047616E-2,4.7619047619047616E-2,4.7619047619047616E-2,{"$f":"SUM(B26:G26)","v":0.2857142857142857}]
["2016 CDM Programs",null,4.7619047619047616E-2,4.7619047619047616E-2,4.7619047619047616E-2,4.7619047619047616E-2,4.7619047619047616E-2,{"$f":"SUM(B27:G27)","v":0.23809523809523808}]
["2017 CDM Programs",null,null,4.7619047619047616E-2,4.7619047619047616E-2,4.7619047619047616E-2,4.7619047619047616E-2,{"$f":"SUM(B28:G28)","v":0.19047619047619047}]
["2018 CDM Programs",null,null,null,4.7619047619047609E-2,4.7619047619047609E-2,4.7619047619047609E-2,{"$f":"SUM(E29:G29)","v":0.14285714285714282}]
["2019 CDM Programs",null,null,null,null,4.7619047619047609E-2,4.7619047619047609E-2,{"$f":"SUM(F30:G30)","v":9.5238095238095219E-2}]
["2020 CDM Programs",null,null,null,null,null,{"$f":"G39/$H$40","v":4.7619047619047609E-2},{"$f":"SUM(B31:G31)","v":4.7619047619047609E-2}]
["Total in Year",{"$f":"SUM(B26:B31)","v":4.7619047619047616E-2},{"$f":"SUM(C26:C31)","v":9.5238095238095233E-2},{"$f":"SUM(D26:D31)","v":0.14285714285714285},{"$f":"SUM(E26:E29)","v":0.19047619047619047},{"$f":"SUM(F26:F30)","v":0.23809523809523808},{"$f":"SUM(G26:G31)","v":0.2857142857142857},{"$f":"SUM(B32:G32)","v":0.99999999999999989}]
["kWh"]
[{"$f":"A26","v":"2015 CDM Programs"},{"$f":"1/21*A23","v":5952.3809523809523},{"$f":"B34","v":5952.3809523809523},{"$f":"C34","v":5952.3809523809523},{"$f":"D34","v":5952.3809523809523},{"$f":"E34","v":5952.3809523809523},{"$f":"F34","v":5952.3809523809523},{"$f":"SUM(B34:G34)","v":35714.285714285717}]
["2016 CDM Programs",null,{"$f":"1/15*(A23-H34)","v":5952.3809523809523},{"$f":"C35","v":5952.3809523809523},{"$f":"D35","v":5952.3809523809523},{"$f":"E35","v":5952.3809523809523},{"$f":"F35","v":5952.3809523809523},{"$f":"SUM(B35:G35)","v":29761.904761904763},null,null,2011,2012,2013,2014]
["2017 CDM Programs",null,null,{"$f":"1/10*(A23-(H34+H35))","v":5952.3809523809523},{"$f":"D36","v":5952.3809523809523},{"$f":"E36","v":5952.3809523809523},{"$f":"F36","v":5952.3809523809523},{"$f":"SUM(B36:G36)","v":23809.523809523809},null,"2011 CDM Programs",{"$f":"50%","v":0.5},1,1,1]
["2018 CDM Programs",null,null,null,{"$f":"1/6*(A23-(H34+H35+H36))","v":5952.3809523809514},{"$f":"E37","v":5952.3809523809514},{"$f":"F37","v":5952.3809523809514},{"$f":"SUM(E37:G37)","v":17857.142857142855},null,"2012 CDM Programs",null,0.5,1,1]
["2019 CDM Programs",null,null,null,null,{"$f":"E37","v":5952.3809523809514},{"$f":"F38","v":5952.3809523809514},{"$f":"SUM(F38:G38)","v":11904.761904761903},null,"2013 CDM Programs",null,null,0.5,1]
["2020 CDM Programs",null,null,null,null,null,{"$f":"F38","v":5952.3809523809514},{"$f":"SUM(B39:G39)","v":5952.3809523809514},null,"2014 CDM Programs",null,null,null,0.5]
["Total in Year",{"$f":"SUM(B34:B39)","v":5952.3809523809523},{"$f":"SUM(C34:C39)","v":11904.761904761905},{"$f":"SUM(D34:D39)","v":17857.142857142855},{"$f":"SUM(E34:E37)","v":23809.523809523806},{"$f":"SUM(F34:F38)","v":29761.904761904756},{"$f":"SUM(G34:G39)","v":35714.28571428571},{"$f":"SUM(H34:H39)","v":125000}]
[]
["Note: The default formulae in the above table assume that 1/21 of the 2015-2020 kWh CDM target is required each year so that, including persistence, 100% of the kWh target is achieved by the end of 2020.  The distributor can input the 2015 CDM savings, including persistence from 2016 to 2020, once the reports become available. The distributor can also input estimates or forecasts of the 2016 and 2017 CDM programs if it believes that these are more realistic; such information would typically be derived from the CDM plans that the distributor has filed with the IESO. Similarly, CDM savings and persistence into future years can be estimated for 2018, 2019 and 2020 CDM programs. However, the distributor will have to support its proposals for estimated or forecasted savings, particularly beyond the 2017 test year. The sum of cumulative savings, including persistence, should equal the target entered into cell A25.",null,null,null,null,null,null,"Total does not match 6 year CDM target"]
[]
["Determination of 2017 Load Forecast Adjustment"]
[]
["The Board determined that the \"net\" number should be used in its Decision and Order with respect to Centre Wellington Hydro Ltd.'s 2013 Cost of Service rates (EB-2012-0113).  This approach has also been used in Settlement Agreements accepted by the Board in other 2013 and 2014 applications.  The distributor should select whether the adjustment is done on a \"net\" or \"gross\" basis, but must support a proposal for the adjustment being done on a \"gross\" basis.  Sheet 2-I defaults to the adjustment being done on a \"net\" basis consistent with Board policy and practice."]
[]
["From each of the 2006-2010 CDM Final Report,  and the 2011, 2012, 2013, 2014 and 2015 CDM Final Reports, issued by the OPA/IESO for the distributor, the distributor should input the \"gross\" and \"net\" results of the cumulative CDM savings for 2014 into cells D84 to E88.  The model will calculate the cumulative savings for all programs from 2006 to 2012 and determine the \"net\" to \"gross\" factor \"g\"."]
[]
["Net-to-Gross Conversion"]
[]
["Is CDM adjustment being done on a \"net\" or \"gross\" basis?",null,null,null,null,"net"]
[]
[null,null,"\"Gross\"","\"Net\"","Difference","\"Net-to-Gross\" Conversion Factor"]
["Persistence of Historical CDM programs to 2015",null,"kWh","kWh","kWh","('g')"]
["2006-2010 CDM programs",null,null,null,{"$f":"IF(ISBLANK(D56),\"\",C56-D56)","v":""}]
["2011 CDM program",null,null,null,""]
["2012 CDM program",null,null,null,""]
["2013 CDM program",null,null,null,""]
["2014 CDM program",null,null,null,""]
["2015 CDM program",null,null,null,""]
["2006 to 2015 OPA CDM programs:  Persistence to 2017",null,{"$f":"SUM(C56:C61)","v":0},{"$f":"SUM(D56:D61)","v":0},{"$f":"C62-D62","v":0},{"$f":"IF(D62=0,0,IF(F52=\"net\",0,E62/D62))","v":0}]
[]
["The default values below represent the factor used for how each year's CDM program is factored into the manual CDM adjustment.  Distributors can choose alternative weights of \"0\", \"0.5\" or \"1\" from the drop-down menu for each cell, but must support its alternatives."]
[]
["These factors do not mean that CDM programs are excluded, but the assumption that impacts of previous year CDM programs are already implicitly reflected in the actual data for historical years that are used to derive the load forecast prior to any manual CDM adjustment for the 2017 test year."]
[]
["Weight Factor for Inclusion in CDM Adjustment to 2017 Load Forecast"]
[null,2015,2016,2017,2018,2019,2020]
["Weight Factor for each year's CDM program impact on 2014 load forecast",0.5,1,0.5,0,0,0,"Distributor can select \"0\", \"0.5\", or \"1\" from drop-down list"]
["Default Value selection rationale.  ","Default is 0, but one option is for full year impact of persistence of 2015 CDM programs on 2017 load forecast, but 50% impact in base forecast (first year impact of 2014 CDM programs on 2014 actuals, which is part of the data for the load forecast.","Full year impact of persistence of 2015 programs on 2015 load forecast.  2015 CDM program impacts are not in the base forecast.","Only 50% of 2016 CDM programs are assumed to impact the 2016 load forecast based on the \"half-year\" rule.","2018, 2019 and 2020 are future years beyond the 2017 test year. No impacts of CDM programs beyond the 2017 test year are factored into the test year load forecast."]
[]
["2015-2020 LRAMVA and 2017 CDM adjustment to Load Forecast"]
[]
["One manual adjustment for CDM impacts to the 2017 load forecast is made.  There is a different but related threshold amount that is used for the 2017 LRAMVA amount for Account 1568."]
[]
["The Amount used for the CDM threshold of the LRAMVA is the kWh that will be used to determine the base amount for the LRAMVA balance for 2017, for assessing performance against the five-year target."]
[]
["If used to determine the manual CDM adjustment for the system purchased kWh, the proposed loss factor should correspond with the proposed total loss factor calculated in Appendix 2-R "]
[]
["The Manual Adjustment for the 2017 Load Forecast is the amount manually subtracted from the system-wide load forecast (either based on a purchased or billed basis) derived from the base forecast from historical data. "]
[]
["If the distributor has developed their load forecast on a system purchased basis, then the manual adjustment should be on a system purchased basis, including the adjustment for losses.  If the load forecast has been developed on a billed basis, either on a system basis or on a class-specific basis, the manual adjustment should be on a billed basis, excluding losses."]
[]
["The distributor should determine the allocation of the savings to all customer classes in a reasonable manner (e.g. taking into account what programs and what IESO-measured impacts were directed at specific customer classes), for both the LRAMVA and for the load forecast adjustment."]
[]
[null,2015,2016,2017,2018,2019,2020,"Total for 2017"]
[]
["Amount used for CDM threshold for LRAMVA (2017)",{"$f":"D34","v":5952.3809523809523},{"$f":"D35","v":5952.3809523809523},{"$f":"D36","v":5952.3809523809523},null,null,null,{"$f":"SUM(B89:G89)","v":17857.142857142855}]
[]
["Manual Adjustment for 2017 Load Forecast (billed basis)",{"$f":"B89*(1+F62)*B70","v":2976.1904761904761},{"$f":"C89*(1+F62)*C70","v":5952.3809523809523},{"$f":"D89*(1+F62)*D70","v":2976.1904761904761},{"$f":"E89*(1+E62)*E70","v":0},{"$f":"F89*(1+F62)*F70","v":0},{"$f":"G89*(1+F62)*G70","v":0},{"$f":"SUM(B91:G91)","v":11904.761904761905}]
[]
["Proposed Loss Factor (TLF)",3.2500000000000001E-2," Format: X.XX%"]
["Manual Adjustment for 2017 Load Forecast (system purchased basis)",{"$f":"B91*(1+$B93)","v":3072.9166666666665},6145.833333333333,3072.9166666666665,0,0,0,{"$f":"SUM(B94:G94)","v":12291.666666666666}]
[]
["Manual adjustment uses \"gross\" versus \"net\" (i.e. numbers multiplied by (1 + g).  The Weight factor is also used to calculate the impact of each year's program on the CDM adjustment to the 2017 load forecast."]

{"sheet":"App.2-IA_Load_Forecast_Instrct","index":29,"n_rows":45,"n_cols":18,"rows_kept":45,"cut":false,"hidden":false,"merged":[[24,1,24,17],[26,1,26,17],[43,2,43,17],[44,2,44,17],[28,8,28,10],[28,12,28,14],[29,13,29,14],[29,9,29,10],[41,2,41,17],[42,2,42,17],[28,16,28,17],[9,1,9,17],[8,1,8,17],[18,1,18,17],[20,1,20,17],[22,1,22,17]]}
[null,null,null,null,null,null,null,null,null,null,null,null,null,null,null,null,"File Number:",{"$f":"EBNUMBER","v":"EB-2017-0032"}]
[null,null,null,null,null,null,null,null,null,null,null,null,null,null,null,null,"Exhibit:"]
[null,null,null,null,null,null,null,null,null,null,null,null,null,null,null,null,"Tab:"]
[null,null,null,null,null,null,null,null,null,null,null,null,null,null,null,null,"Schedule:"]
[null,null,null,null,null,null,null,null,null,null,null,null,null,null,null,null,"Page:"]
[]
[null,null,null,null,null,null,null,null,null,null,null,null,null,null,null,null,"Date:"]
[]
[null,"Appendix 2-IA"]
[null,"Instructions on Customer, Connections, Load Forecast and Revenues Data and Analysis"]
[]
[null,"This sheet requires no inputs, but serves as a summary of the hiostorical and forecasted data to be provided with respect to:"]
[]
[null,"1)","Customers and connections"]
[null,"2)","Consumption (kWh)"]
[null,"3)","Demand (kW or kCA) for applicable demand-billed customer classes"]
[null,"4)","Revenues"]
[]
[null,"The spreadsheet summarizes the data provided and the analyses (variance or year-over-year) that are required. Data are required to be provided on a customer class level. Consumption (kWh) must also be provided on a total distribution system level."]
[]
[null,"Appendix 2-IB (formerly 2-IA) is the appendix spreadsheet that the distributor populates, and the spreadsheet is laid out for inputting the necessary data. The spreadsheet also calculates necessary statistics such as average consumption per customer/connection per year, and variances and % annual changes, as necessary."]
[]
[null,"The distributor is required to provide suitable documentation in Exhibit 3 of its Application, in accordance with section 2.3.2 of Chaoter 2 of the Filing Requirements. This would include explanations for material variations or of trends in the data."]
[]
[null,"The distributor is also required to input its test year customer/connection and load forecast in Sheet 10 - Load Forecast of the Revenue Requirement Work Form. This sheet should also be updated to reflect changes in the load forecast made through the stages of processing of the rates application."]
[]
[null,"The applicant must demonstrate the historical accuracy of its load forecast approach for at least the past 5 years. Such analysis will cover both customer/connections and consumption (kWh) and demand (kW or kVA) by providing the following, as shown in the following table:"]
[]
[null,null,null,"Calendar Year",null,"Customers / Connections",null,null,"Consumption (kWh) (3)",null,null,null,"Demand (kW or kVA)",null,null,null,"Revenues"]
[null,null,null,"(for 2017 Cost of Service)",null,null,null,null,"Weather-actual","Weather-normalized",null,null,"Weather-actual","Weather-normalized",null,null,"Weather-actual","Weather-normalized"]
[null,null,"Historical",2012,null,8299.5,null,null,156500644.44999999,143496616.94985288,null,null,212592.44,212592.44]
[null,null,"Historical",2013,null,8420.5,null,null,154795353.84,144472247.66218883,null,null,211475.69000000003,211475.69000000003,null,null,3135353.4293999998]
[null,null,"Historical",2014,null,8468,"Board-approved (2)",null,148717979.18000001,144603820.11636949,"Board-approved (2)",null,200783.47999999995,200783.47999999995,"Board-approved (2)",null,3148576.3959999997]
[null,null,"Historical",2015,null,8494.5,null,null,144221924.34,144146024.823457,null,null,193246.07999999999,193246.07999999999,null,null,3156964.3034399995]
[null,null,"Historical",2016,null,8525,null,null,145136098.44,144563750.38198498,null,null,190379.59000000003,190379.59000000003,null,null,3233519.3295]
[null,null,"Bridge Year (Forecast)",2017,null,8596.8348726883341,null,null,null,145032041.76362807,null,null,null,209103.60896900989,null,null,null,3330163.5734911435]
[null,null,"Test Year (Forecast)",2018,null,8669.3892955487136,null,null,null,145335432.77389887,null,null,null,209542.0354060907,null,null,null,3707316.8310998529]
[null,null,null,null,null,null,null,null,"*Distribution System",null,null,null,"*Distribution System"]
[]
[null,"Notes:"]
[]
[null,"(1)","“Weather-normalized actuals” are estimated by replacing the actual weather-related values (typically Heating Degree Days (HDD) and Cooling Degree Days (CDD)) by the “typical” or “weather-normalized” values. These “weather-normalized HDD and CDD values would be the same as used to estimate the Bridge Year and Test Year forecasts."]
[null,"(2)","For 2017 Cost of Service rebasers, the typical situation is that 2013 would have been the most recent cost of service rebasing application. If the most recent rebasing application was for a rate year other than 2013, that year should be used. An applicant must provide historical information back to the greater of: a) at least five (5) historical actual years; or b) to its last cost of service application."]
[null,"(3)","Consumption must be provided on a total distribution system basis as well as at a customer class level."]
[null,"(4)","Revenues exclude commodity charges."]

{"sheet":"App.2-IB_Load_Forecast_Analysis","index":30,"n_rows":489,"n_cols":21,"rows_kept":489,"cut":false,"hidden":false,"merged":[[382,10,382,14],[382,16,382,20],[426,5,426,7],[435,11,435,12],[435,17,435,18],[445,3,445,5],[447,5,447,8],[447,10,447,14],[447,16,447,20],[405,5,405,7],[414,11,414,12],[414,17,414,18],[425,5,425,8],[425,10,425,14],[425,16,425,20],[349,11,349,12],[349,17,349,18],[359,3,359,5],[361,5,361,8],[361,10,361,14],[361,16,361,20],[319,5,319,7],[328,11,328,12],[328,17,328,18],[339,5,339,8],[339,10,339,14],[339,16,339,20],[24,1,24,21],[8,1,8,21],[9,1,9,21],[18,1,18,21],[20,1,20,21],[22,1,22,21],[26,1,26,21],[60,10,60,14],[60,16,60,20],[36,10,36,14],[37,5,37,7],[28,1,28,21],[58,3,58,5],[60,5,60,8],[230,3,230,5],[469,5,469,7],[362,5,362,7],[371,11,371,12],[371,17,371,18],[382,5,382,8],[297,5,297,7],[306,11,306,12],[306,17,306,18],[316,3,316,5],[318,5,318,8],[318,10,318,14],[318,16,318,20],[276,5,276,7],[285,11,285,12],[285,17,285,18],[296,5,296,8],[232,5,232,8],[232,10,232,14],[232,16,232,20],[233,5,233,7],[296,10,296,14],[296,16,296,20],[340,5,340,7],[478,11,478,12],[478,17,478,18],[448,5,448,7],[457,11,457,12],[457,17,457,18],[468,5,468,8],[468,10,468,14],[468,16,468,20],[383,5,383,7],[392,11,392,12],[392,17,392,18],[402,3,402,5],[404,5,404,8],[404,10,404,14],[404,16,404,20],[254,5,254,7],[263,11,263,12],[263,17,263,18],[273,3,273,5],[275,5,275,8],[275,10,275,14],[275,16,275,20],[242,11,242,12],[242,17,242,18],[253,5,253,8],[253,10,253,14],[253,16,253,20],[91,11,91,12],[81,5,81,8],[82,5,82,7],[70,17,70,18],[81,16,81,20],[91,17,91,18],[125,5,125,7],[46,11,46,12],[134,11,134,12],[134,17,134,18],[103,5,103,8],[103,10,103,14],[113,11,113,12],[113,17,113,18],[124,5,124,8],[124,10,124,14],[124,16,124,20],[61,5,61,7],[103,16,103,20],[104,5,104,7],[70,11,70,12],[81,10,81,14],[101,3,101,5],[144,3,144,5],[146,5,146,8],[146,10,146,14],[146,16,146,20],[147,5,147,7],[156,11,156,12],[156,17,156,18],[167,5,167,8],[167,10,167,14],[167,16,167,20],[168,5,168,7],[177,11,177,12],[177,17,177,18],[187,3,187,5],[189,5,189,8],[189,10,189,14],[189,16,189,20],[211,5,211,7],[220,11,220,12],[220,17,220,18],[190,5,190,7],[199,11,199,12],[199,17,199,18],[210,5,210,8],[210,10,210,14],[210,16,210,20]]}
[null,null,null,null,null,null,null,null,null,null,null,null,null,null,null,null,null,null,null,"File Number:","EB-2017-0032"]
[null,null,"REVISED JUNE 14, 2017",null,null,null,null,null,null,null,null,null,null,null,null,null,null,null,null,"Exhibit:"]
[null,null,null,null,null,null,null,null,null,null,null,null,null,null,null,null,null,null,null,"Tab:"]
[null,null,null,null,null,null,null,null,null,null,null,null,null,null,null,null,null,null,null,"Schedule:"]
[null,null,null,null,null,null,null,null,null,null,null,null,null,null,null,null,null,null,null,"Page:"]
[]
[null,null,null,null,null,null,null,null,null,null,null,null,null,null,null,null,null,null,null,"Date:"]
[]
[null,"Appendix 2-IB"]
[null,"Customer, Connections, Load Forecast and Revenues Data and Analysis"]
[]
[null,"This sheet requires no inputs, but serves as a summary of the hiostorical and forecasted data to be provided with respect to:"]
[]
[null,"1)","Customers and connections"]
[null,"2)","Consumption (kWh)"]
[null,"3)","Demand (kW or kCA) for applicable demand-billed customer classes"]
[null,"4)","Revenues"]
[]
[null,"The spreadsheet summarizes the data provided and the analyses (variance or year-over-year) that are required. Data are required to be provided on a customer class level. Consumption (kWh) must also be provided on a total distribution system level."]
[]
[null,"Appendix 2-IB (formerly 2-IA) is the appendix spreadsheet that the distributor populates, and the spreadsheet is laid out for inputting the necessary data. The spreadsheet also calculates necessary statistics such as average consumption per customer/connection per year, and variances and % annual changes, as necessary."]
[]
[null,"The distributor is required to provide suitable documentation in Exhibit 3 of its Application, in accordance with section 2.3.2 of Chaoter 2 of the Filing Requirements. This would include explanations for material variations or of trends in the data."]
[]
[null,"The distributor is also required to input its test year customer/connection and load forecast in Sheet 10 - Load Forecast of the Revenue Requirement Work Form. This sheet should also be updated to reflect changes in the load forecast made through the stages of processing of the rates application."]
[]
[null,"The applicant must demonstrate the historical accuracy of its load forecast approach for at least the past 5 years. Such analysis will cover both customer/connections and consumption (kWh) and demand (kW or kVA) by providing the following, as shown in the following table:"]
[]
[null,"This sheet is to be filled in accordance with the instructions documented in section 2.3.2 of Chapter 2 of the Filing Requirements for Distribution Rate Applications, in terms of one set of tables per customer class."]
[]
[null,"Color coding for Cells:",null,null,null,"Data input",null,null,null,null,"Drop-down List"]
[]
[null,null,null,null,null,"No data entry required",null,null,null,null,"Blank or calculated value"]
[]
[null,"Distribution System (Total)"]
[]
[null,null,null,"Calendar Year",null,null,null,null,null,null,"Consumption (kWh) (3)"]
[null,null,null,"(for 2018 Cost of Service",null,null,null,null,null,null,null,"Actual (Weather actual)","Weather-normalized",null,"Weather-normalized"]
[null,null,"Historical",2012,null,null,null,null,null,null,"Actual",156500644.44999999,143496616.94985288,""]
[null,null,"Historical",2013,null,null,null,null,null,null,"Actual",154795353.84,144472247.66218883,"Board-approved"]
[null,null,"Historical",2014,null,null,null,null,null,null,"Actual",148717979.18000001,144603820.11636949,""]
[null,null,"Historical",2015,null,null,null,null,null,null,"Actual",144221924.34,144146024.823457,""]
[null,null,"Historical",2016,null,null,null,null,null,null,"Actual",145136098.44,144563750.38198498,""]
[null,null,"Bridge Year",2017,null,null,null,null,null,null,"Forecast",null,145032041.76362807,""]
[null,null,"Test Year",2018,null,null,null,null,null,null,"Forecast",null,145335432.77389887,""]
[null,null,null,null,null,null,null,null,null,null,null,null,null,null,0]
[null,null,"Variance Analysis",null,null,null,null,null,null,null,"Year","Year-over-year",null,null,"Versus Board-approved"]
[null,null,null,2012,null,null,null,null,null,null,2012]
[null,null,null,2013,null,null,null,null,null,null,2013,-1.0896380752890789E-2,6.7989805827748384E-3]
[null,null,null,2014,null,null,null,null,null,null,2014,-3.9260704596351781E-2,9.1071092413752552E-4]
[null,null,null,2015,null,null,null,null,null,null,2015,-3.0232086697185578E-2,-3.1658589139904603E-3]
[null,null,null,2016,null,null,null,null,null,null,2016,6.3386624757886256E-3,2.8979332523362267E-3]
[null,null,null,2017,null,null,null,null,null,null,2017,"",3.23934167732709E-3]
[null,null,null,2018,null,null,null,null,null,null,2018,"",2.0918895340746868E-3,null,""]
[null,null,null,"Geometric Mean",null,null,null,null,null,null,"Geometric Mean",null,0.98986535268988352,null,""]
[]
[null,"Customer Class Analysis (one for each Customer Class, excluding MicroFIT and Standby)"]
[]
[null,1,"Customer Class:","Residential",null,null,null,"Is the customer class billed on consumption (kWh) or demand (kW or kVA)?",null,null,null,null,null,"kWh"]
[]
[null,null,null,"Calendar Year",null,"Customers",null,null,null,null,"Consumption (kWh) (3)",null,null,null,null,null,"Consumption (kWh) per Customer"]
[null,null,null,"(for 2018 Cost of Service",null,null,null,null,null,null,null,"Actual (Weather actual)","Weather-normalized",null,"Weather-normalized",null,null,"Actual (Weather actual)","Weather-normalized",null,"Weather-normalized"]
[null,null,"Historical",2012,null,"Actual",5805,"",null,null,"Actual",45223786,45154493.254599124,"",null,null,"Actual",7790.4885443583116,7778.5518095777988,"",""]
[null,null,"Historical",2013,null,"Actual",5911.5,"Board-approved",5858,null,"Actual",46477809,45782444.498456918,"Board-approved",45809827,null,"Actual",7862.2699822380109,7744.6408692306386,"Board-approved",7820.0455786958009]
[null,null,"Historical",2014,null,"Actual",5946.5,"",null,null,"Actual",46177614,45855881.363355793,"",null,null,"Actual",7765.5114773396117,7711.4069390996037,"",""]
[null,null,"Historical",2015,null,"Actual",5961,"",null,null,"Actual",45098159,45491149.951531768,"",null,null,"Actual",7565.5358161382319,7631.4628336741771,"",""]
[null,null,"Historical",2016,null,"Actual",5988.5,"",null,null,"Actual",44914361,45102913.851007625,"",null,null,"Actual",7500.102028888703,7531.5878518840491,"",""]
[null,null,"Bridge Year",2017,null,"Forecast",6047.4668331756211,"",null,null,"Forecast",null,45507125.129285187,"",null,null,"Forecast",0,7524.9896170804914,"",""]
[null,null,"Test Year",2018,null,"Forecast",6107.0142937896262,"",null,null,"Forecast",null,45602321.008068956,"",null,null,"Forecast",0,7467.2039091906308,"",""]
[null,null,null,null,null,null,null,null,5858,null,null,null,null,null,45809827,null,null,null,null,null,7820.0455786958009]
[null,null,"Variance Analysis","Year",null,null,"Year-over-year",null,"Test Year Versus Board-approved",null,"Year","Year-over-year",null,null,"Test Year Versus Board-approved",null,"Year","Year-over-year",null,null,"Test Year Versus Board-approved"]
[null,null,null,2012,null,null,null,null,null,null,2012,null,null,null,null,null,2012]
[null,null,null,2013,null,null,1.8346253229974074E-2,null,null,null,2013,2.7729279454842715E-2,1.3906727738414615E-2,null,null,null,2013,9.2139841386047472E-3,-4.35954418988449E-3]
[null,null,null,2014,null,null,5.9206631142687538E-3,null,null,null,2014,-6.4588888000293165E-3,1.6040398389245425E-3,null,null,null,2014,-1.2306688159652412E-2,-4.2912164285205945E-3]
[null,null,null,2015,null,null,2.4384091482385628E-3,null,null,null,2015,-2.3376153648822173E-2,-7.9538632991031921E-3,null,null,null,2015,-2.5751769446858086E-2,-1.0366993475610986E-2]
[null,null,null,2016,null,null,4.6133199127662561E-3,null,null,null,2016,-4.0755100446561165E-3,-8.5343215315020204E-3,null,null,null,2016,-8.6489296779153069E-3,-1.3087265700807094E-2]
[null,null,null,2017,null,null,9.8466783294015592E-3,null,null,null,2017,"",8.9619770379543162E-3,null,null,null,2017,"",-8.7607486406826585E-4]
[null,null,null,2018,null,null,9.8466783294015592E-3,null,4.2508414781431636E-2,null,2018,"",2.0918895340744648E-3,null,-4.529726600605688E-3,null,2018,"",-7.6791744348320146E-3,null,-4.5120155113471339E-2]
[null,null,null,"Geometric Mean",null,null,7.0081420767009704E-3,null,1.0461782335674297E-2,null,"Geometric Mean",null,0.99213602711377025,null,-1.1343603510095557E-3,null,"Geometric Mean",null,1.0332194909713304,null,-1.1476082410439514E-2]
[]
[]
[null,null,null,"Calendar Year",null,"Revenues",null,null,null,null,"Demand (kWh)",null,null,null,null,null,"Demand (kWh) per Customer"]
[null,null,null,"(for 2018 Cost of Service",null,null,null,null,null,null,null,"Actual (Weather actual)","Weather-normalized",null,"Weather-normalized",null,null,"Actual (Weather actual)","Weather-normalized",null,"Weather-normalized"]
[null,null,"Historical",2012,null,"Actual",1541111.95,"",null,null,"Actual",null,null,"",null,null,"Actual",0,0,"",""]
[null,null,"Historical",2013,null,"Actual",1730720.48,"Board-approved",1711242.7,null,"Actual",null,null,"Board-approved",null,null,"Actual",0,0,"Board-approved",0]
[null,null,"Historical",2014,null,"Actual",1756891.94,"",null,null,"Actual",null,null,"",null,null,"Actual",0,0,"",""]
[null,null,"Historical",2015,null,"Actual",1767440.92,"",null,null,"Actual",null,null,"",null,null,"Actual",0,0,"",""]
[null,null,"Historical",2016,null,"Actual",1808496.55,"",null,null,"Actual",null,null,"",null,null,"Actual",0,0,"",""]
[null,null,"Bridge Year (Forecast)",2017,null,"Forecast",1862165.76,"",null,null,"Forecast",null,null,"",null,null,"Forecast",0,0,"",""]
[null,null,"Test Year (Forecast)",2018,null,"Forecast",2092149.1,"",null,null,"Forecast",null,null,"",null,null,"Forecast",0,0,"",""]
[null,null,null,null,null,null,null,null,1711242.7,null,null,null,null,null,0,null,null,null,null,null,0]
[null,null,"Variance Analysis","Year",null,null,"Year-over-year",null,"Test Year Versus Board-approved",null,"Year","Year-over-year",null,null,"Test Year Versus Board-approved",null,"Year","Year-over-year",null,null,"Test Year Versus Board-approved"]
[null,null,null,2012,null,null,null,null,null,null,2012,null,null,null,null,null,2012]
[null,null,null,2013,null,null,0.12303358623622374,null,null,null,2013,"","",null,null,null,2013,"",""]
[null,null,null,2014,null,null,1.5121713934996617E-2,null,null,null,2014,"","",null,null,null,2014,"",""]
[null,null,null,2015,null,null,6.0043419631146122E-3,null,null,null,2015,"","",null,null,null,2015,"",""]
[null,null,null,2016,null,null,2.3228855649670033E-2,null,null,null,2016,"","",null,null,null,2016,"",""]
[null,null,null,2017,null,null,2.9676147294834365E-2,null,null,null,2017,"","",null,null,null,2017,"",""]
[null,null,null,2018,null,null,0.12350315151321434,null,0.22259051857460088,null,2018,"","",null,"",null,2018,"","",null,""]
[null,null,null,"Geometric Mean",null,null,3.1359364190411243E-2,null,5.1526581942411109E-2,null,"Geometric Mean",null,"",null,"",null,"Geometric Mean",null,"",null,""]
[]
[null,2,"Customer Class:","GS < 50 kW",null,null,null,"Is the customer class billed on consumption (kWh) or demand (kW or kVA)?",null,null,null,null,null,"kWh"]
[]
[null,null,null,"Calendar Year",null,"Customers",null,null,null,null,"Consumption (kWh) (3)",null,null,null,null,null,"Consumption (kWh) per Customer"]
[null,null,null,"(for 2018 Cost of Service",null,null,null,null,null,null,null,"Actual (Weather actual)","Weather-normalized",null,"Weather-normalized",null,null,"Actual (Weather actual)","Weather-normalized",null,"Weather-normalized"]
[null,null,"Historical",2012,null,"Actual",707.5,"",null,null,"Actual",20304130,20273019.625678923,"",null,null,"Actual",28698.416961130741,28654.444700606251,"",""]
[null,null,"Historical",2013,null,"Actual",711,"Board-approved",738,null,"Actual",20342402,20038054.946400315,"Board-approved",20408044,null,"Actual",28610.973277074543,28182.91834936753,"Board-approved",27653.176151761516]
[null,null,"Historical",2014,null,"Actual",715,"",null,null,"Actual",20579869,20436483.169905741,"",null,null,"Actual",28783.033566433565,28582.493943924113,"",""]
[null,null,"Historical",2015,null,"Actual",730,"",null,null,"Actual",21387560,21573933.850767229,"",null,null,"Actual",29298.027397260274,29553.334042146889,"",""]
[null,null,"Historical",2016,null,"Actual",741.5,"",null,null,"Actual",23270825,23368517.147931248,"",null,null,"Actual",31383.445718138908,31515.19507475556,"",""]
[null,null,"Bridge Year",2017,null,"Forecast",749.77562632069578,"",null,null,"Forecast",null,20960878.592927814,"",null,null,"Forecast",0,27956.201638331702,"",""]
[null,null,"Test Year",2018,null,"Forecast",758.14361405878844,"",null,null,"Forecast",null,21004726.435481369,"",null,null,"Forecast",0,27705.471688972913,"",""]
[null,null,null,null,null,null,null,null,738,null,null,null,null,null,20408044,null,null,null,null,null,27653.176151761516]
[null,null,"Variance Analysis","Year",null,null,"Year-over-year",null,"Test Year Versus Board-approved",null,"Year","Year-over-year",null,null,"Test Year Versus Board-approved",null,"Year","Year-over-year",null,null,"Test Year Versus Board-approved"]
[null,null,null,2012,null,null,null,null,null,null,2012,null,null,null,null,null,2012]
[null,null,null,2013,null,null,4.9469964664310417E-3,null,null,null,2013,1.884936709920515E-3,-1.1590018833750326E-2,null,null,null,2013,-3.046986325922818E-3,-1.6455609458338016E-2]
[null,null,null,2014,null,null,5.6258790436005679E-3,null,null,null,2014,1.1673498537684956E-2,1.9883577750993364E-2,null,null,null,2014,6.0137866577538723E-3,1.4177935357980731E-2]
[null,null,null,2015,null,null,2.0979020979021046E-2,null,null,null,2015,3.9246654096777744E-2,5.5657848339408567E-2,null,null,null,2015,1.7892270793419263E-2,3.3966248715995961E-2]
[null,null,null,2016,null,null,1.5753424657534154E-2,null,null,null,2016,8.8054224044257445E-2,8.3182942414565586E-2,null,null,null,2016,7.1179478829815235E-2,6.6383746409484745E-2]
[null,null,null,2017,null,null,1.1160655860682045E-2,null,null,null,2017,"",-0.10302915412913038,null,null,null,2017,"",-0.1129294433361987]
[null,null,null,2018,null,null,1.1160655860682045E-2,null,2.7294869998358395E-2,null,2018,"",2.0918895340746868E-3,null,2.9237610203181053E-2,null,2018,"",-8.9686700862467994E-3,null,1.8911222683570816E-3]
[null,null,null,"Geometric Mean",null,null,1.0229284801859619E-2,null,6.7549644363211758E-3,null,"Geometric Mean",null,0.97203326781510535,null,7.2306014441942956E-3,null,"Geometric Mean",null,1.0273091552447422,null,4.724456542801736E-4]
[]
[]
[null,null,null,"Calendar Year",null,"Revenues",null,null,null,null,"Demand (kWh)",null,null,null,null,null,"Demand (kWh) per Customer"]
[null,null,null,"(for 2018 Cost of Service",null,null,null,null,null,null,null,"Actual (Weather actual)","Weather-normalized",null,"Weather-normalized",null,null,"Actual (Weather actual)","Weather-normalized",null,"Weather-normalized"]
[null,null,"Historical",2012,null,"Actual",379634.43,"",null,null,"Actual",null,null,"",null,null,"Actual",0,0,"",""]
[null,null,"Historical",2013,null,"Actual",517097.09,"Board-approved",523125.76000000001,null,"Actual",null,null,"Board-approved",null,null,"Actual",0,0,"Board-approved",0]
[null,null,"Historical",2014,null,"Actual",529666.14,"",null,null,"Actual",null,null,"",null,null,"Actual",0,0,"",""]
[null,null,"Historical",2015,null,"Actual",554178.32999999996,"",null,null,"Actual",null,null,"",null,null,"Actual",0,0,"",""]
[null,null,"Historical",2016,null,"Actual",601535.11,"",null,null,"Actual",null,null,"",null,null,"Actual",0,0,"",""]
[null,null,"Bridge Year (Forecast)",2017,null,"Forecast",568408.87,"",null,null,"Forecast",null,null,"",null,null,"Forecast",0,0,"",""]
[null,null,"Test Year (Forecast)",2018,null,"Forecast",643585.76,"",null,null,"Forecast",null,null,"",null,null,"Forecast",0,0,"",""]
[null,null,null,null,null,null,null,null,523125.76000000001,null,null,null,null,null,0,null,null,null,null,null,0]
[null,null,"Variance Analysis","Year",null,null,"Year-over-year",null,"Test Year Versus Board-approved",null,"Year","Year-over-year",null,null,"Test Year Versus Board-approved",null,"Year","Year-over-year",null,null,"Test Year Versus Board-approved"]
[null,null,null,2012,null,null,null,null,null,null,2012,null,null,null,null,null,2012]
[null,null,null,2013,null,null,0.3620921843153162,null,null,null,2013,"","",null,null,null,2013,"",""]
[null,null,null,2014,null,null,2.4306943982221885E-2,null,null,null,2014,"","",null,null,null,2014,"",""]
[null,null,null,2015,null,null,4.6278567098889667E-2,null,null,null,2015,"","",null,null,null,2015,"",""]
[null,null,null,2016,null,null,8.5454045090503694E-2,null,null,null,2016,"","",null,null,null,2016,"",""]
[null,null,null,2017,null,null,-5.5069503756813076E-2,null,null,null,2017,"","",null,null,null,2017,"",""]
[null,null,null,2018,null,null,0.13225847443232186,null,0.23026967740988313,null,2018,"","",null,"",null,2018,"","",null,""]
[null,null,null,"Geometric Mean",null,null,{"$error":"#NUM!"},null,5.3173881153248281E-2,null,"Geometric Mean",null,"",null,"",null,"Geometric Mean",null,"",null,""]
[]
[null,3,"Customer Class:","GS > 50-2999 kW",null,null,null,"Is the customer class billed on consumption (kWh) or demand (kW or kVA)?",null,null,null,null,null,"kW"]
[]
[null,null,null,"Calendar Year",null,"Customers",null,null,null,null,"Consumption (kWh) (3)",null,null,null,null,null,"Consumption (kWh) per Customer"]
[null,null,null,"(for 2018 Cost of Service",null,null,null,null,null,null,null,"Actual (Weather actual)","Weather-normalized",null,"Weather-normalized",null,null,"Actual (Weather actual)","Weather-normalized",null,"Weather-normalized"]
[null,null,"Historical",2012,null,"Actual",59.5,"",null,null,"Actual",63286610,63189641.0519775,"",null,null,"Actual",1063640.5042016807,1062010.7739828152,"",""]
[null,null,"Historical",2013,null,"Actual",57,"Board-approved",62,null,"Actual",60663507,59755907.218200684,"Board-approved",61309307,null,"Actual",1064272.0526315789,1048349.2494421173,"Board-approved",988859.79032258061]
[null,null,"Historical",2014,null,"Actual",56.5,"",null,null,"Actual",55013692,54630395.882130146,"",null,null,"Actual",973693.66371681413,966909.66163062211,"",""]
[null,null,"Historical",2015,null,"Actual",52,"",null,null,"Actual",52447595,52904629.84846472,"",null,null,"Actual",1008607.5961538461,1017396.7278550908,"",""]
[null,null,"Historical",2016,null,"Actual",47.5,"",null,null,"Actual",50553990,50766218.310323983,"",null,null,"Actual",1064294.5263157894,1068762.4907436627,"",""]
[null,null,"Bridge Year",2017,null,"Forecast",46.429708160951243,"",null,null,"Forecast",null,60321817.186956406,"",null,null,"Forecast",0,1299207.3303120357,"",""]
[null,null,"Test Year",2018,null,"Forecast",45.383532629707418,"",null,null,"Forecast",null,60448003.765006162,"",null,null,"Forecast",0,1331936.9441381423,"",""]
[null,null,null,null,null,null,null,null,62,null,null,null,null,null,61309307,null,null,null,null,null,988859.79032258061]
[null,null,"Variance Analysis","Year",null,null,"Year-over-year",null,"Test Year Versus Board-approved",null,"Year","Year-over-year",null,null,"Test Year Versus Board-approved",null,"Year","Year-over-year",null,null,"Test Year Versus Board-approved"]
[null,null,null,2012,null,null,null,null,null,null,2012,null,null,null,null,null,2012]
[null,null,null,2013,null,null,-4.2016806722689037E-2,null,null,null,2013,-4.1447993501310898E-2,-5.4340138298180074E-2,null,null,null,2013,5.9376116968423709E-4,-1.2863828574416147E-2]
[null,null,null,2014,null,null,-8.7719298245614308E-3,null,null,null,2014,-9.3133669307974509E-2,-8.5774136393822364E-2,null,null,null,2014,-8.5108303549638054E-2,-7.7683642025626054E-2]
[null,null,null,2015,null,null,-7.9646017699115057E-2,null,null,null,2015,-4.6644697105586053E-2,-3.158985040834994E-2,null,null,null,2015,3.5857204106430673E-2,5.2214874075542816E-2]
[null,null,null,2016,null,null,-8.6538461538461564E-2,null,null,null,2016,-3.6104706040381851E-2,-4.0420120966082052E-2,null,null,null,2016,5.5211690229476806E-2,5.0487446521341628E-2]
[null,null,null,2017,null,null,-2.253245976944751E-2,null,null,null,2017,"",0.1882275102356632,null,null,null,2017,"",0.21561838253513721]
[null,null,null,2018,null,null,-2.2532459769447621E-2,null,-0.26800753823052548,null,2018,"",2.0918895340746868E-3,null,-1.4048490794290602E-2,null,2018,"",2.5191986731052163E-2,null,0.34694216224895236]
[null,null,null,"Geometric Mean",null,null,{"$error":"#NUM!"},null,-7.503211944854038E-2,null,"Geometric Mean",null,1.0361225842127459,null,-3.5307783146067973E-3,null,"Geometric Mean",null,0.83428840153665007,null,7.7301431365708551E-2]
[]
[]
[null,null,null,"Calendar Year",null,"Revenues",null,null,null,null,"Demand (kW)",null,null,null,null,null,"Demand (kW) per Customer"]
[null,null,null,"(for 2018 Cost of Service",null,null,null,null,null,null,null,"Actual (Weather actual)","Weather-normalized",null,"Weather-normalized",null,null,"Actual (Weather actual)","Weather-normalized",null,"Weather-normalized"]
[null,null,"Historical",2012,null,"Actual",554183.34,"",null,null,"Actual",164083.79999999999,164083.79999999999,"",null,null,"Actual",0.29608215938068438,0.29608215938068438,"",""]
[null,null,"Historical",2013,null,"Actual",687290.84,"Board-approved",669888.38,null,"Actual",165373.30000000002,165373.30000000002,"Board-approved",157640,null,"Actual",0.24061618513641186,0.24061618513641186,"Board-approved",0.23532278616327096]
[null,null,"Historical",2014,null,"Actual",657544.16,"",null,null,"Actual",154259.70000000001,154259.70000000001,"",null,null,"Actual",0.23459975676766714,0.23459975676766714,"",""]
[null,null,"Historical",2015,null,"Actual",637253.37,"",null,null,"Actual",148977.29999999999,148977.29999999999,"",null,null,"Actual",0.23378032508482458,0.23378032508482458,"",""]
[null,null,"Historical",2016,null,"Actual",626609.22,"",null,null,"Actual",145124.19999999998,145124.19999999998,"",null,null,"Actual",0.23160240125416601,0.23160240125416601,"",""]
[null,null,"Bridge Year (Forecast)",2017,null,"Forecast",697312.12,"",null,null,"Forecast",null,163126.16966948824,"",null,null,"Forecast",0,0.23393565806584324,"",""]
[null,null,"Test Year (Forecast)",2018,null,"Forecast",724272.09,"",null,null,"Forecast",null,163467.41159655352,"",null,null,"Forecast",0,0.22569889666265275,"",""]
[null,null,null,null,null,null,null,null,669888.38,null,null,null,null,null,157640,null,null,null,null,null,0.23532278616327096]
[null,null,"Variance Analysis","Year",null,null,"Year-over-year",null,"Test Year Versus Board-approved",null,"Year","Year-over-year",null,null,"Test Year Versus Board-approved",null,"Year","Year-over-year",null,null,"Test Year Versus Board-approved"]
[null,null,null,2012,null,null,null,null,null,null,2012,null,null,null,null,null,2012]
[null,null,null,2013,null,null,0.24018675841103421,null,null,null,2013,7.8587892284309735E-3,7.8587892284309735E-3,null,null,null,2013,-0.1873330509352229,-0.1873330509352229]
[null,null,null,2014,null,null,-4.3281065698474785E-2,null,null,null,2014,-6.7203109570892039E-2,-6.7203109570892039E-2,null,null,null,2014,-2.5004254661147751E-2,-2.5004254661147751E-2]
[null,null,null,2015,null,null,-3.0858444549184405E-2,null,null,null,2015,-3.4243551621065182E-2,-3.4243551621065182E-2,null,null,null,2015,-3.4928922950848706E-3,-3.4928922950848706E-3]
[null,null,null,2016,null,null,-1.670316784672321E-2,null,null,null,2016,-2.5863671847992986E-2,-2.5863671847992986E-2,null,null,null,2016,-9.3161125935996569E-3,-9.3161125935996569E-3]
[null,null,null,2017,null,null,0.11283412012354366,null,null,null,2017,"",0.12404526377742831,null,null,null,2017,"",1.0074406824118531E-2]
[null,null,null,2018,null,null,3.8662701001095368E-2,null,8.1183241303573572E-2,null,2018,"",2.0918895340744648E-3,null,3.6966579526475085E-2,null,2018,"",-3.5209516459744572E-2,null,-4.0896547493454283E-2]
[null,null,null,"Geometric Mean",null,null,{"$error":"#NUM!"},null,1.9705651615898656E-2,null,"Geometric Mean",null,{"$error":"#NUM!"},null,9.1162271493230307E-3,null,"Geometric Mean",null,1.2425281675464339,null,-1.0384785501379556E-2]
[]
[null,4,"Customer Class:","GS > 3000-5000 kW",null,null,null,"Is the customer class billed on consumption (kWh) or demand (kW or kVA)?",null,null,null,null,null,"kW"]
[]
[null,null,null,"Calendar Year",null,"Customers",null,null,null,null,"Consumption (kWh) (3)",null,null,null,null,null,"Consumption (kWh) per Customer"]
[null,null,null,"(for 2018 Cost of Service",null,null,null,null,null,null,null,"Actual (Weather actual)","Weather-normalized",null,"Weather-normalized",null,null,"Actual (Weather actual)","Weather-normalized",null,"Weather-normalized"]
[null,null,"Historical",2012,null,"Actual",1,"",null,null,"Actual",18104643.600000001,19919755.733964134,"",null,null,"Actual",18104643.600000001,19919755.733964134,"",""]
[null,null,"Historical",2013,null,"Actual",1,"Board-approved",1,null,"Actual",19950324,18330572.956172734,"Board-approved",16959953,null,"Actual",19950324,18330572.956172734,"Board-approved",16959953]
[null,null,"Historical",2014,null,"Actual",1,"",null,null,"Actual",18608986,18333194.201832805,"",null,null,"Actual",18608986,18333194.201832805,"",""]
[null,null,"Historical",2015,null,"Actual",1,"",null,null,"Actual",18461823,17446328.108327266,"",null,null,"Actual",18461823,17446328.108327266,"",""]
[null,null,"Historical",2016,null,"Actual",1,"",null,null,"Actual",17295612,18421962.061268747,"",null,null,"Actual",17295612,18421962.061268747,"",""]
[null,null,"Bridge Year",2017,null,"Forecast",1,"",null,null,"Forecast",null,18961919.497176804,"",null,null,"Forecast",0,18961919.497176804,"",""]
[null,null,"Test Year",2018,null,"Forecast",1,"",null,null,"Forecast",null,19001585.738118909,"",null,null,"Forecast",0,19001585.738118909,"",""]
[null,null,null,null,null,null,null,null,1,null,null,null,null,null,16959953,null,null,null,null,null,16959953]
[null,null,"Variance Analysis","Year",null,null,"Year-over-year",null,"Test Year Versus Board-approved",null,"Year","Year-over-year",null,null,"Test Year Versus Board-approved",null,"Year","Year-over-year",null,null,"Test Year Versus Board-approved"]
[null,null,null,2012,null,null,null,null,null,null,2012,null,null,null,null,null,2012]
[null,null,null,2013,null,null,0,null,null,null,2013,0.1019451385389325,-7.9779230178097404E-2,null,null,null,2013,0.1019451385389325,-7.9779230178097404E-2]
[null,null,null,2014,null,null,0,null,null,null,2014,-6.7233895549766554E-2,1.4299856672983502E-4,null,null,null,2014,-6.7233895549766554E-2,1.4299856672983502E-4]
[null,null,null,2015,null,null,0,null,null,null,2015,-7.9081686664711492E-3,-4.8374881307747031E-2,null,null,null,2015,-7.9081686664711492E-3,-4.8374881307747031E-2]
[null,null,null,2016,null,null,0,null,null,null,2016,-6.3168788911040941E-2,5.5922022495713763E-2,null,null,null,2016,-6.3168788911040941E-2,5.5922022495713763E-2]
[null,null,null,2017,null,null,0,null,null,null,2017,"",2.931052805951051E-2,null,null,null,2017,"",2.931052805951051E-2]
[null,null,null,2018,null,null,0,null,0,null,2018,"",2.0918895340744648E-3,null,0.12037962240337041,null,2018,"",2.0918895340744648E-3,null,0.12037962240337041]
[null,null,null,"Geometric Mean",null,null,{"$error":"#NUM!"},null,0,null,"Geometric Mean",null,1.0384732890664754,null,2.8824505908293663E-2,null,"Geometric Mean",null,1.0384732890664754,null,2.8824505908293663E-2]
[]
[]
[null,null,null,"Calendar Year",null,"Revenues",null,null,null,null,"Demand (kW)",null,null,null,null,null,"Demand (kW) per Customer"]
[null,null,null,"(for 2018 Cost of Service",null,null,null,null,null,null,null,"Actual (Weather actual)","Weather-normalized",null,"Weather-normalized",null,null,"Actual (Weather actual)","Weather-normalized",null,"Weather-normalized"]
[null,null,"Historical",2012,null,"Actual",102396.32,"",null,null,"Actual",45269.7,45269.7,"",null,null,"Actual",0.44210280213195158,0.44210280213195158,"",""]
[null,null,"Historical",2013,null,"Actual",125732.14,"Board-approved",110854.11,null,"Actual",42815.399999999994,42815.399999999994,"Board-approved",37416,null,"Actual",0.34052868264232194,0.34052868264232194,"Board-approved",0.33752469800172497]
[null,null,"Historical",2014,null,"Actual",128747.92,"",null,null,"Actual",43263.5,43263.5,"",null,null,"Actual",0.33603261318707128,0.33603261318707128,"",""]
[null,null,"Historical",2015,null,"Actual",125250.12,"",null,null,"Actual",41432.5,41432.5,"",null,null,"Actual",0.33079808626131457,0.33079808626131457,"",""]
[null,null,"Historical",2016,null,"Actual",133712.54999999999,"",null,null,"Actual",43591.000000000007,43591.000000000007,"",null,null,"Actual",0.32600530017563806,0.32600530017563806,"",""]
[null,null,"Bridge Year (Forecast)",2017,null,"Forecast",137950.85,"",null,null,"Forecast",null,44307.588443321561,"",null,null,"Forecast",0,0.32118387413576327,"",""]
[null,null,"Test Year (Forecast)",2018,null,"Forecast",169967.05,"",null,null,"Forecast",null,44400.275023866219,"",null,null,"Forecast",0,0.26122872064830344,"",""]
[null,null,null,null,null,null,null,null,110854.11,null,null,null,null,null,37416,null,null,null,null,null,0.33752469800172497]
[null,null,"Variance Analysis","Year",null,null,"Year-over-year",null,"Test Year Versus Board-approved",null,"Year","Year-over-year",null,null,"Test Year Versus Board-approved",null,"Year","Year-over-year",null,null,"Test Year Versus Board-approved"]
[null,null,null,2012,null,null,null,null,null,null,2012,null,null,null,null,null,2012]
[null,null,null,2013,null,null,0.22789705723799436,null,null,null,2013,-5.421507100776024E-2,-5.421507100776024E-2,null,null,null,2013,-0.229752263500274,-0.229752263500274]
[null,null,null,2014,null,null,2.3985752568913554E-2,null,null,null,2014,1.0465860414710759E-2,1.0465860414710759E-2,null,null,null,2014,-1.3203203384700379E-2,-1.3203203384700379E-2]
[null,null,null,2015,null,null,-2.7167817546100981E-2,null,null,null,2015,-4.2322049764813241E-2,-4.2322049764813241E-2,null,null,null,2015,-1.5577437190129606E-2,-1.5577437190129606E-2]
[null,null,null,2016,null,null,6.7564246645033021E-2,null,null,null,2016,5.2096783925662304E-2,5.2096783925662304E-2,null,null,null,2016,-1.4488554452792179E-2,-1.4488554452792179E-2]
[null,null,null,2017,null,null,3.1697099486921898E-2,null,null,null,2017,"",1.6438908107672567E-2,null,null,null,2017,"",-1.4789409979767854E-2]
[null,null,null,2018,null,null,0.23208410821680325,null,0.53324987228709864,null,2018,"",2.0918895340742427E-3,null,0.18666546461049327,null,2018,"",-0.18666925183833172,null,-0.22604561326955575]
[null,null,null,"Geometric Mean",null,null,{"$error":"#NUM!"},null,0.11276442872584913,null,"Geometric Mean",null,{"$error":"#NUM!"},null,4.3715362294520776E-2,null,"Geometric Mean",null,1.5233576408673082,null,-6.2051827546636851E-2]
[]
[null,5,"Customer Class:","Unmetered Scattered Load",null,null,null,"Is the customer class billed on consumption (kWh) or demand (kW or kVA)?",null,null,null,null,null,"kWh"]
[]
[null,null,null,"Calendar Year",null,"Customers",null,null,null,null,"Consumption (kWh) (3)",null,null,null,null,null,"Consumption (kWh) per Customer"]
[null,null,null,"(for 2018 Cost of Service",null,null,null,null,null,null,null,"Actual (Weather actual)","Weather-normalized",null,"Weather-normalized",null,null,"Actual (Weather actual)","Weather-normalized",null,"Weather-normalized"]
[null,null,"Historical",2012,null,"Actual",9.5,"",null,null,"Actual",515381,515381,"",null,null,"Actual",54250.631578947367,54250.631578947367,"",""]
[null,null,"Historical",2013,null,"Actual",13,"Board-approved",10,null,"Actual",548400,548400,"Board-approved",604378,null,"Actual",42184.615384615383,42184.615384615383,"Board-approved",60437.8]
[null,null,"Historical",2014,null,"Actual",13,"",null,null,"Actual",563396,563396,"",null,null,"Actual",43338.153846153844,43338.153846153844,"",""]
[null,null,"Historical",2015,null,"Actual",13,"",null,null,"Actual",563839,563839,"",null,null,"Actual",43372.230769230766,43372.230769230766,"",""]
[null,null,"Historical",2016,null,"Actual",13,"",null,null,"Actual",562067,562067,"",null,null,"Actual",43235.923076923078,43235.923076923078,"",""]
[null,null,"Bridge Year",2017,null,"Forecast",16.426972189361784,"",null,null,"Forecast",null,559425.5,"",null,null,"Forecast",0,34055.30206974403,"",""]
[null,null,"Test Year",2018,null,"Forecast",20.757339639235809,"",null,null,"Forecast",null,559425.5,"",null,null,"Forecast",0,26950.732113211958,"",""]
[null,null,null,null,null,null,null,null,10,null,null,null,null,null,604378,null,null,null,null,null,60437.8]
[null,null,"Variance Analysis","Year",null,null,"Year-over-year",null,"Test Year Versus Board-approved",null,"Year","Year-over-year",null,null,"Test Year Versus Board-approved",null,"Year","Year-over-year",null,null,"Test Year Versus Board-approved"]
[null,null,null,2012,null,null,null,null,null,null,2012,null,null,null,null,null,2012]
[null,null,null,2013,null,null,0.36842105263157898,null,null,null,2013,6.4067165844297724E-2,6.4067165844297724E-2,null,null,null,2013,-0.22241245572916701,-0.22241245572916701]
[null,null,null,2014,null,null,0,null,null,null,2014,2.7345003646973121E-2,2.7345003646973121E-2,null,null,null,2014,2.7345003646972899E-2,2.7345003646972899E-2]
[null,null,null,2015,null,null,0,null,null,null,2015,7.863030621446665E-4,7.863030621446665E-4,null,null,null,2015,7.8630306214444445E-4,7.8630306214444445E-4]
[null,null,null,2016,null,null,0,null,null,null,2016,-3.1427411016264895E-3,-3.1427411016264895E-3,null,null,null,2016,-3.1427411016263784E-3,-3.1427411016263784E-3]
[null,null,null,2017,null,null,0.26361324533552177,null,null,null,2017,"",-4.6996176612397189E-3,null,null,null,2017,"",-0.21233780508965594]
[null,null,null,2018,null,null,0.263613245335522,null,1.075733963923581,null,2018,"",0,null,-7.4378120977269147E-2,null,2018,"",-0.2086186151566698,null,-0.55407489827207546]
[null,null,null,"Geometric Mean",null,null,{"$error":"#NUM!"},null,0.20030861413276968,null,"Geometric Mean",null,0.93650244618332956,null,-1.913688606800279E-2,null,"Geometric Mean",null,1.750118215575527,null,-0.18282423171587681]
[]
[]
[null,null,null,"Calendar Year",null,"Revenues",null,null,null,null,"Demand (kWh)",null,null,null,null,null,"Demand (kWh) per Customer"]
[null,null,null,"(for 2018 Cost of Service",null,null,null,null,null,null,null,"Actual (Weather actual)","Weather-normalized",null,"Weather-normalized",null,null,"Actual (Weather actual)","Weather-normalized",null,"Weather-normalized"]
[null,null,"Historical",2012,null,"Actual",14944.83,"",null,null,"Actual","",null,null,"Actual",{"$error":"#REF!"},{"$error":"#REF!"},"",""]
[null,null,"Historical",2013,null,"Actual",6664.15,"Board-approved",7006.29,null,"Actual","Board-approved",null,null,"Actual",{"$error":"#REF!"},{"$error":"#REF!"},"Board-approved",0]
[null,null,"Historical",2014,null,"Actual",6888.92,"",null,null,"Actual","",null,null,"Actual",{"$error":"#REF!"},{"$error":"#REF!"},"",""]
[null,null,"Historical",2015,null,"Actual",6963.95,"",null,null,"Actual","",null,null,"Actual",{"$error":"#REF!"},{"$error":"#REF!"},"",""]
[null,null,"Historical",2016,null,"Actual",7076.48,"",null,null,"Actual","",null,null,"Actual",{"$error":"#REF!"},{"$error":"#REF!"},"",""]
[null,null,"Bridge Year (Forecast)",2017,null,"Forecast",7177.26,"",null,null,"Forecast","",null,null,"Forecast",{"$error":"#REF!"},{"$error":"#REF!"},"",""]
[null,null,"Test Year (Forecast)",2018,null,"Forecast",8062.62,"",null,null,"Forecast","",null,null,"Forecast",{"$error":"#REF!"},{"$error":"#REF!"},"",""]
[null,null,null,null,null,null,null,null,7006.29,null,null,null,null,null,0,null,null,null,null,null,0]
[null,null,"Variance Analysis","Year",null,null,"Year-over-year",null,"Test Year Versus Board-approved",null,"Year","Year-over-year",null,null,"Test Year Versus Board-approved",null,"Year","Year-over-year",null,null,"Test Year Versus Board-approved"]
[null,null,null,2012,null,null,null,null,null,null,2012,null,null,null,null,null,2012]
[null,null,null,2013,null,null,-0.55408325153246984,null,null,null,2013,{"$error":"#REF!"},{"$error":"#REF!"},null,null,null,2013,{"$error":"#REF!"},{"$error":"#REF!"}]
[null,null,null,2014,null,null,3.3728232407733927E-2,null,null,null,2014,{"$error":"#REF!"},{"$error":"#REF!"},null,null,null,2014,{"$error":"#REF!"},{"$error":"#REF!"}]
[null,null,null,2015,null,null,1.0891402425924568E-2,null,null,null,2015,{"$error":"#REF!"},{"$error":"#REF!"},null,null,null,2015,{"$error":"#REF!"},{"$error":"#REF!"}]
[null,null,null,2016,null,null,1.6158932789580582E-2,null,null,null,2016,{"$error":"#REF!"},{"$error":"#REF!"},null,null,null,2016,{"$error":"#REF!"},{"$error":"#REF!"}]
[null,null,null,2017,null,null,1.4241543818395597E-2,null,null,null,2017,"",{"$error":"#REF!"},null,null,null,2017,"",{"$error":"#REF!"}]
[null,null,null,2018,null,null,0.12335626687621737,null,0.15076880917004587,null,2018,"",{"$error":"#REF!"},null,"",null,2018,"",{"$error":"#REF!"},null,""]
[null,null,null,"Geometric Mean",null,null,{"$error":"#NUM!"},null,3.5731108304698056E-2,null,"Geometric Mean",null,{"$error":"#REF!"},null,"",null,"Geometric Mean",null,{"$error":"#REF!"},null,""]
[]
[null,6,"Customer Class:","Sentinel Lights",null,null,null,"Is the customer class billed on consumption (kWh) or demand (kW or kVA)?",null,null,null,null,null,"kW"]
[]
[null,null,null,"Calendar Year",null,"Customers",null,null,null,null,"Consumption (kWh) (3)",null,null,null,null,null,"Consumption (kWh) per Customer"]
[null,null,null,"(for 2018 Cost of Service",null,null,null,null,null,null,null,"Actual (Weather actual)","Weather-normalized",null,"Weather-normalized",null,null,"Actual (Weather actual)","Weather-normalized",null,"Weather-normalized"]
[null,null,"Historical",2012,null,"Actual",29,"",null,null,"Actual",41226,41226,"",null,null,"Actual",1421.5862068965516,1421.5862068965516,"",""]
[null,null,"Historical",2013,null,"Actual",31,"Board-approved",31,null,"Actual",40676,40676,"Board-approved",37461,null,"Actual",1312.1290322580646,1312.1290322580646,"Board-approved",1208.4193548387098]
[null,null,"Historical",2014,null,"Actual",31,"",null,null,"Actual",39277,39277,"",null,null,"Actual",1267,1267,"",""]
[null,null,"Historical",2015,null,"Actual",31,"",null,null,"Actual",39278,39278,"",null,null,"Actual",1267.0322580645161,1267.0322580645161,"",""]
[null,null,"Historical",2016,null,"Actual",29,"",null,null,"Actual",39314,39314,"",null,null,"Actual",1355.655172413793,1355.655172413793,"",""]
[null,null,"Bridge Year",2017,null,"Forecast",28.759248664054667,"",null,null,"Forecast",null,39335.85434764708,"",null,null,"Forecast",0,1367.7636299592139,"",""]
[null,null,"Test Year",2018,null,"Forecast",28.520495990376901,"",null,null,"Forecast",null,39009.297124035111,"",null,null,"Forecast",0,1367.7636299592136,"",""]
[null,null,null,null,null,null,null,null,31,null,null,null,null,null,37461,null,null,null,null,null,1208.4193548387098]
[null,null,"Variance Analysis","Year",null,null,"Year-over-year",null,"Test Year Versus Board-approved",null,"Year","Year-over-year",null,null,"Test Year Versus Board-approved",null,"Year","Year-over-year",null,null,"Test Year Versus Board-approved"]
[null,null,null,2012,null,null,null,null,null,null,2012,null,null,null,null,null,2012]
[null,null,null,2013,null,null,6.8965517241379226E-2,null,null,null,2013,-1.3341095425217109E-2,-1.3341095425217109E-2,null,null,null,2013,-7.6996508623590088E-2,-7.6996508623590088E-2]
[null,null,null,2014,null,null,0,null,null,null,2014,-3.43937456977087E-2,-3.43937456977087E-2,null,null,null,2014,-3.4393745697708811E-2,-3.4393745697708811E-2]
[null,null,null,2015,null,null,0,null,null,null,2015,2.5460192988324692E-5,2.5460192988324692E-5,null,null,null,2015,2.5460192988324692E-5,2.5460192988324692E-5]
[null,null,null,2016,null,null,-6.4516129032258118E-2,null,null,null,2016,9.1654361220028235E-4,9.1654361220028235E-4,null,null,null,2016,6.994527075786916E-2,6.994527075786916E-2]
[null,null,null,2017,null,null,-8.3017702050114384E-3,null,null,null,2017,"",5.5589224314700481E-4,null,null,null,2017,"",8.9318123013990558E-3]
[null,null,null,2018,null,null,-8.3017702050115494E-3,null,-7.9984000310422521E-2,null,2018,"",-8.3017702050115494E-3,null,4.1330907451352372E-2,null,2018,"",-1.1102230246251565E-16,null,0.13186173697273484]
[null,null,null,"Geometric Mean",null,null,{"$error":"#NUM!"},null,-2.0625380642817714E-2,null,"Geometric Mean",null,1.0452073594304798,null,1.0176333692263118E-2,null,"Geometric Mean",null,1.0313586605369982,null,3.1450390612836054E-2]
[]
[]
[null,null,null,"Calendar Year",null,"Revenues",null,null,null,null,"Demand (kW)",null,null,null,null,null,"Demand (kW) per Customer"]
[null,null,null,"(for 2018 Cost of Service",null,null,null,null,null,null,null,"Actual (Weather actual)","Weather-normalized",null,"Weather-normalized",null,null,"Actual (Weather actual)","Weather-normalized",null,"Weather-normalized"]
[null,null,"Historical",2012,null,"Actual",2942.73,"",null,null,"Actual",114.54000000000002,114.54000000000002,"",null,null,"Actual",3.8923040849823128E-2,3.8923040849823128E-2,"",""]
[null,null,"Historical",2013,null,"Actual",2990.85,"Board-approved",2884.78,null,"Actual",112.99000000000002,112.99000000000002,"Board-approved",104,null,"Actual",3.7778557935035199E-2,3.7778557935035199E-2,"Board-approved",3.6051276007182519E-2]
[null,null,"Historical",2014,null,"Actual",2984.01,"",null,null,"Actual",109.08000000000001,109.08000000000001,"",null,null,"Actual",3.6554837282716884E-2,3.6554837282716884E-2,"",""]
[null,null,"Historical",2015,null,"Actual",3023.27,"",null,null,"Actual",109.08,109.08,"",null,null,"Actual",3.6080138393196771E-2,3.6080138393196771E-2,"",""]
[null,null,"Historical",2016,null,"Actual",2964.94,"",null,null,"Actual",109.19,109.19,"",null,null,"Actual",3.6827052149453275E-2,3.6827052149453275E-2,"",""]
[null,null,"Bridge Year (Forecast)",2017,null,"Forecast",3010.8,"",null,null,"Forecast",null,109.2644934298052,"",null,null,"Forecast",0,3.6290850747244981E-2,"",""]
[null,null,"Test Year (Forecast)",2018,null,"Forecast",3439.42,"",null,null,"Forecast",null,108.35740471378396,"",null,null,"Forecast",0,3.1504557371238161E-2,"",""]
[null,null,null,null,null,null,null,null,2884.78,null,null,null,null,null,104,null,null,null,null,null,3.6051276007182519E-2]
[null,null,"Variance Analysis","Year",null,null,"Year-over-year",null,"Test Year Versus Board-approved",null,"Year","Year-over-year",null,null,"Test Year Versus Board-approved",null,"Year","Year-over-year",null,null,"Test Year Versus Board-approved"]
[null,null,null,2012,null,null,null,null,null,null,2012,null,null,null,null,null,2012]
[null,null,null,2013,null,null,1.6352162787615532E-2,null,null,null,2013,-1.3532390431290398E-2,-1.3532390431290398E-2,null,null,null,2013,-2.9403738500383136E-2,-2.9403738500383136E-2]
[null,null,null,2014,null,null,-2.2869752745874328E-3,null,null,null,2014,-3.4604832286043052E-2,-3.4604832286043052E-2,null,null,null,2014,-3.2391936569486024E-2,-3.2391936569486024E-2]
[null,null,null,2015,null,null,1.3156792369998671E-2,null,null,null,2015,-1.1102230246251565E-16,-1.1102230246251565E-16,null,null,null,2015,-1.2985939065978336E-2,-1.2985939065978336E-2]
[null,null,null,2016,null,null,-1.9293678698892203E-2,null,null,null,2016,1.0084341767508942E-3,1.0084341767508942E-3,null,null,null,2016,2.0701521377682441E-2,2.0701521377682441E-2]
[null,null,null,2017,null,null,1.546742935776102E-2,null,null,null,2017,"",6.8223674150758029E-4,null,null,null,2017,"",-1.4559987045182354E-2]
[null,null,null,2018,null,null,0.14236083432974622,null,0.19226422812138177,null,2018,"",-8.3017702050115494E-3,null,4.1898122247922664E-2,null,2018,"",-0.13188705355357844,null,-0.1261181056403804]
[null,null,null,"Geometric Mean",null,null,{"$error":"#NUM!"},null,4.4944269101609979E-2,null,"Geometric Mean",null,{"$error":"#NUM!"},null,1.0313866813713712E-2,null,"Geometric Mean",null,1.1843135653265275,null,-3.3140908383247902E-2]
[]
[null,7,"Customer Class:","Streetlights",null,null,null,"Is the customer class billed on consumption (kWh) or demand (kW or kVA)?",null,null,null,null,null,"kWh"]
[]
[null,null,null,"Calendar Year",null,"Customers",null,null,null,null,"Consumption (kWh) (3)",null,null,null,null,null,"Consumption (kWh) per Customer"]
[null,null,null,"(for 2018 Cost of Service",null,null,null,null,null,null,null,"Actual (Weather actual)","Weather-normalized",null,"Weather-normalized",null,null,"Actual (Weather actual)","Weather-normalized",null,"Weather-normalized"]
[null,null,"Historical",2012,null,"Actual",1688,"",null,null,"Actual",1063521,1063521,"",null,null,"Actual",630.04798578199052,630.04798578199052,"",""]
[null,null,"Historical",2013,null,"Actual",1696,"Board-approved",1738,null,"Actual",1151811,1151811,"Board-approved",1130191,null,"Actual",679.13384433962267,679.13384433962267,"Board-approved",650.28250863060987]
[null,null,"Historical",2014,null,"Actual",1705,"",null,null,"Actual",1141797,1141797,"",null,null,"Actual",669.67565982404687,669.67565982404687,"",""]
[null,null,"Historical",2015,null,"Actual",1706.5,"",null,null,"Actual",976129,976129,"",null,null,"Actual",572.0064459419865,572.0064459419865,"",""]
[null,null,"Historical",2016,null,"Actual",1704.5,"",null,null,"Actual",566049,566049,"",null,null,"Actual",332.09093575828689,332.09093575828689,"",""]
[null,null,"Bridge Year",2017,null,"Forecast",1710.403456367013,"",null,null,"Forecast",null,568009.48434912961,"",null,null,"Forecast",0,332.09093575828695,"",""]
[null,null,"Test Year",2018,null,"Forecast",1716.3273590802137,"",null,null,"Forecast",null,569976.75874449743,"",null,null,"Forecast",0,332.09093575828689,"",""]
[null,null,null,null,null,null,null,null,1738,null,null,null,null,null,1130191,null,null,null,null,null,650.28250863060987]
[null,null,"Variance Analysis","Year",null,null,"Year-over-year",null,"Test Year Versus Board-approved",null,"Year","Year-over-year",null,null,"Test Year Versus Board-approved",null,"Year","Year-over-year",null,null,"Test Year Versus Board-approved"]
[null,null,null,2012,null,null,null,null,null,null,2012,null,null,null,null,null,2012]
[null,null,null,2013,null,null,4.7393364928909332E-3,null,null,null,2013,8.3016696426304604E-2,8.3016696426304604E-2,null,null,null,2013,7.7908127103539115E-2,7.7908127103539115E-2]
[null,null,null,2014,null,null,5.3066037735849392E-3,null,null,null,2014,-8.6941347148099535E-3,-8.6941347148099535E-3,null,null,null,2014,-1.3926834296960622E-2,-1.3926834296960622E-2]
[null,null,null,2015,null,null,8.7976539589451619E-4,null,null,null,2015,-0.14509409290793374,-0.14509409290793374,null,null,null,2015,-0.1458455484371679,-0.1458455484371679]
[null,null,null,2016,null,null,-1.171989452094957E-3,null,null,null,2016,-0.42010840780265724,-0.42010840780265724,null,null,null,2016,-0.4194279835231649,-0.4194279835231649]
[null,null,null,2017,null,null,3.4634534274056161E-3,null,null,null,2017,"",3.4634534274058382E-3,null,null,null,2017,"",2.2204460492503131E-16]
[null,null,null,2018,null,null,3.4634534274056161E-3,null,-1.2469873946942656E-2,null,2018,"",3.4634534274056161E-3,null,-0.49568103201627212,null,2018,"",-2.2204460492503131E-16,null,-0.48931282734696824]
[null,null,null,"Geometric Mean",null,null,{"$error":"#NUM!"},null,-3.1321533601746943E-3,null,"Geometric Mean",null,1.6470665147231593,null,-0.15729353505289168,null,"Geometric Mean",null,1.6691419968759276,null,-0.15464575591674834]
[]
[]
[null,null,null,"Calendar Year",null,"Revenues",null,null,null,null,"Demand (kWh)",null,null,null,null,null,"Demand (kWh) per Customer"]
[null,null,null,"(for 2018 Cost of Service",null,null,null,null,null,null,null,"Actual (Weather actual)","Weather-normalized",null,"Weather-normalized",null,null,"Actual (Weather actual)","Weather-normalized",null,"Weather-normalized"]
[null,null,"Historical",2012,null,"Actual",158517.95000000001,"",null,null,"Actual",null,null,"",null,null,"Actual",0,0,"",""]
[null,null,"Historical",2013,null,"Actual",64857.89,"Board-approved",65670,null,"Actual",null,null,"Board-approved",null,null,"Actual",0,0,"Board-approved",0]
[null,null,"Historical",2014,null,"Actual",65853.31,"",null,null,"Actual",null,null,"",null,null,"Actual",0,0,"",""]
[null,null,"Historical",2015,null,"Actual",62854.35,"",null,null,"Actual",null,null,"",null,null,"Actual",0,0,"",""]
[null,null,"Historical",2016,null,"Actual",53124.49,"",null,null,"Actual",null,null,"",null,null,"Actual",0,0,"",""]
[null,null,"Bridge Year (Forecast)",2017,null,"Forecast",54137.91,"",null,null,"Forecast",null,null,"",null,null,"Forecast",0,0,"",""]
[null,null,"Test Year (Forecast)",2018,null,"Forecast",65840.789999999994,"",null,null,"Forecast",null,null,"",null,null,"Forecast",0,0,"",""]
[null,null,null,null,null,null,null,null,65670,null,null,null,null,null,0,null,null,null,null,null,0]
[null,null,"Variance Analysis","Year",null,null,"Year-over-year",null,"Test Year Versus Board-approved",null,"Year","Year-over-year",null,null,"Test Year Versus Board-approved",null,"Year","Year-over-year",null,null,"Test Year Versus Board-approved"]
[null,null,null,2012,null,null,null,null,null,null,2012,null,null,null,null,null,2012]
[null,null,null,2013,null,null,-0.59084829194422461,null,null,null,2013,"","",null,null,null,2013,"",""]
[null,null,null,2014,null,null,1.5347708659655623E-2,null,null,null,2014,"","",null,null,null,2014,"",""]
[null,null,null,2015,null,null,-4.5540003987650679E-2,null,null,null,2015,"","",null,null,null,2015,"",""]
[null,null,null,2016,null,null,-0.15480010532286148,null,null,null,2016,"","",null,null,null,2016,"",""]
[null,null,null,2017,null,null,1.9076324309184045E-2,null,null,null,2017,"","",null,null,null,2017,"",""]
[null,null,null,2018,null,null,0.21616793112257171,null,2.6007309273639034E-3,null,2018,"","",null,"",null,2018,"","",null,""]
[null,null,null,"Geometric Mean",null,null,{"$error":"#NUM!"},null,6.4954958574547916E-4,null,"Geometric Mean",null,"",null,"",null,"Geometric Mean",null,"",null,""]
[]
[null,8,"Customer Class:",null,null,null,null,"Is the customer class billed on consumption (kWh) or demand (kW or kVA)?"]
[]
[null,null,null,"Calendar Year",null,"Customers",null,null,null,null,"Consumption (kWh) (3)",null,null,null,null,null,"Consumption (kWh) per Customer"]
[null,null,null,"(for 2018 Cost of Service",null,null,null,null,null,null,null,"Actual (Weather actual)","Weather-normalized",null,"Weather-normalized",null,null,"Actual (Weather actual)","Weather-normalized",null,"Weather-normalized"]
[null,null,"Historical",2012,null,"Actual",null,"",null,null,"Actual",null,null,"",null,null,"Actual","","","",""]
[null,null,"Historical",2013,null,"Actual",null,"Board-approved",null,null,"Actual",null,null,"Board-approved",null,null,"Actual","","","Board-approved",""]
[null,null,"Historical",2014,null,"Actual",null,"",null,null,"Actual",null,null,"",null,null,"Actual","","","",""]
[null,null,"Historical",2015,null,"Actual",null,"",null,null,"Actual",null,null,"",null,null,"Actual","","","",""]
[null,null,"Historical",2016,null,"Actual",null,"",null,null,"Actual",null,null,"",null,null,"Actual","","","",""]
[null,null,"Bridge Year",2017,null,"Forecast",null,"",null,null,"Forecast",null,null,"",null,null,"Forecast","","","",""]
[null,null,"Test Year",2018,null,"Forecast",null,"",null,null,"Forecast",null,null,"",null,null,"Forecast","","","",""]
[null,null,null,null,null,null,null,null,0,null,null,null,null,null,0,null,null,null,null,null,0]
[null,null,"Variance Analysis","Year",null,null,"Year-over-year",null,"Test Year Versus Board-approved",null,"Year","Year-over-year",null,null,"Test Year Versus Board-approved",null,"Year","Year-over-year",null,null,"Test Year Versus Board-approved"]
[null,null,null,2012,null,null,null,null,null,null,2012,null,null,null,null,null,2012]
[null,null,null,2013,null,null,"",null,null,null,2013,"","",null,null,null,2013,"",""]
[null,null,null,2014,null,null,"",null,null,null,2014,"","",null,null,null,2014,"",""]
[null,null,null,2015,null,null,"",null,null,null,2015,"","",null,null,null,2015,"",""]
[null,null,null,2016,null,null,"",null,null,null,2016,"","",null,null,null,2016,"",""]
[null,null,null,2017,null,null,"",null,null,null,2017,"","",null,null,null,2017,"",""]
[null,null,null,2018,null,null,"",null,"",null,2018,"","",null,"",null,2018,"","",null,""]
[null,null,null,"Geometric Mean",null,null,"",null,"",null,"Geometric Mean",null,"",null,"",null,"Geometric Mean",null,"",null,""]
[]
[]
[null,null,null,"Calendar Year",null,"Revenues",null,null,null,null,"",null,null,null,null,null,"Demand () per Customer"]
[null,null,null,"(for 2018 Cost of Service",null,null,null,null,null,null,null,"Actual (Weather actual)","Weather-normalized",null,"Weather-normalized",null,null,"Actual (Weather actual)","Weather-normalized",null,"Weather-normalized"]
[null,null,"Historical",2012,null,"Actual",null,"",null,null,"Actual",null,null,"",null,null,"Actual","","","",""]
[null,null,"Historical",2013,null,"Actual",null,"Board-approved",null,null,"Actual",null,null,"Board-approved",null,null,"Actual","","","Board-approved",""]
[null,null,"Historical",2014,null,"Actual",null,"",null,null,"Actual",null,null,"",null,null,"Actual","","","",""]
[null,null,"Historical",2015,null,"Actual",null,"",null,null,"Actual",null,null,"",null,null,"Actual","","","",""]
[null,null,"Historical",2016,null,"Actual",null,"",null,null,"Actual",null,null,"",null,null,"Actual","","","",""]
[null,null,"Bridge Year (Forecast)",2017,null,"Forecast",null,"",null,null,"Forecast",null,null,"",null,null,"Forecast","","","",""]
[null,null,"Test Year (Forecast)",2018,null,"Forecast",null,"",null,null,"Forecast",null,null,"",null,null,"Forecast","","","",""]
[null,null,null,null,null,null,null,null,0,null,null,null,null,null,0,null,null,null,null,null,0]
[null,null,"Variance Analysis","Year",null,null,"Year-over-year",null,"Test Year Versus Board-approved",null,"Year","Year-over-year",null,null,"Test Year Versus Board-approved",null,"Year","Year-over-year",null,null,"Test Year Versus Board-approved"]
[null,null,null,2012,null,null,null,null,null,null,2012,null,null,null,null,null,2012]
[null,null,null,2013,null,null,"",null,null,null,2013,"","",null,null,null,2013,"",""]
[null,null,null,2014,null,null,"",null,null,null,2014,"","",null,null,null,2014,"",""]
[null,null,null,2015,null,null,"",null,null,null,2015,"","",null,null,null,2015,"",""]
[null,null,null,2016,null,null,"",null,null,null,2016,"","",null,null,null,2016,"",""]
[null,null,null,2017,null,null,"",null,null,null,2017,"","",null,null,null,2017,"",""]
[null,null,null,2018,null,null,"",null,"",null,2018,"","",null,"",null,2018,"","",null,""]
[null,null,null,"Geometric Mean",null,null,"",null,"",null,"Geometric Mean",null,"",null,"",null,"Geometric Mean",null,"",null,""]
[]
[null,9,"Customer Class:",null,null,null,null,"Is the customer class billed on consumption (kWh) or demand (kW or kVA)?"]
[]
[null,null,null,"Calendar Year",null,"Customers",null,null,null,null,"Consumption (kWh) (3)",null,null,null,null,null,"Consumption (kWh) per Customer"]
[null,null,null,"(for 2018 Cost of Service",null,null,null,null,null,null,null,"Actual (Weather actual)","Weather-normalized",null,"Weather-normalized",null,null,"Actual (Weather actual)","Weather-normalized",null,"Weather-normalized"]
[null,null,"Historical",2012,null,"Actual",null,"",null,null,"Actual",null,null,"",null,null,"Actual","","","",""]
[null,null,"Historical",2013,null,"Actual",null,"Board-approved",null,null,"Actual",null,null,"Board-approved",null,null,"Actual","","","Board-approved",""]
[null,null,"Historical",2014,null,"Actual",null,"",null,null,"Actual",null,null,"",null,null,"Actual","","","",""]
[null,null,"Historical",2015,null,"Actual",null,"",null,null,"Actual",null,null,"",null,null,"Actual","","","",""]
[null,null,"Historical",2016,null,"Actual",null,"",null,null,"Actual",null,null,"",null,null,"Actual","","","",""]
[null,null,"Bridge Year",2017,null,"Forecast",null,"",null,null,"Forecast",null,null,"",null,null,"Forecast","","","",""]
[null,null,"Test Year",2018,null,"Forecast",null,"",null,null,"Forecast",null,null,"",null,null,"Forecast","","","",""]
[null,null,null,null,null,null,null,null,0,null,null,null,null,null,0,null,null,null,null,null,0]
[null,null,"Variance Analysis","Year",null,null,"Year-over-year",null,"Test Year Versus Board-approved",null,"Year","Year-over-year",null,null,"Test Year Versus Board-approved",null,"Year","Year-over-year",null,null,"Test Year Versus Board-approved"]
[null,null,null,2012,null,null,null,null,null,null,2012,null,null,null,null,null,2012]
[null,null,null,2013,null,null,"",null,null,null,2013,"","",null,null,null,2013,"",""]
[null,null,null,2014,null,null,"",null,null,null,2014,"","",null,null,null,2014,"",""]
[null,null,null,2015,null,null,"",null,null,null,2015,"","",null,null,null,2015,"",""]
[null,null,null,2016,null,null,"",null,null,null,2016,"","",null,null,null,2016,"",""]
[null,null,null,2017,null,null,"",null,null,null,2017,"","",null,null,null,2017,"",""]
[null,null,null,2018,null,null,"",null,"",null,2018,"","",null,"",null,2018,"","",null,""]
[null,null,null,"Geometric Mean",null,null,"",null,"",null,"Geometric Mean",null,"",null,"",null,"Geometric Mean",null,"",null,""]
[]
[]
[null,null,null,"Calendar Year",null,"Revenues",null,null,null,null,"",null,null,null,null,null,"Demand () per Customer"]
[null,null,null,"(for 2018 Cost of Service",null,null,null,null,null,null,null,"Actual (Weather actual)","Weather-normalized",null,"Weather-normalized",null,null,"Actual (Weather actual)","Weather-normalized",null,"Weather-normalized"]
[null,null,"Historical",2012,null,"Actual",null,"",null,null,"Actual",null,null,"",null,null,"Actual","","","",""]
[null,null,"Historical",2013,null,"Actual",null,"Board-approved",null,null,"Actual",null,null,"Board-approved",null,null,"Actual","","","Board-approved",""]
[null,null,"Historical",2014,null,"Actual",null,"",null,null,"Actual",null,null,"",null,null,"Actual","","","",""]
[null,null,"Historical",2015,null,"Actual",null,"",null,null,"Actual",null,null,"",null,null,"Actual","","","",""]
[null,null,"Historical",2016,null,"Actual",null,"",null,null,"Actual",null,null,"",null,null,"Actual","","","",""]
[null,null,"Bridge Year (Forecast)",2017,null,"Forecast",null,"",null,null,"Forecast",null,null,"",null,null,"Forecast","","","",""]
[null,null,"Test Year (Forecast)",2018,null,"Forecast",null,"",null,null,"Forecast",null,null,"",null,null,"Forecast","","","",""]
[null,null,null,null,null,null,null,null,0,null,null,null,null,null,0,null,null,null,null,null,0]
[null,null,"Variance Analysis","Year",null,null,"Year-over-year",null,"Test Year Versus Board-approved",null,"Year","Year-over-year",null,null,"Test Year Versus Board-approved",null,"Year","Year-over-year",null,null,"Test Year Versus Board-approved"]
[null,null,null,2012,null,null,null,null,null,null,2012,null,null,null,null,null,2012]
[null,null,null,2013,null,null,"",null,null,null,2013,"","",null,null,null,2013,"",""]
[null,null,null,2014,null,null,"",null,null,null,2014,"","",null,null,null,2014,"",""]
[null,null,null,2015,null,null,"",null,null,null,2015,"","",null,null,null,2015,"",""]
[null,null,null,2016,null,null,"",null,null,null,2016,"","",null,null,null,2016,"",""]
[null,null,null,2017,null,null,"",null,null,null,2017,"","",null,null,null,2017,"",""]
[null,null,null,2018,null,null,"",null,"",null,2018,"","",null,"",null,2018,"","",null,""]
[null,null,null,"Geometric Mean",null,null,"",null,"",null,"Geometric Mean",null,"",null,"",null,"Geometric Mean",null,"",null,""]
[]
[null,10,"Customer Class:",null,null,null,null,"Is the customer class billed on consumption (kWh) or demand (kW or kVA)?"]
[]
[null,null,null,"Calendar Year",null,"Customers",null,null,null,null,"Consumption (kWh) (3)",null,null,null,null,null,"Consumption (kWh) per Customer"]
[null,null,null,"(for 2018 Cost of Service",null,null,null,null,null,null,null,"Actual (Weather actual)","Weather-normalized",null,"Weather-normalized",null,null,"Actual (Weather actual)","Weather-normalized",null,"Weather-normalized"]
[null,null,"Historical",2012,null,"Actual",null,"",null,null,"Actual",null,null,"",null,null,"Actual","","","",""]
[null,null,"Historical",2013,null,"Actual",null,"Board-approved",null,null,"Actual",null,null,"Board-approved",null,null,"Actual","","","Board-approved",""]
[null,null,"Historical",2014,null,"Actual",null,"",null,null,"Actual",null,null,"",null,null,"Actual","","","",""]
[null,null,"Historical",2015,null,"Actual",null,"",null,null,"Actual",null,null,"",null,null,"Actual","","","",""]
[null,null,"Historical",2016,null,"Actual",null,"",null,null,"Actual",null,null,"",null,null,"Actual","","","",""]
[null,null,"Bridge Year",2017,null,"Forecast",null,"",null,null,"Forecast",null,null,"",null,null,"Forecast","","","",""]
[null,null,"Test Year",2018,null,"Forecast",null,"",null,null,"Forecast",null,null,"",null,null,"Forecast","","","",""]
[null,null,null,null,null,null,null,null,0,null,null,null,null,null,0,null,null,null,null,null,0]
[null,null,"Variance Analysis","Year",null,null,"Year-over-year",null,"Test Year Versus Board-approved",null,"Year","Year-over-year",null,null,"Test Year Versus Board-approved",null,"Year","Year-over-year",null,null,"Test Year Versus Board-approved"]
[null,null,null,2012,null,null,null,null,null,null,2012,null,null,null,null,null,2012]
[null,null,null,2013,null,null,"",null,null,null,2013,"","",null,null,null,2013,"",""]
[null,null,null,2014,null,null,"",null,null,null,2014,"","",null,null,null,2014,"",""]
[null,null,null,2015,null,null,"",null,null,null,2015,"","",null,null,null,2015,"",""]
[null,null,null,2016,null,null,"",null,null,null,2016,"","",null,null,null,2016,"",""]
[null,null,null,2017,null,null,"",null,null,null,2017,"","",null,null,null,2017,"",""]
[null,null,null,2018,null,null,"",null,"",null,2018,"","",null,"",null,2018,"","",null,""]
[null,null,null,"Geometric Mean",null,null,"",null,"",null,"Geometric Mean",null,"",null,"",null,"Geometric Mean",null,"",null,""]
[]
[]
[null,null,null,"Calendar Year",null,"Revenues",null,null,null,null,"",null,null,null,null,null,"Demand () per Customer"]
[null,null,null,"(for 2018 Cost of Service",null,null,null,null,null,null,null,"Actual (Weather actual)","Weather-normalized",null,"Weather-normalized",null,null,"Actual (Weather actual)","Weather-normalized",null,"Weather-normalized"]
[null,null,"Historical",2012,null,"Actual",null,"",null,null,"Actual",null,null,"",null,null,"Actual","","","",""]
[null,null,"Historical",2013,null,"Actual",null,"Board-approved",null,null,"Actual",null,null,"Board-approved",null,null,"Actual","","","Board-approved",""]
[null,null,"Historical",2014,null,"Actual",null,"",null,null,"Actual",null,null,"",null,null,"Actual","","","",""]
[null,null,"Historical",2015,null,"Actual",null,"",null,null,"Actual",null,null,"",null,null,"Actual","","","",""]
[null,null,"Historical",2016,null,"Actual",null,"",null,null,"Actual",null,null,"",null,null,"Actual","","","",""]
[null,null,"Bridge Year (Forecast)",2017,null,"Forecast",null,"",null,null,"Forecast",null,null,"",null,null,"Forecast","","","",""]
[null,null,"Test Year (Forecast)",2018,null,"Forecast",null,"",null,null,"Forecast",null,null,"",null,null,"Forecast","","","",""]
[null,null,null,null,null,null,null,null,0,null,null,null,null,null,0,null,null,null,null,null,0]
[null,null,"Variance Analysis","Year",null,null,"Year-over-year",null,"Test Year Versus Board-approved",null,"Year","Year-over-year",null,null,"Test Year Versus Board-approved",null,"Year","Year-over-year",null,null,"Test Year Versus Board-approved"]
[null,null,null,2012,null,null,null,null,null,null,2012,null,null,null,null,null,2012]
[null,null,null,2013,null,null,"",null,null,null,2013,"","",null,null,null,2013,"",""]
[null,null,null,2014,null,null,"",null,null,null,2014,"","",null,null,null,2014,"",""]
[null,null,null,2015,null,null,"",null,null,null,2015,"","",null,null,null,2015,"",""]
[null,null,null,2016,null,null,"",null,null,null,2016,"","",null,null,null,2016,"",""]
[null,null,null,2017,null,null,"",null,null,null,2017,"","",null,null,null,2017,"",""]
[null,null,null,2018,null,null,"",null,"",null,2018,"","",null,"",null,2018,"","",null,""]
[null,null,null,"Geometric Mean",null,null,"",null,"",null,"Geometric Mean",null,"",null,"",null,"Geometric Mean",null,"",null,""]
[]
[null,"Note: If there are more than ten (10) customer classes, please contact OEB Staff to add tables for additional customer classes."]

{"sheet":"App.2-JA_OM&A_Summary_Analys","index":31,"n_rows":61,"n_cols":14,"rows_kept":61,"cut":false,"hidden":false,"merged":[[63,1,64,6],[58,0,59,12],[8,0,8,7],[9,0,9,7],[12,8,12,9]]}
[null,null,null,null,null,null,null,null,null,null,null,"File Number:",{"$f":"EBNUMBER","v":"EB-2017-0032"}]
[null,null,null,null,null,null,null,null,null,null,null,"Exhibit:"]
[null,null,null,null,null,null,null,null,null,null,null,"Tab:"]
[null,null,null,null,null,null,null,null,null,null,null,"Schedule:"]
[null,null,null,null,null,null,null,null,null,null,null,"Page:"]
[]
[null,null,null,null,null,null,null,null,null,null,null,"Date:"]
[]
["Appendix 2-JA"]
["Summary of Recoverable OM&A Expenses"]
[]
[]
[null,{"$f":"\"Last Rebasing Year (\" & RebaseYear & \" Board-Approved)\"","v":"Last Rebasing Year (2013 Board-Approved)"},{"$f":"\"Last Rebasing Year (\" & RebaseYear & \" Actuals)\"","v":"Last Rebasing Year (2013 Actuals)"},"2014 Actuals",{"$f":"BridgeYear -2 & \" Actuals\"","v":"2015 Actuals"},{"$f":"BridgeYear -1 & \" Actuals\"","v":"2016 Actuals"},{"$f":"BridgeYear & \" Bridge Year\"","v":"2017 Bridge Year"},{"$f":"TestYear & \" Test Year\"","v":"2018 Test Year"}]
["Reporting Basis"]
["Operations",269500,303224.09999999998,313306.03999999998,326132.87,312568.31999999995,366200,366900]
["Maintenance",302200,317930.37000000005,283489.39000000007,310600.70000000007,354386.45999999996,344000,361500]
["SubTotal",{"$f":"SUM(B15:B16)","v":571700},621154.47,596795.43000000005,636733.57000000007,666954.77999999991,710200,728400]
["%Change (year over year)",null,{"$f":"IF(ISERROR((C17-B17)/B17), \"\", (C17-B17)/B17)","v":8.6504232989330021E-2},-3.9215752564736306E-2,6.6920988319230282E-2,4.7462881531438406E-2,6.4839808180098948E-2,2.5626584060827937E-2]
["%Change (Test Year vs \nLast Rebasing Year - Actual)",null,null,null,null,null,null,{"$f":"IF(ISERROR((H17-C17)/C17), \"\", (H17-C17)/C17)","v":0.17265516901134115}]
["Billing and Collecting",446705,434217.93999999994,437447.55999999994,449490.38,461688.47,487500,520700]
["Community Relations",28600,25326.82,31564.560000000001,23289.59,51588.319999999992,55900,43500]
["Administrative and General",975100,960814.67000000016,980552,964754.59,958600.04999999993,1043900,1111700]
["SubTotal",{"$f":"SUM(B20:B22)","v":1450405},1420359.4300000002,1449564.1199999999,1437534.56,1471876.8399999999,1587300,1675900]
["%Change (year over year)",null,{"$f":"IF(ISERROR((C23-B23)/B23), \"\", (C23-B23)/B23)","v":-2.0715296761938791E-2},2.0561478582924401E-2,-8.2987429352209853E-3,2.3889707389017342E-2,7.8419034027330817E-2,5.5818055818055816E-2]
["%Change (Test Year vs \nLast Rebasing Year - Actual)",null,null,null,null,null,null,{"$f":"IF(ISERROR((H23-C23)/C23), \"\", (H23-C23)/C23)","v":0.17991260845855039}]
["Total",{"$f":"SUM(B23,B17)","v":2022105},2041513.9000000001,2046359.5499999998,2074268.1300000001,2138831.6199999996,2297500,2404300]
["%Change (year over year)",null,{"$f":"IF(ISERROR((C26-B26)/B26), \"\", (C26-B26)/B26)","v":9.5983640809948739E-3},2.373557192042471E-3,1.3638160508010583E-2,3.1125913311891611E-2,7.418460551840933E-2,4.6485310119695318E-2]
[]
[]
[null,{"$f":"B13","v":"Last Rebasing Year (2013 Board-Approved)"},"Last Rebasing Year (2013 Actuals)","2014 Actuals","2015 Actuals","2016 Actuals","2017 Bridge Year","2018 Test Year"]
["Operations",{"$f":"B15","v":269500},303224.09999999998,313306.03999999998,326132.87,312568.31999999995,366200,366900]
["Maintenance",302200,317930.37000000005,283489.39,310600.70000000007,354386.45999999996,344000,361500]
["Billing and Collecting",{"$f":"B20","v":446705},434217.93999999994,437447.56,449490.38,461688.47,487500,520700]
["Community Relations",28600,25326.82,31564.560000000001,23289.59,51588.319999999992,55900,43500]
["Administrative and General",975100,960814.67000000016,980552,964754.59,958600.04999999993,1043900,1111700]
["Total",{"$f":"SUM(B31:B35)","v":2022105},2041513.9000000001,2046359.55,2074268.1300000004,2138831.62,2297500,2404300]
["%Change (year over year)",null,{"$f":"IF(ISERROR((C36-B36)/B36), \"\", (C36-B36)/B36)","v":9.5983640809948739E-3},2.3735571920425851E-3,1.3638160508010583E-2,3.1125913311891722E-2,7.4184605518409108E-2,4.6485310119695318E-2]
[]
[]
[null,{"$f":"B13","v":"Last Rebasing Year (2013 Board-Approved)"},{"$f":"C13","v":"Last Rebasing Year (2013 Actuals)"},"Variance 2013 BA - 2013 Actuals","2014 Actuals","Variance 2014 Actuals vs. 2013 Actuals",{"$f":"E13","v":"2015 Actuals"},"Variance 2015 Actuals vs. 2014 Actuals",{"$f":"F13","v":"2016 Actuals"},{"$f":"\"Variance \" & 'LDC Info'!E26 -1 & \" Actuals vs. \" &  'LDC Info'!E26-2 & \" Actuals\"","v":"Variance 2016 Actuals vs. 2015 Actuals"},{"$f":"G13","v":"2017 Bridge Year"},{"$f":"\"Variance \" & 'LDC Info'!E26 & \" Bridge vs. \" & 'LDC Info'!E26 -1 & \" Actuals\"","v":"Variance 2017 Bridge vs. 2016 Actuals"},{"$f":"H13","v":"2018 Test Year"},{"$f":"\"Variance \" & TestYear & \" Test vs. \" & BridgeYear & \" Bridge\"","v":"Variance 2018 Test vs. 2017 Bridge"}]
["Operations",{"$f":"B15","v":269500},{"$f":"C15","v":303224.09999999998},{"$f":"C41-B41","v":33724.099999999977},313306.03999999998,{"$f":"E41-C41","v":10081.940000000002},{"$f":"E15","v":326132.87},{"$f":"G41-C41","v":22908.770000000019},{"$f":"F15","v":312568.31999999995},{"$f":"I41-G41","v":-13564.550000000047},{"$f":"G15","v":366200},{"$f":"K41-I41","v":53631.680000000051},{"$f":"H15","v":366900},{"$f":"M41-K41","v":700}]
["Maintenance ",{"$f":"B16","v":302200},{"$f":"C16","v":317930.37000000005},{"$f":"C42-B42","v":15730.370000000054},283489.39,{"$f":"E42-C42","v":-34440.98000000004},{"$f":"E16","v":310600.70000000007},{"$f":"G42-C42","v":-7329.6699999999837},{"$f":"F16","v":354386.45999999996},{"$f":"I42-G42","v":43785.759999999893},{"$f":"G16","v":344000},-10386.459999999963,{"$f":"H16","v":361500},17500]
["Billing and Collecting ",{"$f":"B20","v":446705},434217.93999999994,-12487.060000000056,437447.56,3229.6200000000536,{"$f":"E20","v":449490.38},{"$f":"G43-C43","v":15272.440000000061},{"$f":"F20","v":461688.47},12198.089999999967,{"$f":"G20","v":487500},25811.530000000028,{"$f":"H20","v":520700},33200]
["Community Relations ",28600,25326.82,-3273.1800000000003,31564.560000000001,6237.7400000000016,{"$f":"E21","v":23289.59},{"$f":"G44-C44","v":-2037.2299999999996},{"$f":"F21","v":51588.319999999992},28298.729999999992,{"$f":"G21","v":55900},4311.6800000000076,{"$f":"H21","v":43500},-12400]
["Administrative and General ",975100,960814.67000000016,-14285.329999999842,980552,19737.329999999842,{"$f":"E22","v":964754.59},{"$f":"G45-C45","v":3939.9199999998091},{"$f":"F22","v":958600.04999999993},-6154.5400000000373,{"$f":"G22","v":1043900},85299.95000000007,{"$f":"H22","v":1111700},67800]
["Total OM&A Expenses ",{"$f":"SUM(B41:B45)","v":2022105},{"$f":"SUM(C41:C45)","v":2041513.9000000001},19408.90000000014,{"$f":"SUM(E41:E45)","v":2046359.55},4845.6499999998596,2074268.1300000004,32754.229999999905,2138831.62,64563.489999999772,2297500,158668.38000000018,2404300,106800]
["Adjustments for Total non-recoverable items (from Appendices 2-JA and 2-JB)",0,0,0,0,0,0,0,0,0,0,0,0,0]
["Total Recoverable OM&A Expenses ",{"$f":"B46-B47","v":2022105},{"$f":"C46-C47","v":2041513.9000000001},19408.90000000014,{"$f":"SUM(E46:E47)","v":2046359.55},4845.6499999998596,2074268.1300000004,32754.229999999905,2138831.62,64563.489999999772,2297500,158668.38000000018,2404300,106800]
["Variance from previous year ",null,{"$f":"C48-B48","v":19408.90000000014},null,{"$f":"E48-C48","v":4845.6499999999069},null,{"$f":"G48-E48","v":27908.580000000307},null,{"$f":"I48-G48","v":64563.489999999758},null,{"$f":"K48-I48","v":158668.37999999989},null,{"$f":"M48-K48","v":106800}]
["Percent change (year over year) ",null,{"$f":"C49/B48","v":9.5983640809948739E-3},null,{"$f":"E49/C48","v":2.3735571920425851E-3},null,{"$f":"IF(ISERROR(G49/E48), \"\", G49/E48)","v":1.3638160508010583E-2},null,{"$f":"IF(ISERROR(I49/G48), \"\", I49/G48)","v":3.1125913311891722E-2},null,{"$f":"IF(ISERROR(K49/I48), \"\", K49/I48)","v":7.4184605518409108E-2},null,{"$f":"IF(ISERROR(M49/K48), \"\", M49/K48)","v":4.6485310119695318E-2}]
["Percent Change:                                                    Test year vs. Most Current Actual ",null,null,null,null,null,null,null,{"$f":"IF(ISERROR((M48-I48)/I48), \"\", (M48-I48)/I48)","v":0.12411841003173493},null,null,null,{"$f":"(M48-I48)/I48","v":0.12411841003173493}]
["Simple average of % variance for all years",null,null,null,null,null,null,null,{"$f":"IF(ISERROR((M46-C46)/C46), \"\", (M46-C46)/C46)","v":0.17770444766503909},null,null,null,{"$f":"(M48-C48)/C48","v":0.17770444766503909},{"$f":"IF(ISERROR(AVERAGE(E50,G50,I50,K50,M50)), \"\", AVERAGE(E50,G50,I50,K50,M50))","v":3.3561509330009863E-2}]
["Compound Annual Growth Rate for all years",null,null,null,null,null,null,null,{"$f":"IF(ISERROR((M49-C49)/C49), \"\", (M49-C49)/C49)","v":4.5026302366439745},null,null,null,null,{"$f":"IF((M48-C48)=0, \"\", (M48/C48)^(1/5)-1)","v":3.3254399252778288E-2}]
[{"$f":"\"Compound Growth Rate                                                            (\" & F13 & \" vs. \" & 'LDC Info'!E28 & \" Actuals)\"","v":"Compound Growth Rate                                                            (2016 Actuals vs. 2013 Actuals)"},null,null,null,null,null,null,null,{"$f":"IF(ISERROR((I48/C48)^(1/(3)) - 1), \"\", (I48/C48)^(1/(3)) - 1)","v":1.56437919084218E-2}]
[]
["Note:"]
[]
["1     \"BA\" = Board-Approved"]
["2     If it has been more than three years since the applicant last filed a cost of service application, additional years of historical actuals should be incorporated into the table, as necessary, to go back to the last cost of service application.  If the applicant last filed a cost of service application less than three years ago, a minimum of three years of actual information is required."]
[]
["3     Recoverable OM&A that is included on these tables should be identical to the recoverable OM&A that is shown for the corresponding periods on Appendix 2-JB."]

{"sheet":"App.2-JB_OM&A_Cost _Drivers","index":32,"n_rows":60,"n_cols":8,"rows_kept":60,"cut":false,"hidden":false,"merged":[[9,0,9,7]]}
[null,null,null,null,null,null,"File Number:",{"$f":"EBNUMBER","v":"EB-2017-0032"}]
[null,null,null,null,null,null,"Exhibit:"]
[null,null,null,null,null,null,"Tab:"]
[null,null,null,null,null,null,"Schedule:"]
[null,null,null,null,null,null,"Page:"]
[]
[null,null,null,null,null,null,"Date:"]
[]
[]
["Appendix 2-JB"]
["Recoverable OM&A Cost Driver Table"]
[]
[null,null,"Variances","Variances","Variances","Variances","Variances","Variances"]
["Reporting Basis","Board Approved","CGAAP","NEWGAAP","MIFRS","MIFRS","MIFRS","MIFRS"]
["OM&A",2013,2013,2014,2015,2016,2017,2018]
["Opening Balance (2012 closing balance)",null,2157217.91,2041514.1200000006,2046359.8500000008,2046359.8500000008,2138831.620000001,2297499.9500000016]
["5005-Operation Supervision and Engineering\n",108000,null,null,null,-35867.97,7772.5899999999965,5400]
["5010-Load Dispatching\n",14300,null,-7591.92,15509.94,-9475.59]
["5012-Station Buildings and Fixtures Expense\n",25300,43582.430000000008,null,null,6186.2299999999959]
["5017-Distribution Station Equipment - Operation Supplies and Expenses\n",0,9764.2400000000016,null,9100.2100000000009,-5485.7900000000009,20316.32,-20800]
["5020-Overhead Distribution Lines and Feeders - Operation Labour\n",1300,null,null,null,null,10553.22]
["5025-Overhead Distribution Lines and Feeders - Operation Supplies and Expenses\n",700,7244.9,null,null,-5031.6500000000005,8101.47]
["5040-Underground Distribution Lines and Feeders - Operation Labour\n",5700,-5536.95]
["5055-Underground Distribution Transformers - Operation\n",7000,null,-5529.63,null,null,7744.76]
["5065-Meter Expense\n",54800,-14161.61,9551.8099999999977,-16663.589999999997,25492.080000000002,null,16400]
["5085-Miscellaneous Distribution Expense\n",46800,-12381.120000000003,12383.43,7815.8300000000017]
["5105-Maintenance Supervision and Engineering\n",48000,null,15457.160000000003,-19472.57,-16439.240000000002,9654.91]
["5114-Maintenance of Distribution Station Equipment\n",19000,null,-6090.9400000000005,null,-6490.0900000000011,6564.47,18000]
["5120-Maintenance of Poles, Towers and Fixtures\n",28600,null,-6422.6500000000015,-8111.1799999999985,13715.050000000001,-5422.2200000000012]
["5125-Maintenance of Overhead Conductors and Devices\n",47700,null,-46515.759999999995,7916.5700000000006,29980.059999999998,-30908.68]
["5130-Maintenance of Overhead Services\n",31000,null,5266.98,-8227.7099999999991,25539.730000000003,-24158.980000000003]
["5135-Overhead Distribution Lines and Feeders - Right of Way\n",45400,9761.39,-5891.7200000000012,13678.200000000004]
["5155-Maintenance of Underground Services\n",48300,5173.82,30909.629999999997,5662.0599999999977,24222.680000000008]
["5160-Maintenance of Line Transformers\n",13300,null,-5973.3700000000008,32089.769999999997,-28017.82,28497.9]
["5175-Maintenance of Meters\n",12600,null,-12355.02]
["5305-Supervision\n",0,null,31436.42,6036.7400000000052,20412.619999999995,-10585.779999999999,8600]
["5310-Meter Reading",99700]
["5315-Customer Billing\n",258300,null,-54690.479999999981,null,10120.699999999983,16179.890000000014,24500]
["5320-Collecting\n",77705,null,13716.179999999993,15594.040000000008,-20049.53,12069.699999999997]
["5335-Bad Debt Expense\n",11000,-6459.09,12169.900000000001,-12417.77]
["5410-Community Relations - Sundry\n",19300,null,null,-5071.82,19398.53]
["5415-Energy Conservation\n",3400,null,null,null,null,null,-7100]
["5420-Community Safety Program\n",0,null,6065,-6065,null,8500,-5700]
["5425-Miscellaneous Customer Service and Informational Expenses\n",5900,null,null,null,5529.579999999999,-5019.7999999999993]
["5610-Management Salaries and Expenses\n",296400,-13270.169999999984,11442.75,70313.989999999991,null,7429.8800000000047,12500]
["5615-General Administrative Salaries and Expenses\n",235100,12218.899999999994,13379.800000000017,-45410.050000000017,-6345.8399999999965,19257.190000000002,5800]
["5620-Office Supplies and Expenses\n",61800,null,6632.4800000000032,-7607.9599999999991,9345.0499999999956,-5518.2799999999988]
["5630-Outside Services Employed\n",87500,26274.789999999994,-13610.399999999994,-57964.37,11014.490000000005]
["5635-Property Insurance\n",16000,-10322.09]
["5640-Injuries and Damages\n",30000,null,9704.7100000000028,-7979.2500000000036,9350.2000000000007]
["5645-Employee Pensions and Benefits\n",0]
["5646 Employee Pensions and OPEB",3300,null,11699.54,null,null,7355.66,-5700]
["5655-Regulatory Expenses\n",123500,-27629.229999999996,-31084.380000000005,28672.570000000007,-15849.020000000004,44090.06,46700]
["5665-Miscellaneous General Expenses\n",90400,null,7411.1199999999953,null,-10380.690000000002,9975.0500000000029]
["5675-Maintenance of General Plant\n",19000,null,5523.09]
[]
["Consolidated Expenses '< $5000",{"$f":"15900+10100+2700","v":28700},-139964.22,-2148.08,10509.93,41598.300000000003,16219.05,8200]
["Closing Balance",{"$f":"SUM(B16:B57)","v":2024805},2041513.9000000006,{"$f":"SUM(D16:D57)","v":2046359.7700000007},{"$f":"SUM(E16:E57)","v":2074268.4300000006},{"$f":"SUM(F16:F57)","v":2138831.9200000009},{"$f":"SUM(G16:G57)","v":2297500.0000000014},{"$f":"SUM(H16:H57)","v":2404299.9500000016}]
["OM&A Summay Integrity Check",2024805,2041513.9000000001,2046359.5499999998,2074268.1300000001,2138831.6199999996,2297500,2404300]
["Difference",{"$f":"B58-B59","v":0},0,{"$f":"D58-D59","v":0.2200000009033829},{"$f":"E58-E59","v":0.30000000051222742},0.30000000121071935,0,-4.9999998416751623E-2]

{"sheet":"App.2-JC_OMA Programs","index":33,"n_rows":112,"n_cols":12,"rows_kept":112,"cut":false,"hidden":false,"merged":[[11,0,11,8],[12,1,12,11],[62,1,62,11],[86,1,86,11],[8,0,8,11],[9,0,9,11]]}
[null,null,null,null,null,null,null,null,"File Number:",{"$f":"EBNUMBER","v":"EB-2017-0032"}]
[null,null,null,null,null,null,null,null,"Exhibit:"]
[null,null,null,null,null,null,null,null,"Tab:"]
[null,null,null,null,null,null,null,null,"Schedule:"]
[null,null,null,null,null,null,null,null,"Page:"]
[]
[null,null,null,null,null,null,null,null,"Date:"]
[]
["Appendix 2-JC"]
["OM&A Programs Table"]
[]
[]
[null,"Detail of OM&A Programs Table"]
[null,null,null,null,null,null,null,null,null,null,"Test Year Versus 2013 Actual (Last Rebasing Year)","Test Year Versus Most Current Actuals (2016)"]
[null,"Reporting Basis",null,"Board Approved","NEWGAAP","NEWGAAP","MIFRS","MIFRS","MIFRS","MIFRS"]
[null,"Programs","USoA",2013,2013,2014,2015,2016,2017,2018,"Variance ($)","Variance ($)"]
[]
[null,"Customer Focus"]
[null,"Community and Civic Co-ordination","5410 5415 5420 5425",{"$f":"19300+3400+5900-3700","v":24900},25326.82,31564.560000000001,23289.59,51588.319999999992,55900,43500,{"$f":"J19-E19","v":18173.18},{"$f":"J19-H19","v":-8088.3199999999924}]
[null,"Customer Service, Mailing Costs, Billing  and  Collections","5305 5315 5320 5325 5330 5340",{"$f":"258300+77705","v":336005},330408.89,320920.12,342149,352636.74,370300,400000,{"$f":"J20-E20","v":69591.109999999986},{"$f":"J20-H20","v":47363.260000000009}]
[null,"Bad Debts Collection",5335,11000,4540.91,16710.810000000001,4293.04,2132.87,6300,6300,1759.0900000000001,4167.13]
[null,"Meter Reading",5310,99700,99268.14,99816.63,103048.34,106918.86,110900,114400,15131.86,7481.1399999999994]
[null,"Service Locates",5155.0069999999996,32100,38598.49,66209.759999999995,57043.72,81990.990000000005,74400,75900,37301.51,-6090.9900000000052]
[null,"Sub-Total",null,{"$f":"SUM(D19:D23)","v":503705},{"$f":"SUM(E19:E23)","v":498143.25},535221.88,529823.68999999994,595267.78,617800,640100,141956.75,44832.219999999972]
[]
[null,"Operational Effectiveness"]
[null,"Distribution & Transformer Stations -operating and maintenance","5016 5017 5030 5114",{"$f":"600+19000","v":19600},33378.300000000003,21614.12,30289.730000000003,19524.38,46600,43900,{"$f":"J27-E27","v":10521.699999999997},{"$f":"J27-H27","v":24375.62}]
[null,"Metering -operations maintenance ","5065 5175",{"$f":"54800+12600","v":67400},52993.41,50190.2,36057.32,59018.69,57900,74300,{"$f":"J28-E28","v":21306.589999999997},{"$f":"J28-H28","v":15281.309999999998}]
[null,"Service Centre and Fixtures","5012 5110",{"$f":"25300","v":25300},68882.430000000008,73941.820000000007,69534.67,75720.899999999994,78400,79100,10217.569999999992,3379.1000000000058]
[null,"Asset management & maintenance department",null,null,null,null,null,null,null,null,0,0]
[null,"Overhead lines, conductor, devices and services","5020 5025 5125 5130",{"$f":"1300+700+47700+31000","v":80700},89123.159999999989,46703.19,49351.72,102212.97,65800,66300,-22823.159999999989,-35912.97]
[null,"Underground Lines, conductor, devices and services","5040 5045 5150 5155.002",{"$f":"5700+300+16200+3600","v":25800},18489.36,21776.979999999996,36479.179999999993,34780.339999999997,44900,43200,24710.639999999999,8419.6600000000035]
[null,"Load dispatch activities, mapping, training & conferences","5010 5085",{"$f":"14300+46800","v":61100},51476.81,56268.32,79594.09,73907.67,69700,67900,16423.190000000002,-6007.6699999999983]
[null,"Operations & engineering ,Inspection drafting & design construction services","5005 5105",{"$f":"108000+48000","v":156000},154416.4,174222.9,150879.71000000002,98572.5,116000,125400,-29016.399999999994,26827.5]
[null,"Distribution Transformers","5035 5055 5160",{"$f":"7000+13300","v":20300},22170.799999999999,10667.8,43661.77,18757.34,57500,57400,35229.199999999997,38642.660000000003]
[null,"Vegetation Management-Tree trimming",5135,45400,55161.39,49269.67,62947.87,66114.570000000007,69900,64600,9438.61,-1514.570000000007]
[null,"Underground conduit",5145,4700,4062.15,38.15,1406.16,3227.96,1400,1400,-2662.15,-1827.96]
[null,"Poles Towers & Fixtures","5095 5120",{"$f":"4700+28600","v":33300},32315.17,25892.519999999997,19279.48,33126.47,27700,29000,-3315.1699999999983,-4126.4700000000012]
[null,"Fleet costs ",null,null,null,null,null,null,null,null,0,0]
[null,"Health & Safety Costs",null,null,null,null,null,null,null,null,0,0]
[null,"Executive, Financial , Legal, Professional and Insurance Services","5610 5615 5630 5635 5640",{"$f":"296400+235100+87500+16000+30000","v":665000},680919.70000000007,704078.8,660638.85,670600.65,693900,715800,34880.29999999993,45199.349999999977]
[null,"Post employment costs","5645 5646",3300,3159.16,11699.54,14641.81,16744.34,24100,18400,15240.84,1655.6599999999999]
[null,"Procurement and Materials Management",null,null,null,null,null,null,null,null,0,0]
[null,"Office building  & security costs","5620 5675",{"$f":"61800+19000","v":80800},76128.55,88284.12,80902.3,90004.92,88900,90000,13871.449999999997,-4.9199999999982538]
[null,"Corporate Dues, Directors, Advertising","5660 5665",{"$f":"2000+90400","v":92400},87668.650000000009,94422.97,98312.13,87624.95,98100,100900,13231.349999999991,13275.050000000003]
[null,"IT, software, telecommunications ",null,null,null,null,null,null,null,null,0,0]
[null,"Internal Labour & Benefit Costs - attributed to capital work",null,null,null,null,null,null,null,null,0,0]
[null,"Administrative services recovered from affiliates",null,null,null,null,null,null,null,null,0,0]
[null,"Collection charges recovered from customers",null,null,null,null,null,null,null,null,0,0]
[null,"Other","5195 6225",{"$f":"2700","v":2700},3478.88,3368.44,3035.6600000000003,1862.23,2900,2900,-578.88000000000011,1037.77]
[null,"Sub-Total",null,{"$f":"SUM(D27:D50)","v":1383800},{"$f":"SUM(E27:E50)","v":1433824.3199999998},{"$f":"SUM(F27:F50)","v":1432439.5400000003},1437012.45,1451800.88,1543700,1580500,146675.67999999993,128699.11999999998]
[]
[null,"Public and Regulatory Responsiveness"]
[null,"Regulatory & Compliance ",5655,123500,95870.77,64786.39,93458.96,77609.94,121700,168400,{"$f":"J54-E54","v":72529.23},{"$f":"J54-H54","v":90790.06}]
[null,"Electricial Safety Authority Fees",5680,10100,9996.0400000000009,9981.99,10043.280000000001,10223.27,10400,10500,{"$f":"J55-E55","v":503.95999999999913},{"$f":"J55-H55","v":276.72999999999956}]
[null,"Smart Meter data management program",null,null,null,null,null,null,null,null,{"$f":"J56-E56","v":0},{"$f":"J56-H56","v":0}]
[null,"LEAP ",6205,3700,3679.52,3929.75,3929.75,3929.75,3900,4800,1120.48,870.25]
[null,"Sub-Total",null,{"$f":"SUM(D54:D57)","v":137300},{"$f":"SUM(E54:E57)","v":109546.33},{"$f":"SUM(F54:F57)","v":78698.13},107431.99,91762.96,136000,183700,74153.67,91937.04]
[]
[null,"TOTAL OM&A",null,{"$f":"SUM(D24+D51+D58)","v":2024805},{"$f":"SUM(E24+E51+E58)","v":2041513.9},2046359.5500000003,2074268.13,2138831.62,2297500,2404300,{"$f":"SUM(K24+K51+K58)","v":362786.09999999992},265468.37999999995]
[null,"Integrity Check",null,2024805,{"$f":"'App.2-JA_OM&A_Summary_Analys'!C26","v":2041513.9000000001},{"$f":"'App.2-JA_OM&A_Summary_Analys'!D26","v":2046359.5499999998},{"$f":"'App.2-JA_OM&A_Summary_Analys'!E26","v":2074268.1300000001},{"$f":"'App.2-JA_OM&A_Summary_Analys'!F26","v":2138831.6199999996},{"$f":"'App.2-JA_OM&A_Summary_Analys'!G26","v":2297500},{"$f":"'App.2-JA_OM&A_Summary_Analys'!H26","v":2404300}]
[null,null,null,{"$f":"D60-D61","v":0}]
[null,"Normalized OM&A Programs Table"]
[null,null,null,null,null,null,null,null,null,null,"Test Year Versus Last Rebasing","Test Year Versus Most Current Actuals"]
[null,"Programs",null,"2013 Boad",{"$f":"E16","v":2013},2014,2015,2016,2017,2018,"Variance ($)","Variance ($)"]
[null,"Reporting Basis",null,"Approved","CGAAP","CGAAP","CGAAP","CGAAP","CGAAP","CGAAP","CGAAP","CGAAP"]
[]
[null,"Normalized OM&A"]
[null,"Customer Focus"]
[null,"Specify",null,null,null,null,null,null,null,null,{"$f":"J70-E70","v":0},{"$f":"J70-H70","v":0}]
[null,"Specify",null,null,null,null,null,null,null,null,{"$f":"J71-E71","v":0},{"$f":"J71-H71","v":0}]
[null,"Sub-Total",null,null,{"$f":"SUM(E70:E71)","v":0},0,0,{"$f":"SUM(H70:H71)","v":0},0,0,0,0]
[]
[null,"Operational effectiveness"]
[null,"Specify",null,null,null,null,null,null,null,null,{"$f":"J75-E75","v":0},{"$f":"J75-H75","v":0}]
[null,"Specify",null,null,null,null,null,null,null,null,{"$f":"J76-E76","v":0},{"$f":"J76-H76","v":0}]
[null,"Sub-Total",null,null,{"$f":"SUM(E75:E76)","v":0},0,0,{"$f":"SUM(H75:H76)","v":0},0,0,0,0]
[]
[null,"Public Policy"]
[null,"Specify",null,null,null,null,null,null,null,null,{"$f":"J80-E80","v":0},{"$f":"J80-H80","v":0}]
[null,"Specify",null,null,null,null,null,null,null,null,{"$f":"J81-E81","v":0},{"$f":"J81-H81","v":0}]
[null,"Sub-Total",null,null,{"$f":"SUM(E80:E81)","v":0},0,0,{"$f":"SUM(H80:H81)","v":0},0,0,0,0]
[]
[null,"TOTAL Normalized OM&A",null,null,{"$f":"E60-E83","v":2041513.9},2046359.5500000003,2074268.13,{"$f":"H60-H83","v":2138831.62},2297500,2404300,362786.09999999992,265468.37999999995]
[]
[]
[null,"Summarized OM&A Programs Table"]
[]
[null,null,null,null,null,null,null,null,null,null,"Test Year Versus Last Rebasing","Test Year Versus Most Current Actuals"]
[null,"Programs",null,"2013 Board",2013,2014,2015,2016,2017,2018,"Variance ($)","Variance ($)"]
[null,"Reporting Basis",null,"Approved","CGAAP","CGAAP","CGAAP","CGAAP","CGAAP","CGAAP","CGAAP","CGAAP"]
[]
[null,"Normalized OM&A"]
[]
[null,"Customer Focus",null,null,{"$f":"E72-E24","v":-498143.25},{"$f":"F72-F24","v":-535221.88},-529823.68999999994,{"$f":"H72-H24","v":-595267.78},-617800,-640100,-141956.75,-44832.219999999972]
[]
[null,"Operational effectiveness",null,null,{"$f":"E77-E51","v":-1433824.3199999998},-1432439.5400000003,-1437012.45,{"$f":"H77-H51","v":-1451800.88},-1543700,-1580500,-146675.67999999993,-128699.11999999998]
[]
[null,"Public Policy",null,null,{"$f":"E82-E58","v":-109546.33},-78698.13,-107431.99,{"$f":"H82-H58","v":-91762.96},-136000,-183700,-74153.67,-91937.04]
[]
[null,"TOTAL Normalized OM&A",null,null,{"$f":"E95+E97+E99","v":-2041513.9},-2046359.5500000003,-2074268.13,{"$f":"H95+H97+H99","v":-2138831.62},-2297500,-2404300,-362786.09999999992,-265468.37999999995]
[]
[]
[]
[]
[]
[]
[]
[]
[]
[]
[null,null,null,"app"]

{"sheet":"App.2-K_Employee Costs","index":34,"n_rows":32,"n_cols":8,"rows_kept":32,"cut":false,"hidden":false,"merged":[[31,0,31,7],[24,0,24,7],[8,0,8,7],[9,0,9,7],[12,0,12,7],[16,0,16,7],[20,0,20,7]]}
[null,null,null,null,null,null,"File Number:",{"$f":"EBNUMBER","v":"EB-2017-0032"}]
[null,null,null,null,null,null,"Exhibit:"]
[null,null,null,null,null,null,"Tab:"]
[null,null,null,null,null,null,"Schedule:"]
[null,null,null,null,null,null,"Page:"]
[]
[null,null,null,null,null,null,"Date:"]
[]
["Appendix 2-K"]
["Employee Costs"]
[]
[null,{"$f":"\"Last Rebasing Year - \"&RebaseYear&\"- Board Approved\"","v":"Last Rebasing Year - 2013- Board Approved"},{"$f":"\"Last Rebasing Year - \"&RebaseYear&\"-  Actual\"","v":"Last Rebasing Year - 2013-  Actual"},{"$f":"BridgeYear -3 & \" Actuals\"","v":"2014 Actuals"},{"$f":"BridgeYear -2 & \" Actuals\"","v":"2015 Actuals"},{"$f":"BridgeYear -1 & \" Actuals\"","v":"2016 Actuals"},{"$f":"BridgeYear & \" Bridge Year\"","v":"2017 Bridge Year"},{"$f":"BridgeYear+1 & \" Test Year\"","v":"2018 Test Year"}]
["Number of Employees (FTEs including Part-Time)1"]
["Management (including executive)",null,null,null,null,null,5,5]
["Non-Management (union and non-union)",16.5,15.28,15.97,14.8,14.51,10.29,10.29]
["Total",{"$f":"SUM(B14:B15)","v":16.5},{"$f":"SUM(C14:C15)","v":15.28},15.97,14.8,14.51,15.29,15.29]
["Total Salary and Wages including ovetime and incentive pay"]
["Management (including executive)",null,null,null,null,null,558800,574700]
["Non-Management (union and non-union)",1225546,1303884.94,1333391.6000000001,1266448.8,1279117.25,{"$f":"1351300-G18","v":792500},{"$f":"1444900-H18","v":870200}]
["Total",{"$f":"SUM(B18:B19)","v":1225546},{"$f":"SUM(C18:C19)","v":1303884.94},1333391.6000000001,1266448.8,1279117.25,1351300,1444900]
["Total Benefits (Current + Accrued) 2"]
["Management (including executive)",null,null,null,null,null,130100,138400]
["Non-Management (union and non-union)",285622,270617,305030,305760,312503,{"$f":"316100-G22","v":186000},{"$f":"335000-H22","v":196600}]
["Total",{"$f":"SUM(B22:B23)","v":285622},{"$f":"SUM(C22:C23)","v":270617},{"$f":"SUM(D22:D23)","v":305030},{"$f":"SUM(E22:E23)","v":305760},{"$f":"SUM(F22:F23)","v":312503},{"$f":"SUM(G22:G23)","v":316100},335000]
["Total Compensation (Salary, Wages, & Benefits)"]
["Management (including executive)",{"$f":"B18+B22","v":0},{"$f":"C18+C22","v":0},0,0,0,688900,713100]
["Non-Management (union and non-union)",1511168,{"$f":"C19+C23","v":1574501.94},1638421.6,1572208.8,1591620.25,978500,1066800]
["Total",1511168,{"$f":"C20+C24","v":1574501.94},1638421.6,1572208.8,1591620.25,1667400,1779900]
[]
["Note:"]
["1 If an applicant wishes to use headcount, it must also file the same schedule on an FTE basis."]
["2 Current employee benefits, plus Pension and Other Post-Employment Benefits costs, as recorded for recovery in distribution rates. Should be consistent with OPEBs costs as documented in Appendix 2-KA."]

{"sheet":"App.2-KA_P_OPEBs","index":35,"n_rows":36,"n_cols":11,"rows_kept":36,"cut":false,"hidden":false,"merged":[[35,2,39,10],[8,1,8,10],[9,1,9,10],[11,2,11,9],[14,2,14,10],[16,2,21,10]]}
[null,null,null,null,null,null,null,null,null,"File Number:",{"$f":"EBNUMBER","v":"EB-2017-0032"}]
[null,null,null,null,null,null,null,null,null,"Exhibit:"]
[null,null,null,null,null,null,null,null,null,"Tab:"]
[null,null,null,null,null,null,null,null,null,"Schedule:"]
[null,null,null,null,null,null,null,null,null,"Page:"]
[]
[null,null,null,null,null,null,null,null,null,"Date:"]
[]
[null,"Appendix 2-KA"]
[null,"OPEBs (Other Post-Employment Benefits) Costs"]
[]
[null,"A","Please indicate if OPEBs were recovered on a cash or accrual accounting basis for each year since the distributor started to recover OPEBs in distribution rates from customers:",null,null,null,null,null,null,null,"Accrual"]
[]
[null,null,"Notes: "]
[null,null,"(Please add any information to explain the accounting basis used for OPEBs cost recovery in rate setting. If basis is other than Cash or Accrual, an explanation is required.)"]
[]
[null,null,"In account 5646-Employee Pensions and OPEB-sub account, CWH records the annual premiums paid for life insurance premiums of retired employees which decreases to 25% of the original amount over a 10 year period.  CWH also records health and dental premiums for management employees who retired prior to age 65 years in this account as well.  As a separate sub-account of 5646-Employee Pensions and OPEB-Actuarial adjustment is also posted to this account.  In 2018, CWH has included $6,700 as an annual actuarial adjustment. In 2013's CoS application there was zero ($0.00) dollars included in the applicaiton for actuarial accruals."]
[]
[]
[]
[]
[]
[]
[null,"B","Please complete the following table:"]
[]
[null,null,"OPEBS",{"$f":"CONCATENATE(\"First Year of recovery to \",E26)","v":"First Year of recovery to 2013"},{"$f":"F26-1","v":2013},{"$f":"G26-1","v":2014},{"$f":"H26-1","v":2015},{"$f":"I26-1","v":2016},{"$f":"BridgeYear","v":2017},{"$f":"TestYear","v":2018},"Total"]
[null,null,"Amounts included in Rates"]
[null,null,"     OM&A",0,3300,3300,3300,3300,3300,{"$f":"11700+6700","v":18400},{"$f":"SUM(D28:J28)","v":34900}]
[null,null,"     Capital",0,0,0,0,0,0,0,{"$f":"SUM(D29:J29)","v":0}]
[null,null,"     Total",{"$f":"SUM(D28:D29)","v":0},{"$f":"SUM(E28:E29)","v":3300},3300,3300,3300,3300,18400,34900]
[null,null,"Paid benefit amounts",null,3159,{"$f":"11699.54-7697","v":4002.5400000000009},{"$f":"14641.81-2436-6757","v":5448.8099999999995},{"$f":"16744.34-5848","v":10896.34},{"$f":"24100-12400","v":11700},{"$f":"11700+6700","v":18400},{"$f":"SUM(D31:J31)","v":53606.69}]
[null,null,"Net excess amount included in rates relative to amounts actually paid.",{"$f":"D30-D31","v":0},{"$f":"E30-E31","v":141},-702.54000000000087,-2148.8099999999995,-7596.34,-8400,0,{"$f":"SUM(D32:J32)","v":-18706.690000000002}]
[]
[null,"C","Please describe what the distributor has done with the recoveries in excess of cash payments:"]
[]
[null,null,"The above calculation shows and un-recovered amount for OPEBs of $18,706.69 once the actuarial accruals have been removed.  The actuarial accrues would have increased the under recovery by 2014-$7,697; 2015-$9,193; 2016-$5,848; 2017 estimated amount of $12,400. The actuarial accrual total $35,138 between 2013-2017."]

{"sheet":"App.2-L_OM&A_per_Cust_FTE","index":36,"n_rows":38,"n_cols":10,"rows_kept":38,"cut":false,"hidden":false,"merged":[[37,2,37,9],[34,2,34,9],[35,2,35,9],[36,2,36,9],[32,2,33,9],[22,1,22,2],[25,1,25,2],[26,1,26,2],[16,1,16,2],[17,1,17,2],[18,1,18,2],[19,1,19,2],[20,1,20,2],[21,1,21,2],[13,1,13,2],[14,1,14,2],[15,1,15,2],[8,1,8,9],[9,1,9,9]]}
[null,null,null,null,null,null,null,null,"File Number:",{"$f":"EBNUMBER","v":"EB-2017-0032"}]
[null,null,null,null,null,null,null,null,"Exhibit:"]
[null,null,null,null,null,null,null,null,"Tab:"]
[null,null,null,null,null,null,null,null,"Schedule:"]
[null,null,null,null,null,null,null,null,"Page:"]
[]
[null,null,null,null,null,null,null,null,"Date:"]
[]
[null,"Appendix 2-L"]
[null,"Recoverable OM&A Cost per Customer and per FTE 1"]
[]
[]
[null,null,null,{"$f":"\"Last Rebasing Year - \"&RebaseYear&\"- Board Approved\"","v":"Last Rebasing Year - 2013- Board Approved"},{"$f":"\"Last Rebasing Year - \"&RebaseYear&\"-  Actual\"","v":"Last Rebasing Year - 2013-  Actual"},{"$f":"BridgeYear -3 & \" Actuals\"","v":"2014 Actuals"},{"$f":"BridgeYear -2 & \" Actuals\"","v":"2015 Actuals"},{"$f":"BridgeYear -1 & \" Actuals\"","v":"2016 Actuals"},{"$f":"BridgeYear & \" Bridge Year\"","v":"2017 Bridge Year"},{"$f":"TestYear & \" Test Year\"","v":"2018 Test Year"}]
[null,"Reporting Basis"]
[null,"OM&A Costs"]
[null,"     O&M",null,1047005,1080699,1065808,1109514,1180232,1253600,1292600]
[null,"     Admin Expenses",null,975100,960815,980552,964755,958600,1043900,1111700]
[null,"Total Recoverable OM&A from Appendix 2-JB 5",null,{"$f":"SUM(D16:D17)","v":2022105},{"$f":"SUM(E16:E17)","v":2041514},{"$f":"SUM(F16:F17)","v":2046360},2074269,2138832,2297500,2404300]
[null,"Number of Customers 2,4",null,8438,8419,8469,8494,8524,8596,8669]
[null,"Number of FTEs 3,4",null,16.5,15.28,15.97,14.8,14.51,15.29,15.29]
[null,"Customers/FTEs",null,{"$f":"IF(D20=0,\"\",D19/D20)","v":511.39393939393938},{"$f":"IF(E20=0,\"\",E19/E20)","v":550.98167539267013},{"$f":"IF(F20=0,\"\",F19/F20)","v":530.30682529743262},573.91891891891885,587.45692625775325,562.19751471550035,566.97187704381952]
[null,"OM&A cost per customer"]
[null,"     O&M per customer",null,{"$f":"IF(D19=0,\"\",D16/D19)","v":124.08212846646124},{"$f":"IF(E19=0,\"\",E16/E19)","v":128.36429504691768},{"$f":"IF(F19=0,\"\",F16/F19)","v":125.84815208407132},130.62326348010359,138.45987799155327,145.83527221963703,149.10600992040605]
[null,"     Admin per customer",null,{"$f":"IF(D19=0,\"\",D17/D19)","v":115.5605593742593},{"$f":"IF(E19=0,\"\",E17/E19)","v":114.12459912103576},{"$f":"IF(F19=0,\"\",F17/F19)","v":115.78132010863148},113.58076289145279,112.45893946503989,121.44020474639368,128.23855115930326]
[null,"     Total OM&A per customer",null,{"$f":"IF(D19=0,\"\",D18/D19)","v":239.64268784072055},{"$f":"IF(E19=0,\"\",E18/E19)","v":242.48889416795345},{"$f":"IF(F19=0,\"\",F18/F19)","v":241.62947219270279},244.20402637155638,250.91881745659316,267.27547696603074,277.34456107970931]
[null,"OM&A cost per FTE"]
[null,"     O&M per FTE",null,{"$f":"IF(D20=0,\"\",D16/D20)","v":63454.848484848488},{"$f":"IF(E20=0,\"\",E16/E20)","v":70726.374345549746},{"$f":"IF(F20=0,\"\",F16/F20)","v":66738.134001252343},74967.16216216216,81339.214334941425,81988.227599738399,84538.914323086996]
[null,"     Admin per FTE",null,{"$f":"IF(D20=0,\"\",D17/D20)","v":59096.969696969696},{"$f":"IF(E20=0,\"\",E17/E20)","v":62880.562827225134},{"$f":"IF(F20=0,\"\",F17/F20)","v":61399.62429555416},65186.148648648646,66064.782908339082,68273.381294964027,72707.652060170047]
[null,"     Total OM&A per FTE",null,{"$f":"IF(D20=0,\"\",D18/D20)","v":122551.81818181818},{"$f":"IF(E20=0,\"\",E18/E20)","v":133606.93717277487},{"$f":"IF(F20=0,\"\",F18/F20)","v":128137.75829680651},140153.3108108108,147403.99724328049,150261.60889470243,157246.56638325704]
[]
[null,"Notes:"]
[]
[null,1,"If it has been more than three years since the applicant last filed a cost of service application, additional years of historical actuals should be incorporated into the table, as necessary, to go back to the last cost of service application.  If the applicant last filed a cost of service application less than three years ago, a minimum of three years of actual information is required."]
[]
[null,2,"The method of calculating the number of customers must be identified. Should correspond with data provided in Appendix 2-IB"]
[null,3,"The method of calculating the number of FTEs must be identified.  See also Appendix 2-K"]
[null,4,"The number of customers and the number of FTEs should correspond to mid-year or average of January 1 and December 31 figures."]
[null,5,"For the test year, the applicant should take into account the system O&M (line 22 of Appendix 2-AB) in developing its forecasted OM&A."]

{"sheet":"App.2-L_OM&A_per_Cust_FTEE_exp","index":37,"n_rows":38,"n_cols":12,"rows_kept":38,"cut":false,"hidden":true,"merged":[[8,0,8,11],[9,0,9,11],[34,1,34,6],[35,1,35,6],[21,0,21,1],[22,0,22,1],[25,0,25,1],[14,0,14,1],[13,0,13,1],[11,7,11,11],[15,0,15,1],[16,0,16,1],[17,0,17,1],[37,1,38,11],[36,1,36,11],[32,1,33,11],[19,0,19,1],[18,0,18,1],[20,0,20,1],[26,0,26,1]]}
[null,null,null,null,null,null,null,null,null,null,"File Number:",{"$f":"EBNUMBER","v":"EB-2017-0032"}]
[null,null,null,null,null,null,null,null,null,null,"Exhibit:"]
[null,null,null,null,null,null,null,null,null,null,"Tab:"]
[null,null,null,null,null,null,null,null,null,null,"Schedule:"]
[null,null,null,null,null,null,null,null,null,null,"Page:"]
[]
[null,null,null,null,null,null,null,null,null,null,"Date:"]
[]
["Appendix 2-L"]
["Recoverable OM&A Cost per Customer and per FTE 1"]
[]
[null,null,null,null,null,null,null,"5-year Distribution System Plan Period"]
[null,null,{"$f":"\"Last Rebasing Year - \"&RebaseYear&\"- Board Approved\"","v":"Last Rebasing Year - 2013- Board Approved"},{"$f":"\"Last Rebasing Year - \"&RebaseYear&\"-  Actual\"","v":"Last Rebasing Year - 2013-  Actual"},{"$f":"BridgeYear -2 & \" Actuals\"","v":"2015 Actuals"},{"$f":"BridgeYear -1 & \" Actuals\"","v":"2016 Actuals"},{"$f":"BridgeYear & \" Bridge Year\"","v":"2017 Bridge Year"},{"$f":"TestYear & \" Test Year\"","v":"2018 Test Year"},{"$f":"TestYear+1 & \" Year\"","v":"2019 Year"},{"$f":"TestYear+2 & \" Year\"","v":"2020 Year"},{"$f":"TestYear+3 & \" Year\"","v":"2021 Year"},{"$f":"TestYear+4 & \" Year\"","v":"2022 Year"}]
["Reporting Basis"]
["OM&A Costs"]
["     O&M"]
["     Admin Expenses"]
["Total Recoverable OM&A from Appendix 2-JB 5",null,{"$f":"SUM(C16:C17)","v":0},{"$f":"SUM(D16:D17)","v":0},0,0,0,0,0,0,0,0]
["Number of Customers 2,4"]
["Number of FTEs 3,4"]
["Customers/FTEs",null,{"$f":"IF(C20=0,\"\",C19/C20)","v":""},{"$f":"IF(D20=0,\"\",D19/D20)","v":""},"","","","","","","",""]
["OM&A cost per customer"]
["     O&M per customer",null,{"$f":"IF(C19=0,\"\",C16/C19)","v":""},{"$f":"IF(D19=0,\"\",D16/D19)","v":""},"","","","","","","",""]
["     Admin per customer",null,{"$f":"IF(C19=0,\"\",C17/C19)","v":""},{"$f":"IF(D19=0,\"\",D17/D19)","v":""},"","","","","","","",""]
["     Total OM&A per customer",null,{"$f":"IF(C19=0,\"\",C18/C19)","v":""},{"$f":"IF(D19=0,\"\",D18/D19)","v":""},"","","","","","","",""]
["OM&A cost per FTE"]
["     O&M per FTE",null,{"$f":"IF(C20=0,\"\",C16/C20)","v":""},{"$f":"IF(D20=0,\"\",D16/D20)","v":""},"","","","","","","",""]
["     Admin per FTE",null,{"$f":"IF(C20=0,\"\",C17/C20)","v":""},{"$f":"IF(D20=0,\"\",D17/D20)","v":""},"","","","","","","",""]
["     Total OM&A per FTE",null,{"$f":"IF(C20=0,\"\",C18/C20)","v":""},{"$f":"IF(D20=0,\"\",D18/D20)","v":""},"","","","","","","",""]
[]
["Notes:"]
[]
[1,"If it has been more than three years since the applicant last filed a cost of service application, additional years of historical actuals should be incorporated into the table, as necessary, to go back to the last cost of service application.  If the applicant last filed a cost of service application less than three years ago, a minimum of three years of actual information is required."]
[]
[2,"The method of calculating the number of customers must be identified. Should be linked back to Appendix 2-IA"]
[3,"The method of calculating the number of FTEs must be identified.  See also Appendix 2-K"]
[4,"The number of customers and the number of FTEs should correspond to mid-year or average of January 1 and December 31 figures."]
[5,"For the test year and in the subsequent four years of the DSP period, the applicant should take into account the system O&M (line X of Appendix 2-AB) in developing its forecasted OM&A. Admin expenses beyond the test year also need to be forecasted (separately)."]

{"sheet":"App.2-M_Regulatory_Costs","index":38,"n_rows":44,"n_cols":12,"rows_kept":44,"cut":false,"hidden":false,"merged":[[34,1,34,2],[8,0,8,10],[9,0,9,10],[12,1,12,2]]}
[null,null,null,null,null,null,null,null,null,"File Number:",{"$f":"EBNUMBER","v":"EB-2017-0032"}]
[null,null,null,null,null,null,null,null,null,"Exhibit:"]
[null,null,null,null,null,null,null,null,null,"Tab:"]
[null,null,null,null,null,null,null,null,null,"Schedule:"]
[null,null,null,null,null,null,null,null,null,"Page:"]
[]
[null,null,null,null,null,null,null,null,null,"Date:"]
[]
["Appendix 2-M"]
["Regulatory Cost Schedule"]
[null,null,null,null,"on"]
[]
[null,"Regulatory Cost Category",null,"USoA Account","Ongoing or One-time Cost? ","Last Rebasing Year Board Approved",2013,2014,2015,2016,2017,2018]
[null,1,"OEB Annual Assessment",5655,"On-Going",18000,17617,17557,19424,20113,18300,31700]
[null,2,"OEB Section 30 Costs (Applicant-originated)",5655,"On-Going",6500,null,null,null,1153.9000000000001,1000,1300]
[null,3,"OEB Section 30 Costs (OEB-initiated)",5655,"On-Going",3600,636.60000000000036,500.19,2628.15,122.8599999999999,2700,2700]
[null,4,"Expert Witness costs for regulatory matters",5655,"One-Time",8700,0,0,0,0,0,0]
[null,5,"Legal costs for regulatory matters",5655,"One-Time",0,0,0,0,0,0,0]
[null,6,"Consultants' costs for regulatory matters (IRM & ROE)",5655,"On-Going",25000,36948.5,0,28847.5,11488.75,11000,11000]
[null,7,"Operating expenses associated with staff resources allocated to regulatory matters",5655,"On-Going",40000,9028.7800000000007,38463.990000000005,34793.379999999997,37789.42,80200,69000]
[null,8,"Operating expenses associated with other resources allocated to regulatory matters ",5655,"On-Going",3700,2166.88,3189.05,2430.9,2062.14,3000,3000]
[null,9,"Other regulatory agency fees or assessments",5655,"On-Going",5500,5018.01,5076.1499999999996,5335.03,4879.87,5500,5500]
[null,10,"Any other costs for regulatory matters (please define) (2009 Rebasing cost)",5655,"On-Going",11200,11180,0,0,0,0,0]
[null,10,"Any other costs for regulatory matters (please define) (2017-Consultants for CoS, DSP) ",5655,"One-Time",20000,0,0,0,0,0,0]
[null,10,"Any other costs for regulatory matters: 2018 COS one-time Costs (1/5th cost of $221,100)",5655,"On-Going",0,0,0,0,0,0,44200]
[null,11,"Intervenor costs",5655,"One-Time",11400,13275,0,0,0,0,0]
[null,12,"Sub-total - Ongoing Costs ",null,null,113500,82595.76999999999,64786.380000000012,93458.959999999992,77609.939999999988,121700,168400]
[null,13,"Sub-total - One-time Costs ",null,null,40100,13275,0,0,0,0,0]
[null,14,"Total",null,null,{"$f":"F27+F28","v":153600},95870.76999999999,64786.380000000012,93458.959999999992,77609.939999999988,121700,168400]
[null,null,"Regulatory Balance from 2.1.7",null,null,123500,95870.77,64786.39,93458.96,77609.94,121700,168400]
[null,null,"Difference",null,null,{"$f":"F29-F30","v":30100},{"$f":"G29-G30","v":0},-9.9999999874853529E-3,0,0,0,0]
[null,"Please fill out the following table for all one-time costs related to this cost of service application to be amortized over the test year plus the IRM period."]
[]
[]
[null,"Regulatory Cost Category",null,"Historical Year(s) 2012 - 2013 CoS Actual Cost","2013 CoS OEB approved","2017 Bridge Year","2018 Test Year"]
[null,4,"Expert Witness costs for regulatory matters",0,null,30000,null,null,"2013 consultant cost - $35,991.5 plus $91,000 from 2012"]
[null,5,"Legal costs for regulatory matters",0,8700,20000]
[null,6,"Consultant's Costs",126991.5,20000,129600,null,null,"The historical information includes CoS cost for 2013 that was paid in 2013 and does not include cost from 2012, "]
[null,7,"Incremental operating expenses associated with staff resources allocated to this application",0,null,null,null,null,"It also includes the DSP initial cost paid in 2015 and not included in the 2017 Bridge year expenses."]
[null,8,"Incremental operating expenses associated with other resources allocated to this application",0,null,1500]
[null,10,"Any other costs for regulatory matters: 2018 COS one-time Costs (1/5th cost of $221,100)",null,null,null,44200]
[null,11,"Intervenor costs",13275,11400,40000]
[]
[null,null,"Total One Time Costs split over 5 years",{"$f":"SUM(D36:D43)","v":140266.5},{"$f":"SUM(E36:E43)","v":40100},{"$f":"SUM(F36:F43)","v":221100},{"$f":"SUM(G36:G43)","v":44200}]

{"sheet":"App.2-N_Corp_Cost_Allocation","index":39,"n_rows":129,"n_cols":8,"rows_kept":129,"cut":false,"hidden":false,"merged":[[25,1,26,1],[14,0,14,5],[16,0,16,1],[16,2,18,2],[16,3,18,3],[16,4,17,4],[16,5,17,5],[17,0,18,0],[17,1,18,1],[22,0,22,5],[24,0,24,1],[24,2,26,2],[24,3,26,3],[24,4,25,4],[24,5,25,5],[25,0,26,0],[104,4,105,4],[104,5,105,5],[105,0,106,0],[105,1,106,1],[62,0,62,5],[64,0,64,1],[64,2,66,2],[64,3,66,3],[64,4,65,4],[64,5,65,5],[65,0,66,0],[65,1,66,1],[74,0,74,5],[76,0,76,1],[76,2,78,2],[76,3,78,3],[76,4,77,4],[76,5,77,5],[77,0,78,0],[77,1,78,1],[54,0,54,5],[56,0,56,1],[56,2,58,2],[56,3,58,3],[56,4,57,4],[56,5,57,5],[57,0,58,0],[57,1,58,1],[34,0,34,5],[36,0,36,1],[36,2,38,2],[36,3,38,3],[36,4,37,4],[36,5,37,5],[37,0,38,0],[37,1,38,1],[42,0,42,5],[44,0,44,1],[44,2,46,2],[44,3,46,3],[44,4,45,4],[44,5,45,5],[45,0,46,0],[45,1,46,1],[114,0,114,5],[116,5,117,5],[117,0,118,0],[117,1,118,1],[84,0,84,1],[84,2,86,2],[84,3,86,3],[84,4,85,4],[82,0,82,5],[84,5,85,5],[85,0,86,0],[85,1,86,1],[94,0,94,5],[96,0,96,1],[96,2,98,2],[96,3,98,3],[96,4,97,4],[96,5,97,5],[97,0,98,0],[97,1,98,1],[102,0,102,5],[104,0,104,1],[104,2,106,2],[104,3,106,3],[122,0,122,5],[124,0,124,1],[124,2,126,2],[124,3,126,3],[124,4,125,4],[124,5,125,5],[125,0,126,0],[125,1,126,1],[116,0,116,1],[116,2,118,2],[116,3,118,3],[116,4,117,4],[124,6,125,6],[24,7,25,7],[44,7,45,7],[64,7,65,7],[84,7,85,7],[104,7,105,7],[124,7,125,7],[24,6,25,6],[44,6,45,6],[64,6,65,6],[84,6,85,6],[104,6,105,6]]}
[null,null,null,null,null,"File Number:",{"$f":"EBNUMBER","v":"EB-2017-0032"}]
[null,null,null,null,null,"Exhibit:"]
[null,null,null,null,null,"Tab:"]
[null,null,null,null,null,"Schedule:"]
[null,null,null,null,null,"Page:"]
[]
[null,null,null,null,null,"Date:"]
[]
["Appendix 2-N"]
["Shared Services and Corporate Cost Allocation 1"]
[]
[]
[null,"Year:",2013]
[]
["Shared Services"]
[]
["Name of Company",null,"Service Offered","Pricing Methodology","Price for the Service","Cost for the Service"]
["From","To"]
[null,null,null,null,"$","$"]
["N/A","N/A","N/A","N/A","N/A","N/A"]
[]
[]
["Corporate Cost Allocation"]
[]
["Name of Company",null,"Service Offered","Pricing Methodology","% of Corporate Costs Allocated","Amount Allocated","Revenues ","Rate of Return"]
["From","To"]
[null,null,null,null,"%","$","$","%"]
["Centre Wellington Hydro Ltd.","Township of Centre Wellington","Water/Sewer billing","Cost Bases (See Notes)","100% of Cost",116745,151757,{"$f":"(G28-F28)/F28","v":0.29990149471069427}]
["Centre Wellington Hydro Ltd.","Township of Centre Wellington","Street Lights Mtce and Installation","Cost Bases (See Notes)","100% of Cost",{"$f":"22440.79+11275.31","v":33716.1},33716]
[]
[]
[]
[null,"Year:",2014]
[]
["Shared Services"]
[]
["Name of Company",null,"Service Offered","Pricing Methodology","Price for the Service","Cost for the Service"]
["From","To"]
[null,null,null,null,"$","$"]
["N/A","N/A","N/A","N/A","N/A","N/A"]
[]
[]
["Corporate Cost Allocation"]
[]
["Name of Company",null,"Service Offered","Pricing Methodology","% of Corporate Costs Allocated","Amount Allocated","Revenues ","Rate of Return"]
["From","To"]
[null,null,null,null,"%","$","$","%"]
["Centre Wellington Hydro Ltd.","Township of Centre Wellington","Water/Sewer billing","Cost Bases (See Notes)","100% of Cost",129496,153926.85,{"$f":"(G48-F48)/F48","v":0.18866103972323475}]
["Centre Wellington Hydro Ltd.","Township of Centre Wellington","Street Lights Mtce and Installation","Cost Bases (See Notes)","100% of Cost",47513.22,47513]
[]
[]
[]
[null,"Year:",2015]
[]
["Shared Services"]
[]
["Name of Company",null,"Service Offered","Pricing Methodology","Price for the Service","Cost for the Service"]
["From","To"]
[null,null,null,null,"$","$"]
["N/A","N/A","N/A","N/A","N/A","N/A"]
[]
[]
["Corporate Cost Allocation"]
[]
["Name of Company",null,"Service Offered","Pricing Methodology","% of Corporate Costs Allocated","Amount Allocated","Revenues ","Rate of Return"]
["From","To"]
[null,null,null,null,"%","$","$","%"]
["Centre Wellington Hydro Ltd.","Township of Centre Wellington","Water/Sewer billing","Cost Bases (See Notes)","100% of Cost",124803,156875.25,{"$f":"(G68-F68)/F68","v":0.25698300521622075}]
["Centre Wellington Hydro Ltd.","Township of Centre Wellington","Street Lights Mtce and Installation","Cost Bases (See Notes)","100% of Cost",39682.5,39683]
[]
[]
[]
[null,"Year:",2016]
[]
["Shared Services"]
[]
["Name of Company",null,"Service Offered","Pricing Methodology","Price for the Service","Cost for the Service"]
["From","To"]
[null,null,null,null,"$","$"]
["N/A","N/A","N/A","N/A","N/A","N/A"]
[]
[]
["Corporate Cost Allocation"]
[]
["Name of Company",null,"Service Offered","Pricing Methodology","% of Corporate Costs Allocated","Amount Allocated","Revenues ","Rate of Return"]
["From","To"]
[null,null,null,null,"%","$","$","%"]
["Centre Wellington Hydro Ltd.","Township of Centre Wellington","Water/Sewer billing","Cost Bases (See Notes)","100% of Cost",132519,161914.20000000001,{"$f":"(G88-F88)/F88","v":0.22181875806488136}]
["Centre Wellington Hydro Ltd.","Township of Centre Wellington","Street Lights Mtce and Installation","Cost Bases (See Notes)","100% of Cost",20952,20952]
[]
[]
[]
[null,"Year:",2017]
[]
["Shared Services"]
[]
["Name of Company",null,"Service Offered","Pricing Methodology","Price for the Service","Cost for the Service"]
["From","To"]
[null,null,null,null,"$","$"]
["N/A","N/A","N/A","N/A","N/A","N/A"]
[]
[]
["Corporate Cost Allocation"]
[]
["Name of Company",null,"Service Offered","Pricing Methodology","% of Corporate Costs Allocated","Amount Allocated","Revenues ","Rate of Return"]
["From","To"]
[null,null,null,null,"%","$","$","%"]
["Centre Wellington Hydro Ltd.","Township of Centre Wellington","Water/Sewer billing","Cost Bases (See Notes)","100% of Cost",149700,162900,{"$f":"(G108-F108)/F108","v":8.8176352705410826E-2}]
["Centre Wellington Hydro Ltd.","Township of Centre Wellington","Street Lights Mtce and Installation","Cost Bases (See Notes)","100% of Cost",9000,9000]
[]
[]
[]
[null,"Year:",2018]
[]
["Shared Services"]
[]
["Name of Company",null,"Service Offered","Pricing Methodology","Price for the Service","Cost for the Service"]
["From","To"]
[null,null,null,null,"$","$"]
["N/A","N/A","N/A","N/A","N/A","N/A"]
[]
[]
["Corporate Cost Allocation"]
[]
["Name of Company",null,"Service Offered","Pricing Methodology","% of Corporate Costs Allocated","Amount Allocated","Revenues ","Rate of Return"]
["From","To"]
[null,null,null,null,"%","$","$","%"]
["Centre Wellington Hydro Ltd.","Township of Centre Wellington","Water/Sewer billing","Cost Bases (See Notes)","100% of Cost",148600,162900,{"$f":"(G128-F128)/F128","v":9.6231493943472413E-2}]
["Centre Wellington Hydro Ltd.","Township of Centre Wellington","Street Lights Mtce and Installation","Cost Bases (See Notes)","100% of Cost",9900,9900]

{"sheet":"App.2-OA Capital Structure","index":40,"n_rows":144,"n_cols":15,"rows_kept":144,"cut":false,"hidden":false,"merged":[[9,2,9,14],[10,2,10,14],[16,0,17,0],[17,4,17,8],[14,7,14,9],[52,7,52,9],[70,7,70,9],[72,0,73,0],[73,4,73,8],[12,0,12,14],[33,7,33,9],[35,0,36,0],[36,4,36,8],[127,7,127,9],[129,0,130,0],[130,4,130,8],[54,0,55,0],[55,4,55,8],[89,7,89,9],[91,0,92,0],[92,4,92,8],[108,7,108,9],[110,0,111,0],[111,4,111,8]]}
[null,null,null,null,null,null,null,null,null,null,"File Number:",null,null,null,{"$f":"EBNUMBER","v":"EB-2017-0032"}]
[null,null,null,null,null,null,null,null,null,null,"Exhibit:"]
[null,null,null,null,null,null,null,null,null,null,"Tab:"]
[null,null,null,null,null,null,null,null,null,null,"Schedule:"]
[null,null,null,null,null,null,null,null,null,null,"Page:"]
[]
[null,null,null,null,null,null,null,null,null,null,"Date:"]
[]
[]
[null,null,"Appendix 2-OA"]
[null,null,"Capital Structure and Cost of Capital"]
[]
["This table must be completed for the last Board-approved year and the test year."]
[]
[null,null,null,null,null,null,"Year:",2018]
[]
["Line No."]
[null,null,"Particulars",null,"Capitalization Ratio",null,null,null,null,null,"Cost Rate",null,null,null,"Return"]
[]
[null,null,null,null,"(%)",null,null,null,"($)",null,"(%)",null,null,null,"($)"]
[null,null,"Debt"]
[1,null,"  Long-term Debt",null,0.56000000000000005,null,null,null,{"$f":"$I$31*E22","v":9658070.3465131521},null,3.80693E-2,null,null,null,{"$f":"K22*I22","v":367675.97744251316}]
[2,null,"  Short-term Debt",null,0.04,null,"(1)",null,{"$f":"$I$31*E23","v":689862.16760808229},null,1.7600000000000001E-2,null,null,null,{"$f":"K23*I23","v":12141.57414990225}]
[3,null,"Total Debt",null,{"$f":"SUM(E22:E23)","v":0.60000000000000009},null,null,null,{"$f":"SUM(I22:I23)","v":10347932.514121234},null,{"$f":"IF(E24=0,0,SUMPRODUCT(E22:E23,K22:K23)/E24)","v":3.6704679999999996E-2},null,null,null,{"$f":"SUM(O22:O23)","v":379817.55159241543}]
[]
[null,null,"Equity"]
[4,null,"  Common Equity",null,0.4,null,null,null,{"$f":"$I$31*E27","v":6898621.6760808229},null,8.7800000000000003E-2,null,null,null,{"$f":"K27*I27","v":605698.98315989622}]
[5,null,"  Preferred Shares",null,null,null,null,null,{"$f":"$I$31*E28","v":0},null,null,null,null,null,{"$f":"K28*I28","v":0}]
[6,null,"Total Equity",null,{"$f":"SUM(E27:E28)","v":0.4},null,null,null,{"$f":"SUM(I27:I28)","v":6898621.6760808229},null,{"$f":"IF(E29=0,0,SUMPRODUCT(E27:E28,K27:K28)/E29)","v":8.7800000000000003E-2},null,null,null,{"$f":"SUM(O27:O28)","v":605698.98315989622}]
[]
[7,null,"Total",null,1,null,null,null,17246554.190202057,null,{"$f":"(K24*E24)+(K29*E29)","v":5.7142808000000003E-2},null,null,null,{"$f":"O24+O29","v":985516.53475231165}]
[]
[]
[null,null,null,null,null,null,"Year:",2017]
[]
["Line No."]
[null,null,"Particulars",null,"Capitalization Ratio",null,null,null,null,null,"Cost Rate",null,null,null,"Return"]
[]
[null,null,null,null,"(%)",null,null,null,"($)",null,"(%)",null,null,null,"($)"]
[null,null,"Debt"]
[1,null,"  Long-term Debt",null,0.56000000000000016,null,null,null,{"$f":"$I$50*E41","v":10094334.331322398},null,4.1399999999999999E-2,null,null,null,{"$f":"K41*I41","v":417905.44131674728}]
[2,null,"  Short-term Debt",null,0.04,null,"(1)",null,{"$f":"$I$50*E42","v":721023.88080874248},null,2.07E-2,null,null,null,{"$f":"K42*I42","v":14925.19433274097}]
[3,null,"Total Debt",null,{"$f":"SUM(E41:E42)","v":0.6000000000000002},null,null,null,{"$f":"SUM(I41:I42)","v":10815358.212131141},null,{"$f":"IF(E43=0,0,SUMPRODUCT(E41:E42,K41:K42)/E43)","v":4.0019999999999993E-2},null,null,null,{"$f":"SUM(O41:O42)","v":432830.63564948825}]
[]
[null,null,"Equity"]
[4,null,"  Common Equity",null,0.4,null,null,null,{"$f":"$I$50*E46","v":7210238.8080874253},null,8.9800000000000005E-2,null,null,null,{"$f":"K46*I46","v":647479.4449662508}]
[5,null,"  Preferred Shares",null,null,null,null,null,{"$f":"$I$50*E47","v":0},null,null,null,null,null,{"$f":"K47*I47","v":0}]
[6,null,"Total Equity",null,{"$f":"SUM(E46:E47)","v":0.4},null,null,null,{"$f":"SUM(I46:I47)","v":7210238.8080874253},null,{"$f":"IF(E48=0,0,SUMPRODUCT(E46:E47,K46:K47)/E48)","v":8.9799999999999991E-2},null,null,null,{"$f":"SUM(O46:O47)","v":647479.4449662508}]
[]
[7,null,"Total",null,1,null,null,null,18025597.020218562,null,{"$f":"(K43*E43)+(K48*E48)","v":5.9932000000000006E-2},null,null,null,{"$f":"O43+O48","v":1080310.0806157391}]
[]
[]
[null,null,null,null,null,null,"Year:",2016]
[]
["Line No."]
[null,null,"Particulars",null,"Capitalization Ratio",null,null,null,null,null,"Cost Rate",null,null,null,"Return"]
[]
[null,null,null,null,"(%)",null,null,null,"($)",null,"(%)",null,null,null,"($)"]
[null,null,"Debt"]
[1,null,"  Long-term Debt",null,0.56000000000000016,null,null,null,{"$f":"$I$69*E60","v":9397488.8000000026},null,4.1399999999999999E-2,null,null,null,{"$f":"K60*I60","v":389056.03632000013}]
[2,null,"  Short-term Debt",null,0.04,null,"(1)",null,{"$f":"$I$69*E61","v":671249.20000000007},null,2.07E-2,null,null,null,{"$f":"K61*I61","v":13894.858440000002}]
[3,null,"Total Debt",null,{"$f":"SUM(E60:E61)","v":0.6000000000000002},null,null,null,{"$f":"SUM(I60:I61)","v":10068738.000000002},null,{"$f":"IF(E62=0,0,SUMPRODUCT(E60:E61,K60:K61)/E62)","v":4.0019999999999993E-2},null,null,null,{"$f":"SUM(O60:O61)","v":402950.89476000011}]
[]
[null,null,"Equity"]
[4,null,"  Common Equity",null,0.4,null,null,null,{"$f":"$I$69*E65","v":6712492},null,8.9800000000000005E-2,null,null,null,{"$f":"K65*I65","v":602781.78159999999}]
[5,null,"  Preferred Shares",null,null,null,null,null,{"$f":"$I$50*E66","v":0},null,null,null,null,null,{"$f":"K66*I66","v":0}]
[6,null,"Total Equity",null,{"$f":"SUM(E65:E66)","v":0.4},null,null,null,{"$f":"SUM(I65:I66)","v":6712492},null,{"$f":"IF(E67=0,0,SUMPRODUCT(E65:E66,K65:K66)/E67)","v":8.9799999999999991E-2},null,null,null,{"$f":"SUM(O65:O66)","v":602781.78159999999}]
[]
[7,null,"Total",null,1,null,null,null,16781230,null,{"$f":"(K62*E62)+(K67*E67)","v":5.9932000000000006E-2},null,null,null,{"$f":"O62+O67","v":1005732.6763600002}]
[]
[null,null,null,null,null,null,"Year:",2015]
[]
["Line No."]
[null,null,"Particulars",null,"Capitalization Ratio",null,null,null,null,null,"Cost Rate",null,null,null,"Return"]
[]
[null,null,null,null,"(%)",null,null,null,"($)",null,"(%)",null,null,null,"($)"]
[null,null,"Debt"]
[1,null,"  Long-term Debt",null,0.56000000000000016,null,null,null,{"$f":"$I$87*E78","v":8473730.7282880023},null,4.1399999999999999E-2,null,null,null,{"$f":"K78*I78","v":350812.45215112332}]
[2,null,"  Short-term Debt",null,0.04,null,"(1)",null,{"$f":"$I$87*E79","v":605266.48059199995},null,2.07E-2,null,null,null,{"$f":"K79*I79","v":12529.016148254399}]
[3,null,"Total Debt",null,{"$f":"SUM(E78:E79)","v":0.6000000000000002},null,null,null,{"$f":"SUM(I78:I79)","v":9078997.2088800017},null,{"$f":"IF(E80=0,0,SUMPRODUCT(E78:E79,K78:K79)/E80)","v":4.0019999999999993E-2},null,null,null,{"$f":"SUM(O78:O79)","v":363341.46829937771}]
[]
[null,null,"Equity"]
[4,null,"  Common Equity",null,0.4,null,null,null,{"$f":"$I$87*E83","v":6052664.8059200002},null,8.9800000000000005E-2,null,null,null,{"$f":"K83*I83","v":543529.29957161599}]
[5,null,"  Preferred Shares",null,null,null,null,null,{"$f":"$I$31*E84","v":0},null,null,null,null,null,{"$f":"K84*I84","v":0}]
[6,null,"Total Equity",null,{"$f":"SUM(E83:E84)","v":0.4},null,null,null,{"$f":"SUM(I83:I84)","v":6052664.8059200002},null,{"$f":"IF(E85=0,0,SUMPRODUCT(E83:E84,K83:K84)/E85)","v":8.9799999999999991E-2},null,null,null,{"$f":"SUM(O83:O84)","v":543529.29957161599}]
[]
[7,null,"Total",null,1,null,null,null,15131662.014799999,null,{"$f":"(K80*E80)+(K85*E85)","v":5.9932000000000006E-2},null,null,null,{"$f":"O80+O85","v":906870.7678709937}]
[]
[]
[null,null,null,null,null,null,"Year:",2014]
[]
["Line No."]
[null,null,"Particulars",null,"Capitalization Ratio",null,null,null,null,null,"Cost Rate",null,null,null,"Return"]
[]
[null,null,null,null,"(%)",null,null,null,"($)",null,"(%)",null,null,null,"($)"]
[null,null,"Debt"]
[1,null,"  Long-term Debt",null,0.56000000000000016,null,null,null,{"$f":"$I$106*E97","v":7546885.416840001},null,4.1399999999999999E-2,null,null,null,{"$f":"K97*I97","v":312441.05625717604}]
[2,null,"  Short-term Debt",null,0.04,null,"(1)",null,{"$f":"$I$106*E98","v":539063.24405999994},null,2.07E-2,null,null,null,{"$f":"K98*I98","v":11158.609152041998}]
[3,null,"Total Debt",null,{"$f":"SUM(E97:E98)","v":0.6000000000000002},null,null,null,{"$f":"SUM(I97:I98)","v":8085948.6609000005},null,{"$f":"IF(E99=0,0,SUMPRODUCT(E97:E98,K97:K98)/E99)","v":4.0019999999999993E-2},null,null,null,{"$f":"SUM(O97:O98)","v":323599.66540921805}]
[]
[null,null,"Equity"]
[4,null,"  Common Equity",null,0.4,null,null,null,{"$f":"$I$106*E102","v":5390632.4405999994},null,8.9800000000000005E-2,null,null,null,{"$f":"K102*I102","v":484078.79316587996}]
[5,null,"  Preferred Shares",null,null,null,null,null,{"$f":"$I$106*E103","v":0},null,null,null,null,null,{"$f":"K103*I103","v":0}]
[6,null,"Total Equity",null,{"$f":"SUM(E102:E103)","v":0.4},null,null,null,{"$f":"SUM(I102:I103)","v":5390632.4405999994},null,{"$f":"IF(E104=0,0,SUMPRODUCT(E102:E103,K102:K103)/E104)","v":8.9799999999999991E-2},null,null,null,{"$f":"SUM(O102:O103)","v":484078.79316587996}]
[]
[7,null,"Total",null,1,null,null,null,13476581.101499997,null,{"$f":"(K99*E99)+(K104*E104)","v":5.9932000000000006E-2},null,null,null,{"$f":"O99+O104","v":807678.45857509808}]
[]
[]
[null,null,null,null,null,null,"Year:",2013]
[]
["Line No."]
[null,null,"Particulars",null,"Capitalization Ratio",null,null,null,null,null,"Cost Rate",null,null,null,"Return"]
[]
[null,null,null,null,"(%)",null,null,null,"($)",null,"(%)",null,null,null,"($)"]
[null,null,"Debt"]
[1,null,"  Long-term Debt",null,0.56000000000000016,null,null,null,{"$f":"$I$144*E116","v":6596078.0256000021},null,4.1399999999999999E-2,null,null,null,{"$f":"K116*I116","v":273077.63025984011}]
[2,null,"  Short-term Debt",null,0.04,null,"(1)",null,{"$f":"$I$144*E117","v":471148.43040000001},null,2.07E-2,null,null,null,{"$f":"K117*I117","v":9752.7725092799992}]
[3,null,"Total Debt",null,{"$f":"SUM(E116:E117)","v":0.6000000000000002},null,null,null,{"$f":"SUM(I116:I117)","v":7067226.4560000021},null,{"$f":"IF(E118=0,0,SUMPRODUCT(E116:E117,K116:K117)/E118)","v":4.0019999999999993E-2},null,null,null,{"$f":"SUM(O116:O117)","v":282830.40276912012}]
[]
[null,null,"Equity"]
[4,null,"  Common Equity",null,0.4,null,null,null,{"$f":"$I$125*E121","v":4452741.6275200015},null,8.9800000000000005E-2,null,null,null,{"$f":"K121*I121","v":399856.19815129618}]
[5,null,"  Preferred Shares",null,null,null,null,null,{"$f":"$I$144*E122","v":0},null,null,null,null,null,{"$f":"K122*I122","v":0}]
[6,null,"Total Equity",null,{"$f":"SUM(E121:E122)","v":0.4},null,null,null,{"$f":"SUM(I121:I122)","v":4452741.6275200015},null,{"$f":"IF(E123=0,0,SUMPRODUCT(E121:E122,K121:K122)/E123)","v":8.9799999999999991E-2},null,null,null,{"$f":"SUM(O121:O122)","v":399856.19815129618}]
[]
[7,null,"Total",null,1,null,null,null,11131854.068800004,null,{"$f":"(K118*E118)+(K123*E123)","v":5.9932000000000006E-2},null,null,null,{"$f":"O118+O123","v":682686.6009204163}]
[]
[]
[null,null,null,null,null,null,"Board Approved",2013]
[]
["Line No."]
[null,null,"Particulars",null,"Capitalization Ratio",null,null,null,null,null,"Cost Rate",null,null,null,"Return"]
[]
[null,null,null,null,"(%)",null,null,null,"($)",null,"(%)",null,null,null,"($)"]
[null,null,"Debt"]
[1,null,"  Long-term Debt",null,0.56000000000000016,null,null,null,{"$f":"$I$144*E135","v":6596078.0256000021},null,4.1399999999999999E-2,null,null,null,{"$f":"K135*I135","v":273077.63025984011}]
[2,null,"  Short-term Debt",null,0.04,null,"(1)",null,{"$f":"$I$144*E136","v":471148.43040000001},null,2.07E-2,null,null,null,{"$f":"K136*I136","v":9752.7725092799992}]
[3,null,"Total Debt",null,{"$f":"SUM(E135:E136)","v":0.6000000000000002},null,null,null,{"$f":"SUM(I135:I136)","v":7067226.4560000021},null,{"$f":"IF(E137=0,0,SUMPRODUCT(E135:E136,K135:K136)/E137)","v":4.0019999999999993E-2},null,null,null,{"$f":"SUM(O135:O136)","v":282830.40276912012}]
[]
[null,null,"Equity"]
[4,null,"  Common Equity",null,0.4,null,null,null,{"$f":"$I$144*E140","v":4711484.3040000005},null,8.9800000000000005E-2,null,null,null,{"$f":"K140*I140","v":423091.29049920005}]
[5,null,"  Preferred Shares",null,null,null,null,null,{"$f":"$I$144*E141","v":0},null,null,null,null,null,{"$f":"K141*I141","v":0}]
[6,null,"Total Equity",null,{"$f":"SUM(E140:E141)","v":0.4},null,null,null,{"$f":"SUM(I140:I141)","v":4711484.3040000005},null,{"$f":"IF(E142=0,0,SUMPRODUCT(E140:E141,K140:K141)/E142)","v":8.9799999999999991E-2},null,null,null,{"$f":"SUM(O140:O141)","v":423091.29049920005}]
[]
[7,null,"Total",null,1,null,null,null,11778710.76,null,{"$f":"(K137*E137)+(K142*E142)","v":5.9932000000000006E-2},null,null,null,{"$f":"O137+O142","v":705921.69326832017}]

{"sheet":"App.2-OB_Debt Instruments","index":41,"n_rows":83,"n_cols":20,"rows_kept":83,"cut":false,"hidden":false,"merged":[[13,0,13,10],[13,11,13,14],[15,0,15,10]]}
[null,null,null,null,null,null,null,null,null,"File Number:",{"$f":"EBNUMBER","v":"EB-2017-0032"}]
[null,null,null,null,null,null,null,null,null,"Exhibit:"]
[null,null,null,null,null,null,null,null,null,"Tab:"]
[null,null,null,null,null,null,null,null,null,"Schedule:"]
[null,null,null,null,null,null,null,null,null,"Page:"]
[]
[null,null,null,null,null,null,null,null,null,"Date:"]
[]
[]
["Appendix 2-OB"]
["Debt Instruments"]
[]
[]
[]
[]
[]
[null,null,null,null,2018,null,null,null,null,null,null,null,null,null,"Weighted debt"]
[]
["Row","Description","Lender","Affiliated or Third-Party Debt?","Fixed or Variable-Rate?","Start Date","Term              (years)","Principal                         ($)","Rate (%)                     (Note 2)","Interest ($)       (Note 1)","Additional Comments, if any",null,null,null,"Debt","Weight","Principal","Rate","Rate","Notes"]
[1,"Promissory Note","Township of Centre Wellington","Affiliated","Fixed Rate","2000-11-01","open",5046753,7.2499999999999995E-2,365889.59249999997,null,null,null,null,"Township of Centre Wellington",0.52902344536593349,5046753,7.2499999999999995E-2,3.7199999999999997E-2,"caped at 3.72%"]
[2,"Promissory Note","Infrastructure Ontario","Third-Party","Fixed Rate","2013-10-01",25,1329000,4.5199999999999997E-2,60070.799999999996,null,null,null,null,"Infrastructure Ontario",0.1393117830199587,1329000,4.5199999999999997E-2,4.5199999999999997E-2,"Actual"]
[3,"Promissory Note","Infrastructure Ontario","Third-Party","Fixed Rate","2014-09-15",25,1238000,3.78E-2,46796.4,null,null,null,null,"Infrastructure Ontario",0.12977275197796001,1238000,3.78E-2,3.78E-2,"Actual"]
[4,"Promissory Note","Infrastructure Ontario","Third-Party","Fixed Rate","2015-07-02",25,1926000,3.56E-2,68565.600000000006,null,null,null,null,"Infrastructure Ontario",0.20189201963614781,1926000,3.56E-2,3.56E-2,"Actual"]
[5,null,null,null,null,null,null,null,null,0,null,null,null,null,"Total Debt",1,9539753,5.6743858305346062E-2,3.8069330683928607E-2]
[]
["Total",null,null,null,null,null,null,9539753,5.6743858305346055E-2,541322.39249999996]
[]
[]
[null,null,null,"Year",2017]
[]
["Row","Description","Lender","Affiliated or Third-Party Debt?","Fixed or Variable-Rate?","Start Date","Term              (years)","Principal                         ($)","Rate (%)                     (Note 2)","Interest ($)       (Note 1)","Additional Comments, if any"]
[1,"Promissory Note","Township of Centre Wellington","Affiliated","Fixed Rate","2000-11-01","open",5046753,7.2499999999999995E-2,365889.59249999997]
[2,"Promissory Note","Infrastructure Ontario","Third-Party","Fixed Rate","2013-10-01",25,1329000,4.5199999999999997E-2,60070.799999999996]
[3,"Promissory Note","Infrastructure Ontario","Third-Party","Fixed Rate","2014-09-15",25,1238000,3.78E-2,46796.4]
[4,"Promissory Note","Infrastructure Ontario","Third-Party","Fixed Rate","2015-07-02",25,1926000,3.56E-2,68565.600000000006]
[5,null,null,null,null,null,null,null,null,0]
[]
["Total",null,null,null,null,null,null,9539753,5.6743858305346055E-2,541322.39249999996]
[]
[]
[null,null,null,"Year",2016]
[]
["Row","Description","Lender","Affiliated or Third-Party Debt?","Fixed or Variable-Rate?","Start Date","Term              (years)","Principal                         ($)","Rate (%)                     (Note 2)","Interest ($)       (Note 1)","Additional Comments, if any"]
[1,"Promissory Note","Township of Centre Wellington","Affiliated","Fixed Rate","2000-11-01","open",5046753,7.2499999999999995E-2,365889.59249999997]
[2,"Promissory Note","Infrastructure Ontario","Third-Party","Fixed Rate","2013-10-01",25,1329000,4.5199999999999997E-2,60070.799999999996]
[3,"Promissory Note","Infrastructure Ontario","Third-Party","Fixed Rate","2014-09-15",25,1238000,3.78E-2,46796.4]
[4,"Promissory Note","Infrastructure Ontario","Third-Party","Fixed Rate","2015-07-02",25,1926000,3.56E-2,68565.600000000006]
[5,null,null,null,null,null,null,null,null,0]
[]
["Total",null,null,null,null,null,null,9539753,5.6743858305346055E-2,541322.39249999996]
[]
[]
[null,null,null,"Year",2015]
[]
["Row","Description","Lender","Affiliated or Third-Party Debt?","Fixed or Variable-Rate?","Start Date","Term              (years)","Principal                         ($)","Rate (%)                     (Note 2)","Interest ($)       (Note 1)","Additional Comments, if any"]
[1,"Promissory Note","Township of Centre Wellington","Affiliated","Fixed Rate","2000-11-01","open",5046753,7.2499999999999995E-2,365889.59249999997]
[2,"Promissory Note","Infrastructure Ontario","Third-Party","Fixed Rate","2013-10-01",25,1329000,4.5199999999999997E-2,60070.799999999996]
[3,"Promissory Note","Infrastructure Ontario","Third-Party","Fixed Rate","2014-09-15",25,1238000,3.78E-2,46796.4]
[4,"Promissory Note","Infrastructure Ontario","Third-Party","Fixed Rate","2015-07-02",25,1926000,3.56E-2,68565.600000000006]
[5,null,null,null,null,null,null,null,null,0]
[]
["Total",null,null,null,null,null,null,9539753,5.6743858305346055E-2,541322.39249999996]
[]
[]
[null,null,null,"Year",2014]
[]
["Row","Description","Lender","Affiliated or Third-Party Debt?","Fixed or Variable-Rate?","Start Date","Term              (years)","Principal                         ($)","Rate (%)                     (Note 2)","Interest ($)       (Note 1)","Additional Comments, if any"]
[1,"Promissory Note","Township of Centre Wellington","Affiliated","Fixed Rate","2000-11-01","open",5046753,7.2499999999999995E-2,365889.59249999997]
[2,"Promissory Note","Infrastructure Ontario","Third-Party","Fixed Rate","2013-10-01",25,1329000,4.5199999999999997E-2,60070.799999999996]
[3,"Promissory Note","Infrastructure Ontario","Third-Party","Fixed Rate","2014-09-15",25,1238000,3.78E-2,46796.4]
[4,null,null,null,null,null,null,null,null,0]
[]
["Total",null,null,null,null,null,null,7613753,6.2092478242990017E-2,472756.79249999998]
[]
[]
[null,null,null,"Year",2013]
[]
["Row","Description","Lender","Affiliated or Third-Party Debt?","Fixed or Variable-Rate?","Start Date","Term              (years)","Principal                         ($)","Rate (%)                     (Note 2)","Interest ($)       (Note 1)","Additional Comments, if any"]
[1,"Promissory Note","Township of Centre Wellington","Affiliated","Fixed Rate","2000-11-01","open",5046753,7.2499999999999995E-2,365889.59249999997]
[2,"Promissory Note","Infrastructure Ontario","Third-Party","Fixed Rate","2013-10-01",25,1329000,4.5199999999999997E-2,60070.799999999996]
[3,null,null,null,null,null,null,null,null,0]
[]
["Total",null,null,null,null,null,null,6375753,6.6809425098494246E-2,425960.39249999996]

{"sheet":"App.2-Q_Cost of Serv. Emb. Dx","index":42,"n_rows":60,"n_cols":7,"rows_kept":60,"cut":false,"hidden":false,"merged":[[8,0,8,6],[9,0,9,6],[15,0,15,1],[15,2,15,3],[53,3,54,3],[9,7,9,11],[12,0,12,6],[11,0,11,6],[58,3,59,3],[58,4,59,4],[53,4,54,4]]}
[null,null,null,null,null,"File Number:",{"$f":"EBNUMBER","v":"EB-2017-0032"}]
["Not Applicable",null,null,null,null,"Exhibit:"]
[null,null,null,null,null,"Tab:"]
[null,null,null,null,null,"Schedule:"]
[null,null,null,null,null,"Page:"]
[]
[null,null,null,null,null,"Date:"]
[]
["Appendix 2-Q"]
["Cost of Serving Embedded Distributor(s) "]
[]
["To be completed by Host Distributors ONLY"]
["(Not required if Host Distributor has an Embedded Distributor rate class, i.e. a separate row on Sheet 11 of the RRWF.)"]
[]
[]
["Proposed Rate Class for Billing Embedded Distributor(s)"]
[]
["Host's Distribution Facilities used by Embedded Distributor(s)"]
[]
["(1)","(2)","(3)","(4)","(5)","(6) = '(3) + (4)"]
["Asset Class","Total OM&A costs asociated with asset class ","Original cost of asset class ","Accumulated amortization of asset class","Annual amortization of asset class","Net Book Value of asset class"]
["Totals for Host Distributor:","($)","($)","($)","($)"]
["Distribution Stations",null,null,null,null,{"$f":"C23+D23","v":0}]
["Low Voltage Line",null,null,null,null,0]
["LV Line category # 2 (if applcable)",null,null,null,null,0]
["TS (owned by host)",null,null,null,null,0]
["add rows if necessary... ",null,null,null,null,0]
[null,null,null,null,null,0]
[null,null,null,null,null,0]
[]
["(1)","(7)","(8)","(9)","(10)","(11)"]
[{"$f":"A21","v":"Asset Class"},"Total line length or station capacity in asset class","Line length or capacity required to provide LV service to Embedded Distributor(s)","Annual total demand on station/line providing LV services (sum of 12 monthly peaks)","Annual billed Embedded Distributor demand on station/line providing LV services","Embedded Distributor(s)' Responsibility Share "]
["Embedded Distributor's share:","kW or kVa; km","kW or kVA; km","kW or kVA","kW or kVA","percent"]
["Distribution Stations",null,null,null,null,{"$f":"IF(D34=0,0,(C34/B34)*(E34/D34))","v":0}]
["Low Voltage Line",null,null,null,null,{"$f":"IF(D35=0,0,(C35/B35)*(E35/D35))","v":0}]
["LV Line # 2 (if applicable) ",null,null,null,null,{"$f":"IF(D36=0,0,(C36/B36)*(E36/D36))","v":0}]
["TS (owned by host)",null,null,null,null,{"$f":"IF(D37=0,0,(C37/B37)*(E37/D37))","v":0}]
["add rows if necessary ",null,null,null,null,{"$f":"IF(D38=0,0,(C38/B38)*(E38/D38))","v":0}]
[]
["(1)","(12)","(12a)","(13)","(14)","(15)","(16)"]
[{"$f":"A32","v":"Asset Class"},"Return on Assets used to Provide LV services","Taxes/PILs","Annual amortization on assets used to provide LV services","OM&A costs with burden associated with assets used to provide LV services","Total annual cost associated with assets used to provide LV services","Monthly cost associated with the delivery of LV services"]
[null,"($)","($)","($)","($)","($)","$/kW or $/kVA"]
["Distribution Stations",{"$f":"E$54*(F23+B23*E$59)*F34","v":0},{"$f":"(B43-(B$54*C$54*F34*(F23+B23*E57)+B$55*C$55*F34*(F23+B23*E$57)))*E$57/(1-E$57)","v":0},{"$f":"E23*F34","v":0},{"$f":"B23*F34","v":0},{"$f":"SUM(B43:E43)","v":0},{"$f":"IF(E34=0,0,(D43/E34))","v":0}]
["Low Voltage Line",{"$f":"E$54*(F24+B24*E$59)*F35","v":0},{"$f":"(B44-(B$54*C$54*F35*(F24+B24*E58)+B$55*C$55*F35*(F24+B24*E58)))*E$57/(1-E$57)","v":0},{"$f":"E24*F35","v":0},{"$f":"B24*F35","v":0},{"$f":"SUM(B44:E44)","v":0},{"$f":"IF(E35=0,0,(D44/E35))","v":0}]
["LV Line # 2 (if applicable) ",{"$f":"E$54*(F25+B25*E$59)*F36","v":0},{"$f":"(B45-(B$54*C$54*F36*(F25+B25*E59)+B$55*C$55*F36*(F25+B25*E$59)))*E$57/(1-E$57)","v":0},{"$f":"E25*F36","v":0},{"$f":"B25*F36","v":0},{"$f":"SUM(B45:E45)","v":0},{"$f":"IF(E36=0,0,(D45/E36))","v":0}]
["TS (owned by host)",{"$f":"E$54*(F26+B26*E$59)*F37","v":0},{"$f":"(B46-(B$54*C$54*F37*(F26+B26*E60)+B$55*C$55*F37*(F26+B26*E60)))*E$57/(1-E$57)","v":0},{"$f":"E26*F37","v":0},{"$f":"B26*F37","v":0},{"$f":"SUM(B46:E46)","v":0},{"$f":"IF(E37=0,0,(D46/E37))","v":0}]
["add rows if necessary ",{"$f":"E$54*(F27+B27*E$59)*F38","v":0},{"$f":"(B47-(B$54*C$54*F38*(F27+B27*I61)+B$55*C$55*F38*(F27+B27*I61)))*E$57/(1-E$57)","v":0},{"$f":"E27*F38","v":0},{"$f":"B27*F38","v":0},{"$f":"SUM(B47:E47)","v":0},{"$f":"IF(E38=0,0,(D47/E38))","v":0}]
[]
["Total",null,null,null,null,{"$f":"SUM(F43:F47)","v":0},{"$f":"SUM(G43:G47)","v":0}]
[]
["(17)","(18)","(19)","(20)","(21)"]
[null,"Capital Structure","Cost Rate"]
[null,"(%)","(%)",null,"(%)"]
["Long-Term Debt",null,null,"Weighted Average Cost of Capital",{"$f":"IF(B60=0%,0,SUMPRODUCT(B54:B58,C54:C58)/B60)","v":0}]
["Short-term Debt"]
[]
["Common Equity",null,null,"Tax/PILs Rate"]
["Preferred Shares"]
[null,null,null,"Working Capital Allowance Factor"]
["Total",{"$f":"SUM(B54:B58)","v":0}]

{"sheet":"App.2-R_Loss Factors","index":43,"n_rows":70,"n_cols":8,"rows_kept":70,"cut":false,"hidden":false,"merged":[[8,0,8,7],[9,0,9,7],[10,0,10,7],[12,0,13,1],[12,2,12,6],[12,7,13,7],[14,1,14,7],[23,1,23,7],[25,1,25,7],[52,1,53,7],[34,1,37,7],[41,1,43,7],[45,1,48,7],[55,1,56,7],[58,1,58,7],[30,1,32,7],[68,1,68,7],[60,1,60,7],[62,1,62,7],[64,1,66,6],[50,1,50,7]]}
[null,null,null,null,null,null,"File Number:",{"$f":"EBNUMBER","v":"EB-2017-0032"}]
[null,null,null,null,null,null,"Exhibit:"]
[null,null,null,null,null,null,"Tab:"]
[null,null,null,null,null,null,"Schedule:"]
[null,null,null,null,null,null,"Page:"]
[]
[null,null,null,null,null,null,"Date:"]
[]
["Appendix 2-R"]
["Loss Factors"]
[]
[]
[null,null,"Historical Years",null,null,null,null,"5-Year Average"]
[null,null,{"$f":"IF(ISBLANK('LDC Info'!E26-5), \"Year 5\", 'LDC Info'!E26-5)","v":2012},{"$f":"IF(ISBLANK('LDC Info'!E26-4), \"Year 5\", 'LDC Info'!E26-4)","v":2013},{"$f":"IF(ISBLANK('LDC Info'!E26-3), \"Year 5\", 'LDC Info'!E26-3)","v":2014},{"$f":"IF(ISBLANK('LDC Info'!E26-2), \"Year 5\", 'LDC Info'!E26-2)","v":2015},{"$f":"IF(ISBLANK('LDC Info'!E26-1), \"Year 5\", 'LDC Info'!E26-1)","v":2016}]
[null,"Losses Within Distributor's System"]
["A(1)","\"Wholesale\" kWh delivered to distributor (higher value)",157787210.12,158215666.21000001,152078551.02000001,147296195.5,148236545.75999999,{"$f":"IF(SUM(C16:G16)=0,0,AVERAGE(C16:G16))","v":152722833.722}]
["A(2)","\"Wholesale\" kWh delivered to distributor (lower value)",155621528.42000002,156149103.05000001,150032976.99000001,145282182.49000001,146247249.56999999,{"$f":"IF(SUM(C17:G17)=0,0,AVERAGE(C17:G17))","v":150666608.104}]
["B","Portion of \"Wholesale\" kWh delivered to distributor for its Large Use Customer(s)",null,null,null,null,null,{"$f":"IF(SUM(C18:G18)=0,0,AVERAGE(C18:G18))","v":0}]
["C","Net \"Wholesale\" kWh delivered to distributor  = A(2) - B",{"$f":"C17-C18","v":155621528.42000002},156149103.05000001,150032976.99000001,145282182.49000001,146247249.56999999,150666608.104]
["D","\"Retail\" kWh delivered by distributor",151632695.86000001,151277744.56,145402029.00999999,141025705.25,141210672.31999999,{"$f":"IF(SUM(C20:G20)=0,0,AVERAGE(C20:G20))","v":146109769.40000001}]
["E","Portion of \"Retail\" kWh delivered by distributor to its Large Use Customer(s)",null,null,null,null,null,{"$f":"IF(SUM(C21:G21)=0,0,AVERAGE(C21:G21))","v":0}]
["F","Net \"Retail\" kWh delivered by distributor = D - E",{"$f":"C20-C21","v":151632695.86000001},151277744.56,145402029.00999999,141025705.25,141210672.31999999,146109769.40000001]
["G","Loss Factor in Distributor's system = C / F",{"$f":"IF(C22=0,\"\",C19/C22)","v":1.026305886981544},1.0322014219882021,1.0318492665579071,1.0301822794110793,1.0356671147247747,1.0311877756204302]
[null,"Losses Upstream of Distributor's System"]
["H","Supply Facilities Loss Factor",1.0139163374244413,1.0132345503088691,1.01363416277567,1.01386276675833,1.0136022810401493,{"$f":"IF(SUM(C25:G25)=0,0,AVERAGE(C25:G25))","v":1.0136500196614919}]
[null,"Total Losses"]
["I","Total Loss Factor = G x H",{"$f":"IF(C23=\"\",\"\",C23*C25)","v":1.0405883060054697},1.0458621436363911,1.0459176674181132,1.0444634560691199,1.0497545498833016,1.0452635090323392]
[]
["Notes:"]
[]
["A(1)","If directly connected to the IESO-controlled grid, kWh pertains to the virtual meter on the primary or high voltage side of the transformer at the interface with the transmission grid.  This corresponds to the \"With Losses\" kWh value provided by the IESO's MV-WEB.  It is the higher of the two values provided by MV-WEB."]
[]
[]
[]
[null,"If fully embedded within a host distributor, kWh pertains to the virtual meter on the primary or high voltage side of the transformer, at the interface between the host distributor and the transmission grid.  For example, if the host distributor is Hydro One Networks Inc., kWh from the Hydro One Networks' invoice corresponding to \"Total kWh w Losses\" should be reported.  This corresponds to the higher of the two kWh values provided in Hydro One Networks' invoice."]
[]
[]
[]
[]
[null,"If partially embedded, kWh pertains to the sum of the above."]
[]
["A(2)","If directly connected to the IESO-controlled grid, kWh pertains to a metering installation on the secondary or low voltage side of the transformer at the interface with the transmission grid.  This corresponds to the \"Without Losses\" kWh value provided by the IESO's MV-WEB.  It is the lower of the two kWh values provided by MV-WEB."]
[]
[]
[]
[null,"If fully embedded with the host distributor, kWh pertains to a metering installation on the secondary or low voltage side of the transformer at the interface between the embedded distributor and the host distributor.  For example, if the host distributor is Hydro One Networks Inc., kWh from the Hydro One Networks' invoice corresponding to \"Total kWh\" should be reported.  This corresponds to the lower of the two kWh values provided in Hydro One Networks' invoice."]
[]
[]
[]
[]
[null,"If partially embedded, kWh pertains to the sum of the above."]
[]
[null,"Additionally, kWh pertaining to distributed generation directly connected to the distributor's own distribution network should be included in A(2)."]
[]
[]
["B","If a Large Use Customer is metered on the secondary or low voltage side of the transformer, the default loss is 1%                         (i.e., B = 1.01 X E)."]
[]
[]
["D","kWh corresponding to D should equal metered or estimated kWh at the customer’s delivery point."]
[]
["G and I","These loss factors pertain to secondary-metered customers with demand less than 5,000 kW."]
[]
["H","If directly connected to the IESO-controlled grid, SFLF = 1.0045."]
[]
[null,"If fully embedded within a host distributor, SFLF = loss factor re losses in transformer at grid interface X loss factor re losses in host distributor's system.  If the host distributor is Hydro One Networks Inc., SFLF = 1.0060 X 1.0278 = 1.0340. If partially embedded, SFLF should be calculated as the weighted average of above."]
[]
[]
[]
[null,"Distributors that wish to propose a different SFLF should provide appropriate justification for any such proposal including supporting"]
[null,"calculations and any other relevant material."]

{"sheet":"App.2-S_Stranded Meters","index":44,"n_rows":92,"n_cols":8,"rows_kept":92,"cut":false,"hidden":false,"merged":[[91,0,94,7],[84,1,86,7],[88,1,89,7],[69,1,70,7],[76,1,78,7],[80,1,82,7],[72,1,74,7],[62,2,64,7],[66,0,67,7],[37,1,38,7],[40,1,42,7],[44,1,47,7],[49,1,52,7],[57,2,60,7],[8,0,8,7],[9,0,9,7],[29,0,32,7],[34,0,35,7],[54,2,55,7]]}
[null,null,null,null,null,null,"File Number:",{"$f":"EBNUMBER","v":"EB-2017-0032"}]
["Not Applicable",null,null,null,null,null,"Exhibit:"]
[null,null,null,null,null,null,"Tab:"]
[null,null,null,null,null,null,"Schedule:"]
[null,null,null,null,null,null,"Page:"]
[]
[null,null,null,null,null,null,"Date:"]
[]
["Appendix 2-S"]
["Stranded Meter Treatment"]
[]
["Year","Notes","Gross Asset Value","Accumulated Amortization","Contributed Capital (Net of Amortization)","Net Asset","Proceeds on Disposition","Residual Net Book Value"]
[null,null,"(A)","(B)","(C)","(D ) = (A) - (B) - (C)","(E)","(F) = (D) - (E)"]
[2006,null,null,null,null,{"$f":"C14-D14-E14","v":0},null,{"$f":"F14-G14","v":0}]
[2007,null,null,null,null,0,null,0]
[2008,null,null,null,null,0,null,0]
[2009,null,null,null,null,0,null,0]
[2010,null,null,null,null,0,null,0]
[2011,null,null,null,null,0,null,0]
[2012,null,null,null,null,0,null,0]
[2013,null,null,null,null,{"$f":"C21-D21-E21","v":0},null,{"$f":"F21-G21","v":0}]
[2014,null,null,null,null,{"$f":"C22-D22-E22","v":0},null,{"$f":"F22-G22","v":0}]
[2015]
[2016,"(1)",null,null,null,0,null,0]
[]
["Notes:"]
[]
["(1)","For 2016, please indicate whether the amounts provided are on a forecast or actual basis."]
[]
["Some distributors have transferred the cost of stranded meters from Account 1860 - Meters to \"Sub-account Stranded Meter Costs of Account 1555\", while in some cases distributors have left these costs in Account 1860.  Depending on which treatment the applicant has chosen. please provide the information under either of the two scenarios (A and B below), as applicable."]
[]
[]
[]
[]
["Scenario A:  If the stranded meter costs were transferred to \"Sub-account Stranded Meter Costs\" of Account 1555, the above table should be completed and the following information should be provided in Exhibit 9."]
[]
[]
[1,"A description of the accounting treatment followed by the applicant on stranded meter costs for financial accounting and reporting purposes."]
[]
[]
[2,"The amount of the pooled residual net book value of the removed from service stranded meters, less any contributed capital (net of accumulated amortization), and less any net proceeds from sales, which were transferred to this sub-account as of December 31, 2010."]
[]
[]
[]
[3,"A statement as to whether or not, since transferring the removed stranded meter costs to the sub-account, the recording of depreciation expenses was continued in order to reduce the net book value through accumulated depreciation.  If so, the total depreciation expense amount for the period from the time the costs for the stranded meters were transferred to the sub-account to December 31, 2010 should be provided."]
[]
[]
[]
[]
[null,"If no depreciation expenses were recorded to reduce the net book value of stranded meter costs through accumulated depreciation, the total depreciation expense amount that would have been applicable from the time that the stranded meter costs were transferred to the sub-account of Account 1555 to December 31, 2010 should be provided.  In addition, the following information should be provided:"]
[]
[]
[]
[]
[null,"a)","Whether or not carrying charges were recorded for the stranded meter cost balances in the sub-account, and if so, the total carrying charges recorded to December 31, 2010."]
[]
[]
[null,"b)","The estimated amount of the pooled residual net book value of the removed from service meters, less any net proceeds from sales and contributed capital, at the time when the smart meters will have been fully deployed (e.g., as of December 31, 2010).  If the smart meters have been fully deployed, the actual amount should be provided."]
[]
[]
[]
[]
[null,"c)","A description as to how the applicant intends to recover in rates the remaining costs for stranded meters, including the proposed accounting treatment, the proposed disposition period, and the associated bill impacts."]
[]
[]
[]
["Scenario B:  If the stranded meter costs remained recorded in Account 1860, the above table should be completed and the following information should be provided in Exhibit 9:"]
[]
[]
[1,"A description of the accounting treatment followed by the applicant on stranded meter costs for financial accounting and reporting purposes."]
[]
[]
[2,"The amount of the pooled residual net book value of the removed from service stranded meters, less any contributed capital (net of accumulated amortization), and less any net proceeds from sales, as of December 31, 2010."]
[]
[]
[]
[3,"A statement as to whether or not the recording of depreciation expenses continued in order to reduce the net book value through accumulated depreciation.  If so, provision of the total (cumulative) depreciation expense for the period from the time that the meters became stranded to December 31, 2010."]
[]
[]
[]
[4,"If no depreciation expenses were recorded to reduce the net book value of stranded meters through accumulated depreciation, the total (cumulative) depreciation expense amount that would have been applicable for the period from the time that the meters became stranded to December 31, 2010."]
[]
[]
[]
[5,"The estimated amount of the pooled residual net book value of the removed from service meters, less any net proceeds from sales and contributed capital, at the time when smart meters will have been fully deployed.  If the smart meters have been fully deployed, please provide the actual amount."]
[]
[]
[]
[6,"A description as to how the applicant intends to recover in rates the costs for stranded meters, including the proposed accounting treatment, the proposed disposition period and the associated bill impacts."]
[]
[]
["Distributors should also provide the Net Book Value per class of meter as of December 31, 2010 as well as the number of meters that were removed / stranded.  In preparing this information, distributors should review the Board's letter of January 16, 2007 Stranded Meter Costs Related to the Installation of Smart Meters which stated that records were to be kept of the type and number of each meter to support the stranded meter costs."]

{"sheet":"App.2-Y_MIFRS Summary Impacts","index":45,"n_rows":37,"n_cols":9,"rows_kept":37,"cut":false,"hidden":false,"merged":[[36,0,36,8],[29,0,29,2],[29,6,29,8],[30,0,30,2],[30,6,30,8],[31,0,31,2],[31,6,31,8],[32,0,32,2],[32,6,32,8],[33,0,33,2],[33,6,33,8],[34,0,34,2],[34,6,34,8],[26,0,26,2],[26,6,26,8],[28,0,28,2],[27,6,27,8],[28,6,28,8],[23,0,23,2],[23,6,23,8],[24,0,24,2],[24,6,24,8],[25,0,25,2],[25,6,25,8],[20,0,20,2],[20,6,20,8],[21,0,21,2],[21,6,21,8],[22,0,22,2],[22,3,22,5],[22,6,22,8],[17,0,17,2],[17,6,17,8],[18,0,18,2],[18,6,18,8],[19,0,19,2],[19,6,19,8],[8,0,8,8],[9,0,9,8],[10,0,10,8],[14,0,16,2],[14,6,14,8],[15,6,15,8]]}
[null,null,null,null,null,null,null,"File Number:",{"$f":"EBNUMBER","v":"EB-2017-0032"}]
[null,null,null,null,null,null,null,"Exhibit:"]
[null,null,null,null,null,null,null,"Tab:"]
[null,null,null,null,null,null,null,"Schedule:"]
[null,null,null,null,null,null,null,"Page:"]
[]
[null,null,null,null,null,null,null,"Date:"]
[]
["Appendix 2-Y"]
["Summary of Impacts to Revenue Requirement"]
["from Transition to MIFRS"]
[]
[]
[]
["Revenue Requirement Component",null,null,{"$f":"TestYear","v":2018},{"$f":"TestYear","v":2018},"Difference","Reasons why the revenue requirement "]
[null,null,null,"MIFRS","NEWCGAAP 1",null,"component is different under MIFRS"]
[]
["Closing NBV 2017",null,null,15470260.494999999,15470260.494999999,{"$f":"+D18-E18","v":0},"no change"]
["Closing NBV 2018",null,null,15651360.495000001,15651360.495000001,{"$f":"+D19-E19","v":0},"no change"]
["Average NBV",null,null,{"$f":"(D18+D19)/2","v":15560810.495000001},{"$f":"(E18+E19)/2","v":15560810.495000001},{"$f":"+D20-E20","v":0},"no change"]
["Working Capital",null,null,null,null,{"$f":"+D21-E21","v":0}]
["Rate Base",null,null,{"$f":"SUM(D20:D21)","v":15560810.495000001},{"$f":"SUM(E20:E21)","v":15560810.495000001},{"$f":"+D22-E22","v":0}]
[null,null,null,null,null,{"$f":"+D23-E23","v":0}]
["Return on Rate Base",null,null,985517,985517,0,"no change"]
[null,null,null,null,null,0]
["OM&A",null,null,2404300,2404300,0,"no change"]
["Depreciation",null,null,590700,590700,0,"no change"]
["Property Taxes",null,null,19200,19200,0,"no change"]
["PILs or Income Taxes",null,null,0,0,0,"no change"]
["Less: Revenue Offsets",null,null,-292400,-292400,0,"no change"]
[null,null,null,null,null,0]
[null,null,null,null,null,0]
[null,null,null,null,null,0]
["Insert description of additional item(s) and new rows if needed.",null,null,null,null,0]
["Total Base Revenue Requirement",null,null,{"$f":"SUM(D24:D34)","v":3707317},{"$f":"SUM(E24:E34)","v":3707317},{"$f":"SUM(F24:F34)","v":0},"no change"]
[]
["1.  Applicants must provide a summary of the dollar impacts of MIFRS to each component of the revenue requirement (e.g. rate base, operating costs, etc.), including the overall impact on the proposed revenue requirement.  Accordingly, the applicants must identify financial differences and resulting revenue requirement impacts arising from the adoption of  MIFRS as compared to CGAAP.  If the applicant is reflecting the changes in capitalization and depreciation policies for the first time in a rebasing application, then the comparison in the above table should be between MIFRS and CGAAP before the change in accounting policies. If the applicant changed capitalization and depreciation policies and reflected these changes in a previous rebasing application, the comparison in the above table should be between MIFRS and CGAAP after the change in accounting policies.  "]

{"sheet":"Sheet19","index":46,"n_rows":72,"n_cols":9,"rows_kept":72,"cut":false,"hidden":true,"merged":[]}
[null,"CGAAP","CGAAP","CGAAP","MIFRS","USGAAP","ASPE","ASPE","ASPE"]
[null,"N/A",2012,2013,null,null,"N/A",2012,2013]
["LDC Info","x","x","x","x","x","x","x","x"]
["Table of Contents","x","x","x","x","x","x","x","x"]
["COS Flowchart","x","x","x","x","x","x","x","x"]
["List of Key References","x","x","x","x","x","x","x","x"]
["App.2-AA_Capital Projects","x","x","x","x","x","x","x","x"]
["App.2-AB_Capital Expenditures","x","x","x","x","x","x","x","x"]
["App.2-BA1_Fix Asset Cont.CGAAP","x","x","x","n","x","x","x","x"]
["App.2-BA2_Fix Asset Cont.MIFRS","n","n","n","x","n","n","n","n"]
["Appendix 2-BB Service Life Comp","x","x","x","x","x","x","x","x"]
["Instruction for App. 2-C MIFRS","n","n","n","x","n","n","n","n"]
["App.2-CA_CGAAP_DepExp_2011","n","n","n","x","n","n","n","n"]
["App.2-CB_MIFRS_DepExp_2011","n","n","n","x","n","n","n","n"]
["App.2-CC_MIFRS_DepExp_2012","n","n","n","x","n","n","n","n"]
["App.2-CD_MIFRS_DepExp_2013","n","n","n","x","n","n","n","n"]
["App.2-CE_MIFRS_DepExp_2014","n","n","n","x","n","n","n","n"]
["App.2-CF_CGAAP_DepExp_2012","n","n","n","x","n","n","n","n"]
["App.2-CG_MIFRS_DepExp_2012","n","n","n","x","n","n","n","n"]
["App.2-CH_MIFRS_DepExp_2013","n","n","n","x","n","n","n","n"]
["App.2-CI_MIFRS_DepExp_2014","n","n","n","x","n","n","n","n"]
["App.2-CJ_CGAAP_DepExp_2012","n","n","n","x","n","n","n","n"]
["App.2-CK_CGAAP_DepExp_2013","n","n","n","x","n","n","n","n"]
["App.2-CL_MIFRS_DepExp_2013","n","n","n","x","n","n","n","n"]
["App.2-CM_MIFRS_DepExp_2014","n","n","n","x","n","n","n","n"]
["Instruction for App. 2-C CGAAP","x","x","x","n","n","x","x","x"]
["App.2-CN_OldCGAAP_DepExp_2012","x","x","n","n","n","x","x","n"]
["App.2-CO_NewCGAAP_DepExp_2012","x","x","n","n","n","x","x","n"]
["App.2-CP_NewCGAAP_DepExp_2013","x","x","n","n","n","x","x","n"]
["App.2-CQ NewCGAAP_DepExp_2014","x","x","n","n","n","x","x","n"]
["App.2-CR_OldCGAAP_DepExp_2012","x","n","x","n","n","x","n","x"]
["App.2-CS_OldCGAAP_DepExp_2013","x","n","x","n","n","x","n","x"]
["App.2-CT_NewCGAAP_DepExp_2013","x","n","x","n","n","x","n","x"]
["App.2-CU_NewCGAAP_DepExp_2014","x","n","x","n","n","x","n","x"]
["App.2-CV_USGAAP_DepExp","n","n","n","n","x","n","n","n"]
["App.2-DA_Overhead","n","n","n","x","n","n","n","n"]
["App.2-DB_Overhead","x","x","x","n","n","x","x","x"]
["App.2-EA_PP&E Deferral Account","n","n","n","x","x","n","n","n"]
["App.2-EB_PP&E Deferral Account","n","n","n","x","x","n","n","n"]
["App.2-EC_PP&E Deferral Account","n","n","n","x","x","n","n","n"]
["App.2-ED_Account 1576 (2012)","x","x","n","x","x","x","x","n"]
["App.2-EE_Account 1576 (2013)","x","n","x","x","x","x","n","x"]
["App.2-FA Proposed REG Invest.","o","o","o","o","o","o","o","o"]
["App.2-FB Calc of REG Improvemnt","o","o","o","o","o","o","o","o"]
["App.2-FC Calc of REG Expansion","o","o","o","o","o","o","o","o"]
["App.2-G SQI","x","x","x","x","x","x","x","x"]
["App.2-H_Other_Oper_Rev","x","x","x","x","x","x","x","x"]
["App.2-I LF_CDM_WF","x","x","x","x","x","x","x","x"]
["App.2-JA_OM&A_Summary_Analys","x","x","x","x","x","x","x","x"]
["App.2-JB_OM&A_Cost _Drivers","x","x","x","x","x","x","x","x"]
["App.2-JC_OMA Programs","x","x","x","x","x","x","x","x"]
["App.2-K_Employee Costs","x","x","x","x","x","x","x","x"]
["App.2-L_OM&A_per_Cust_FTEE","x","x","x","x","x","x","x","x"]
["App.2-M_Regulatory_Costs","x","x","x","x","x","x","x","x"]
["App.2-N_Corp_Cost_Allocation","x","x","x","x","x","x","x","x"]
["App.2-OA Capital Structure","x","x","x","x","x","x","x","x"]
["App.2-OB_Debt Instruments","x","x","x","x","x","x","x","x"]
["App.2-P_Cost_Allocation","x","x","x","x","x","x","x","x"]
["App.2-Q_Cost of Serv. Emb. Dx","e","e","e","e","e","e","e","e"]
["App.2-R_Loss Factors","x","x","x","x","x","x","x","x"]
["App.2-S_Stranded Meters","x","x","x","x","x","x","x","x"]
["App.2-TA_1592_Tax_Variance","x","x","x","x","x","x","x","x"]
["App.2-TB_1592_HST-OVAT","x","x","x","x","x","x","x","x"]
["App.2-U_IFRS Transition Costs","x","x","x","x","x","x","x","x"]
["App.2-V_Rev_Reconciliation","x","x","x","x","x","x","x","x"]
["App.2-W_Bill Impacts","x","x","x","x","x","x","x","x"]
["App.2-YA_MIFRS Summary Impacts","n","n","n","x","n","n","n","n"]
["App. 2-YB_CGAAP Summary Impacts","x","x","x","n","n","x","x","x"]
["App. 2-Z_Tariff","x","x","x","x","x","x","x","x"]
["lists","n","n","n","n","n","n","n","n"]
["lists2","n","n","n","n","n","n","n","n"]
["Sheet19","n","n","n","n","n","n","n","n"]

{"sheet":"App.2-YA_IFRS Transition Costs","index":47,"n_rows":34,"n_cols":14,"rows_kept":34,"cut":false,"hidden":false,"merged":[[31,1,31,13],[39,0,42,0],[39,1,42,3],[44,0,45,0],[44,1,45,3],[33,0,34,0],[36,0,37,0],[36,1,37,3],[33,1,33,13],[32,1,32,4],[32,5,32,6],[28,0,28,2],[17,0,17,2],[18,0,18,2],[19,0,19,2],[20,0,20,2],[21,0,21,2],[22,0,22,2],[23,0,23,2],[24,0,24,2],[25,0,25,2],[26,0,26,2],[27,0,27,2],[16,0,16,2],[8,0,8,15],[9,0,9,15],[13,0,15,2],[13,13,15,13],[13,10,14,10],[13,11,15,11],[13,12,15,12],[11,0,11,13],[13,9,14,9]]}
[]
[null,null,null,null,null,null,null,null,null,null,null,null,"File Number:",{"$f":"EBNUMBER","v":"EB-2017-0032"}]
[null,null,null,null,null,null,null,null,null,null,null,null,"Exhibit:"]
[null,null,null,null,null,null,null,null,null,null,null,null,"Tab:"]
[null,null,null,null,null,null,null,null,null,null,null,null,"Schedule:"]
[null,null,null,null,null,null,null,null,null,null,null,null,"Page:"]
[]
[null,null,null,null,null,null,null,null,null,null,null,null,"Date:"]
["Appendix 2-YA"]
["One-Time Incremental IFRS Transition Costs"]
[]
["The following table should be completed based on the information requested below. An explanation should be provided for any blank entries.  The entries should include one-time incremental IFRS transition costs that are currently included in Account 1508, Other Regulatory Assets, sub-account Deferred IFRS Transition Costs Account, or Account 1508, Other Regulatory Assets, sub-account IFRS Transition Costs Variance Account."]
[]
["Nature of One-Time Incremental IFRS Transition Costs 1",null,null,null,"Audited Actual Costs Incurred","Audited Actual Costs Incurred","Audited Actual Costs Incurred","Audited Actual Costs Incurred","Audited Carrying Charges ","Forecasted Costs ","Forecasted Costs ","Carrying Charges January 1, 2017 to December 31,2017 (As appropriate)","Total Costs and Carrying Charges","Reasons why the costs recorded meet the criteria of one-time IFRS administrative incremental costs"]
[]
[null,null,null,null,2012,2013,2014,2015,"To December 31, 2016",2017,"2018 3"]
["Professional accounting fees",null,null,null,83018.2,null,1500,null,6326.8,null,null,756.66,{"$f":"SUM(E17:L17)","v":91601.66},"Consultants Fees related to IFRS Conversion"]
["Professional legal fees",null,null,null,null,null,null,null,null,null,null,null,{"$f":"SUM(E18:L18)","v":0}]
["Salaries, wages and benefits of staff added to support the transition to IFRS",null,null,null,null,null,null,null,null,null,null,null,0]
["Associated staff training and development costs",null,null,null,null,null,null,null,null,null,null,null,0]
["Costs related to system upgrades, or replacements or changes where IFRS was the major reason for conversion",null,null,null,null,null,null,null,null,null,null,null,0]
[null,null,null,null,null,null,null,null,null,null,null,null,0]
[null,null,null,null,null,null,null,null,null,null,null,null,0]
[null,null,null,null,null,null,null,null,null,null,null,null,0]
[null,null,null,null,null,null,null,null,null,null,null,null,0]
["Amounts, if any, included in previous Board approved rates (amounts should be negative) 2",null,null,null,null,null,null,null,null,null,null,null,0]
[null,null,null,null,null,null,null,null,null,null,null,null,0]
["Insert description of additional item(s) and new rows if needed.",null,null,null,null,null,null,null,null,null,null,null,0]
["Total",null,null,null,{"$f":"SUM(E17:E28)","v":83018.2},0,null,{"$f":"SUM(H17:H28)","v":0},6326.8,null,0,null,{"$f":"SUM(M17:M28)","v":91601.66}]
[]
["Note:"]
[1,"The Deferred IFRS Transition Costs Account and the IFRS Transition Costs Variance Account are exclusively for necessary, incremental transition costs and shall not include ongoing IFRS compliance costs or impacts arising from adopting accounting policy changes that reflect changes in the timing of the recognition of income. The incremental costs in these accounts shall not include costs related to system upgrades, or replacements or changes where IFRS was not the major reason for conversion. In addition, incremental IFRS costs shall not include capital assets or expenditures."]
[2,"If there were any amounts approved in previous Board approved rates, please state the EB #:"]
[3,"Any forecasted One-time costs past 2015 should be fully explained in the application, since distributors were required to adopt IFRS or an alternative accounting standard by January 1, 2015."]

{"sheet":"Sheet1","index":48,"n_rows":0,"n_cols":0,"rows_kept":0,"cut":false,"hidden":false,"merged":[]}